Workbook

Sheet ISIN List (hidden)
A1: ISIN | B1: ISIN Description
A2: (Select) | B2: (Select)
A3: INE216D08039 | B3: KSS LIMITED OCD 31MR15 FVRS1LAC
A4: INE305C01029 | B4: PANAMA PETROCHEM LIMITED EQ NEW FV RS. 2/-
A5: INE315R01018 | B5: SHIVAM MEGASTRUCTURES PVT LTD EQ CLASS A
A6: INE315R01026 | B6: SHIVAM MEGASTRUCTURES PVT LTD EQ CLASS B
A7: INE315R01034 | B7: SHIVAM MEGASTRUCTURES PVT LTD EQ CLASS C
A8: INE538F03172 | B8: ESSAR POWER LIMITED 0.01% PREF 31AG24
A9: INE790J03023 | B9: VATIKA LIMITED 0.001% PREF 31DC15
A10: INF903J01U93 | B10: SUNDARAM MUTUAL FUND FTP DW REGULAR PLAN QTLRY DIVI PAY 28SP16
A11: INF903J01V01 | B11: SUNDARAM MUTUAL FUND FTP DW REGULAR PLAN HLF YRLY DIVI PAY 28SP16
A12: INF903J01V27 | B12: SUNDARAM MUTUAL FUND FTP DW DIRECT PLAN QTLRY DIVI PAY 28SP16
A13: INF903J01V35 | B13: SUNDARAM MUTUAL FUND FTP DW DIRECT PLAN HLF YRLY DIVI PAY 28SP16
A14: INE121H07AH3 | B14: IL&FS FINANCIAL SERVICES LIMITED SR-III 9.65 NCD 18SP19 FVRS1000
A15: INE333R18023 | B15: EARC TRUST - SC 52 SERIES II SECURITY RECEIPTS 16JL14
A16: INE374Q18045 | B16: EARC TRUST - SC 28 SR IV SECURITY RECEIPTS 04AG14
A17: INE385R18015 | B17: ARCIL - AST - V TRUST SERIES I SECURITY RECEIPTS 28MR14
A18: INE386R18013 | B18: ARCIL - AST - 038-I- TRUST SERIES I SECURITY RECEIPTS 30JU14
A19: INE387R18011 | B19: ALCHEMIST - XXVI TRUST SECURITY RECEIPTS 30JU14
A20: INE397R01016 | B20: BAJAJ RESOURCES LIMITED EQ
A21: INE399R01012 | B21: RUJUVALIKA INVESTMENTS LIMITED EQ
A22: INE687C13017 | B22: REXNORD ELECTRONICS & CONTROLS LTD WARRANTS 22MR16
A23: INE727M09083 | B23: IFCI VENTURE CAPITAL FUNDS LIMITED SR-III 10.8 LOA 10OT24 FVRS10LAC
A24: INE990D07304 | B24: KRISHNA BHAGYA JALA NIGAM LIMITED SR-B 9.13 BD 30SP24 FVRS10LAC
A25: INF247L01536 | B25: MOTILAL OSWAL MUTUAL FUND MOSt SHARES 50 ETF GROWTH OPT OPEN ENDED
A26: INE013A07F12 | B26: RELIANCE CAPITAL LIMITED SR-B/265 TYPE IV BR NCD 02FB18 FVRS1LAC
A27: INE100R01014 | B27: ANUJ BUILDCON PRIVATE LIMITED EQ
A28: INE134E08GK2 | B28: POWER FINANCE CORPORATION LTD. SR-120 A 8.98 BD 08OT24 FVRS10LAC
A29: INE134E08GL0 | B29: POWER FINANCE CORPORATION LTD. SR-120 B 8.98 BD 08OT24 FVRS10LAC
A30: INE392R08012 | B30: DOLVI MINERALS & METALS PRIVATE LIMITED NCD 22OT19 PPRS5LAC
A31: INE797O18083 | B31: IARF - II TRUST SCHEME - I SR VIII SECURITY RECEIPTS 14OT14
A32: INE217K07AT8 | B32: RELIANCE HOME FINANCE LIMITED SR-M/37 BR NCD 28JN21 FVRS5LAC
A33: INE461R01010 | B33: YEDESHI AURANGABAD TOLLWAY LIMITED EQ
A34: INE752E07LU2 | B34: POWER GRID CORPORATION OF INDIA LIMITED 8.93 BD 20OT20 FVRS10LAC LOA UPTO 24FB15
A35: INE752E07LV0 | B35: POWER GRID CORPORATION OF INDIA LIMITED 8.93 BD 20OT21 FVRS10LAC LOA UPTO 24FB15
A36: INE752E07LW8 | B36: POWER GRID CORPORATION OF INDIA LIMITED 8.93 BD 20OT22 FVRS10LAC LOA UPTO 24FB15
A37: INE752E07LX6 | B37: POWER GRID CORPORATION OF INDIA LIMITED 8.93 BD 20OT23 FVRS10LAC LOA UPTO 24FB15
A38: INE752E07LY4 | B38: POWER GRID CORPORATION OF INDIA LIMITED 8.93 BD 20OT24 FVRS10LAC LOA UPTO 24FB15
A39: INE752E07LZ1 | B39: POWER GRID CORPORATION OF INDIA LIMITED 8.93 BD 20OT25 FVRS10LAC LOA UPTO 24FB15
A40: INE752E07MA2 | B40: POWER GRID CORPORATION OF INDIA LIMITED 8.93 BD 20OT26 FVRS10LAC LOA UPTO 24FB15
A41: INE752E07MB0 | B41: POWER GRID CORPORATION OF INDIA LIMITED 8.93 BD 20OT27 FVRS10LAC LOA UPTO 24FB15
A42: INE752E07MC8 | B42: POWER GRID CORPORATION OF INDIA LIMITED 8.93 BD 20OT28 FVRS10LAC LOA UPTO 24FB15
A43: INE752E07MD6 | B43: POWER GRID CORPORATION OF INDIA LIMITED 8.93 BD 20OT29 FVRS10LAC LOA UPTO 24FB15
A44: INE900Q01019 | B44: LIFELONG STEEL AND ALLOYS PRIVATE LIMITED EQ
A45: INF194KA1VV0 | B45: IDFC MUTUAL FUND FTP SR 44 REGULAR PLAN QTRLY DIVI PAY 24OT16
A46: INF194KA1VW8 | B46: IDFC MUTUAL FUND FTP SR 44 REGULAR PLAN HLF YRLY DIVPAY 24OT16
A47: INF336L01JG4 | B47: HSBC MUTUAL FUND FUND FIXED TERM SERIES 98 DIR DIVI PAY 26OT16
A48: INF336L01JH2 | B48: HSBC MUTUAL FUND FUND FIXED TERM SERIES 98 DIR GROWTH 26OT16
A49: INF336L01JI0 | B49: HSBC MUTUAL FUND FUND FIXED TERM SERIES 98 REG DIVI PAY 26OT16
A50: INF336L01JJ8 | B50: HSBC MUTUAL FUND FUND FIXED TERM SERIES 98 REG GROWTH 26OT16
A51: INF903J01X09 | B51: SUNDARAM MUTUAL FUND HYBRID FD SR L REGULAR PLAN GROWTH 10NV19
A52: INF903J01X17 | B52: SUNDARAM MUTUAL FUND HYBRID FD SR L REG PL HLF YRLY DIVIPAY 10NV19
A53: INF903J01X25 | B53: SUNDARAM MUTUAL FUND HYBRID FD SR L REG PLAN YRLY DIVI PAY 10NV19
A54: INF903J01X41 | B54: SUNDARAM MUTUAL FUND HYBRID FD SR L DIR PL HLF YRLY DIVIPAY 10NV19
A55: INF903J01X58 | B55: SUNDARAM MUTUAL FUND HYBRID FD SR L DIR PLAN YRLY DIVI PAY 10NV19
A56: IN1620130071 | B56: STATE DEVELOPMENT LOAN 16429 HAR 11SP23 9.50 FV RS 100
A57: IN3420140060 | B57: STATE DEVELOPMENT LOAN 17105 WB 27AG24 9.10 FV RS 100
A58: INE141A08019 | B58: ORIENTAL BANK OF COMMERCE 9.2 BD 27OT24 FVRS10LAC
A59: INE378R07039 | B59: UNITED SEAMLESS TUBULAAR PRIVATE LIMITED SR-A 8.5 BD 31MR21 FVRS10LAC
A60: INE543R01015 | B60: ROMANO BUILDTECH PRIVATE LIMITED EQ
A61: IN9466M01026 | B61: BHUVEE STENOVATE PRIVATE LIMITED EQ PP RS.8/-
A62: INE261Q08011 | B62: WADHWA RESIDENCY PRIVATE LIMITED SR-A 20 CCD 01AG21 FVRS100
A63: INE361P04010 | B63: RENEW WIND ENERGY (JAMB) PVT. LTD. 0.0001% PREF 22JU34
A64: INE373R04011 | B64: LUXURY FARMS PRIVATE LIMITED 12% PREF 29MR19
A65: INE373R04029 | B65: LUXURY FARMS PRIVATE LIMITED 14% PREF 13JU22
A66: INE373R04037 | B66: LUXURY FARMS PRIVATE LIMITED 12% PREF 30MR24
A67: INE383R01016 | B67: PATWA INVESTMENT AND FINANCE LIMITED EQ
A68: INE430R01015 | B68: AAYUSH FOOD AND HERBS LIMITED EQ
A69: INE476M07263 | B69: L&T HOUSING FINANCE LIMITED SR-J OPT-3 9.45 NCD 06NV21 FVRS25LAC
A70: INE531R01010 | B70: MEGATHERM TRANSMISSION & DISTRIBUTION PRIVATE LIMITED EQ
A71: INE532R01018 | B71: MEP HIGHWAY SOLUTIONS PRIVATE LIMITED EQ
A72: INE534R01014 | B72: MIDASTOUCH POWER PRIVATE LIMITED EQ
A73: INE537R01017 | B73: SANCHAYA POWER PRIVATE LIMITED EQ
A74: INE539R01013 | B74: INDIGENOUS POWER PRIVATE LIMITED EQ
A75: INE540R01011 | B75: SAIBLISS POWER PRIVATE LIMITED EQ
A76: INE541R01019 | B76: FILTRA CONSULTANTS AND ENGINEERS LIMITED EQ
A77: INE542R01017 | B77: PARINEE REALTORS PRIVATE LIMITED EQ
A78: INE173Y07014 | B78: AZURE RENEWABLE ENERGY PRIVATE LIMITED 9.6 NCD 28OT22 FVRS10000
A79: INF789FA13R7 | B79: UTI MUTUAL FUND FTIF SR XX XI (1100D) REG FLEXI DIVREI 06DC17
A80: INF789FA13S5 | B80: UTI MUTUAL FUND FTIF SR XX XII (1103D) DIR MAT DIV PAY 18DC17
A81: INF789FA13T3 | B81: UTI MUTUAL FUND FTIF SR XX XII (1103D) REG QTLY DIVREI 18DC17
A82: INF789FA14Q7 | B82: UTI MUTUAL FUND FTIF SR XX XI (1100D) DIR FLEXI DIVPAY 06DC17
A83: INF789FA14S3 | B83: UTI MUTUAL FUND FTIF SR XX XII (1103D) DIR QTLY DIVPAY 18DC17
A84: INF789FA15Q4 | B84: UTI MUTUAL FUND FTIF SR XX XI (1100D) DIR FLEXI DIVREI 06DC17
A85: INF789FA15R2 | B85: UTI MUTUAL FUND FTIF SR XX XI (1100D) REG MAT DIVI PAY 06DC17
A86: INF789FA15S0 | B86: UTI MUTUAL FUND FTIF SR XX XII (1103D) DIR QTLY DIVREI 18DC17
A87: INF789FA16R0 | B87: UTI MUTUAL FUND FTIF SR XX XI (1100D) REG QTLY DIV PAY 06DC17
A88: INF789FA16S8 | B88: UTI MUTUAL FUND FTIF SR XX XII (1103D) REG ANNL DIVPAY 18DC17
A89: INF789FA17Q0 | B89: UTI MUTUAL FUND FTIF SR XX XI (1100D) DIR MAT DIVI PAY 06DC17
A90: INF789FA17R8 | B90: UTI MUTUAL FUND FTIF SR XX XI (1100D) REG QTLY DIV REI 06DC17
A91: INF789FA17S6 | B91: UTI MUTUAL FUND FTIF SR XX XII (1103D) REG ANNL DIVREI 18DC17
A92: INF789FA18Q8 | B92: UTI MUTUAL FUND FTIF SR XX XI (1100D) DIR QTRY DIV PAY 06DC17
A93: INF789FA18R6 | B93: UTI MUTUAL FUND FTIF SR XX XII (1103D) DIR ANNL DIVPAY 18DC17
A94: INF789FA18S4 | B94: UTI MUTUAL FUND FTIF SR XX XII (1103D) REG FLEXI DIVPA 18DC17
A95: INF789FA19Q6 | B95: UTI MUTUAL FUND FTIF SR XX XI (1100D) DIR QTRLY DIVREI 06DC17
A96: INF789FA19R4 | B96: UTI MUTUAL FUND FTIF SR XX XII (1103D) DIR ANNL DIVREI 18DC17
A97: INF789FA19S2 | B97: UTI MUTUAL FUND FTIF SR XX XII (1103D) REG FLEXI DIVRE 18DC17
A98: IN3120140014 | B98: STATE DEVELOPMENT LOAN 16849 TN 10AP24 9.63 FV RS 100
A99: IN3420120153 | B99: STATE DEVELOPMENT LOAN 16113 WB 20MR23 8.66 FV RS 100
A100: INE010Q07139 | B100: SHUBHI AGRO INDUSTRIES LIMITED SR-1 18 LOA 16NV15 FVRS1LAC
A101: INE039A07785 | B101: IFCI LIMITED SR-IV 9.9 NCD 01DC21 FVRS1000 LOA UPTO 17MY15
A102: INE039A07793 | B102: IFCI LIMITED SR-V NCD 01DC21 FVRS1000 LOA UPTO 17MY15
A103: INE039A07801 | B103: IFCI LIMITED SR-VI 9.9 NCD 01DC24 FVRS1000 LOA UPTO 17MY15
A104: INE039A07819 | B104: IFCI LIMITED SR-VII NCD 01DC24 FVRS1000 LOA UPTO 17MY15
A105: INE296A07EG2 | B105: BAJAJ FINANCE LIMITED SR-111 9.36 NCD 18NV24 FVRS10LAC
A106: INE348F08043 | B106: MADHYA PRADESH FINANCIAL CORPORATION SR-I 9.2 LOA 19NV24 FVRS1LAC
A107: INE593R07017 | B107: LABOURNET SERVICES INDIA PRIVATE LIMITED 10.5 LOA 07AP17 FVRS10LAC
A108: INE756I08090 | B108: HDB FINANCIAL SERVICES LIMITED SR- I/1/9 9.55 BD 15NV24 FVRS10LAC
A109: INE535D01029 | B109: ROTO PUMPS LIMITED EQ NEW FV RS. 2/-
A110: INE542N07013 | B110: GREEN INFRA WIND FARM ASSETS LIMITED 12 NCD 30DC23 FVRS10LAC
A111: INE639R01011 | B111: NATURE INDIA COMMUNIQUE LTD EQ
A112: INE646R01016 | B112: SKYROCK ENGINEERS PRIVATE LIMITED EQ
A113: INE647R01014 | B113: STELLAR SPRING PROJECTS PRIVATE LIMITED EQ
A114: INE648R01012 | B114: STELLAR CONSTELLATION PROJECTS PRIVATE LIMITED EQ
A115: INE659R01019 | B115: ANI TECHNOLOGIES PRIVATE LIMITED EQ
A116: INE660R01017 | B116: MEP IRDP SOLAPUR TOLL ROAD PRIVATE LIMITED EQ
A117: INE662R01013 | B117: PIRAMAL RESIDENCES PRIVATE LIMITED EQ
A118: INE663R01011 | B118: PJPA REALITY PRIVATE LIMITED EQ
A119: INE848E07690 | B119: NHPC LIMITED 8.54 BD 26NV20 FVRS1LAC LOA UPTO 18FB15
A120: INE848E07708 | B120: NHPC LIMITED 8.54 BD 26NV21 FVRS1LAC LOA UPTO 18FB15
A121: INE848E07716 | B121: NHPC LIMITED 8.54 BD 26NV22 FVRS1LAC LOA UPTO 18FB15
A122: INE848E07724 | B122: NHPC LIMITED 8.54 BD 26NV23 FVRS1LAC LOA UPTO 18FB15
A123: INE848E07732 | B123: NHPC LIMITED 8.54 BD 26NV24 FVRS1LAC LOA UPTO 18FB15
A124: INE848E07740 | B124: NHPC LIMITED 8.54 BD 26NV25 FVRS1LAC LOA UPTO 18FB15
A125: INE848E07757 | B125: NHPC LIMITED 8.54 BD 26NV26 FVRS1LAC LOA UPTO 18FB15
A126: INE848E07773 | B126: NHPC LIMITED 8.54 BD 26NV28 FVRS1LAC LOA UPTO 18FB15
A127: INE848E07781 | B127: NHPC LIMITED 8.54 BD 26NV29 FVRS1LAC LOA UPTO 18FB15
A128: INF205K01Q59 | B128: INVESCO MUTUAL FUND FMP SERIES-XXI PLAN E REG DIVI PAY 29NV16
A129: INF205K01Q75 | B129: INVESCO MUTUAL FUND FMP SERIES-XXI PLAN E DIRECT DIVI PAY 29NV16
A130: INF205K01Q83 | B130: INVESCO MUTUAL FUND FMP SERIES-XXI PLAN E DIRECT GROWTH 29NV16
A131: INF205K01Q91 | B131: INVESCO MUTUAL FUND FMP SERIES-22 PLAN A REG DIVI PAY 08DC16
A132: INF205K01R09 | B132: INVESCO MUTUAL FUND FMP SERIES-22 PLAN A REG GROWTH 08DC16
A133: INF205K01R17 | B133: INVESCO MUTUAL FUND FMP SERIES-22 PLAN A DIRECT DIVI PAY 08DC16
A134: INF205K01R25 | B134: INVESCO MUTUAL FUND FMP SERIES-22 PLAN A DIRECT GROWTH 08DC16
A135: IN1020140043 | B135: STATE DEVELOPMENT LOAN 17119 AP 10SP24 9.08 FV RS 100
A136: INE090A01021 | B136: ICICI BANK LIMITED EQ NEW FV RS. 2/-
A137: INE153A08071 | B137: MAHANAGAR TELEPHONE NIGAM LIMITED. 8.29 BD 28NV24 FVRS10LAC LOA UPTO 07DC14
A138: INE528G08154 | B138: YES BANK LIMITED RR BD 14AG25 FVRS10LAC
A139: INF109K01VH0 | B139: ICICI PRUDENTIAL MUTUAL FUND LIQUID FUND INSTTION I GROWTH
A140: INF178L01095 | B140: KOTAK MAHINDRA MUTUAL FUND INFRA & ECO. REFORM STANDARD GROWTH OPEN END
A141: INF109K01VR9 | B141: ICICI PRUDENTIAL MUTUAL FUND LIQUID FUND MTHLY DIVI REINV
A142: INF109K01WW7 | B142: ICICI PRUDENTIAL MUTUAL FUND BANKING & PSU DEBT FD RETAIL DLY DIVI PAY OP
A143: INF109K01589 | B143: ICICI PRUDENTIAL MUTUAL FUND MONTHLY INCOME PL GROWTH HLF YRLY AEP
A144: INF109K01AX1 | B144: ICICI PRUDENTIAL MUTUAL FUND FLOATING INTEREST FD GROWTH
A145: INF109K01RW7 | B145: ICICI PRUDENTIAL MUTUAL FUND DYN BD FU PREMIUM PLUS GROWTH OPEN ENDED
A146: INF109K01SH6 | B146: ICICI PRUDENTIAL MUTUAL FUND CORPORATE BD FD PREMIUM FORTNIGHTLY DIV PAY
A147: INF109K01SL8 | B147: ICICI PRUDENTIAL MUTUAL FUND CORPORATE BD FD WEEKLY DIVI PAY
A148: INF109K01SR5 | B148: ICICI PRUDENTIAL MUTUAL FUND CORPORATE BD FD SUPER PREM FORTNTLY DIVIPAY
A149: INE010Q07097 | B149: SHUBHI AGRO INDUSTRIES LIMITED SR-3 16 LOA 27AP17 FVRS1LAC
A150: INE248L03069 | B150: ESSAR POWER HAZIRA LIMITED RR PREF 27MR34
A151: INF761K01CE5 | B151: BOI AXA MUTUAL FUND FMP SERIES 15 (366D) DIR DIVI PAY 13MY15
A152: INE301E01024 | B152: ROCKWOOL (INDIA) PRIVATE LIMITED EQ NEW FV RS. 10/-
A153: INE344N01025 | B153: EAST INDIA PETROLEUM PRIVATE LIMITED EQ NEW FV RS. 10/-
A154: INF174K01BP9 | B154: KOTAK MAHINDRA MUTUAL FUND QTRLY INTV PL SR 3 DIVIPY INTERVAL SCHEME
A155: INF174K01BW5 | B155: KOTAK MAHINDRA MUTUAL FUND QTRLY INTV PL SR 5 DIVIREINV INTERVAL SCHEME
A156: INF174K01CG6 | B156: KOTAK MAHINDRA MUTUAL FUND QTRLY INTV PL SR 9 GROWTH INTERVAL SCHEME
A157: INF174K01EP3 | B157: KOTAK MAHINDRA MUTUAL FUND BOND REGULAR ANNUAL DIVREINV
A158: INF174K01FA2 | B158: KOTAK MAHINDRA MUTUAL FUND DYNAMIC BOND FD REG GROWTH
A159: INF174K01FG9 | B159: KOTAK MAHINDRA MUTUAL FUND TREASURY ADV FD WEEKLY DIV PAYOUT OPEN END
A160: INF174K01FP0 | B160: KOTAK MAHINDRA MUTUAL FUND BANKING AND PSU DEBT FUND MTHLY DIV REINV OP
A161: INF174K01245 | B161: KOTAK MAHINDRA MUTUAL FUND INDIA EQ CONTRA FD DIRECT GROWTH
A162: INF174K01393 | B162: KOTAK MAHINDRA MUTUAL FUND DEBT HYBRID REGULAR GROWTH
A163: IN1020130101 | B163: STATE DEVELOPMENT LOAN 16618 AP 18DC23 9.52 FV RS 100
A164: INE002Q01014 | B164: HORIZON PACKS PVT LTD EQ
A165: INE023Q01010 | B165: RITIKA PRIVATE LIMITED EQ
A166: INE024Q01018 | B166: ISSL SETTLEMENT & TRANSACTION SERVICES LTD. EQ
A167: INE027Q01011 | B167: MONICA REALATORS & INVESTMENTS PRIVATE LTD. EQ
A168: INE028Q01019 | B168: GVR NAGAUR BIKANER TOLLWAY PRIVATE LIMITED EQ
A169: INE029Q01017 | B169: BAHETI METAL AND FERRO ALLOYS LIMITED EQ
A170: INE327Q15023 | B170: ALKE IFMR CAPITAL 2014 SR-A2 PTC 28FB14
A171: INE013A08317 | B171: RELIANCE CAPITAL LIMITED SR-T 10.19 LOA 25NV23 FVRS10LAC
A172: INF663L01DZ4 | B172: PGIM INDIA MUTUAL FUND MIDCAP OPPORTUNITIES FUND REGULAR GROWTH OPEN
A173: INF663L01EA5 | B173: PGIM INDIA MUTUAL FUND MIDCAP OPPORTUNITIES FUND REGULAR DIVI PAY OP
A174: INF663L01DV3 | B174: PGIM INDIA MUTUAL FUND MIDCAP OPPORTUNITIES FUND DIRECT GROWTH OPEN
A175: INF663L01DW1 | B175: PGIM INDIA MUTUAL FUND MIDCAP OPPORTUNITIES FUND DIRECT DIVI PAY OP
A176: INF663L01DX9 | B176: PGIM INDIA MUTUAL FUND MIDCAP OPPORTUNITIES FUND DIRECT DIVI REIN OP
A177: INF663L01EB3 | B177: PGIM INDIA MUTUAL FUND MIDCAP OPPORTUNITIES FUND REGULAR DIVI REI OP
A178: INF663L01EC1 | B178: PGIM INDIA MUTUAL FUND MIDCAP OPPORTUNITIES FUND REGULAR DIV TRAF OP
A179: IN3120130130 | B179: STATE DEVELOPMENT LOAN 16544 TN 06NV23 9.37 FV RS 100
A180: INE031A07AA4 | B180: HOUSING AND URBAN DEVELOPMENT CORPORATION LIMITED SR-2BTRCH-II8.83BD13JN29FVRS1000LOAUPTO3AP14
A181: INE031A07AB2 | B181: HOUSING AND URBAN DEVELOPMENT CORPORATION LIMITED SR-3BTRCH-II9.01BD13JN34 FVRS1000LOAUPTO3AP14
A182: INE031A07964 | B182: HOUSING AND URBAN DEVELOPMENT CORPORATION LIMITED SR1ATRCHII8.51 BD13JN24 FVRS1000LOA UPTO3AP14
A183: INE031A07972 | B183: HOUSING AND URBAN DEVELOPMENT CORPORATION LIMITED SR2ATRCHII8.58 BD13JN29 FVRS1000 LOAUPTO3AP14
A184: INE031A07980 | B184: HOUSING AND URBAN DEVELOPMENT CORPORATION LIMITED SR-3A TRCH-II8.76BD13JN34FVRS1000LOAUPTO3AP14
A185: INE031A07998 | B185: HOUSING AND URBAN DEVELOPMENT CORPORATION LIMITED SR-1BTRCHII8.76BD13JN24FVRS1000 LOA UPTO3AP14
A186: INE631L03017 | B186: PROLIFICS CORPORATION LIMITED 0.001% SR A PREF 18SP32
A187: INE631L03025 | B187: PROLIFICS CORPORATION LIMITED 0.001% SR B PREF 18SP32
A188: INE955P01015 | B188: DYNAMIX TRADING TECHNOLOGIES LIMITED EQ
A189: INE956P01013 | B189: CHOWRINGHEE RESIDENCY PRIVATE LIMITED EQ
A190: INE947P01012 | B190: GRACEWORKS REALTY & LEISURE PRIVATE LIMITED EQ
A191: INE951P01014 | B191: MAHINDRA CONVEYOR SYSTEMS PRIVATE LIMITED EQ
A192: INE963P01019 | B192: IDFC TRUSTEE COMPANY LIMITED EQ
A193: INE964P01017 | B193: IDFC PROJECTS LIMITED EQ
A194: INE020B07HU8 | B194: RURAL ELECTRIFICATION CORPORATION LIMITED SR-4A 8.18 BD 11OT23 FVRS10LAC
A195: INE020B07HV6 | B195: RURAL ELECTRIFICATION CORPORATION LIMITED SR-4B 8.54 BD 11OT28 FVRS10LAC
A196: INE372P01013 | B196: R. K. INFRATEL LIMITED EQ
A197: INE450L01024 | B197: CENTRON INDUSTRIAL ALLIANCE LIMITED EQ NEW FV Re. 1/-
A198: INE499P01014 | B198: ABHIJEET FERROTECH LIMITED EQ
A199: INE600P01017 | B199: GUJARAT INTERNATIONAL FINANCE TEC-CITY CO LTD EQ
A200: INE601P01015 | B200: DUET INDIA HOTELS (BENGALURU CYBERCITY) PRIVATE LIMITED EQ
... 800 more rows

Sheet Home
E3: Assessment Year 2022-23
C4: S.NO | D4: Schedule Name | E4: Schedules for filing Income Tax Return | F4: =CONCATENATE("Description",CHAR(10),"Click on applicable links to navigate to the respective sheet / schedule.") -> Description Click on applicable links to navigate to the respective sheet / schedule. | G4: Select Applicable sheets below by choosing Y/N and click on apply | H4: Select Sheets to print and click on apply
C5: 1 | D5: PART A - General | E5: Personal Info., Filing Status, Audit Info | F5: Details of Personal Information and filing status | G5: Y | H5: Y
C6: =C5+1 -> 2 | D6: Nature Of Business | E6: Nature Of Business | F6: Nature of business or profession, if more than one tradenames please specify upto 3 tradenames | G6: N | H6: N
C7: =C6+1 -> 3 | D7: Part A - BS | E7: Part A-BS | F7: BALANCE SHEET AS ON 31ST DAY OF MARCH, 2022(fill items 1 to 5 in a case where regular books of accounts are maintained, otherwise fill item 6) | G7: N | H7: N
C8: 4 | D8: Manufacturing Account | E8: Schedule Manufacturing Account | F8: Manufacturing Account for the financial year 2021-22 (fill items 1 to 3 in a case where regular books of accounts are maintained, otherwise fill items 61 to 64 as applicable) | G8: N | H8: N
C9: 5 | D9: Trading Account | E9: Schedule Trading Account | F9: Part A-Trading Account -Trading Account for the financial year 2021-22 (fill items 4 to 12 in a case where regular books of accounts are maintained, otherwise fill items 61 to 64 as applicable) | G9: N | H9: N
C10: 6 | D10: Profit and Loss | E10: Part A-P & L | F10: Profit and Loss Account for the previous year 2021-22(fill items 1 to 52 in a case where regular books of accounts are maintained, otherwise fill item 53) | G10: N | H10: N
C11: 7 | D11: Part A - OI | E11: Part A -OI | F11: Other Information (optional in a case not liable for audit under section 44AB) | G11: N | H11: N
C12: 8 | D12: Quantitative Details | E12: Part A-QD | F12: Quantitative details (optional in a case not liable for audit under section 44AB) | G12: N | H12: N
C13: =C5+1 -> 2 | D13: Schedule S | E13: Schedule S | F13: Details of Salary | G13: Y | H13: Y
C14: 3 | D14: House Property | E14: Schedule HP | F14: Details of Income from House Property | G14: Y | H14: Y
C15: 4 | D15: BP | E15: Schedule BP | F15: Computation of income from business or profession | G15: N | H15: N
C16: 5 | D16: DPM - DOA | E16: Schedule DPM, Schedule DOA | F16: Depreciation on Plant and Machinery , Depreciation on other assets | G16: N | H16: N
C17: 6 | D17: DEP_DCG | E17: Schedule DEP, Schedule DCG | F17: Summary of depreciation on assets, Deemed Capital Gains on sale of depreciable assets | G17: N | H17: N
C18: 7 | D18: ESR | E18: Schedule ESR | F18: Deduction under section 35 | G18: N | H18: N
C19: =C14+1 -> 4 | D19: CG | E19: Schedule CG | F19: Capital Gains | G19: Y | H19: Y
C20: 5 | D20: Schedule 112A | E20: Schedule 112A | F20: 112A | G20: Y | H20: Y
C21: 6 | D21: Schedule 115AD(1)(iii) proviso | E21: Schedule 115AD(1)(iii)Proviso | F21: 115AD(1)(iii)Proviso | G21: Y | H21: Y
C22: 7 | D22: OS | E22: Schedule OS | F22: Income from other sources | G22: Y | H22: Y
C23: 8 | D23: CYLA - BFLA | E23: Schedule CYLA, Schedule BFLA | F23: Details of Income after set-off of current years losses, Details of Income after Set off of Brought Forward Losses of earlier years | G23: Y | H23: Y
C24: 9 | D24: CFL | E24: Schedule CFL | F24: Details of Losses to be carried forward to future Years | G24: Y | H24: Y
C25: 10 | D25: Unabsorbed Depreciation | E25: Schedule UD | F25: Unabsorbed depreciation and allowance under section 35(4) | G25: N | H25: N
C26: 11 | D26: ICDS | E26: Schedule ICDS | F26: Effect of Income Computation Disclosure Standards on profit | G26: N | H26: N
C27: 12 | D27: 10AA | E27: Schedule 10A, 10AA, 10B,10BA | F27: Deduction under section 10A, Deduction under section 10AA | G27: N | H27: N
C28: =C24+1 -> 10 | D28: 80G | E28: Schedule 80G | F28: Details of donations entitled for deduction under section 80G | G28: Y | H28: Y
C29: 11 | D29: 80D | E29: Schedule 80D | F29: Details of health insurance for deduction under Section 80D | G29: Y | H29: Y
C30: 12 | D30: RA | E30: Schedule 80RA | F30: Details of donations to research associations etc. | G30: N | H30: N
C31: =C29+1 -> 12 | D31: 80GGA | E31: Schedule 80GGA | F31: Details of donations for scientific research or rural development | G31: Y | H31: Y
C32: 13 | D32: 80 | E32: Schedule80-IA,IB,IC | F32: Deductions under section 80-IA, Deductions under section 80-IB, Deductions under section 80-IC | G32: Y | H32: Y
C33: 14 | D33: VI-A | E33: Schedule VIA | F33: Deductions under Chapter VI-A | G33: Y | H33: Y
C34: 15 | D34: SPI - SI | E34: Schedule SPI, Schedule SI, Schedule IF | F34: Income of specified persons(spouse, minor child etc.) includable in income of the assessee , Income chargeable to Income tax at special rates IB, Information regarding partnership firms in which you are partner | G34: Y | H34: Y
C35: 16 | D35: AMT | E35: Schedule AMT | F35: Computation of Alternate Minimum Tax payable under section 115JC | G35: Y | H35: Y
C36: 17 | D36: AMTC | E36: Schedule AMTC | F36: Computation of tax credit under section 115JD | G36: Y | H36: Y
C37: 18 | D37: EI | E37: Schedule EI | F37: Details of Exempt Income (Income not to be included in Total Income) | G37: Y | H37: Y
C38: 19 | D38: PTI | E38: Schedule PTI | F38: Pass Through Income details from business trust or investment fund as per section 115UA, 115UB | G38: Y | H38: Y
C39: 20 | D39: TPSA | E39: Schedule TPSA | F39: Schedule for Transfer Pricing Secondary Adjustment | G39: N | H39: N
C40: =C38+1 -> 20 | D40: FSI | E40: Schedule FSI | F40: Details of Income from outside India and tax relief | G40: Y | H40: Y
C41: 21 | D41: TR_FA | E41: Schedule TR, Schedule FA | F41: Summary of tax relief claimed for taxes paid outside India, Schedule FA Details of foreign assets | G41: Y | H41: Y
C42: 22 | D42: Sch 5A | E42: Schedule 5A | F42: Information regarding apportionment of income between spouses governed by Portuguese Civil Code | G42: Y | H42: Y
C43: 23 | D43: AL | E43: Schedule AL | F43: Asset and Liability at the end of the year (other than those included in Part A – BS) | G43: Y | H43: Y
C44: 24 | D44: GST | E44: Schedule GST | F44: INFORMATION REGARDING TURNOVER/GROSS RECEIPT REPORTED FOR GST | G44: N | H44: N
C45: 25 | D45: Part B - TI TTI | E45: Part B-TI, Part B-TTI | F45: Computation of total income | G45: Y | H45: Y
C46: 26 | D46: IT | E46: Tax Payments | F46: Details of payments of Advance Tax and Self-Assessment Tax | G46: Y | H46: Y
C47: 27 | D47: ESOP | E47: Tax deferred on ESOP | F47: Information related to Tax deferred - relatable to income on perquisites referred in section 17(2)(vi) received from employer, being an eligible start-up referred to in section 80-IAC | G47: Y | H47: Y
C48: 28 | D48: TDS | E48: Tax Payments(TDS1, TDS2, TDS3) | F48: Details of Tax Deducted at Source from SALARY, Details of Tax Collected at Source | G48: Y | H48: Y
C49: 29 | D49: Verification | E49: Verification | F49: Verification | G49: Y | H49: Y

Sheet PART A - General
C3: FORM | E3: ITR-2 | N3: INDIAN INCOME TAX RETURN | AN3: Assessment Year
N4: [For Individuals and HUFs not having income from profits and gains of business or profession] | AN4: 2022-23
N5: (Please see Rule 12 of the Income Tax-Rules,1962) (Please Refer instructions)
C7: PERSONAL INFORMATION | E7: First Name | O7: Middle Name | W7: Last Name | AK7: PAN
E8: KIRTI | O8: KUMAR | W8: AWASTHI | AK8: BADPA6724K | BG8: No
E9: Flat / Door / Block No | W9: Name of Premises / Building / Village | AK9: Status (I-Individual,H-HUF) | BB9: (Select)
E10: C-15/25 | AK10: I-INDIVIDUAL | BB10: I-INDIVIDUAL | BE10: I | BF10: H
E11: Road / Street / Post Office | W11: Area / Locality | AK11: Date of Birth/Formation (DD/MM/YYYY) | BB11: H-HUF | BD11: (Select) | BE11: (Select) | BF11: (Select)
W12: SHIVAJI NAGAR | AK12: 21/10/1954 | BD12: Male | BE12: M-Male | BF12: Not applicable
BD13: Female | BE13: F-Female
E14: Town/City/District | W14: State | AE14: Country | AO14: Pin Code | BD14: Transgender | BE14: Transgender
E15: JAIPUR | W15: 27-RAJASTHAN | AE15: 91-INDIA | AO15: 302002 | BD15: Not applicable
E16: No Zip Code? | AH16: Zip Code
E17: Email Address-1 (self) | N17: Email Address - 2 | W17: Mobile No 1 | AA17: (STD code) | AE17: Residential/Office Phone | AK17: Mobile No-2
E18: kirti1954@gmail.com | N18: rathore_incometax@yahoo.co.in | W18: 91 | X18: 7254545446 | AK18: 91 | AL18: 9811116835 | BD18: (Select)
N19: Filed u/s | Q19: Filed in response to notice u/s | X19: 139(4)- After due date | AE19: Residential Status in India | AK19: RES - Resident | BB19: =VLOOKUP(sheet1.ReturnFileSec,ReturnFileUnderSection,2,FALSE) -> 12-
E20: If revised/defective/Modified, enter Receipt no | AF20: Date of filing of Original Return (DD/MM/YYYY) | BB20: 1
E22: If filed, in response to a notice u/s 139(9)/142(1)/148 or order u/s 119(2)(b), enter Unique Number/Document Identification Number and date of such notice/order, or if filed u/s 92CD enter date of advance pricing agreement
E23: Unique Number/ Document Identification Number | AF23: Date or if filed u/s 92CD enter date of advance pricing agreement
E24: Conditions for Residential Status (Applicable for Individuals Only) | W24: You were in India for 182 days or more during the previous year [section 6(1)(a)]
E25: (i) Please specify the jurisdiction(s) of residence during the previous year -
E26: Sl.No. | F26: Jurisdiction(s) of residence | AA26: Taxpayer Identification Number(s)
E27: 1 | F27: (Select)
E28: =E27+1 -> 2 | F28: (Select)
E30: (ii) In case you are a Citizen of India or a Person of Indian Origin (POI), please specify -
E31: Total period of stay in India during the previous year (in days)
E32: Total period of stay in India during the 4 preceding years (in days)
E33: Aadhaar
E34: Are you opting for new tax regime u/s 115BAC ?
E35: Option for current assessment year | AK35: (Select)
E36: For other than not opting, please furnish date of filing of form 10-IE along with Acknowledgment number
E37: Date of filing of Form 10IE (DD/MM/YYYY)
E38: Acknowledgment number
E39: Are you filing return of income under Seventh proviso to Section 139(1) – (Tick)  Yes  No If yes, please furnish following information [Note: To be filled only if a person is not required to furnish a return of income under section 139(1) but filing return of income due to fulfilling one or more conditions mentioned in the seventh proviso to section 139(1)] | AK39: No
E40: Have you deposited amount or aggregate of amounts exceeding Rs. 1 Crore in one or more current account during the previous year? (Yes/No)
E41: Have you incurred expenditure of an amount or aggregate of amount exceeding Rs. 2 lakhs for travel to a foreign country for yourself or for any other person
E42: Have you incurred expenditure of amount or aggregate of amount exceeding Rs. 1 lakh on consumption of electricity during the previous year? (Yes/No)
E43: Are you required to file a return as per other conditions prescribed under clause (iv) of seventh proviso to section 139(1) (If yes,please furnish following information)
E44: (i) if his total sales, turnover or gross receipts, as the case may be in the business exceeds sixty lakh rupees during the previous year; or
E45: (ii) if his total gross receipts in profession exceeds ten lakh rupees during the previous year; or
E46: (iii) if the aggregate of tax deducted at source and tax collected at source during the previous year, in the case of the person, is twenty-five thousand rupees (fifty-thousand for resident senior citizen) or more; or
E47: (iv) The deposits in one or more savings bank account of the person, in aggregate, is rupees fifty lakh or more, during the previous year.
E48: Aadhaar Number [Please enter the Aadhaar Number. Applicable to Individual only] | BB48: (Select) | BC48: (Select)
E49: Aadhaar Enrolment Id [Note: If Aadhaar Number is not yet allotted, then Aadhaar Enrolment Id is required. All the digits in enrolment ID & Date and time of enrolment to be entered continuously. For example Enrolment ID: 1234/12345/12345 & Date/Time of enrolment: 01/12/2016 11:50:22 to be entered as 1234123451234501122016115022] | AF49: 1234567123456712345671234567
E50: Do you want to claim the benefit u/s 115H (Applicable in case of Resident)? | Z50: No | AF50: Are you governed by Portuguese Civil Code as per section 5A ? (If “YES” please fill Schedule 5A) | AR50: No
E51: Passport No. (Individual) (If available) | BB51: No
E52: Whether this return is being filed by a representative assessee? If yes, please furnish following information | AM52: N -No
E53: a | G53: Name of the representative
E54: b | N54: Capacity of representative
E55: c | G55: Address of the representative
E56: d | G56: Permanent Account Number (PAN) of the Representative
E57: e | N57: Aadhaar Number of the representative
E58: Whether you are Director in a company at any time during the previous year? If yes, please furnish following information - | AM58: No
E59: Sl. No. | F59: Name of company | O59: Type of Company | X59: PAN | AG59: Whether its shares are listed or unlisted | AK59: Director Identification Number (DIN)
E60: 1
E61: =E60+1 -> 2
E62: =E61+1 -> 3
E64: Whether you are a Partner in a Firm? If yes, please furnish following information - | AM64: (Select)
E65: Sl. No. | F65: Name of Firm | W65: PAN
E66: 1
E68: Whether you have held unlisted equity shares at any time during the previous year? If yes, please furnish following information - | AM68: No
E69: Sl. No. | F69: Name of company | N69: Type of Company | O69: PAN | P69: Opening Balance | X69: Shares acquired during the year | AJ69: Shares transferred during the year | AN69: Closing Balance
P70: No. of shares | T70: Cost of acquisition | X70: No. of shares | Z70: Date of subscription / purchase | AC70: Face value per share | AE70: Issue price per share (in case of fresh issue) | AH70: Purchase price per share (in case of purchase from existing shareholder) | AJ70: No. of shares | AL70: Sale consideration | AN70: No. of shares | AR70: Cost of acquisition
E71: 1
E72: =E71+1 -> 2
E73: =E72+1 -> 3
E74: =E73+1 -> 4
E76: In case of non-resident, is there a permanent establishment (PE) in India?

Sheet Nature Of Business (hidden)
C3: NATURE OF BUSINESS | D3: Nature of business/profession, if more than one business/profession indicate the three main activities/Products (OTHER THAN THOSE DECLARING INCOME UNDER SECTIONS 44AD, 44ADA AND 44AE) | L3: =SUMIF(N5:N7,"A",O5:O7) -> 0 | M3: =SUMIF(N5:N7,"B",O5:O7) -> 0 | N3: =IF(OR(MID(sheet1.LiableSec44ABflg,1,1)="(",MID(sheet1.LiableSec44ABflg,1,1)=""),"NA",MID(sheet1.LiableSec44ABflg,1,1)) ->  | O3: =sheet11.Section44AD -> 0 | P3: =PL.BusinessReceipts+PLCrEx.TotExciseCustomsVAT+PL.GrossReceipt ->  | Q3: =PL.GrossReceipts+PL.GrossReceipt_ii -> 
D4: Sl.No. | E4: Code-Sub Sector [Please see instruction No.7(i)] | F4: Trade name of the proprietorship, if any | G4: Description | O4: =IF(AND(N3="N",M3>=1),IF(AND(O3>0,P3<=20000000),1,IF(AND(O3>0,P3>20000000),2,IF(AND(OR(O3=0,O3=""),P3<=10000000),3,IF(AND(OR(O3=0,O3=""),P3>10000000),4,5)))),0) ->  | P4: =IF(AND(L3>=1, N3="N"),IF(AND(Q3<=5000000),1,2),0) -> 
D5: 1 | M5: =MID(E5,1,SEARCH("-",E5)-1) ->  | N5: =IF(ISERROR(IF(OR(M5="0601",M5="0602",M5="0603",M5="0604",M5="0605",M5="0606",M5="0607"),"A","B")),0,IF(OR(M5="0601",M5="0602",M5="0603",M5="0604",M5="0605",M5="0606",M5="0607"),"A","B")) -> 0 | O5: 1
D6: =D5+1 -> 2 | M6: =MID(E6,1,SEARCH("-",E6)-1) ->  | N6: =IF(ISERROR(IF(OR(M6="0601",M6="0602",M6="0603",M6="0604",M6="0605",M6="0606",M6="0607"),"A","B")),0,IF(OR(M6="0601",M6="0602",M6="0603",M6="0604",M6="0605",M6="0606",M6="0607"),"A","B")) -> 0 | O6: 1
D7: =D6+1 -> 3 | M7: =MID(E7,1,SEARCH("-",E7)-1) ->  | N7: =IF(ISERROR(IF(OR(M7="0601",M7="0602",M7="0603",M7="0604",M7="0605",M7="0606",M7="0607"),"A","B")),0,IF(OR(M7="0601",M7="0602",M7="0603",M7="0604",M7="0605",M7="0606",M7="0607"),"A","B")) -> 0 | O7: 1

Sheet Part A - BS (hidden)
C3: Part A-BS | F3: BALANCE SHEET AS ON 31ST DAY OF MARCH,2022 OR AS ON THE DATE OF CLOSURE OF BUSINESS AS APPLICABLE OF THE PROPRIETORY BUSINESS OR PROFESSION
C4: SOURCES OF FUNDS | D4: 1 | E4: Proprietor’s fund
E5: a | F5: Proprietor’s capital | K5: a
E6: b | F6: Reserves and Surplus
F7: i | G7: Revaluation Reserve | I7: bi
F8: ii | G8: Capital Reserve | I8: bii
F9: iii | G9: Statutory Reserve | I9: biii
F10: iv | G10: Any other Reserve | I10: biv
F11: v | G11: Total (bi + bii + biii + biv) | K11: bv | L11: =SUM(J7,J8,J9,J10) -> 0
E12: c | F12: Total proprietor’s fund (a + bv) | K12: 1c | L12: =SUM(L5,L11) -> 0
D13: 2 | E13: Loan funds
E14: a | F14: Secured loans
F15: i | G15: Foreign Currency Loans | I15: ai
F16: ii | G16: Rupee Loans
G17: A | H17: From Banks | I17: iiA
G18: B | H18: From others | I18: iiB
G19: C | H19: Total ( iiA + iiB) | I19: iiC | J19: =SUM(J17,J18) -> 0
F20: iii | G20: Total (ai + iiC) | K20: aiii | L20: =SUM(J15,J19) -> 0
E21: b | F21: Unsecured loans (including deposits)
F22: i | G22: From Banks | I22: bi
F23: ii | G23: From others | I23: bii
F24: iii | G24: Total (bi + bii) | K24: biii | L24: =SUM(J22,J23) -> 0
E25: c | F25: Total Loan Funds (aiii + biii) | K25: 2c | L25: =SUM(L20,L24) -> 0
D26: 3 | E26: Deferred tax liability | K26: 3
D27: 4 | E27: Sources of funds (1c + 2c +3) | K27: 4 | L27: =SUM(L12,L25,L26) -> 0
C28: APPLICATION OF FUNDS | D28: 1 | E28: Fixed assets
E29: a | F29: Gross: Block | I29: 1a
E30: b | F30: Depreciation | I30: 1b
E31: c | F31: Net Block (1a – 1b) | I31: 1c | J31: =MAX(0,(sheet2.GrossBlock-sheet2.Depreciation)) -> 0
E32: d | F32: Capital work-in-progress | I32: 1d
E33: e | F33: Total (1c + 1d) | K33: 1e | L33: =SUM(J31,J32) -> 0
D34: 2 | E34: Investments
E35: a | F35: Long-term investments
F36: i | G36: Government and other Securities - Quoted | I36: ai
F37: ii | G37: Government and other Securities – Unquoted | I37: aii
F38: iii | G38: Total (ai + aii) | K38: aiii | L38: =SUM(J36,J37) -> 0
E39: b | F39: Short-Term investments
F40: i | G40: Equity Shares, including share application money | I40: bi
F41: ii | G41: Preference Shares | I41: bii
F42: iii | G42: Debenture | I42: biii
F43: iv | G43: Total (bi + bii + biii) | K43: biv | L43: =SUM(J40,J41,J42) -> 0
E44: c | F44: Total investments (aiii + biv) | K44: 2c | L44: =SUM(L38,L43) -> 0
D45: 3 | E45: Current assets, loans and advances
E46: a | F46: Current assets
F47: i | G47: Inventories
G48: A | H48: Stores/consumables including packing material | I48: iA
G49: B | H49: Raw materials | I49: iB
G50: C | H50: Stock-in-process | I50: iC
G51: D | H51: Finished Goods/Traded Goods | I51: iD
G52: E | H52: Total (iA + iB + iC + iD) | K52: iE | L52: =SUM(J48,J49,J50,J51) -> 0
F53: ii | G53: Sundry Debtors | K53: aii
F54: iii | G54: Cash and Bank Balances
G55: A | H55: Cash-in-hand | I55: iiiA
G56: B | H56: Balance with bank | I56: iiiB
G57: C | H57: Total (iiiA + iiiB) | K57: iiiC | L57: =SUM(J55,J56) -> 0
F58: iv | G58: Other Current Assets | K58: aiv
F59: v | G59: Total current assets (iE + aii + iiiC + aiv) | K59: av | L59: =SUM(L52,L53,L57,L58) -> 0
E60: b | F60: Loans and advances
F61: i | G61: Advances recoverable in cash or in kind or for value to be received | I61: bi
F62: ii | G62: Deposits, loans and advances to corporates and others | I62: bii
F63: iii | G63: Balance with Revenue Authorities | I63: biii
F64: iv | G64: Total (bi + bii + biii) | K64: biv | L64: =SUM(J61,J62,J63) -> 0
E65: c | F65: Total of current assets, loans and advances (av + biv) | K65: 3c | L65: =SUM(L59,L64) -> 0
E66: d | F66: Current liabilities and provisions
F67: i | G67: Current liabilities
G68: A | H68: Sundry Creditors | I68: iA
G69: B | H69: Liability for Leased Assets | I69: iB
G70: C | H70: Interest Accrued on above | I70: iC
G71: D | H71: Interest accrued but not due on loans | I71: iD
G72: E | H72: Total (iA + iB + iC + iD) | K72: iE | L72: =SUM(J68,J69,J70,J71) -> 0
F73: ii | G73: Provisions
G74: A | H74: Provision for Income Tax | I74: iiA
G75: B | H75: Provision for Wealth Tax | I75: iiB
G76: B | H76: Provision for Leave encashment/Superannuation/Gratuity | I76: iiB
G77: C | H77: Other Provisions | I77: iiC
G78: D | H78: Total (iiA + iiB + iiC ) | K78: iiD | L78: =SUM(J74,J76,J77) -> 0
F79: iii | G79: Total (iE + iiD) | K79: diii | L79: =SUM(L72,L78) -> 0
E80: e | F80: Net current assets (3c – diii) | K80: 3e | L80: =(sheet3.TotCurrAssetLoanAdv-sheet3.TotCurrLiabilitiesProvision) -> 0
D81: 4 | E81: a | F81: Miscellaneous expenditure not written off or adjusted | I81: 4a
E82: b | F82: Deferred tax asset | I82: 4b
E83: c | F83: Profit and loss account / Accumulated balance | I83: 4c
E84: d | F84: Total (4a + 4b + 4c) | K84: 4d | L84: =SUM(J81,J82,J83) -> 0
D85: 5 | E85: Total, application of funds (1e + 2c + 3e +4d) | K85: 5 | L85: =SUM(L33,L44,L80,L84) -> 0
C86: NO ACCOUNT CASE | D86: 6 | E86: In a case where regular books of account of business or profession are not maintained -furnish the following information as on 31st day of March, 2022, in respect of business or profession)
E87: a | F87: Amount of total sundry debtors | K87: 6a
E88: b | F88: Amount of total sundry creditors | K88: 6b
E89: c | F89: Amount of total stock-in-trade | K89: 6c
E90: d | F90: Amount of the cash balance | K90: 6d

Sheet Manufacturing Account (hidden)
C3: Schedule Manufacturing Account | G3: Part A-Manufacturing Account- Manufacturing Account for the financial year 2021-22 (fill items 1 to 3 in a case where regular books of accounts are maintained, otherwise fill items 61 to 65 as applicable)
C4: 1 | D4: Debits to manufacturing account
D5: Opening Inventory
D6: A | E6: i | F6: Opening stock of raw-material | Q6: Ai
E7: ii | F7: Opening stock of Work in progress | Q7: Aii
E8: iii | F8: Total (i + ii) | Q8: Aiii | R8: =MAX(0,(ManuFactureAcc_OpenStockRawMaterial+ManuFactureAcc_OpenStockWorkProgress)) -> 0
D9: B | E9: Purchases (net of refunds and duty or tax, if any) | Q9: B
D10: C | E10: Direct wages | Q10: C
D11: D | E11: Direct expenses (Di + Dii + Diii) | Q11: D | R11: =SUM(ManuFactureAcc_CarriageInward,ManuFactureAcc_PowerAndFuel,ManuFactureAcc_OtherDirectExpenses) -> 0
E12: i | F12: Carriage inward | Q12: Di
E13: ii | F13: Power and fuel | Q13: Dii
E14: iii | F14: Other direct expenses | Q14: Diii
D15: E | E15: Factory Overheads
E16: i | F16: Indirect wages | Q16: Ei
E17: ii | F17: Factory rent and rates | Q17: Eii
E18: iii | F18: Factory Insurance | Q18: Eiii
E19: iv | F19: Factory fuel and power | Q19: Eiv
E20: v | F20: Factory general expenses | Q20: Ev
E21: vi | F21: Depreciation of factory machinery | Q21: Evi
E22: vii | F22: Total (i+ii+iii+iv+v+vi) | Q22: Evii | R22: =SUM(ManuFactureAcc_IndirectWages,ManuFactureAcc_FactoryRentRates,ManuFactureAcc_FactoryInsurance,ManuFactureAcc_FactoryFuelAndPower,ManuFactureAcc_FactoryGeneralExpenses,ManuFactureAcc_DepreciationOfFactoryMachinary) -> 0
D23: F | E23: Total of Debits to Manufacturing Account (Aiii+B+C+D+Evii) | Q23: F | R23: =SUM(ManuFactureAcc_TotalOpeningInventary,ManuFactureAcc_Purchases,ManuFactureAcc_DirectWages,ManuFactureAcc_TotalOfDirectExpenses,ManuFactureAcc_TotalFactoryOverheads) -> 0
C24: 2 | D24: Closing Stock
D25: i | E25: Raw material | Q25: i
D26: ii | E26: Work-in-progress | Q26: ii
D27: iii | E27: Total (2i +2ii) | Q27: iii | R27: =SUM(ManuFactureAcc_RawMaterial,ManuFactureAcc_WorkInProgress) -> 0
C28: 3 | D28: Cost of Goods Produced – transferred to Trading Account (1F-2) | Q28: 3 | R28: =ManuFactureAcc_TotalOfDebitstoManuFacturingAcc-ManuFactureAcc_TotalClosingClock -> 0

Sheet Trading Account (hidden)
C3: Schedule Trading Account | G3: Part A-Trading Account -Trading Account for the financial year 2021-22 (fill items 4 to 12 in a case where regular books of accounts are maintained, otherwise fill items 61 to 65 as applicable)
C4: 4 | D4: Revenue from operations
D5: A | E5: Sales/ Gross receipts of business (net of returns and refunds and duty or tax, if any)
E6: i | F6: Sale of goods
E7: ii | F7: Sale of services
E8: iii | F8: Other operating revenues (specify nature and amount)
F9: Sl.No. | G9: Nature | H9: Amount
F10: 1
F11: =F10+1 -> 2
F14: iii | G14: Total (1+2) | K14: =SUM(TradingAcc_RevenueAmount) -> 0
E15: iv | F15: Total(i+ii+iii) | M15: Aiv | N15: =SUM(TradingAcc_SalesOfGoods,TradingAcc_SalesOfServices,TradingAcc_RevenueTotal) -> 0
D16: B | E16: Gross receipts from Profession | M16: B
D17: C | E17: Duties, taxes and cess received or receivable in respect of goods and services sold or supplied
E18: i | F18: Union Excise duties
E19: ii | F19: Service Tax
E20: iii | F20: VAT/ Sales tax
E21: iv | F21: Central Goods & Service Tax (CGST)
E22: v | F22: State Goods & Services Tax (SGST)
E23: vi | F23: Integrated Goods & Services Tax (IGST)
E24: vii | F24: Union Territory Goods & Services Tax (UTGST)
E25: viii | F25: Any other duty, tax and cess
E26: ix | F26: Total (i + ii + iii + iv +v+ vi+vii+viii) | M26: 4Cix | N26: =SUM(TradingAcc_UnionExciseDuties,TradingAcc_ServiceTax,TradingAcc_VatOrSalesTax,TradingAcc_CGST,TradingAcc_SGST,TradingAcc_IGST,TradingAcc_UTGST,TradingAcc_AnyOtherDuty) -> 0
D27: D | E27: Total Revenue from operations (Aiv + B +Cix) | M27: 4D | N27: =SUM(TradingAcc_TotalOfSalesOrGross,TradingAcc_GrossRecieptsFromProfession,TradingAcc_TotalDutiesTaxesCess) -> 0
C28: 5 | D28: Closing Stock of Finished Stocks | M28: 5
C29: 6 | D29: Total of credits to Trading Account (4D + 5 ) | M29: 6 | N29: =SUM(TradingAcc_TotalRevenueFromOperations,TradingAcc_ClosingStockOfFinishedStocks) -> 0
C30: 7 | D30: Opening Stock of Finished Goods | M30: 7
C31: 8 | D31: Purchases (net of refunds and duty or tax, if any) | M31: 8
C32: 9 | D32: Direct Expenses (9i + 9ii + 9iii) | M32: 9 | N32: =SUM(TradingAcc_CarriageInward,TradingAcc_PowerAndFuel,SUM(TradingAcc_OtherDirectAmount)) -> 0
D33: i | E33: Carriage inward
D34: ii | E34: Power and fuel
D35: iii | E35: Other direct expenses
F36: Sl.No. | G36: Nature of direct expenses | H36: Amount
F37: 1
F38: =F37+1 -> 2
F41: 9iii | G41: Total | K41: =SUM(TradingAcc_OtherDirectAmount) -> 0
C42: 10 | D42: Duties and taxes, paid or payable, in respect of goods and services purchased
D43: i | E43: Custom duty
D44: ii | E44: Counter veiling duty
D45: iii | E45: Special additional duty
D46: iv | E46: Union excise duty
D47: v | E47: Service Tax
D48: vi | E48: VAT/ Sales tax
D49: vii | E49: Central Goods & Service Tax (CGST)
D50: viii | E50: State Goods & Services Tax (SGST)
D51: ix | E51: Integrated Goods & Services Tax (IGST)
D52: x | E52: Union Territory Goods & Services Tax (UTGST)
D53: xi | E53: Any other tax, paid or payable
D54: xii | E54: Total (10i + 10ii + 10iii + 10iv + 10v + 10vi + 10vii + 10viii + 10ix + 10x+10xi) | M54: 10xii | N54: =SUM(TradingAcc_CustomDuty,TradingAcc_CounterVeilingDuty,TradingAcc_SpecialAdditionalDuty,TradingAcc_UnionExciseDuty,TradingAcc_DutiesServiceTax,TradingAcc_DutiesVatOrSalesTax,TradingAcc_DutiesCGST,TradingAcc_DutiesSGST,TradingAcc_DutiesIGST,TradingAcc_DutiesUTGST,TradingAcc_DutiesAnyOtherTax) -> 0
C55: 11 | D55: Cost of goods produced – Transferred from Manufacturing Account | M55: 11 | N55: =ManuFactureAcc_CostOfGoodsProduced -> 0
C56: 12 | D56: Gross Profit from Business/Profession - transferred to Profit and Loss account (6-7-8-9-10xii-11) | M56: 12 | N56: =TradingAcc_TotalOfCreditsToTradingAccount-TradingAcc_OpeningStockOfFinishedGoods-TradingAcc_Purchases-TradingAcc_TotalDirectExpenses-TradingAcc_TotalDuties-TradingAcc_CostOfGoods -> 0

Sheet Profit and Loss (hidden)
C3: Part A-P &L | F3: Profit and Loss Account for the financial year 2021-22 (fill items 13 to 60 in a case where regular books of accounts are maintained, otherwise fill items 61 to 65 as applicable)
D4: 13 | E4: Gross profit transferred from Trading Account | K4: 13 | L4: =TradingAcc_GrossProfitOrLoss -> 0
D5: 14 | E5: Other income
E6: i | F6: Rent | I6: i
E7: ii | F7: Commission | I7: ii
E8: iii | F8: Dividend income | I8: iii
E9: iv | F9: Interest income | I9: iv
E10: v | F10: Profit on sale of fixed assets | I10: v
E11: vi | F11: Profit on sale of investment being securities chargeable to Securities Transaction Tax (STT) | I11: vi
E12: vii | F12: Profit on sale of other investment | I12: vii
E13: viii | F13: Gain (Loss) on account of foreign exchange fluctuation u/s 43AA | I13: viii
E14: ix | F14: Profit on conversion of inventory into capital asset u/s 28(via) (Fair Market Value of inventory as on the date of conversion) | I14: ix
E15: x | F15: Agriculture income | I15: x
E16: xi | F16: Any other income (specify nature and amount)
G17: Sl.No | H17: Nature | J17: Amount
G18: 1
G19: =G18+1 -> 2
G20: =G19+1 -> 3
G21: =G20+1 -> 4
H22: Total | J22: =SUM(Nature_Amt2) -> 0
E24: xii | F24: Total of other income (i + ii + iii + iv + v + vi + vii + viii + ix + x+ xi) | K24: 14xii | L24: =SUM(J6,J7,J8,J9,J10,J11,J12,J13,J14,J15,J22) -> 0
D25: 15 | E25: Total of credits to profit and loss account (13+14xii) | K25: 15 | L25: =SUM(PL_GrossProfitLoss,PL.TotOthIncome) -> 0
D26: 16 | E26: Freight outward | K26: 16
D27: 17 | E27: Consumption of stores and spare parts | K27: 17
D28: 18 | E28: Power and fuel | K28: 18
D29: 19 | E29: Rents | K29: 19
D30: 20 | E30: Repairs to building | K30: 20
D31: 21 | E31: Repairs to machinery | K31: 21
D32: 22 | E32: Compensation to employees
E33: i | F33: Salaries and wages | I33: 22i
E34: ii | F34: Bonus | I34: 22ii
E35: iii | F35: Reimbursement of medical expenses | I35: 22iii
E36: iv | F36: Leave encashment | I36: 22iv
E37: v | F37: Leave travel benefits | I37: 22v
E38: vi | F38: Contribution to approved superannuation fund | I38: 22vi
E39: vii | F39: Contribution to recognised provident fund | I39: 22vii
E40: viii | F40: Contribution to recognised gratuity fund | I40: 22viii
E41: ix | F41: Contribution to any other fund | I41: 22ix
E42: x | F42: Any other benefit to employees in respect of which an expenditure has been incurred | I42: 22x
E43: xi | F43: Total compensation to employees (22i + 22ii + 22iii + 22iv + 22v + 22vi + 22vii + 22viii + 22ix + 22x) | K43: 22xi | L43: =SUM(J33:J42) -> 0
E44: xii | F44: Whether any compensation, included in 22xi, paid to non-residents | I44: xiia
F45: If Yes, amount paid to non-residents | I45: xiib
D46: 23 | E46: Insurance
E47: i | F47: Medical Insurance | I47: 23i
E48: ii | F48: Life Insurance | I48: 23ii
E49: iii | F49: Keyman’s Insurance | I49: 23iii
E50: iv | F50: Other Insurance including factory, office, car, goods,etc. | I50: 23iv
E51: v | F51: Total expenditure on insurance (23i+23ii+23iii+23iv) | K51: 23v | L51: =SUM(J47:J50) -> 0 | W51: =SUM(L26:L31,PL.TotEmployeeComp,J44:J45,L51:L57,PL.CommissionExpdr,PLRY.Total,PLPC.Total,L70:L80,PL.AuditFee,PL.OtherExpenses) -> 0
D52: 24 | E52: Workmen and staff welfare expenses | K52: 24
D53: 25 | E53: Entertainment | K53: 25
D54: 26 | E54: Hospitality | K54: 26
D55: 27 | E55: Conference | K55: 27
D56: 28 | E56: Sales promotion including publicity (other than advertisement) | K56: 28
D57: 29 | E57: Advertisement | K57: 29
D58: 30 | E58: Commission
E59: i | F59: Paid outside India, or paid in India to a non-resident other than a company or a foreign company | I59: i
E60: ii | F60: To others | I60: ii
E61: iii | F61: Total (i + ii) | K61: 30iii | L61: =SUM(J59:J60) -> 0
D62: 31 | E62: Royalty
E63: i | F63: Paid outside India, or paid in India to a non-resident other than a company or a foreign company | I63: i
E64: ii | F64: To others | I64: ii
E65: iii | F65: Total (i + ii) | K65: 31iii | L65: =SUM(J63:J64) -> 0
D66: 32 | E66: Professional / Consultancy fees / Fee for technical services
E67: i | F67: Paid outside India, or paid in India to a non-resident other than a company or a foreign company | I67: i
E68: ii | F68: To others | I68: ii
E69: iii | F69: Total (i + ii) | K69: 32iii | L69: =SUM(J67:J68) -> 0
D70: 33 | E70: Hotel , boarding and Lodging | K70: 33
D71: 34 | E71: Traveling expenses other than on foreign traveling | K71: 34
D72: 35 | E72: Foreign travelling expenses | K72: 35
D73: 36 | E73: Conveyance expenses | K73: 36
D74: 37 | E74: Telephone expenses | K74: 37
D75: 38 | E75: Guest House expenses | K75: 38
D76: 39 | E76: Club expenses | K76: 39
D77: 40 | E77: Festival celebration expenses | K77: 40
D78: 41 | E78: Scholarship | K78: 41
D79: 42 | E79: Gift | K79: 42
D80: 43 | E80: Donation | K80: 43
D81: 44 | E81: Rates and taxes, paid or payable to Government or any local body (excluding taxes on income)
E82: i | F82: Union excise duty | I82: 44i
E83: ii | F83: Service tax | I83: 44ii
E84: iii | F84: VAT/ Sales tax | I84: 44iii
E85: iv | F85: Cess | I85: 44iv
E86: v | F86: Central Goods & Service Tax (CGST) | I86: 44v
E87: vi | F87: State Goods & Services Tax (SGST) | I87: 44vi
E88: vii | F88: Integrated Goods & Services Tax (IGST) | I88: 44vii
E89: viii | F89: Union Territory Goods & Services Tax (UTGST) | I89: 44viii
E90: ix | F90: Any other rate, tax, duty or cess including STT and CTT | I90: 44ix
E91: x | F91: Total rates and taxes paid or payable (44i+44ii+44iii+44iv+44v+ 44vi + 44vii + 44viii + 44ix) | K91: 44x | L91: =SUM(J82:J90) -> 0
D92: 45 | E92: Audit fee | K92: 45
D93: 46 | E93: Other expenses (Specify nature and amount)
G94: Sl.No. | H94: Nature | J94: Amount
G95: 1
G96: =G95+1 -> 2
G97: =G96+1 -> 3
G98: =G97+1 -> 4
H99: TOTAL | K99: 46 | L99: =SUM(Nature_Amt3) -> 0
D101: 47 | E101: Bad debts (Specify PAN/ Aadhaar No. of the person, if available, for whom Bad Debt for amount of ₹ 1 lakh or more is claimed and amount)
D102: i | F102: Sl.No. | H102: PAN | I102: Aadhaar Number | J102: Amount
F103: 1
F104: =F103+1 -> 2
F105: 3
F106: 4
F107: 5
F108: 6
F109: 7
F110: TOTAL | K110: 47i | L110: =SUM(PLBD.Amount) -> 0
D112: ii | E112: Others (more than Rs. 1 lakh or more) where PAN/ Aadhaar No. is not available, (provide name and complete address)
E113: Sl.No. | F113: Name | H113: Flat/Door/Block No. | I113: Name of Premises/Building/Village | J113: Road/Street/Post Office | K113: Area/locality | L113: Town/City/District | M113: State | N113: Country | O113: Pin code | P113: Zipcode | Q113: Amount
E114: 1 | M114: (Select) | N114: (Select) | T114: =SUM(PL_Amount) -> 0
E115: =E114+1 -> 2 | M115: (Select) | N115: (Select)
E116: =E115+1 -> 3 | M116: (Select) | N116: (Select)
E117: =E116+1 -> 4 | M117: (Select) | N117: (Select)
E119: TOTAL | P119: 47ii | Q119: =SUM(PL_Amount) -> 0
E120: iii | F120: Others (amounts less than Rs. 1 lakh) | I120: iii
E121: iv | F121: Total Bad Debt (47i + 47ii + 47iii) | K121: 47iv | L121: =MAX(SUM(SUM(PLBD.Amount),SUM(PL_Amount),PL.OthersAmtLt1Lakh),0) -> 0
D122: 48 | E122: Provision for bad and doubtful debts | K122: 48
D123: 49 | E123: Other provisions | K123: 49
D124: 50 | E124: Profit before interest, depreciation and taxes[15 – (16 to 21 + 22xi + 23v + 24 to 29 + 30iii + 31iii + 32iii + 33 to 43 + 44x + 45 + 46 + 47iv + 48 + 49)] | K124: 50 | L124: =(PL_TotalOfCreditsToProfit-SUM(L26:L31,PL.TotEmployeeComp,PL.TotInsurances,L52:L57,PL.CommissionExpdr,PLRY.Total,PLPC.Total,L70:L80,PLRateEx.TotExciseCustomsVAT,PL.AuditFee,PL.OtherExpenses,PL.BadDebt,PL.ProvForBadDoubtDebt,PL.OthProvisionsExpdr)) -> 0
D125: 51 | E125: Interest
E126: i | F126: Paid outside India, or paid in India to a non-resident other than a company or a foreign company | I126: i
E127: ii | F127: To others | I127: ii
E128: iii | F128: Total (i + ii) | K128: 51iii | L128: =SUM(J126,J127) -> 0
D129: 52 | E129: Depreciation and amortization | K129: 52
D130: 53 | E130: Net Profit before taxes (50 – 51iii – 52) | K130: 53 | L130: =(PL.PBIDTA-PL.InterestExpdr-PL.DepreciationAmort) -> 0
C131: PROVISIONS FOR TAX AND APPROPRIATIONS | D131: 54 | E131: Provision for current tax | K131: 54
D132: 55 | E132: Provision for Deferred Tax | K132: 55
D133: 56 | E133: Profit after tax (53 – 54 – 55) | K133: 56 | L133: =(PL.PBT-PL.ProvForCurrTax-PL.ProvDefTax) -> 0
D134: 57 | E134: Balance brought forward from previous year | K134: 57
D135: 58 | E135: Amount available for appropriation (56+ 57) | K135: 58 | L135: =SUM(L133,L134) -> 0
D136: 59 | E136: Transferred to reserves and surplus | K136: 59
D137: 60 | E137: Balance carried to balance sheet in proprietor’s account (58– 59) | K137: 60 | L137: =(PL.AmtAvlAppr-PL.TrfToReserves) -> 0
C138: COMPUTATION - PRESUMPTIVE INCOME | D138: 61 | E138: COMPUTATION OF PRESUMPTIVE BUSINESS INCOME UNDER SECTION 44AD
D139: Sl.No. | E139: Name of the Business | H139: Business Code | K139: Description
D140: 1
D141: =D140+1 -> 2
D142: =D141+1 -> 3
D143: i | E143: Gross turnover/Gross receipts (ia+ib) | K143: =SUM(PL_61a,PL_61b) -> 0
E144: a | F144: Through a/c payee cheque or a/c payee bank draft or bank electronic clearing system received before specified date or other prescribed electronic modes before specified date
E145: b | F145: Any other mode
D146: ii | E146: Presumptive income under section 44AD(iia+iib) | K146: =SUM(PL_61iia,PL_61iib) -> 0
E147: a | F147: 6% of 61ia, or the amount claimed to have been earned, whichever is higher
E148: b | F148: 8% of 61ib, or the amount claimed to have been earned, whichever is higher
D149: Note: If income is less than the above percentage of Gross Receipts/Turnover, it is mandatory to maintain books of accounts and have a tax audit under 44AB
D150: 62 | E150: COMPUTATION OF PRESUMPTIVE INCOME FROM PROFESSIONS UNDER SECTION 44ADA
D151: Sl.No. | E151: Name of the Business | H151: Business Code | K151: Description
D152: 1
D153: =D152+1 -> 2
D154: =D153+1 -> 3
E155: i | F155: Gross Receipts
E156: ii | F156: Presumptive Income under section 44ADA (50% of 62i, or the amount claimed to have been earned, whichever is higher)
D157: Note: If income is less than 50% of Gross Receipts, it is mandatory to maintain books of accounts and have a tax audit under 44AB
D158: 63 | E158: COMPUTATION OF PRESUMPTIVE INCOME FROM GOODS CARRIAGES UNDER SECTION 44AE
D159: Sl.No. | E159: Name of the Business | H159: Business Code | K159: Description
D160: 1 | H160: (Select)
D161: 2 | H161: (Select)
D162: 3 | H162: (Select)
D163: i | E163: Serial number
D164: Sl.No. | E164: Registration No. of goods carriage | H164: Whether owned/leased/hired | I164: Tonnage Capacity of goods carriage(in MT) | J164: Number of months for which goods carriage was owned / leased / hired by assessee | K164: Presumptive income u/s 44AE for the goods carriage (Computed @ Rs.1000 per tone per month in case tonnage exceeds 12MT, or else @ Rs.7500 per month) or the amount claimed to have been earned, whichever is higher
D165: 1 | H165: (Select) | V165: =I165*J165*1000 -> 0 | W165: =J165*7500 -> 0
D166: =D165+1 -> 2 | H166: (Select) | V166: 0 | W166: 0
D167: 3 | H167: (Select) | V167: 0 | W167: 0
D168: 4 | H168: (Select) | V168: 0 | W168: 0
D169: 5 | H169: (Select) | V169: 0 | W169: 0
D170: 6 | H170: (Select) | V170: 0 | W170: 0
D171: 7 | H171: (Select) | V171: 0 | W171: 0
D172: 8 | H172: (Select) | V172: 0 | W172: 0
D173: 9 | H173: (Select) | V173: 0 | W173: 0
D174: 10 | H174: (Select) | V174: 0 | W174: 0
E176: Total | J176: =SUM(Sheet44AE.NoOfMonths) -> 0 | K176: =SUM(Sheet44AE.PresumptiveIncome) -> 0
D177: ii | E177: Total presumptive income from goods carriage u/s 44AE [total of column (5) of table at Point 63(i) | K177: =SUM(Sheet44AE.PresumptiveIncome) -> 0
D178: Note: If the profits are lower than prescribed under S.44AE or the number of goods carriage owned / leased / hired at any time during the year exceeds 10, then , it is mandatory to maintain books of accounts and have a tax audit under 44AB
D179: 64 | E179: IF REGULAR BOOKS OF ACCOUNT OF BUSINESS OR PROFESSION ARE NOT MAINTAINED, furnish the following information for previous year 2021-22 in respect of business or profession-
E180: i | F180: For assessee carrying on Business
F181: a | G181: Gross turnover/Gross receipts (a1+a2) | L181: =SUM(PL_64ia1,PL_64ia2) -> 0
G182: 1 | H182: Through a/c payee cheque or a/c payee bank draft or bank electronic clearing system received or other prescribed electronic modes before specified date
G183: 2 | H183: Any other mode
F184: b | G184: Gross profit
F185: c | G185: Expenses
F186: d | G186: Net profit | L186: =MAX(0,(PL_64ib-PL_64ic)) -> 0
E187: ii | F187: For assessee carrying on Profession
F188: a | G188: Gross receipts (a1 + a2) | L188: =SUM(PL_64iia_i,PL_64iia_ii) -> 0
G189: i | H189: Through a/c payee cheque or a/c payee bank draft or bank electronic clearing system received before specified date or other prescribed electronic modes before specified date
G190: ii | H190: Any other mode
F191: b | G191: Gross profit
F192: c | G192: Expenses
F193: d | G193: Net profit | L193: =MAX(0,(PL_64iib-PL_64iic)) -> 0
E194: iii | F194: Total Profit (64(i)d+ 64(ii)d) | L194: =PL_64id+PL_64iid -> 0
D195: 65 | E195: i | F195: Turnover From Speculative Activity
E196: ii | F196: Gross Profit
E197: iii | F197: Expenditure, if any
E198: iv | F198: Net Income From Speculative Activity (65ii-65iii) | L198: =PL_65ii-PL_65iii -> 0

Sheet Part A - OI (hidden)
C3: Part A- OI | F3: Other Information (mandatory if liable for audit under section 44AB, for other fill, if applicable).
C4: OTHER INFORMATION | D4: 1 | E4: Method of accounting employed in the previous year | K4: 1 | L4: Mercantile
D5: 2 | E5: Is there any change in method of accounting | K5: 2 | L5: No
D6: 3a | E6: Increase in the profit or decrease in loss because of deviation, if any, as per Income Computation Disclosure Standards notified under section 145(2) [column 11a(iii) of Schedule ICDS] | K6: 3a | L6: =ICDS.Total -> 0
D7: 3b | E7: Decrease in the profit or increase in loss because of deviation, if any, as per Income Computation Disclosure Standards notified under section 145(2) [column 11b(iii) of Schedule ICDS] | K7: 3b | L7: =ICDS.Totalb -> 0
D8: 4 | E8: Method of valuation of closing stock employed in the previous year
E9: a | F9: Raw Material (if at cost or market rates whichever is less write 1, if at cost write 2, if at market rate write 3) | K9: 4a | L9: (Select)
E10: b | F10: Finished goods (if at cost or market rates whichever is less write 1, if at cost write 2, if at market rate write 3) | K10: 4b | L10: (Select)
E11: c | F11: Is there any change in stock valuation method (Select) | K11: 4c | L11: (Select)
E12: d | F12: Increase in the profit or loss because of deviation, if any, from the method of valuation specified under section 145A | K12: 4d
E13: e | F13: Decrease in the profit or increase in loss because of deviation, if any, from the method of valuation specified under section 145A | K13: 4e
D14: 5 | E14: Amounts not credited to the profit and loss account, being
E15: a | F15: the items falling within the scope of section 28 | I15: 5a
E16: b | F16: The proforma credits, drawbacks, refund of duty of customs or excise or service tax, or refund of sales tax or value added tax, or refund of GST, where such credits, drawbacks or refunds are admitted as due by the authorities concerned | I16: 5b
E17: c | F17: escalation claims accepted during the previous year | I17: 5c
E18: d | F18: Any other item of income | I18: 5d
E19: e | F19: Capital receipt, if any | I19: 5e
E20: f | F20: Total of amounts not credited to profit and loss account (5a+5b+5c+5d+5e) | K20: 5f | L20: =SUM(J15:J19) -> 0
D21: 6 | E21: Amounts debited to the profit and loss account, to the extent disallowable under section 36 due to non-fulfilment of conditions specified in relevant clauses:-
E22: a | F22: Premium paid for insurance against risk of damage or destruction of stocks or store [36(1)(i)] | I22: 6a
E23: b | F23: Premium paid for insurance on the health of employees [36(1)(ib)] | I23: 6b
E24: c | F24: Any sum paid to an employee as bonus or commission for services rendered, where such sum was otherwise payable to him as profits or dividend. [36(1)(ii)] | I24: 6c
E25: d | F25: Any amount of interest paid in respect of borrowed capital [36(1)(iii)] | I25: 6d
E26: e | F26: Amount of discount on a zero-coupon bond [36(1)(iiia)] | I26: 6e
E27: f | F27: Amount of contributions to a recognised provident fund [36(1)(iv)] | I27: 6f
E28: g | F28: Amount of contributions to an approved superannuation fund [36(1)(iv)] | I28: 6g
E29: h | F29: Amount of contribution to a pension scheme referred to in section 80CCD [36(1)(iva)] | I29: 6h
E30: i | F30: Amount of contributions to an approved gratuity [36(1)(v)] | I30: 6i
E31: j | F31: Amount of contributions to any other fund | I31: 6j
E32: k | F32: Any sum received from employees as contribution to any provident fund or superannuation fund or any fund set up under ESI Act or any other fund for the welfare of employees to the extent not credited to the employees account on or before the due date [36(1)(va)] | I32: 6k
E33: l | F33: Amount of bad and doubtful debts [36(1)(vii)] | I33: 6l
E34: m | F34: Provision for bad and doubtful debts [36(1)(viia)] | I34: 6m
E35: n | F35: Amount transferred to any special reserve [36(1)(viii)] | I35: 6n
E36: o | F36: Expenditure for the purposes of promoting family planning amongst employees [36(1)(ix)] | I36: 6o
E37: p | F37: Amount of securities transaction paid in respect of transaction in securities if such income is not included in business income [36(1)(xv)] | I37: 6p
E38: q | F38: Marked to market loss or other expected loss as computed in accordance with the ICDS notified u/s 145(2) [36(1)(xviii)] | I38: 6q
E39: r | F39: Any other disallowance | I39: 6r
E40: s | F40: Total amount disallowable under section 36 (total of 6a to 6r) | K40: 6s | L40: =SUM(J22:J39) -> 0
D41: 7 | E41: Amounts debited to the profit and loss account, to the extent disallowable under section 37
E42: a | F42: Expenditure of capital nature [37(1)] | I42: 7a
E43: b | F43: Expenditure of personal nature [37(1)] | I43: 7b
E44: c | F44: Expenditure laid out or expended wholly and exclusively NOT for the purpose of business or profession [37(1)] | I44: 7c
E45: d | F45: Expenditure on advertisement in any souvenir, brochure, tract, pamphlet or the like, published by a political party [37(2B)] | I45: 7d
E46: e | F46: Expenditure by way of penalty or fine for violation of any law for the time being in force | I46: 7e
E47: f | F47: Any other penalty or fine | I47: 7f
E48: g | F48: Expenditure incurred for any purpose which is an offence or which is prohibited by law; | I48: 7g
E49: h | F49: Amount of any liability of a contingent nature | I49: 7h
E50: i | F50: Any other amount not allowable under section 37 | I50: 7i
E51: j | F51: Total amount disallowable under section 37(total of 7a to 7i) | K51: 7j | L51: =SUM(J42:J50) -> 0
D52: 8 | E52: A | F52: Amounts debited to the profit and loss account, to the extent disallowable under section 40
F53: a | G53: Amount disallowable under section 40 (a)(i), on account of non-compliance with the provisions of Chapter XVII-B | I53: Aa
F54: b | G54: Amount disallowable under section 40(a)(ia) on account of non-compliance with the provisions of Chapter XVII-B | I54: Ab
F55: c | G55: Amount disallowable under section 40 (a)(ib), on account of non-compliance with the provisions of Chapter VIII of the Finance Act, 2016 | I55: Ac
F56: d | G56: Amount disallowable under section 40(a)(iii) on account of non-compliance with the provisions of Chapter XVII-B | I56: Ad
F57: e | G57: Amount of tax or rate levied or assessed on the basis of profits [40(a)(ii)] | I57: Ae
F58: f | G58: Amount paid as wealth tax [40(a)(iia)] | I58: Af
F59: g | G59: Amount paid by way of royalty, license fee, service fee etc. as per section 40(a)(iib) | I59: Ag
F60: h | G60: Amount of interest, salary, bonus, commission or remuneration paid to any partner or member inadmissible under section [40(b)/40(ba)] | I60: Ah
F61: i | G61: Any other disallowance | I61: Ai
F62: j | G62: Total amount disallowable under section 40(total of Aa to Ai) | K62: 8Aj | L62: =SUM(J53:J61) -> 0
E63: B | F63: Any amount disallowed under section 40 in any preceding previous year but allowable during the previous year | K63: 8B
D64: 9 | E64: Amounts debited to the profit and loss account, to the extent disallowable under section 40A
E65: a | F65: Amounts paid to persons specified in section 40A(2)(b) | I65: 9a
E66: b | F66: Amount paid, otherwise than by account payee cheque or account payee bank draft or use of electronic clearing system through a bank account or through such electronic mode as may be prescribed, , disallowable under section 40A(3) | I66: 9b
E67: c | F67: Provision for payment of gratuity [40A(7)] | I67: 9c
E68: d | F68: any sum paid by the assessee as an employer for setting up or as contribution to any fund, trust, company, AOP, or BOI or society or any other institution;[40A(9)] | I68: 9d
E69: e | F69: Any other disallowance | I69: 9e
E70: f | F70: Total amount disallowable under section 40A (total of 9a to 9e) | K70: 9f | L70: =SUM(J65:J69) -> 0
D71: 10 | E71: Any amount disallowed under section 43B in any preceding previous year but allowable during the previous year
E72: a | F72: Any sum in the nature of tax, duty, cess or fee under any law | I72: 10a
E73: b | F73: Any sum payable by way of contribution to any provident fund or superannuation fund or gratuity fund or any other fund for the welfare of employees | I73: 10b
E74: c | F74: Any sum payable to an employee as bonus or commission for services rendered | I74: 10c
E75: d | F75: Any sum payable as interest on any loan or borrowing from any public financial institution or a State financial corporation or a State Industrial investment corporation | I75: 10d
E76: da | F76: Any sum payable as interest on any loan or borrowing from a deposit taking non-banking financial company or systemically important non-deposit taking non-banking financial company, in accordance with the terms and conditions of the agreement governing such loan or borrowing | I76: 10da
E77: e | F77: Any sum payable as interest on any loan or borrowing from any scheduled bank or a co-operative bank other than a primary agricultural credit society or a primary co-operative agricultural and rural development bank | I77: 10e
E78: f | F78: Any sum payable towards leave encashment | I78: 10f
E79: g | F79: Any sum payable to the Indian Railways for the use of railway assets | I79: 10g
E80: h | F80: Total amount allowable under section 43B (total of 10a to 10g) | K80: 10h | L80: =SUM(J72:J79) -> 0
D81: 11 | E81: Any amount debited to profit and loss account of the previous year but disallowable under section 43B:-
E82: a | F82: Any sum in the nature of tax, duty, cess or fee under any law | I82: 11a
E83: b | F83: Any sum payable by way of contribution to any provident fund or superannuation fund or gratuity fund or any other fund for the welfare of employees | I83: 11b
E84: c | F84: Any sum payable to an employee as bonus or commission for services rendered | I84: 11c
E85: d | F85: Any sum payable as interest on any loan or borrowing from any public financial institution or a State financial corporation or a State Industrial investment corporation | I85: 11d
E86: da | F86: Any sum payable as interest on any loan or borrowing from a deposit taking non-banking financial company or systemically important non-deposit taking non-banking financial company, in accordance with the terms and conditions of the agreement governing such loan or borrowing | I86: 11d(a)
E87: e | F87: Any sum payable as interest on any loan or borrowing from any scheduled bank or a co-operative bank other than a primary agricultural credit society or a primary co-operative agricultural and rural development bank | I87: 11e
E88: f | F88: Any sum payable towards leave encashment | I88: 11f
E89: g | F89: Any sum payable to the Indian Railways for the use of railway assets | I89: 11g
E90: h | F90: Total amount disallowable under Section 43B(total of 11a to 11g) | K90: 11h | L90: =SUM(J82:J89) -> 0
D91: 12 | E91: Amount of credit outstanding in the accounts in respect of
E92: a | F92: Union Excise Duty | I92: 12a
E93: b | F93: Service tax | I93: 12b
E94: c | F94: VAT/sales tax | I94: 12c
E95: d | F95: Central Goods & Service Tax (CGST) | I95: 12d
E96: e | F96: State Goods & Services Tax (SGST) | I96: 12e
E97: f | F97: Integrated Goods & Services Tax (IGST) | I97: 12f
E98: g | F98: Union Territory Goods & Services Tax (UTGST) | I98: 12g
E99: h | F99: Any other tax | I99: 12h
E100: i | F100: Total amount outstanding (total of 12a to 12h) | K100: 12i | L100: =SUM(J92:J99) -> 0
D101: 13 | E101: Amounts deemed to be profits and gains under section 33AB or 33ABA (13a+13b) | K101: 13 | L101: =MAX(0,L102+L103) -> 0
E102: a | G102: 33AB | K102: 13a
E103: b | G103: 33ABA | K103: 13b
D104: 14 | E104: Any amount of profit chargeable to tax under section 41 | K104: 14
D105: 15 | E105: Amount of income or expenditure of prior period credited or debited to the profit and loss account (net) | K105: 15
D106: 16 | E106: Amount of Expenditure disallowed u/s 14A | K106: 16
D109: 17 | E109: Whether assessee is exercising option under subsection 2A of section 92CE [If yes , please fill schedule TPSA] | K109: 17 | L109: No

Sheet Quantitative Details (hidden)
D3: Part A – QD | E3: Quantitative details (mandatory if liable for audit under section 44AB) (Note : Numeric values not filled will default to zero)
D4: (a) In the case of a trading concern
D5: Item Name | E5: Unit | F5: Opening stock | G5: Purchase during the previous year | H5: Sales during the previous year | I5: Closing stock | J5: Shortage/ excess, if any
D6: 1 | E6: 2 | F6: 3 | G6: 4 | H6: 5 | I6: 6 | J6: 7
E7: (Select)
E8: (Select)
E9: (Select)
E10: (Select)
E11: (Select)
E12: (Select)
E13: (Select)
E14: (Select)
E15: (Select)
E16: (Select)
E17: (Select)
E18: (Select)
E19: (Select)
E20: (Select)
E21: (Select)
E22: (Select)
E23: (Select)
E24: (Select)
E25: (Select)
D29: (b) In the case of a manufacturing concern - Raw Materials
D30: Item Name | E30: Unit of measure | F30: Opening stock | G30: Purchase during the previous year | H30: Consumption during the previous year | I30: Sales during the previous year | J30: Closing stock | K30: Yield Finished Products | L30: Percentage of yield | M30: Shortage/ excess, if any
D31: 1 | E31: 2 | F31: 3 | G31: 4 | H31: 5 | I31: 6 | J31: 7 | K31: 8 | L31: 9 | M31: 10
E32: (Select)
E33: (Select)
E34: (Select)
E35: (Select)
E36: (Select)
E37: (Select)
E38: (Select)
E39: (Select)
E40: (Select)
E41: (Select)
E42: (Select)
E43: (Select)
E44: (Select)
E45: (Select)
E46: (Select)
E47: (Select)
E48: (Select)
E49: (Select)
E50: (Select)
E51: (Select)
D55: (C) In the case of a manufacturing concern -Finished Products/By-products
D56: Item Name | E56: Unit | F56: Opening stock | G56: Purchase during the previous year | H56: Quantity manufactured during the previous year | I56: Sales during the previous year | J56: Closing stock | K56: Shortage/ excess, if any
D57: 1 | E57: 2 | F57: 3 | G57: 4 | H57: 5 | I57: 6 | J57: 7 | K57: 8
E58: (Select)
E59: (Select)
E60: (Select)
E61: (Select)
E62: (Select)
E63: (Select)
E64: (Select)
E65: (Select)
E66: (Select)
E67: (Select)
E68: (Select)
E69: (Select)
E70: (Select)
E71: (Select)
E72: (Select)
E73: (Select)
E74: (Select)
E75: (Select)
E76: (Select)
E77: (Select)

Sheet Sheet1 (hidden)
A2: =CONCATENATE(YEAR(TODAY()),"-",IF(MONTH(TODAY())<10,"0",""),MONTH(TODAY()),"-",IF(DAY(TODAY())<10,"0",""),DAY(TODAY())) -> 2022-10-11 | B2: Date Of interest calculation | D2: Interest u/s 234A | E2: 0 | H2: Point No.15 of Income Details : Net Tax liability | I2: 0
A3: 11/10/2022 | B3: Date of filing | D3: Interest u/s 234B | E3: 0 | H3: TDS | I3: 0
B4: Due date for filing of returns | D4: Interest u/s 234C | E4: 0 | H4: TCS | I4: 0
A5: 01/08/2018 | B5: Date Of interest calculation 234A | H5: Assessed Tax | I5: 0
A7: Reference Of Tax Head | B7: IsSenior | C7: Tax Head | D7: Value | E7: ISSuperSenior | F7: IsNormal | G7: Age
A8: Point 7 of Income Detail | B8: TRUE | C8: Taxable Income | D8: 0 | E8: FALSE | F8: TRUE | G8: 2014
A10: GrpA(Normal Citizen) | B10: 200000 | D10: =IF(GrpC,0,IF(AND(TaxableIncome>=0,TaxableIncome<=B10),0,0)) -> 0
B11: 500000 | D11: =IF(GrpC,0,IF(AND(TaxableIncome>=200001,TaxableIncome<=B11),(ROUND(VALUE(TaxableIncome-B10) * 0.1,0)),0)) -> 0
B12: 1000000 | D12: =IF(GrpC,0,IF(AND(TaxableIncome>=500001,TaxableIncome<=B12),(ROUND(VALUE(TaxableIncome-B11) * 0.2,0))+30000,0)) -> 0
B13: 1000001 | D13: =IF(GrpC,0,IF((TaxableIncome>=B13),(ROUND(VALUE(TaxableIncome-B12) * 0.3,0))+130000,0)) -> 0
A15: GrpB(Senior Citizen) | B15: 250000 | D15: =IF(GrpA,0,IF(AND(TaxableIncome>=0,TaxableIncome<=B15),0,0)) -> 0
B16: 500000 | D16: =IF(GrpA,0,IF(AND(TaxableIncome>=250001,TaxableIncome<=B16),(ROUND(VALUE(TaxableIncome-B15) * 0.1,0)),0)) -> 0
B17: 1000000 | D17: =IF(GrpA,0,IF(AND(TaxableIncome>=500001,TaxableIncome<=B17),(ROUND(VALUE(TaxableIncome-B16) * 0.2,0))+25000,0)) -> 0
B18: 1000001 | D18: =IF(GrpA,0,IF((TaxableIncome>=B18),(ROUND(VALUE(TaxableIncome-B17) * 0.3,0))+125000,0)) -> 0 | F18: 459920
F19: =F18-D18 -> 459920
A20: GrpC(Super Senior Citizen)
B22: 500000 | D22: =IF(GrpB,0,IF(AND(TaxableIncome>=0,TaxableIncome<=B22),0,0)) -> 0
B23: 1000000 | D23: =IF(GrpB,0,IF(AND(TaxableIncome>=500001,TaxableIncome<=B23),(ROUND(VALUE(TaxableIncome-B22) * 0.2,0)),0)) -> 0
B24: 1000001 | D24: =IF(GrpB,0,IF((TaxableIncome>=B24),(ROUND(VALUE(TaxableIncome-B23) * 0.3,0))+100000,0)) -> 0
A26: Tax on Taxable Income | D26: =SUM(D10:D24) -> 0

Sheet ITold (hidden)
A1: 18A | B1: Tax Payments
A2: A | B2: Details of payments of Advance Tax and Self-Assessment Tax
B3: Sl No | C3: BSR Code Must be filled to include the payment in the Total | D3: Date of Deposit (DD/MM/YYYY) | E3: Serial Number of Challan | F3: Amount (Rs) | S3: ExSAT | T3: =SUMIF(FormulaOfExSAT,"=A",IT.Amt) -> 0
B4: 1 | C4: 2 | D4: 3 | E4: 4 | F4: 5
B5: 1 | O5: =VALUE(MID(D5,7,4)) ->  | P5: =VALUE(MID(D5,1,2)) ->  | Q5: =VALUE(MID(D5,4,2)) ->  | R5: =IF(O5>2016,2,IF(O5>=2016,IF(Q5>=4,2,1),1)) ->  | S5: =IF(R5>1,6,IF(O5<2016,IF((Q5=6)*(P5>15),2,IF(Q5<7,1,IF((Q5=9)*(P5>15),3,IF(Q5<10,2,IF((Q5=12)*(P5>15),4,IF(Q5<13,3,4)))))),IF(Q5<3,4,IF(P5<16,4,5)))) ->  | T5: =IF(O5<=2016,IF(R5>1,IF(Q5<4,Q5+9,Q5-3),0),Q5+9) ->  | U5: =IF(O5<=2016,IF(R5>1,IF(Q5<4,Q5+9,IF(Q5=9,IF(P5 <=7,"A",Q5-3),Q5-3)),0),Q5+9) -> 
B6: =B5+1 -> 2 | O6: =VALUE(MID(D6,7,4)) ->  | P6: =VALUE(MID(D6,1,2)) ->  | Q6: =VALUE(MID(D6,4,2)) ->  | R6: =IF(O6>2016,2,IF(O6>=2016,IF(Q6>=4,2,1),1)) ->  | S6: =IF(R6>1,6,IF(O6<2016,IF((Q6=6)*(P6>15),2,IF(Q6<7,1,IF((Q6=9)*(P6>15),3,IF(Q6<10,2,IF((Q6=12)*(P6>15),4,IF(Q6<13,3,4)))))),IF(Q6<3,4,IF(P6<16,4,5)))) ->  | T6: =IF(O6<=2016,IF(R6>1,IF(Q6<4,Q6+9,Q6-3),0),Q6+9) ->  | U6: =IF(O6<=2016,IF(R6>1,IF(Q6<4,Q6+9,IF(Q6=9,IF(P6 <=7,"A",Q6-3),Q6-3)),0),Q6+9) -> 
B7: =B6+1 -> 3 | O7: =VALUE(MID(D7,7,4)) ->  | P7: =VALUE(MID(D7,1,2)) ->  | Q7: =VALUE(MID(D7,4,2)) ->  | R7: =IF(O7>2016,2,IF(O7>=2016,IF(Q7>=4,2,1),1)) ->  | S7: =IF(R7>1,6,IF(O7<2016,IF((Q7=6)*(P7>15),2,IF(Q7<7,1,IF((Q7=9)*(P7>15),3,IF(Q7<10,2,IF((Q7=12)*(P7>15),4,IF(Q7<13,3,4)))))),IF(Q7<3,4,IF(P7<16,4,5)))) ->  | T7: =IF(O7<=2016,IF(R7>1,IF(Q7<4,Q7+9,Q7-3),0),Q7+9) ->  | U7: =IF(O7<=2016,IF(R7>1,IF(Q7<4,Q7+9,IF(Q7=9,IF(P7 <=7,"A",Q7-3),Q7-3)),0),Q7+9) -> 
B8: =B7+1 -> 4 | O8: =VALUE(MID(D8,7,4)) ->  | P8: =VALUE(MID(D8,1,2)) ->  | Q8: =VALUE(MID(D8,4,2)) ->  | R8: =IF(O8>2016,2,IF(O8>=2016,IF(Q8>=4,2,1),1)) ->  | S8: =IF(R8>1,6,IF(O8<2016,IF((Q8=6)*(P8>15),2,IF(Q8<7,1,IF((Q8=9)*(P8>15),3,IF(Q8<10,2,IF((Q8=12)*(P8>15),4,IF(Q8<13,3,4)))))),IF(Q8<3,4,IF(P8<16,4,5)))) ->  | T8: =IF(O8<=2016,IF(R8>1,IF(Q8<4,Q8+9,Q8-3),0),Q8+9) ->  | U8: =IF(O8<=2016,IF(R8>1,IF(Q8<4,Q8+9,IF(Q8=9,IF(P8 <=7,"A",Q8-3),Q8-3)),0),Q8+9) -> 
C10: Total | F10: =SUM(IT.Amt) -> 143000
A11: NOTE | C11: Enter the totals of Advance tax and Self-Assessment tax in Sl No. 10a & 10d of Part B-TTI
T13: =SUMIF(FormulaOfSAT,"=12",IT.Amt) -> 0 | U13: =SUMIF(FormulaOfSAT,"=24",IT.Amt) -> 0
T14: =SUMIF(FormulaOfSAT,"=11",IT.Amt) -> 0 | U14: =SUMIF(FormulaOfSAT,"=23",IT.Amt) -> 0
T15: =SUMIF(FormulaOfSAT,"=10",IT.Amt) -> 0 | U15: =SUMIF(FormulaOfSAT,"=22",IT.Amt) -> 0
T16: =SUMIF(FormulaOfSAT,"=9",IT.Amt) -> 0 | U16: =SUMIF(FormulaOfSAT,"=21",IT.Amt) -> 0
T17: =SUMIF(FormulaOfSAT,"=8",IT.Amt) -> 0 | U17: =SUMIF(FormulaOfSAT,"=20",IT.Amt) -> 0
T18: =SUMIF(FormulaOfSAT,"=7",IT.Amt) -> 0 | U18: =SUMIF(FormulaOfSAT,"=19",IT.Amt) -> 0
T19: =SUMIF(FormulaOfSAT,"=6",IT.Amt) -> 0 | U19: =SUMIF(FormulaOfSAT,"=18",IT.Amt) -> 0
R20: Quarter Income Break up | S20: =SUMIF(FormulaOfQ,"=5",IT.Amt) -> 67000 | T20: =SUMIF(FormulaOfSAT,"=5",IT.Amt) -> 0 | U20: =SUMIF(FormulaOfSAT,"=17",IT.Amt) -> 0
S21: =SUMIF(FormulaOfQ,"=4",IT.Amt) -> 0 | T21: =SUMIF(FormulaOfSAT,"=4",IT.Amt) -> 0 | U21: =SUMIF(FormulaOfSAT,"=16",IT.Amt) -> 0
S22: =SUMIF(FormulaOfQ,"=3",IT.Amt) -> 0 | T22: =SUMIF(FormulaOfSAT,"=3",IT.Amt) -> 0 | U22: =SUMIF(FormulaOfSAT,"=15",IT.Amt) -> 0
S23: =SUMIF(FormulaOfQ,"=2",IT.Amt) -> 0 | T23: =SUMIF(FormulaOfSAT,"=2",IT.Amt) -> 76000 | U23: =SUMIF(FormulaOfSAT,"=14",IT.Amt) -> 0
O24: Self Assesment | P24: =SUMIF(IT.FormulaOFS,">=2",IT.Amt) -> 76000 | Q24: Advance Tax | R24: =SUMIF(IT.FormulaOFS,"<2",IT.Amt) -> 67000 | S24: =SUMIF(FormulaOfQ,"=1",IT.Amt) -> 0 | T24: =SUMIF(FormulaOfSAT,"=1",IT.Amt) -> 0 | U24: =SUMIF(FormulaOfSAT,"=13",IT.Amt) -> 0

Sheet Schedule S
U1: 0
C3: Schedule S | E3: Details of Income from Salary (Fields marked in RED must not be left Blank. Empty numeric values treated as zeroes)
D4: Name of Employer | G4: GURMEET COMPUTERS LTD. | H4: Nature of employer | J4: Others-Pensioners | K4: TAN of Employer (mandatory if tax is deducted) | L4: RTKG14563D
D5: Address of employer | H5: 12/32, RAMGANI BAZAR | J5: Town/City | K5: Pin code | L5: Zip code | Q5: 24
D6: State | H6: 27-RAJASTHAN | J6: JAIPUR | K6: 302003 | Q6: 2
D7: 1 | E7: Gross Salary (1a + 1b + 1c + 1d + 1e) | K7: 1 | L7: 1877000 | Q7: =SUMIF(Salary.ValueSection1,"Stock options allotted or transferred by employer being an eligible start-up referred to in section 80-IAC-Tax to be defered",Salary.ValueAmount1) -> 0
E8: a | F8: Salary as per section 17(1) | I8: 1a | J8: 1877000 | Q8: 0
F9: Sl no | G9: Nature of salary | H9: Description | J9: Amount
F10: 1 | G10: Annuity or pension | J10: 1877000
F11: =F10+1 -> 2 | G11: (Select)
E12: b | F12: Value of perquisites as per section 17(2) | I12: 1b | J12: 0
F13: Sl no | G13: Nature of perquisites | H13: Description | J13: Amount
F14: 1 | G14: (Select)
F15: =1+F14 -> 2 | G15: (Select)
F16: =1+F15 -> 3 | G16: (Select)
E17: c | F17: Profit in lieu of salary as per section 17(3) | I17: 1c | J17: 0
F18: Sl no | G18: Nature of Profit in lieu of Salary | H18: Description | J18: Amount
F19: 1 | G19: (Select)
F20: =1+F19 -> 2 | G20: (Select)
E21: d | F21: Income from retirement benefit account maintained in a notified country u/s 89A | I21: 1d | J21: 0
F22: Sl no | G22: Country | J22: Amount
F23: 1 | G23: United States of America
F24: 2 | G24: United Kingdom of Great Britain and Northern Ireland
F25: 3 | G25: Canada
E26: e | F26: income from retirement benefit account maintained in a Country other than notified country u/s 89A" | I26: 1e
D28: Name of Employer | H28: Nature of employer | K28: TAN of Employer (mandatory if tax is deducted)
D29: Address of employer | J29: Town/City | K29: Pin code | L29: Zip code
D30: State
D31: 1 | E31: Gross Salary (1a + 1b + 1c + 1d + 1e) | K31: 1 | L31: 0 | Q31: =SUMIF(Salary.ValueSection2,"Stock options allotted or transferred by employer being an eligible start-up referred to in section 80-IAC",Salary.ValueAmount2) -> 0
E32: a | F32: Salary as per section 17(1) | I32: 1a | J32: 0
F33: Sl no | G33: Nature of salary | H33: Description | J33: Amount
F34: 1
F35: =F34+1 -> 2
E36: b | F36: Value of perquisites as per section 17(2) | I36: 1b | J36: 0
F37: Sl no | G37: Nature of perquisites | H37: Description | J37: Amount
F38: 1
F39: =1+F38 -> 2
F40: =1+F39 -> 3
E41: c | F41: Profit in lieu of salary as per section 17(3) | I41: 1c | J41: 0
F42: Sl no | G42: Nature of Profit in lieu of Salary | H42: Description | J42: Amount
F43: 1
F44: =1+F43 -> 2
E45: d | F45: Income from retirement benefit account maintained in a notified country u/s 89A | I45: 1d | J45: 0
F46: Sl no | G46: Country | J46: Amount
F47: 1 | G47: United States of America
F48: 2 | G48: United Kingdom of Great Britain and Northern Ireland
F49: 3 | G49: Canada
E50: e | F50: income from retirement benefit account maintained in a Country other than notified country u/s 89A" | I50: 1e
D53: 2 | E53: Total gross salary from all employers | K53: 2 | L53: 1877000
D54: 2a | E54: Income claimed for relief from taxation u/s 89A | K54: 2a
D55: 3 | E55: Less : allowances to the extent exempt u/s 10 (Note: Ensure that it is included in salary income u/s 17(1)/17(2)/17(3)) | K55: 3 | L55: =SUM(Salary.Amount1) -> 0
F56: Sl.No | G56: Nature of Exempt Allowance | H56: Description | J56: Amount
F57: 1 | I57: 1
F58: =F57+1 -> 2 | I58: =I57+1 -> 2
F59: =F58+1 -> 3 | I59: =I58+1 -> 3
F60: =F59+1 -> 4 | I60: =I59+1 -> 4
D62: 4 | E62: Net Salary (2– 2a - 3) | H62: 1877000 | J62: 1877000 | K62: 4 | L62: =MAX(0,(Tempgross-SAL.ExemptUSectionOth1-Increliefus89A)) -> 1877000
D63: 5 | E63: Deduction u/s 16 (5a + 5b + 5c) | K63: 5 | L63: =SUM(SAL.DeductionUnder6Section1,SAL.Entertainment_allowance_1,SAL.DeductionUnderSection1) -> 50000
E64: a | F64: Standard deduction u/s 16(ia) | I64: 5a | J64: =IF(bacValue=1,0,MIN(SAL.Netsalary1,50000)) -> 50000
E65: b | F65: Entertainment allowance u/s 16(ii) | I65: 5b | R65: 0
E66: c | F66: Professional tax u/s 16(iii) | I66: 5c | J66: 0
D67: 6 | E67: Income chargeable under the Head ‘Salaries’ (4 - 5) | K67: 6 | L67: =MAX(0,(SAL.Netsalary1-SAL.Deduction1)) -> 1827000
G91: aaa

Sheet House Property
C3: SCH HP | F3: Details of Income from House Property (Fields marked in RED must not be left Blank)
D4: 1 | F4: Address Of Property (Note : Do not leave address blank ) | G4: Town/ City | H4: State | I4: Country | J4: PIN Code | K4: Zip Code
F5: C-15/25 (GROUND FLOOR) | G5: JAIPUR | H5: 27-RAJASTHAN | I5: 91-INDIA | J5: 302002
F6: Owner of the Property (Please specify if others is selected ) | G6: Self | I6: Is the property co-owned? | J6: No | K6: Your percentage of share in the property.%
F7: S.No | G7: Name of co owner(s) | H7: PAN of Co-owner(s) | I7: Aadhaar Number of the Co-owner(s) | J7: Percentage share of other co-owner(s) in property% | K7: 100 | N7: 27
F8: 1 | N8: 2
F9: =F8+1 -> 2 | T9: tempPercentagecountValue
F10: 3
F11: 4
F12: 5
F13: 6
F14: 7
F15: Type Of House Property? | H15: Self Occupied
F16: S.No | G16: Name(s) of Tenant (s) (if let out) | H16: PAN of Tenant(s) (if available) | I16: Aadhaar Number of Tenant (s) | J16: PAN / TAN of Tenant(s) (if TDS credit is claimed)
F17: 1
F18: =F17+1 -> 2
F19: =F18+1 -> 3
E20: a | F20: Gross Rent received or receivable or letable value | J20: a
E21: b | F21: The amount of rent which cannot be realized
E22: c | F22: Tax paid to local authorities
E23: d | F23: Total (b + c) | I23: =SUM(I21:I22) -> 0
E24: e | F24: Annual value (a – d) (nil, if self -occupied etc. as per section 23(2)of the Act) | J24: e | K24: =(K20-I23) -> 0
E25: f | F25: Annual value of the property owned (own percentage share x e) | J25: f | K25: =ROUND(((K7/100)*K24),0) -> 0
E26: g | F26: 30% of 1f | I26: =ROUND(IF(((30/100)*K25) < 0,0,(30/100*K25)),0) -> 0
E27: h | F27: Interest payable on borrowed capital | H27: Cannot exceed 2 lacs if not let out | I27: 120000
E28: i | F28: Total (g + h) | J28: i | K28: =SUM(I26,I27) -> 120000
E29: j | F29: Arrears/Unrealized Rent received during the year Less 30% | J29: j
E30: k | F30: Income from house property (f – i + j) | J30: k | K30: =(K25-K28+K29) -> -120000
D31: 2 | F31: Address Of Property (Note : Do not leave address blank ) | G31: Town/ City | H31: State | I31: Country | J31: PIN Code | K31: Zip Code
F32: C-15/25 (FIRST FLOOR) | G32: JAIPUR | H32: 27-RAJASTHAN | I32: 91-INDIA | J32: 302002
F33: Owner of the Property (Please specify if others is selected ) | G33: Self | I33: Is the property co-owned? | J33: No | K33: Your percentage of share in the property.%
F34: S.No | G34: Name of co owner(s) | H34: PAN of Co-owner(s) | I34: Aadhaar Number of the Co-owner(s) | J34: Percentage share of other co-owner(s) in property% | K34: 100
F35: 1
F36: =F35+1 -> 2
F37: 3
F38: 4
F39: 5
F40: 6
F41: 7
F42: Type Of House Property? | H42: Let Out
F43: S.No | G43: Name(s) of Tenant (s) (if let out) | H43: PAN of Tenant(s) (if available) | I43: Aadhaar Number of Tenant (s) | J43: PAN / TAN of Tenant(s) (if TDS credit is claimed)
F44: 1 | G44: RAJAN HARDWARE LTD.
F45: =F44+1 -> 2
F46: =F45+1 -> 3
E47: a | F47: Gross Rent received or receivable or letable value | J47: a | K47: 1000000
E48: b | F48: The amount of rent which cannot be realized
E49: c | F49: Tax paid to local authorities | I49: 40000
E50: d | F50: Total (b + c) | I50: =SUM(I48:I49) -> 40000
E51: e | F51: Annual value (a – d) (nil, if self -occupied etc. as per section 23(2)of the Act) | J51: e | K51: =(K47-I50) -> 960000
E52: f | F52: Annual value of the property owned (own percentage share x e) | J52: f | K52: =ROUND(((K34/100)*K51),0) -> 960000
E53: g | F53: 30% of 1f | I53: =ROUND(IF(((30/100)*K52) < 0,0,(30/100*K52)),0) -> 288000
E54: h | F54: Interest payable on borrowed capital | H54: Cannot exceed 2 lacs if not let out | I54: 120000
E55: i | F55: Total (g + h) | J55: i | K55: =SUM(I53,I54) -> 408000
E56: j | F56: Arrears/Unrealized Rent received during the year Less 30% | J56: j
E57: k | F57: Income from house property (f – i + j) | J57: k | K57: =(K52-K55+K56) -> 552000
D58: 2 | E58: Pass through income/Loss if any * | J58: 2 | K58: 0 | N58: =IF(bacValue=1,0,MAX(HP.TotalIncomeChargeableUnHP,-200000)) -> 432000
D59: 3 | E59: Income under the head “Income from house property” (1k) + 2 (if negative take the figure to 2i of schedule CYLA) | J59: 3 | K59: 432000 | N59: =MAX(0,(-HP.TotalIncomeChargeableUnHP-200000)) -> 0

Sheet BP (hidden)
C3: Schedule BP | F3: Computation of income from business or profession
C4: INCOME FROM BUSINESS OR PROFESSION | D4: A | E4: From business or profession other than speculative business or specified business
E5: 1 | F5: Profit before tax as per profit and loss account ((item 53 ,61(ii)), 62(ii), 63(ii), 64(iii) and 65(iv) of P&L)(in case of no account case)] | J5: 1 | K5: =PL.PBT+PL_61ii+PL_63ii+PL_64iii+PL_65iv+IF(PL_62ii<>0,PL_62ii,0) -> 0
E6: 2a | F6: Net profit or loss from speculative business included in 1 (enter –ve sign in case of loss) [Sl.no 65iv of Schedule P&L] | H6: 2a | N6: FINALPBT | O6: =PL.PBT+PL_61ii+PL_63ii+PL_64iii+PL_65iv+IF(PL_62ii<>0,PL_62ii,0) -> 0
E7: 2b | F7: Net profit or Loss from Specified Business u/s 35AD included in 1 (enter –ve sign in case of loss) | H7: 2b
E8: 3 | F8: Income/ receipts credited to profit and loss account considered under other heads of income or chargeable u/s 115BBF or chargeable u/s 1115BBG
F9: a | G9: Salaries | H9: 3a
F10: b | G10: House Property | H10: 3b
F11: c | G11: Capital Gains | H11: 3c
F12: d | G12: Other Sources | H12: 3d | I12: =sheet10.IncRecCredPLOthHeads4Div+sheet10.IncRecCredPLOthHeads4OthDiv -> 0
F13: i | G13: Dividend Income | H13: 3di
F14: ii | G14: Other than Dividend Income | H14: 3dii
F15: e | G15: u/s 115BBF | H15: 3e
F16: f | G16: u/s 115BBG | H16: 3f
E17: 4a | F17: Profit or loss included in 1, which is referred to in section 44AD/44ADA/44AE/44B/44BB/44BBA/44DA | H17: 4 | I17: =SUM(BP_4_44AD,BP_4_44ADA,BP_4_44AE,BP_4_44B,BP_4_44BB,BP_4_44BBA,BP_4_44DA) -> 0
F18: Sl no | G18: Section | I18: Amount
F19: a | G19: 44AD | H19: 4a | I19: =sheet11.Section44AD -> 0
F20: b | G20: 44ADA | H20: 4b | I20: =sheet11.Section44ADA -> 0
F21: c | G21: 44AE | H21: 4c | I21: =sheet11.Section44AE -> 0
F22: d | G22: 44B | H22: 4d | I22: =sheet11.Section44B -> 0
F23: e | G23: 44BB | H23: 4e | I23: =Sheet11.Section44BB -> 0
F24: f | G24: 44BBA | H24: 4f | I24: =sheet11.Section44BBA -> 0
F25: g | G25: 44DA | H25: 4g | I25: =sheet12.Section44DA -> 0
E26: 4b | F26: Profit from activities covered under rule 7, 7A, 7B(1), 7B(1A) and 8 | I26: =SUM(BP_4b_ProfitRule7,BP_4b_ProfitRule7A,BP_4b_ProfitRule7B1,BP_4b_ProfitRule7B2,BP_4b_ProfitRule8) -> 0
F27: Sl no | G27: Section | I27: Amount
F28: a | G28: Profit from activities covered under rule 7 | H28: 4ba
F29: b | G29: Profit from activities covered under rule 7A | H29: 4bb
F30: c | G30: Profit from activities covered under rule 7B(1) | H30: 4bc
F31: d | G31: Profit from activities covered under rule 7B(1A) | H31: 4bd
F32: e | G32: Profit from activities covered under rule 8 | H32: 4be
E33: 5 | F33: Income credited to Profit and Loss account (included in 1) which is exempt
F34: a | G34: share of income from firm(s) | H34: 5a
F35: b | G35: Share of income from AOP/ BOI | H35: 5b
F36: c | G36: Any other exempt Income (specify nature and amount)
G37: Nature | I37: Amount
F38: 1 | H38: 1
F39: =F38+1 -> 2 | H39: =H38+1 -> 2
F40: =F39+1 -> 3 | H40: =H39+1 -> 3
G42: Total (ci + cii + ciii) | H42: 5c | I42: =SUM(Amt_1) -> 0
F43: d | G43: Total exempt income (5a+5b+5c) | H43: 5d | I43: =SUM(I34,I35,I42) -> 0
E44: 6 | F44: Balance (1– 2a – 2b – 3a - 3b – 3c - 3d -3e-3f – 4a-4b– 5d) | J44: 6 | K44: =(K5-I6-I7-I9-I10-I11-I12-I15-I16-I17-I26-I43) -> 0
E45: 7 | F45: Expenses debited to profit and loss account considered under other heads of income/related to income chargeable u/s 115BBF or u/s 115BBG
F46: a | G46: Salaries | H46: 7a
F47: b | G47: House Property | H47: 7b
F48: c | G48: Capital Gains | H48: 7c
F49: d | G49: Other Sources | H49: 7d
F50: e | G50: u/s 115BBF | H50: 7e
F51: f | G51: u/s 115BBG | H51: 7f
E52: 8a | F52: Expenses debited to profit and loss account which relate to exempt income | H52: 8a
E53: 8b | F53: Expenses debited to profit and loss account which relate to exempt income and disallowed u/s 14A (16 of Part A-OI) | H53: 8b | I53: =sheet7.AmountOfExpenditure14A -> 0
E54: 9 | F54: Total (7a + 7b + 7c + 7d + 7e +7f+ 8a+8b) | H54: 9 | I54: =SUM(I46:I53) -> 0
E55: 10 | F55: Adjusted profit or loss (6+9) | J55: 10 | K55: =SUM(K44,I54) -> 0
E56: 11 | F56: Depreciation and amortization debited to profit and loss account | J56: 11 | K56: =PL.DepreciationAmort+ManuFactureAcc_DepreciationOfFactoryMachinary -> 0
E57: 12 | F57: Depreciation allowable under Income-tax Act
F58: i | G58: Depreciation allowable under section 32(1)(ii) and 32(1)(iia) (item 6 of Schedule-DEP) | H58: 12i | I58: =IF(DEP.TotalDepreciation>0,DEP.TotalDepreciation,0) -> 0
F59: ii | G59: Depreciation allowable under section 32(1)(i) (Make your own computation refer Appendix IA of IncomeTax Rules) | H59: 12ii
F60: iii | G60: Total (12i + 12ii) | J60: 12iii | K60: =SUM(I58,I59) -> 0
E61: 13 | F61: Profit or loss after adjustment for depreciation (10 +11 - 12iii) | J61: 13 | K61: =(sheet11.AdjustedPLOthThanSpecBus+sheet11.DepreciationDebPLCosAct-sheet11.TotDeprAllowITAct) -> 0
E62: 14 | F62: Amounts debited to the profit and loss account, to the extent disallowable under section 36 (6s of Part A-OI) | H62: 14 | I62: =sheet6.TotAmtDisallUs36 -> 0
E63: 15 | F63: Amounts debited to the profit and loss account, to the extent disallowable under section 37 (7J of Part-OI) | H63: 15 | I63: =sheet6.TotAmtDisallUs37 -> 0
E64: 16 | F64: Amounts debited to the profit and loss account, to the extent disallowable under section 40 (8Aj of Part-OI) | H64: 16 | I64: =sheet7.TotAmtDisallUs40 -> 0
E65: 17 | F65: Amounts debited to the profit and loss account, to the extent disallowable under section 40A (9F of Part-OI) | H65: 17 | I65: =sheet7.TotAmtDisallUs40A -> 0
E66: 18 | F66: Any amount debited to profit and loss account of the previous year but disallowable under section 43B (11h of Part-OI) | H66: 18 | I66: =sheet7.TotAmtUs43b1 -> 0
E67: 19 | F67: Interest disallowable under section 23 of the Micro, Small and Medium Enterprises Development Act,2006 | H67: 19
E68: 20 | F68: Deemed income under section 41 | H68: 20
E69: 21 | F69: Deemed income under section 32AD/33AB/33ABA/35ABA//35ABB/40A(3A)/72A/80HHD/80-IA (21a+21b+21c+21d+21e+21f+21g+21h+21i) | H69: 21 | I69: =MAX(0,SUM(I70:I78)) -> 0
F70: a | G70: 32AD | H70: 21a
F71: b | G71: 33AB | H71: 21b
F72: c | G72: 33ABA | H72: 21c
F73: d | G73: 35ABA | H73: 21d
F74: e | G74: 35ABB | H74: 21e
F75: f | G75: 40A(3A) | H75: 21f
F76: g | G76: 72A | H76: 21g
F77: h | G77: 80HHD | H77: 21h
F78: i | G78: 80-IA | H78: 21i
E79: 22 | F79: Deemed income under section 43CA | H79: 22
E80: 23 | F80: Any other item of addition under section 28 to 44DA | H80: 23
E81: 24 | F81: Any other expense not allowable / any other income not included in profit and loss account(including income from salary, commission, bonus and interest from firms in which individual/HUF/prop. concern is a partner) | H81: 24 | I81: =SUM(I82:I86) -> 0
F82: a | G82: Salary | H82: 24a
F83: b | G83: Bonus | H83: 24b
F84: c | G84: Commission | H84: 24c
F85: d | G85: Interest | H85: 24d
F86: e | G86: Others | H86: 24e
E87: 25 | F87: Increase in profit or decrease in loss on account of ICDS adjustments and deviation in method of valuation of stock (Column 3a + 4d of Part A - OI) | J87: 25 | K87: =SUM(sheet5.ProfDeviatDueAcctMeth,sheet6.EffectOnPL) -> 0
E88: 26 | F88: Total (14 + 15 +16 +17 +18 +19 + 20 +21 + 22 + 23 + 24+25) | J88: 26 | K88: =SUM(I62:I81,K87)-sheet11.DeemIncUs3380HHD80IA -> 0
E89: 27 | F89: Deduction allowable under section 32(1)(iii) | H89: 27
E90: 28 | F90: Deduction allowable under section 32AD | H90: 28 | I90: 0
E91: 29 | F91: Amount of deduction under section 35 or 35CCC or 35CCD in excess of the amount debited to profit and loss account (item X(4) of Schedule ESR) (if amount deductible under section 35 or 35CCC or 35CCD is lower than amount debited to P&L account, it will go to item 24) | H91: 29 | I91: =ESRTOT.ExcessAmtOverDebPL -> 0
E92: 30 | F92: Any amount disallowed under section 40 in any preceding previous year but allowable during the previous year(8B of Part-OI) | H92: 30 | I92: =sheet7.AmtDisallUs40PyNowAll -> 0
E93: 31 | F93: Any amount disallowed under section 43B in any preceding previous year but allowable during the previous year(10h of Part-OI) | H93: 31 | I93: =sheet7.TotAmtUs43b -> 0
E94: 31 | F94: Deduction under section 35AC
F95: a | G95: Amount, if any, debited to profit and loss account | H95: 31a
F96: b | G96: Amount allowable as deduction | H96: 31b
F97: c | G97: Excess amount allowable as deduction (31b – 31a) | H97: 31c | I97: =IF((I96-I95)<0,0,(I96-I95)) -> 0
E98: 32 | F98: Any other amount allowable as deduction | H98: 32
E99: 33 | F99: Decrease in profit or increase in loss on account of ICDS adjustments and deviation in method of valuation of stock (Column 3b + 4e of Part A- OI) | J99: 33 | K99: =SUM(sheet5.ProfDeviatDueAcctMethb,sheet6.EffectOnPL4e) -> 0
E100: 34 | F100: Total (27+28+29+30+31+32+33) | J100: 34 | K100: =SUM(sheet11.DeductUs32_1_iii,sheet11.DeductUs32AD,sheet11.DebPLUs35ExcessAmt,sheet11.AmtDisallUs40NowAllow,sheet11.AmtDisallUs43BNowAllow,sheet11.AnyOthAmtAllDeduct,BP.DecPIncL) -> 0
E101: 35 | F101: Income (13 + 26– 34) | J101: 35 | K101: =(K61+K88-K100) -> 0
E102: 36 | F102: Profits and gains of business or profession deemed to be under -
F103: i | G103: Section 44AD (61(ii) of schedule P&L) | H103: 36i | I103: =PL_61ii -> 0
F104: ii | G104: Section 44ADA (62(ii) of schedule P&L) | H104: 36ii | I104: =PL_62ii -> 0
F105: iii | G105: Section 44AE (63(ii) of schedule P&L) | H105: 36iii | I105: =PL_63ii -> 0
F106: iv | G106: Section 44B | H106: 36iv
F107: v | G107: Section 44BB | H107: 36v
F108: vi | G108: Section 44BBA | H108: 36vi
F109: vii | G109: Section 44BBB | H109: 36vii
F110: viii | G110: Section 44D | H110: 36viii
F111: vii | G111: Section 44DA | H111: 36ix
F112: ix | G112: Chapter-XII-G | H112: x
F113: viii | G113: Total (36i to 36vii) | J113: 36viii | K113: =MAX(0,SUM(sheet11.Section44AD,sheet11.Section44AE,sheet11.Section44B,Sheet11.Section44BB,sheet11.Section44BBA,sheet12.Section44DA,sheet11.Section44ADA)) -> 0
E114: 34 | F114: Profit or loss before deduction under section 10A/10AA (32 + 33xii) | J114: 34 | K114: 0
E115: 35 | F115: Deductions under section
F116: i | G116: 10A (6 of Schedule-10A) | H116: 35i | I116: 0
F117: ii | G117: 10AA (d of Schedule-10AA) | H117: 35ii | I117: 0
F118: iii | G118: 10B (f of Schedule-10B) | H118: 35iii | I118: 0
F119: iv | G119: 10BA (f of Schedule-10BA) | H119: 35iv | I119: 0
F120: iii | G120: Total (35i + 35ii) | J120: 35iii | K120: 0
E121: 37 | F121: Net profit or loss from business or profession other than speculative and specified business (35+36viii) | J121: 37 | K121: =(sheet11.PLAftAdjDedBusOthThanSpec+sheet12.TotDeemedProfitBusUs) -> 0
E122: 38 | F122: Net Profit or loss from business or profession other than speculative business and specified business, after applying rule 7A,7B or 8, if applicable (if rule 7A, 7B or 8 is not applicable, enter same figure as in 37) (if loss take the figure to 2i of item E) (38a+ 38b + 38c + 38d + 38e + 38f) | J122: A38 | K122: =SUM(BP_Chargeable_rule7,BP_Chargeable_rule7A,BP_Chargeable_rule7B1,BP_Chargeable_rule7B1A,BP_Chargeable_rule8,BP_Chargeable_ruleOther) -> 0
F123: a | G123: Chargeable income under Rule 7 | H123: 38a
F124: b | G124: Deemed chargeable Income under Rule 7A | H124: 38b
F125: c | G125: Deemed chargeable Income under Rule 7B(1) | H125: 38c
F126: d | G126: Deemed chargeable Income under Rule 7B(1A) | H126: 38d
F127: e | G127: Deemed chargeable Income under Rule 8 | H127: 38e
F128: f | G128: Income other than Rule7, 7A, 7B & 8 (Item No. 37) | H128: 38f | I128: =sheet12.NetPLAftAdjBusOthThanSpec -> 0
E129: 39 | F129: Balance of income deemed to be from Agriculture, after applying Rule 7, 7A, 7B(1), 7B(1A) and Rule 8 for aggregation of income purposes as per Finance Act. | J129: 39 | K129: =MAX(0,(BP_4b_TotalProfitFromActivates-SUM(I123:I127))) -> 0
D130: B | E130: Computation of income from speculative business
E131: 40 | F131: Net profit or loss from speculative business as per profit or loss account (Item No.2a) | J131: 40 | K131: =(sheet10.NetPLFromSpecBus) -> 0
E132: 41 | F132: Additions in accordance with section 28 to 44DA | J132: 41
E133: 42 | F133: Deductions in accordance with section 28 to 44DA | J133: 42
E134: 43 | F134: Income from speculative business(40+41-42) (if loss, take the figure to 6xv of schedule CFL) | J134: B43 | K134: =(sheet12.NetPLFrmSpecBus+sheet12.AdditionUs28to44DA-sheet12.DeductUs28to44DA) -> 0
D135: C | E135: Computation of income from specified business under section 35AD
E136: 44 | F136: Net profit or loss from specified business as per profit or loss account | J136: 44 | K136: =(sheet10.NetPLFromSpecifiedBus) -> 0
E137: 45 | F137: Additions in accordance with section 28 to 44DA | J137: 45
E138: 46 | F138: Deductions in accordance with section 28 to 44DA (other than deduction under section,- (i) 35AD, (ii)32 or 35 on which deduction u/s 35AD is claimed) | J138: 46
E139: 47 | F139: Profit or loss from specified business (44+45-46) | J139: 47 | K139: =(sheet12.NetPLFrmSpecifiedBus+sheet12.AddSec2844DA-sheet12.DedSec2844DA) -> 0
E140: 48 | F140: Deductions in accordance with section 35AD(1) | J140: 48 | K140: 0
F141: a | G141: 35AD(1) | J141: 46a
F142: b | G142: 35AD(1A) | J142: 46b
E143: 49 | F143: Income from Specified Business (47-48) (if loss, take the figure to 7xv of schedule CFL) | J143: C49 | K143: =(sheet12.ProfLossFromSpecifiedBus-sheet12.DeductUs35AD) -> 0
E144: 50 | F144: Relevant clause of sub-section (5) of section 35AD which covers the specified business (to be selected from drop down menu)
F145: 1 | G145: (Select) | N145: =MID(EI.Drpdn,1,4) -> (Sel
F146: 2 | G146: (Select) | N146: =MID(EI.Drpdn,1,4) -> (Sel
N147: (Sel
D148: D | E148: Income chargeable under the head ‘Profits and gains from Business or profession’ (A38+B43+C49) | J148: D | K148: =MAX(0,sheet12.AdjustedPLFrmSpecifiedBus)+MAX(0,sheet12.AdjustedPLFrmSpecuBus)+sheet12.NetPLBusOthThanSpec7A7B7C -> 0
D149: Please include the income of the specified persons referred to in Schedule SPI while computing the income under this head
D154: E | E154: Intra head set off of business loss of current year
P155: TempBusLoss
D156: Type of business income | G156: Income of current year (Fill this column only if figure is zero or positive) (1) | I156: Business loss set off (2) | K156: Business income remaining after set off (3) = (1)-(2) | O156: Normal Bus loss | P156: 0
D157: (i) Loss to be set off (Fill this row only if figure is negative) | I157: =ABS(MIN(0,sheet12.NetPLBusOthThanSpec7A7B7C)) -> 0 | O157: After Speculative loss Set off | P157: =(TempBussLoss-sheet12.IncOfCurYrUnderThatHeada) -> 0
D158: (ii) Income from speculative business | G158: =MAX(0,sheet12.AdjustedPLFrmSpecuBus) -> 0 | I158: =MIN(sheet12.LossSetOffOnBusLoss,sheet12.IncOfCurYrUnderThatHeada) -> 0 | K158: =sheet12.IncOfCurYrUnderThatHeada-sheet12.BusLossSetoffa -> 0 | O158: After Specified loss Setoff | P158: =(TempAfterSpecSetoff-sheet12.IncOfCurYrUnderThatHeadb) -> 0
D159: (iii) Income from specified business | G159: =MAX(0,sheet12.AdjustedPLFrmSpecifiedBus) -> 0 | I159: =MIN((sheet12.LossSetOffOnBusLoss-sheet12.BusLossSetoffa),G159) -> 0 | K159: =sheet12.IncOfCurYrUnderThatHeadb-sheet12.BusLossSetoffb -> 0
D160: (iv) Total loss set off (ii + iii) | I160: =SUM(I158:I159) -> 0
D161: (v) Loss remaining after set off (i – iv) | I161: =MAX(sheet12.LossSetOffOnBusLoss-sheet12.TotLossSetOffOnBus) -> 0
D162: Note : Please include the income of the specified persons referred to in Schedule SPI while computing the income under this head

Sheet DPM - DOA (hidden)
P2: =F12+F15-F10-F11-F14 -> 0 | Q2: =G12+G15-G10-G11-G14 -> 0 | R2: =H12+H15-H10-H11-H14 -> 0 | S2: =I12+I15-I10-I11-I14 -> 0
C3: Schedule DPM | E3: Depreciation on Plant and Machinery (Other than assets on which full capital expenditure is allowable as deduction under any other section) | P3: =G38+G41-G36-G37-G40 -> 0 | Q3: 0 | R3: 0 | S3: 0 | T3: 0 | U3: 0
C4: DEPRECIATION ON PLANT AND MACHINERY | D4: 1 | E4: Block of assets | F4: Plant and machinery
D5: 2 | E5: Rate (%) | F5: 15 | G5: 30 | H5: 40 | I5: 45
F6: (i) | G6: (ii) | H6: (iii) | I6: (iv) | AS6: 50 | AT6: 60 | AU6: 80 | AV6: 100
D7: 3 | E7: Written down value on the first day of previous year | T7: 15 | U7: 30 | V7: 40 | W7: 50 | X7: 60 | Y7: 80 | Z7: 100 | AS7: (iv) | AT7: (v) | AU7: (vi) | AV7: (vii)
D8: 3(b) | E8: Written down value on the first day of previous year, of those block of assets which were eligible for depreciation @ 50%, 60% or 80% as per the old Table
D9: 3a | E9: Amount as adjusted on account of opting for taxation under section 115BAC
D10: 3b | E10: Adjusted Written down value on the first day of previous year (3) + (3a) | G10: =0+DPM30.WDVFirstDayBAC -> 0 | H10: =0+DPM40.WDVFirstDayBAC -> 0 | I10: 0
D11: 4 | E11: Additions for a period of 180 days or more in the previous year | S11: Total Counted Value at 16 DPM | T11: =(F12+F15-F7-F11-F14-F26) -> 0 | U11: =(G12+G15-G7-G11-G14-G26) -> 0 | V11: =(H12+H15-H7-H11-H14-H26) -> 0 | W11: =(AS13+AS16-AS11-AS12-AS15-AS27) -> 0 | X11: =(AT13+AT16-AT11-AT12-AT15-AT27) -> 0 | Y11: =(AU13+AU16-AU11-AU12-AU15-AU27) -> 0 | Z11: =(AV13+AV16-AV11-AV12-AV15-AV27) -> 0
D12: 5 | E12: Consideration or other realization during the previous year out of 3 or 4
D13: 6 | E13: Amount on which depreciation at full rate to be allowed (3 + 4 -5) (Enter 0, if result is negative) | F13: =MAX(0,DPM15.WDVFirstDay+DPM15.AdditionsGrThan180Days-DPM15.RealizationTotalPeriod) -> 0 | G13: =MAX(0,DPM30.WDVFirstDay+DPM30.AdditionsGrThan180Days-DPM30.RealizationTotalPeriod) -> 0 | H13: =MAX(0,DPM40.WDVFirstDay+DPM40.AdditionsGrThan180Days-DPM40.RealizationTotalPeriod) -> 0 | I13: =MAX(0,DPM45.WDVFirstDay3+DPM45.AdditionsGrThan180Days-DPM45.RealizationTotalPeriod) -> 0
D14: 7 | E14: Additions for a period of less than 180 days in the previous year | AS14: =MAX(0,AS11+AS12-AS13) -> 0 | AT14: =MAX(0,AT11+AT12-AT13) -> 0 | AU14: =MAX(0,AU11+AU12-AU13) -> 0 | AV14: =MAX(0,AV11+AV12-AV13) -> 0
D15: 8 | E15: Consideration or other realizations during the year out of 7 | T15: B5 | U15: B10 | V15: B100 | W15: F10 | X15: I25 | Y15: S20
D16: 9 | E16: Amount on which depreciation at half rate to be allowed (7 – 8) (Enter 0, if result is negative) | F16: =MAX(0,F14-F15+MIN(0,F7+F11-F12)) -> 0 | G16: =MAX(0,G14-G15+MIN(0,G7+G11-G12)) -> 0 | H16: =MAX(0,H14-H15+MIN(0,H7+H11-H12)) -> 0 | I16: =MAX(0,I14-I15+MIN(0,I7+I11-I12)) -> 0 | S16: Total Counted Value at 16 DOA | T16: =(G38+G41-G36-G37-G40-G51) -> 0 | U16: 0 | V16: 0 | W16: 0 | X16: 0 | Y16: 0
D17: 10 | E17: Depreciation on 6 at full rate | F17: =ROUND(DPM15.FullRateDeprAmt*DPM15.RATE/100,0) -> 0 | G17: =ROUND(DPM30.FullRateDeprAmt*DPM30.RATE/100,0) -> 0 | H17: =ROUND(DPM40.FullRateDeprAmt*DPM40.RATE/100,0) -> 0 | I17: =ROUND(DPM45.FullRateDeprAmt*DPM45.RATE/100,0) -> 0 | AS17: =MAX(0,AS15-AS16+MIN(0,AS11+AS12-AS13)) -> 0 | AT17: =MAX(0,AT15-AT16+MIN(0,AT11+AT12-AT13)) -> 0 | AU17: =MAX(0,AU15-AU16+MIN(0,AU11+AU12-AU13)) -> 0 | AV17: =MAX(0,AV15-AV16+MIN(0,AV11+AV12-AV13)) -> 0
D18: 11 | E18: Depreciation on 9 at half rate | F18: =ROUND(DPM15.HalfRateDeprAmt*DPM15.RATE/200,0) -> 0 | G18: =ROUND(DPM30.HalfRateDeprAmt*DPM30.RATE/200,0) -> 0 | H18: =ROUND(DPM40.HalfRateDeprAmt*DPM40.RATE/200,0) -> 0 | I18: =ROUND(DPM45.HalfRateDeprAmt*DPM45.RATE/200,0) -> 0 | AS18: =ROUND(DPM50.FullRateDeprAmt*DPM50.RATE/100,0) -> 0 | AT18: =ROUND(DPM60.FullRateDeprAmt*DPM60.RATE/100,0) -> 0 | AU18: =ROUND(DPM80.FullRateDeprAmt*DPM80.RATE/100,0) -> 0 | AV18: =ROUND(DPM100.FullRateDeprAmt*DPM100.RATE/100,0) -> 0
D19: 12 | E19: Additional depreciation, if any, on 4 | AS19: =ROUND(DPM50.HalfRateDeprAmt*DPM50.RATE/200,0) -> 0 | AT19: =ROUND(DPM60.HalfRateDeprAmt*DPM60.RATE/200,0) -> 0 | AU19: =ROUND(DPM80.HalfRateDeprAmt*DPM80.RATE/200,0) -> 0 | AV19: =ROUND(DPM100.HalfRateDeprAmt*DPM100.RATE/200,0) -> 0
D20: 13 | E20: Additional depreciation, if any, on 7
D21: 14 | E21: Additional depreciation relating to immediately preceding year' on asset put to use for less than 180 days
D22: 15 | E22: Total depreciation (10+11+12+13+14) | F22: =DPM15.DepreciationAtHalfRate + DPM15.DepreciationAtFullRate + DPM15.AddlnDeprDuringYearAdditions + DPM15.AddlnDeprOnGT180DayAdditions + DPM15.AddlnDeprlessthan180days -> 0 | G22: =DPM30.DepreciationAtHalfRate + DPM30.DepreciationAtFullRate + DPM30.AddlnDeprDuringYearAdditions + DPM30.AddlnDeprOnGT180DayAdditions + DPM30.AddlnDeprlessthan180days -> 0 | H22: =DPM40.DepreciationAtHalfRate + DPM40.DepreciationAtFullRate + DPM40.AddlnDeprDuringYearAdditions + DPM40.AddlnDeprOnGT180DayAdditions + DPM40.AddlnDeprlessthan180days -> 0 | I22: =DPM45.DepreciationAtHalfRate + DPM45.DepreciationAtFullRate + DPM45.AddlnDeprDuringYearAdditions + DPM45.AddlnDeprOnGT180DayAdditions + DPM45.AddlnDeprlessthan180days -> 0
D23: 16 | E23: Depreciation disallowed under section 38(2) of the I.T. Act (out of column 15)
D24: 17 | E24: Net aggregate depreciation (15-16) | F24: =MAX(0,F22-F23) -> 0 | G24: =MAX(0,G22-G23) -> 0 | H24: =MAX(0,H22-H23) -> 0 | I24: =MAX(0,I22-I23) -> 0
D25: 18 | E25: Proportionate aggregate depreciation allowable in the event of succession, amalgamation, demerger etc. (out of column 17)
D26: 19 | E26: Expenditure incurred in connection with transfer of asset/ assets | T26: 15 | U26: 30 | V26: 40 | W26: 50 | X26: 60 | Y26: 80 | Z26: 100 | AS26: =DPM50.DepreciationAtHalfRate + DPM50.DepreciationAtFullRate + DPM50.AddlnDeprDuringYearAdditions + DPM50.AddlnDeprOnGT180DayAdditions+DPM50.AddlnDeprlessthan180days -> 0 | AT26: =DPM60.DepreciationAtHalfRate + DPM60.DepreciationAtFullRate + DPM60.AddlnDeprDuringYearAdditions + DPM60.AddlnDeprOnGT180DayAdditions+DPM60.AddlnDeprlessthan180days -> 0 | AU26: =DPM80.DepreciationAtHalfRate + DPM80.DepreciationAtFullRate + DPM80.AddlnDeprDuringYearAdditions + DPM80.AddlnDeprOnGT180DayAdditions+DPM80.AddlnDeprlessthan180days -> 0 | AV26: =DPM100.DepreciationAtHalfRate + DPM100.DepreciationAtFullRate + DPM100.AddlnDeprDuringYearAdditions + DPM100.AddlnDeprOnGT180DayAdditions+DPM100.AddlnDeprlessthan180days -> 0
D27: 20 | E27: Capital gains/ loss under section 50 (5 + 8 -3-4 -7 -19) (Enter negative only if block ceases to exist) | S27: Val Enter By User At DPM16 | T27: 123123 | U27: 1233 | V27: 13123
D28: 21 | E28: Written down value on the last day of previous year (6+ 9 -15) (enter 0 if result is negative) | F28: =MAX(DPM15.WDVFirstDay+DPM15.AdditionsGrThan180Days -DPM15.RealizationTotalPeriod + DPM15.AdditionsLessThan180Days - DPM15.RealizationPeriodDuringYear - DPM15.TotalDepreciation,0) -> 0 | G28: =MAX(DPM30.WDVFirstDay+DPM30.AdditionsGrThan180Days -DPM30.RealizationTotalPeriod + DPM30.AdditionsLessThan180Days - DPM30.RealizationPeriodDuringYear - DPM30.TotalDepreciation,0) -> 0 | H28: =MAX(DPM40.WDVFirstDay+DPM40.AdditionsGrThan180Days -DPM40.RealizationTotalPeriod + DPM40.AdditionsLessThan180Days - DPM40.RealizationPeriodDuringYear - DPM40.TotalDepreciation,0) -> 0 | I28: =MAX(DPM45.WDVFirstDay+DPM45.AdditionsGrThan180Days -DPM45.RealizationTotalPeriod + DPM45.AdditionsLessThan180Days - DPM45.RealizationPeriodDuringYear - DPM45.TotalDepreciation,0) -> 0
E29: Block Ceases to Exist. Select Y / N | F29: Y | G29: N | H29: N | I29: N | J29: N | K29: N | L29: N | AS29: =MAX(DPM50.WDVFirstDay+DPM50.AdditionsGrThan180Days -DPM50.RealizationTotalPeriod + DPM50.AdditionsLessThan180Days - DPM50.RealizationPeriodDuringYear - DPM50.TotalDepreciation,0) -> 0 | AT29: =MAX(DPM60.WDVFirstDay+DPM60.AdditionsGrThan180Days -DPM60.RealizationTotalPeriod + DPM60.AdditionsLessThan180Days - DPM60.RealizationPeriodDuringYear - DPM60.TotalDepreciation,0) -> 0 | AU29: =MAX(DPM80.WDVFirstDay+DPM80.AdditionsGrThan180Days -DPM80.RealizationTotalPeriod + DPM80.AdditionsLessThan180Days - DPM80.RealizationPeriodDuringYear - DPM80.TotalDepreciation,0) -> 0 | AV29: =MAX(DPM100.WDVFirstDay+DPM100.AdditionsGrThan180Days -DPM100.RealizationTotalPeriod + DPM100.AdditionsLessThan180Days - DPM100.RealizationPeriodDuringYear - DPM100.TotalDepreciation,0) -> 0
C31: Schedule DOA | E31: Depreciation on other assets(Other than assets on which full capital expenditure is allowable as deduction) | T31: B5 | U31: B10 | V31: B100 | W31: F10 | X31: I25 | Y31: S20
C32: DEPRECIATION ON OTHER ASSETS | D32: 1 | E32: Block of assets | F32: Land | G32: Building(not including land) | J32: Furniture and fittings | K32: Intangible assets | L32: Ships | S32: Val Enter By User at DOA 16 | T32: 30282 | U32: 2323 | V32: 555 | W32: 12312313 | X32: 23232323
D34: 2 | E34: Rate (%) | F34: Nil | G34: 5 | H34: 10 | I34: 40 | J34: 10 | K34: 25 | L34: 20
F35: (i) | G35: (ii) | H35: (iii) | I35: (iv) | J35: (v) | K35: (vi) | L35: (vii)
D36: 3 | E36: Written down value on the first day of previous year
D37: 4 | E37: Additions for a period of 180 days or more in the previous year
D38: 5 | E38: Consideration or other realization during the previous year out of 3 or 4
D39: 6 | E39: Amount on which depreciation at full rate to be allowed (3 + 4 -5) (Enter 0, if result is negative) | G39: =MAX(0,G36+G37-G38) -> 0 | H39: 0 | I39: 0 | J39: 0 | K39: 0 | L39: 0
D40: 7 | E40: Additions for a period of less than 180 days in the previous year
D41: 8 | E41: Consideration or other realizations during the year out of 7
D42: 9 | E42: Amount on which depreciation at half rate to be allowed (7-8) (Enter 0, if result is negative) | G42: =MAX(0,G40-G41+MIN(0,G36+G37-G38)) -> 0 | H42: 0 | I42: 0 | J42: 0 | K42: 0 | L42: 0
D43: 10 | E43: Depreciation on 6 at full rate | G43: =ROUND(DAOB5.FullRateDeprAmt*DAOB5.RATE/100,0) -> 0 | H43: =ROUND(DAOB10.FullRateDeprAmt*DAOB10.RATE/100,0) -> 0 | I43: =ROUND(DAOB100.FullRateDeprAmt*DAOB100.RATE/100,0) -> 0 | J43: =ROUND(DAOF10.FullRateDeprAmt*DAOF10.RATE/100,0) -> 0 | K43: =ROUND(DAOI25.FullRateDeprAmt*DAOI25.RATE/100,0) -> 0 | L43: =ROUND(DAOS20.FullRateDeprAmt*DAOS20.RATE/100,0) -> 0
D44: 11 | E44: Depreciation on 9 at half rate | G44: =ROUND(DAOB5.HalfRateDeprAmt*DAOB5.RATE/200,0) -> 0 | H44: =ROUND(DAOB10.HalfRateDeprAmt*DAOB10.RATE/200,0) -> 0 | I44: =ROUND(DAOB100.HalfRateDeprAmt*DAOB100.RATE/200,0) -> 0 | J44: =ROUND(DAOF10.HalfRateDeprAmt*DAOF10.RATE/200,0) -> 0 | K44: =ROUND(DAOI25.HalfRateDeprAmt*DAOI25.RATE/200,0) -> 0 | L44: =ROUND(DAOS20.HalfRateDeprAmt*DAOS20.RATE/200,0) -> 0
D45: 12 | E45: Additional depreciation, if any, on 4 | G45: 0 | H45: 0 | L45: 0
D46: 13 | E46: Additional depreciation, if any, on 7 | G46: 0 | H46: 0 | L46: 0
D47: 12 | E47: Total depreciation (10+11) | G47: =DAOB5.DepreciationAtHalfRate + DAOB5.DepreciationAtFullRate + DAOB5.AddlnDeprDuringYearAdditions + DAOB5.AddlnDeprOnGT180DayAdditions -> 0 | H47: =DAOB10.DepreciationAtHalfRate + DAOB10.DepreciationAtFullRate + DAOB10.AddlnDeprDuringYearAdditions + DAOB10.AddlnDeprOnGT180DayAdditions -> 0 | I47: =DAOB100.DepreciationAtHalfRate + DAOB100.DepreciationAtFullRate + DAOB100.AddlnDeprDuringYearAdditions + DAOB100.AddlnDeprOnGT180DayAdditions -> 0 | J47: =DAOF10.DepreciationAtHalfRate + DAOF10.DepreciationAtFullRate + DAOF10.AddlnDeprDuringYearAdditions + DAOF10.AddlnDeprOnGT180DayAdditions -> 0 | K47: =DAOI25.DepreciationAtHalfRate + DAOI25.DepreciationAtFullRate + DAOI25.AddlnDeprDuringYearAdditions + DAOI25.AddlnDeprOnGT180DayAdditions -> 0 | L47: =DAOS20.DepreciationAtHalfRate + DAOS20.DepreciationAtFullRate + DAOS20.AddlnDeprDuringYearAdditions + DAOS20.AddlnDeprOnGT180DayAdditions -> 0
D48: 13 | E48: Depreciation disallowed under section 38(2) of the I.T. Act (out of column 12)
D49: 14 | E49: Net aggregate depreciation (12-13) | G49: =MAX(0,DAOB5.TotalDepreciation-DAOB5.DepUnderSec38) -> 0 | H49: =MAX(0,DAOB10.TotalDepreciation-DAOB10.DepUnderSec38) -> 0 | I49: =MAX(0,DAOB100.TotalDepreciation-DAOB100.DepUnderSec38) -> 0 | J49: =MAX(0,DAOF10.TotalDepreciation-DAOF10.DepUnderSec38) -> 0 | K49: =MAX(0,DAOI25.TotalDepreciation-DAOI25.DepUnderSec38) -> 0 | L49: =MAX(0,DAOS20.TotalDepreciation-DAOS20.DepUnderSec38) -> 0
D50: 15 | E50: Proportionate aggregate depreciation allowable in the event of succession, amalgamation, demerger etc. (out of column 14)
D51: 16 | E51: Expenditure incurred in connection with transfer of asset/ assets
D52: 17 | E52: Capital gains/ loss under section 50 (5 + 8 -3-4 -7 -16) (Enter negative only if block ceases to exist)
D53: 18 | E53: Written down value on the last day of previous year (6+ 9 -12) (enter 0 if result is negative) | F53: =MAX(0,F36) -> 0 | G53: =MAX(DAOB5.WDVFirstDay+DAOB5.AdditionsGrThan180Days -DAOB5.RealizationTotalPeriod + DAOB5.AdditionsLessThan180Days - DAOB5.RealizationPeriodDuringYear - DAOB5.TotalDepreciation,0) -> 0 | H53: =MAX(DAOB10.WDVFirstDay+DAOB10.AdditionsGrThan180Days -DAOB10.RealizationTotalPeriod + DAOB10.AdditionsLessThan180Days - DAOB10.RealizationPeriodDuringYear - DAOB10.TotalDepreciation,0) -> 0 | I53: =MAX(DAOB100.WDVFirstDay+DAOB100.AdditionsGrThan180Days -DAOB100.RealizationTotalPeriod + DAOB100.AdditionsLessThan180Days - DAOB100.RealizationPeriodDuringYear - DAOB100.TotalDepreciation,0) -> 0 | J53: =MAX(DAOF10.WDVFirstDay+DAOF10.AdditionsGrThan180Days -DAOF10.RealizationTotalPeriod + DAOF10.AdditionsLessThan180Days - DAOF10.RealizationPeriodDuringYear - DAOF10.TotalDepreciation,0) -> 0 | K53: =MAX(DAOI25.WDVFirstDay+DAOI25.AdditionsGrThan180Days -DAOI25.RealizationTotalPeriod + DAOI25.AdditionsLessThan180Days - DAOI25.RealizationPeriodDuringYear - DAOI25.TotalDepreciation,0) -> 0 | L53: =MAX(DAOS20.WDVFirstDay+DAOS20.AdditionsGrThan180Days -DAOS20.RealizationTotalPeriod + DAOS20.AdditionsLessThan180Days - DAOS20.RealizationPeriodDuringYear - DAOS20.TotalDepreciation,0) -> 0

Sheet DEP_DCG (hidden)
C3: Sch DEP | E3: Summary of depreciation on assets (Other than assets on which full capital expenditure is allowable as deduction under any other section)
C4: SUMMARY OF DEPRECIATION ON ASSETS | D4: 1 | E4: Plant and machinery
E5: a | F5: Block entitled for depreciation @ 15 per cent ( Schedule DPM - 17i or 18i as applicable) | G5: 1a | H5: =IF(DPM15.ProAgrdep>0,DPM15.ProAgrdep,DPM15.NetAgrdep) -> 0
E6: b | F6: Block entitled for depreciation @ 30 per cent ( Schedule DPM - 17ii or 18ii as applicable) | G6: 1b | H6: =IF(DPM30.ProAgrdep>0,DPM30.ProAgrdep,DPM30.NetAgrdep) -> 0
E7: c | F7: Block entitled for depreciation @ 40 per cent ( Schedule DPM - 17iii or 18iii as applicable) | G7: 1c | H7: =IF(DPM40.ProAgrdep>0,DPM40.ProAgrdep,DPM40.NetAgrdep) -> 0
E8: d | F8: Block entitled for depreciation @ 50 per cent ( Schedule DPM - 15 iv) | G8: 1d | H8: =DPM50.TotalDepreciation -> 0
E9: e | F9: Block entitled for depreciation @ 60 per cent ( Schedule DPM - 15 v) | G9: 1e | H9: =DPM60.TotalDepreciation -> 0
E10: f | F10: Block entitled for depreciation @ 80 per cent ( Schedule DPM – 15 vi) | G10: 1f | H10: =DPM80.TotalDepreciation -> 0
E11: g | F11: Block entitled for depreciation @ 100 per cent ( Schedule DPM - 15 vii) | G11: 1g | H11: =DPM100.TotalDepreciation -> 0
E12: d | F12: Block entitled for depreciation @ 45 per cent ( Schedule DPM - 17iv or 18iv as applicable) | G12: 1d | H12: =IF(DPM45.ProAgrdep>0,DPM45.ProAgrdep,DPM45.NetAgrdep) -> 0
E13: e | F13: Total depreciation on plant and machinery ( 1a + 1b + 1c +1d) | I13: 1e | J13: =SUM(DEPP.DeprBlockTot15Percent,DEPP.DeprBlockTot30Percent,DEPP.DeprBlockTot40Percent,DEPP.DeprBlockTot45Percent) -> 0
D14: 2 | E14: Building (not including land)
E15: a | F15: Block entitled for depreciation @ 5 per cent (Schedule DOA- 14ii or 15ii as applicable) | G15: 2a | H15: =IF(DAOB5.ProAgrdep>0,DAOB5.ProAgrdep,DAOB5.NetAgrdep) -> 0
E16: b | F16: Block entitled for depreciation @ 10 per cent (Schedule DOA- 14iii or 15iii as applicable) | G16: 2b | H16: =IF(DAOB10.ProAgrdep>0,DAOB10.ProAgrdep,DAOB10.NetAgrdep) -> 0
E17: c | F17: Block entitled for depreciation @ 40 per cent (Schedule DOA- 14iv or 15iv as applicable) | G17: 2c | H17: =IF(DAOB100.ProAgrdep>0,DAOB100.ProAgrdep,DAOB100.NetAgrdep) -> 0
E18: d | F18: Total depreciation on building (2a+2b+2c) | I18: 2d | J18: =SUM(H15:H17) -> 0
D19: 3 | E19: Furniture and fittings (Schedule DOA- 14v or 15v as applicable) | I19: 3 | J19: =IF(DAOF10.ProAgrdep>0,DAOF10.ProAgrdep,DAOF10.NetAgrdep) -> 0
D20: 4 | E20: Intangible assets (Schedule DOA- 14vi or 15vi as applicable) | I20: 4 | J20: =IF(DAOI25.ProAgrdep>0,DAOI25.ProAgrdep,DAOI25.NetAgrdep) -> 0
D21: 5 | E21: Ships (Schedule DOA- 14vii or 15vii as applicable) | I21: 5 | J21: =IF(DAOS20.ProAgrdep>0,DAOS20.ProAgrdep,DAOS20.NetAgrdep) -> 0
D22: 6 | E22: Total depreciation ( 1e+2d+3+4+5) | I22: 6 | J22: =MAX(0,SUM(J13,J18,J19,J20,J21)) -> 0
C24: Sch DCG | E24: Deemed Capital Gains on sale of depreciable assets
D25: 1 | E25: Plant and machinery
E26: a | F26: Block entitled for depreciation @ 15 per cent (Schedule DPM - 20i) | G26: 1a | H26: =DPM15.CapGainUs50 -> 0
E27: b | F27: Block entitled for depreciation @ 30 per cent (Schedule DPM – 20ii) | G27: 1b | H27: =DPM30.CapGainUs50 -> 0
E28: c | F28: Block entitled for depreciation @ 40 per cent (Schedule DPM - 20iii) | G28: 1c | H28: =DPM40.CapGainUs50 -> 0
E29: d | F29: Block entitled for depreciation @ 50 per cent (Schedule DPM - 17iv) | G29: 1d | H29: =DPM50.CapGainUs50 -> 0
E30: e | F30: Block entitled for depreciation @ 60 per cent (Schedule DPM – 17v) | G30: 1e | H30: =DPM60.CapGainUs50 -> 0
E31: f | F31: Block entitled for depreciation @ 80 per cent (Schedule DPM – 17vi) | G31: 1f | H31: =DPM80.CapGainUs50 -> 0
E32: g | F32: Block entitled for depreciation @ 100 per cent (Schedule DPM – 17vii) | G32: 1g | H32: =DPM100.CapGainUs50 -> 0
E33: d | F33: Block entitled for depreciation @ 45 per cent (Schedule DPM - 20iv) | G33: 1d | H33: =DPM45.CapGainUs50 -> 0
E34: e | F34: Total ( 1a +1b + 1c +1d) | I34: 1e | J34: =SUM(DCGP.DeprBlockTot15Percent,DCGP.DeprBlockTot30Percent,DCGP.DeprBlockTot40Percent,DCGP.DeprBlockTot45Percent) -> 0
D35: 2 | E35: Building (not including land)
E36: a | F36: Block entitled for depreciation @ 5 per cent (Schedule DOA- 17ii) | G36: 2a | H36: =DAOB5.CapGainUs50 -> 0
E37: b | F37: Block entitled for depreciation @ 10 per cent (Schedule DOA- 17iii) | G37: 2b | H37: =DAOB10.CapGainUs50 -> 0
E38: c | F38: Block entitled for depreciation @ 40 per cent (Schedule DOA- 17iv) | G38: 2c | H38: =DAOB100.CapGainUs50 -> 0
E39: d | F39: Total ( 2a + 2b + 2c) | I39: 2d | J39: =SUM(H36:H38) -> 0
D40: 3 | E40: Furniture and fittings ( Schedule DOA- 17v) | I40: 3 | J40: =DAOF10.CapGainUs50 -> 0
D41: 4 | E41: Intangible assets (Schedule DOA- 17vi) | I41: 4 | J41: =DAOI25.CapGainUs50 -> 0
D42: 5 | E42: Ships (Schedule DOA- 17vii) | I42: 5 | J42: =DAOS20.CapGainUs50 -> 0
D43: 6 | E43: Total ( 1e+2d+3+4+5) | I43: 6 | J43: =SUM(J34,J39:J42) -> 0

Sheet ESR (hidden)
C3: Schedule ESR | E3: Expenditure on Scientific Research etc. ( Deduction under section 35 or 35CCC or 35CCD)
C4: Sl No | D4: Expenditure of the nature referred to in section (1) | E4: Amount, if any, debited to profit and loss account (2) | F4: Amount of deduction allowable (3) | G4: Amount of deduction in excess of the amount debited to profit and loss account (4) = (3) - (2)
C5: i | D5: 35(1)(i) | G5: =IF((F5-E5) <0,0,(F5-E5)) -> 0
C6: ii | D6: 35(1)(ii) | G6: =IF((F6-E6) <0,0,(F6-E6)) -> 0
C7: iii | D7: 35(1)(iia) | G7: 0
C8: iv | D8: 35(1)(iii) | G8: 0
C9: v | D9: 35(1)(iv) | G9: 0
C10: vi | D10: 35(2AA) | G10: 0
C11: vii | D11: 35(2AB) | G11: 0
C12: viii | D12: 35CCC | G12: 0
C13: ix | D13: 35CCD | G13: 0
C14: x | D14: Total | E14: =SUM(E5:E13) -> 0 | F14: =SUM(F5:F13) -> 0 | G14: =SUM(G5:G13) -> 0
C16: Note: | D16: In case any deduction is claimed under sections 35(1)(ii) or 35(1)(iia) or 35(1)(iii) or 35(2AA), please provide the details as per Schedule RA.

Sheet CG
AC1: Block count STCG | AE1: 20
AC2: Number of blocks | AE2: 1
C3: Schedule CG | G3: Capital Gains | AC3: Block count LTCG | AE3: 31
D4: A | E4: Short-term Capital Gains (STCG) (Sub-items 4 and 5 are not applicable for residents) | AC4: Number of blocks | AE4: 1
E5: 1 | F5: From sale of land or building or both (fill up details separately for each property) (in case of co-ownership, enter your share of capital gain) | Y5: Check Sheet Filled | AB5: STCG Breakup
F6: Date of purchase/ acquisition | AC6: Number of blocks | AE6: 1
F7: Date of sale/transfer
F8: a | G8: i | H8: Full value of consideration received/receivable | P8: ai | S8: =Q8 -> 0 | Y8: =IF(STCG.Aai_FullConsideration1<>0,1,0) -> 0 | Z8: Sheet count | AB8: A1e | AC8: =STCG.A1e_CapgainonAssets -> 0
G9: ii | H9: Value of property as per stamp valuation authority | P9: aii | Y9: =IF(STCG.Aaii_PropertyValuation1<>0,1,0) -> 0 | Z9: =COUNTIF(CG_RANGE,"=1") -> 3 | AB9: A2c | AC9: =STCG.A20ic_CapgainonAssets -> 0 | AP9: =IF(MID(Sheet1.115H,1,1)="N","NO","YES") -> NO
G10: iii | H10: Full value of consideration adopted as per section 50C for the purpose of Capital Gains [in case (aii) does not exceed 1.10 times (ai), take this figure as (ai), or else take (aii)] | P10: aiii | Q10: =IF(Q9>(1.1*Q8),Q9,Q8) -> 0 | Y10: =IF(STCG.Aaiii_FullConsiderationFiftyC1<>0,1,0) -> 0 | AA10: 0 | AB10: A3ie | AC10: =STCG.A2ie_CapgainonAssets -> 0
F11: b | G11: Deductions under section 48 | AB11: A3iie | AC11: =STCG.A2iie_CapgainonAssets -> 0
C12: CAPITAL GAINS | G12: i | H12: Cost of acquisition without indexation | P12: bi | Y12: =IF(STCG.Abi_AquisitCost1<>0,1,0) -> 0 | AB12: A4a | AC12: =STCG.A3a_NRItaxSTTPaid -> 0
G13: ii | H13: Cost of Improvement without indexation | P13: bii | Y13: =IF(STCG.Abii_ImproveCost1<>0,1,0) -> 0 | AB13: A4b | AC13: =STCG.A3b_NRItaxSTTNotPaid -> 0
G14: iii | H14: Expenditure wholly and exclusively in connection with transfer | P14: biii | Y14: =IF(STCG.Abiii_ExpOnTrans1<>0,1,0) -> 0 | AB14: A5e | AC14: =STCG.A4e_CapgainonAssets -> 0
G15: iv | H15: Total (bi + bii + biii) | P15: biv | Q15: =SUM(Q12:Q14) -> 0 | AB15: A6g | AC15: =STCG.A5e_CapgainonAssets -> 0
F16: c | G16: Balance (aiii – biv) | P16: c | Q16: =(Q10-Q15) -> 0 | AB16: A7 | AC16: =STCG.A7_AmtDeemed -> 0
F17: d | G17: Deduction under section 54B(Specify details in item Dbelow) | P17: d
F18: e | G18: Short-term Capital Gains on Immovable property (1c - 1d) | R18: A1e | S18: =IF(Q16<0,Q16,IF(Q17>Q16,0,Q16-Q17)) -> 0
F19: f | G19: In case of transfer of immovable property please furnish following details (See Note)
G20: Sl. No. | H20: Name of Buyer | J20: PAN of Buyer | L20: Aadhaar Number of Buyer(s) | M20: Percentage share | N20: Amount | O20: Address of Property | P20: State Code | Q20: Pin Code | R20: Country | S20: ZipCode (Leave Blank if No Zipcode)
G21: 1 | P21: (Select) | R21: (Select)
G22: =G21+1 -> 2 | P22: (Select) | R22: (Select)
G23: =G22+1 -> 3 | P23: (Select) | R23: (Select)
Z25: A1e | AA25: 0
F26: Note 1 : Furnishing of PAN is mandatory, if the tax is deduced under section 194-IA. Note 2 : In case of more than one buyer, please indicate the respective percentage share and amount.
E27: 2 | F27: From Slump sale
F28: ai | G28: Fair market value as per Rule 11UAE(2) | P28: 2ai
F29: aii | G29: Fair market value as per Rule 11UAE(3) | P29: 2aii
F30: aiii | G30: Full value of consideration (higher of ai or aii) | P30: 2aiii | Q30: =MAX(Q28,Q29) -> 0 | Y30: =IF(STCG.A20ia_FullConsideration<>0,1,0) -> 0
F31: b | G31: Net worth of the under taking or division | P31: 2b | Y31: =IF(STCG.A20ib_NetWorthOfDivision<>0,1,0) -> 0 | AJ31: neg15
F32: c | G32: Short term capital gains from slump sale (2aiii-2b) | R32: A2c | S32: =(STCG.A20ia_FullConsideration-STCG.A20ib_NetWorthOfDivision) -> 0
E33: 2 | F33: From sale of equity share or unit of equity oriented Mutual Fund (MF) or unit of a business trust on which STT is paid under section 111A(For others) Sec 115AD(1)(b)(ii) proviso for FII
F34: ia | G34: Full value of consideration | P34: ia | Y34: =IF(STCG.A2ia_FullConsideration<>0,1,0) -> 0 | AC34: Incomes | AG34: Total Loss in STCG
F35: ib | G35: Deductions under section 48 | AB35: STCG 15% | AC35: 111A | AD35: =SUM(STCG.A2ie_CapgainonAssets,STCG.A3a_NRItaxSTTPaid,-STCG_DTAA_A3ie,-STCG_DTAA_A4a) -> 0
G36: i | H36: Cost of acquisition without indexation | P36: ibi | Y36: =IF(STCG.A2ibi_AquisitCost<>0,1,0) -> 0 | AH36: =AD35+AD37 -> 0
G37: ii | H37: Cost of Improvement without indexation | P37: ibii | Y37: =IF(STCG.A2ibii_ImproveCost<>0,1,0) -> 0 | AC37: 115AD (1)(b)(ii) | AD37: =SUM(STCG.A2iie_CapgainonAssets,-STCG_DTAA_A3iie) -> 0
G38: iii | H38: Expenditure wholly and exclusively in connection with transfer | P38: ibiii | Y38: =IF(STCG.A2ibiii_ExpOnTrans<>0,1,0) -> 0 | AC38: PTI | AD38: =SUM(STCG.A8_PassThroughIncome15,-STCG_DTAA_A8a) -> 0
G39: iv | H39: Total ( ibi + ibii + ibiii) | P39: ibiv | Q39: =SUM(Q36:Q38) -> 0
F40: ic | G40: Balance (ia – ibiv) | P40: ic | Q40: =(STCG.A2ia_FullConsideration-STCG.A2ibiv_TotalDedn) -> 0
F41: id | G41: Loss to be disallowed, under section 94(7) or 94(8) for example if asset bought/acquired within 3 months prior to record date and dividend/income/bonus units are received, then loss arising out of sale of such asset to be ignored (Enter positive values only) | P41: id | Y41: =IF(STCG.A2id_LossSec94of7Or94of8<>0,1,0) -> 0 | AB41: LTCG10% | AC41: 112 proviso | AD41: =SUM(LTCG.B3e_CapgainonAssets,-LTCG_DTAA_B4ie) -> 3502400
F42: ie | G42: Short-term capital gain on equity share or equity oriented MF or unit of a business trust (STT paid) u/s 111A [for others] (3ic +3id) | R42: A2ie | S42: =SUM(Q40,Q41) -> 0 | AC42: 112(1)c(iii) | AD42: =SUM(LTCG.Bi5e_CapgainonAssets,-LTCG_DTAA_B7ie) -> 0
F43: (ii) From sale of equity share or unit of equity oriented Mutual Fund (MF) or unit of a business trust on which STT is paid u/s 115AD(1)(b)(ii) [for FII] | AC43: 115AC(1) | AD43: =SUM(LTCG.Bii5e_CapgainonAssets,-LTCG_DTAA_B7iie) -> 0 | AE43: PTI_112 | AF43: =SUM(LTCG.B12_PassThroughIncome10_112A,-LTCG_DTAA_B12a1) -> 0
F44: iia | G44: Full value of consideration | P44: iia | Y44: =IF(STCG.A2iia_FullConsideration<>0,1,0) -> 0 | AC44: 115ACA(1) | AD44: =SUM(LTCG.Bii3e_CapgainonAssets,-LTCG_DTAA_B4iie) -> 0 | AE44: PTI | AF44: =SUM(LTCG.B12_PassThroughIncome10,-LTCG_DTAA_B12a2) -> 0
F45: iib | G45: Deductions under section 48 | AC45: 115AD(iii) | AD45: =SUM(LTCG.Biii5e_CapgainonAssets,-LTCG_DTAA_B7iiie) -> 0 | AE45: 115AD(iii)_Proviso | AF45: =SUM(LTCG.5.LTCG_AssetsB8Above,-LTCG_DTAA_B8c) -> 0
G46: i | H46: Cost of acquisition without indexation | P46: iibi | Y46: =IF(STCG.A2iibi_AquisitCost<>0,1,0) -> 0 | AC46: 115E(b) | AD46: =SUM(LTCG.B6c_BalonSpeciAsset,-LTCG_DTAA_B9c) -> 0 | AE46: 112A | AF46: =SUM(LTCG.5.LTCG_OnSaleCapitalAssets,-LTCG_DTAA_B5c) -> 0
G47: ii | H47: Cost of Improvement without indexation | P47: iibii | Y47: =IF(STCG.A2iibii_ImproveCost<>0,1,0) -> 0
G48: iii | H48: Expenditure wholly and exclusively in connection with transfer | P48: iibiii | Y48: =IF(STCG.A2iibiii_ExpOnTrans<>0,1,0) -> 0
G49: iv | H49: Total ( i + ii + iii) | P49: iibiv | Q49: =SUM(Q46:Q48) -> 0
F50: iic | G50: Balance (3a – 3biv) | P50: iic | Q50: =(STCG.A2iia_FullConsideration-STCG.A2iibiv_TotalDedn) -> 0 | AB50: LTCG 20% | AC50: 112 | AD50: =SUM(LTCG.B1e_CapgainonAssets,LTCG.B02e_CapgainonAssets,LTCG.B2e_CapgainonAssets,LTCG.B4e_LTCGOnUnlistedSecurity,LTCG.B7e_CapgainonAssets,LTCG.B8_ExemptionGrandTotal,LTCG.B9_AmtDeemed,-LTCG_DTAA_B1e,-LTCG_DTAA_B2e,-LTCG_DTAA_B3e,-LTCG_DTAA_B6c,-LTCG_DTAA_B10e,-LTCG_DTAA_B11) -> 0
F51: iid | G51: Loss to be disallowed u/s 94(7) or 94(8)- for example if asset bought/acquired within 3 months prior to record date and dividend/income/bonus units are received, then loss arising out of sale of such asset to be ignored (Enter positive value only) | P51: iid | Y51: =IF(STCG.A2iid_LossSec94of7Or94of8<>0,1,0) -> 0 | AC51: 115Ea | AD51: =SUM(LTCG.B6f_BalOtherthanSpecAsset,-LTCG_DTAA_B9f) -> 0
F52: iie | G52: Short-term capital gain on equity share or equity oriented MF or unit of a business trust (STT paid) u/s 115AD(1)(b)(ii) [for FII] (2iic +2iid) | R52: A2iie | S52: =(STCG.A2iic_BalanceCG+STCG.A2iid_LossSec94of7Or94of8) -> 0 | AC52: PTI | AD52: =SUM(LTCG.B12_PassThroughIncome20,-LTCG_DTAA_B12b) -> 0
E53: 3 | F53: For NON-RESIDENT, not being an FII- from sale of shares or debentures of an Indian company (to be computed with foreign exchange adjustment under first proviso to section 48)
F54: a | G54: STCG on transactions on which securities transaction tax (STT) is paid | R54: A3a | AB54: STCG 30% | AC54: 115AD | AD54: =SUM(STCG.A4e_CapgainonAssets,-STCG_DTAA_A5e) -> 0
F55: b | G55: STCG on transactions on which securities transaction tax (STT) is not paid | R55: A3b | AC55: PTI | AD55: =SUM(STCG.A8_PassThroughIncome30,-STCG_DTAA_A8b) -> 0
E56: 4 | F56: For NON-RESIDENTS- from sale of securities (other than those at A3 above) by an FII as per section 115AD
F57: a | G57: i | H57: In case securities sold include shares of a company other than quoted shares, enter the following details
H58: a | I58: Full value of consideration received/receivable in respect of unquoted shares | P58: aia | Y58: =IF(STCG.A4aia_FullConsideration<>0,1,0) -> 0 | AB58: Applicable rate | AC58: AR | AD58: =SUM(STCG.A1e_CapgainonAssets,STCG.A20ic_CapgainonAssets,STCG.A3b_NRItaxSTTNotPaid,STCG.A5e_CapgainonAssets,STCG.A7_AmtDeemed,-STCG_DTAA_A1e,-STCG_DTAA_A2c,-STCG_DTAA_A4b,-Stcg_DTAA_A6f,-STCG_DTAA_A7) -> 0
H59: b | I59: Fair market value of unquoted shares determined in the prescribed manner | P59: aib | Y59: =IF(STCG.A4aib_FullMarketvalue<>0,1,0) -> 0 | AC59: PTI | AD59: =SUM(STCG.A8_PassThroughIncome_ApplicableRate,STCG_DTAA_A8c) -> 0
H60: c | I60: Full value of consideration in respect of unquoted shares adopted as per section 50CA for the purpose of Capital Gains (higher of a or b) | P60: aic | Q60: =MAX(STCG.A4aia_FullConsideration,STCG.A4aib_FullMarketvalue) -> 0 | Y60: =IF(STCG.A4aic_FullConsideration50CA<>0,1,0) -> 0
G61: ii | H61: Full value of consideration in respect of securities other than unquoted shares | P61: aii | Y61: =IF(STCG.A4aii_FullConsiderationS<>0,1,0) -> 0
G62: iii | H62: Total (ic + ii) | P62: aiii | Q62: =SUM(STCG.A4aic_FullConsideration50CA,STCG.A4aii_FullConsiderationS) -> 0
F63: b | G63: Deductions under section 48
G64: i | H64: Cost of acquisition without indexation | P64: bi
G65: ii | H65: Cost of improvement without indexation | P65: bii
G66: iii | H66: Expenditure wholly and exclusively in connection with transfer | P66: biii
G67: iv | H67: Total (bi + bii + biii) | P67: biv | Q67: =SUM(Q64:Q66) -> 0
F68: c | G68: Balance (aiii – biv) | P68: c | Q68: =(STCG.A4a_FullConsideration-Q67) -> 0
F69: d | G69: Loss to be disallowed u/s 94(7) or 94(8)- for example if security bought/acquired within 3 months prior to record date and dividend/income/bonus units are received, then loss arising out of sale of such security to be ignored (Enter positive value only) | P69: d
F70: e | G70: Short-term capital gain on sale of securities (other than those at A2 above) by an FII (c +d) | R70: A4e | S70: =(Q68+Q69) -> 0
E71: 5 | F71: From sale of assets other than at A1 or A2 or A3 or A4 above
F72: a | G72: i | H72: In case securities sold include shares of a company other than quoted shares, enter the following details
H73: a | I73: Full value of consideration received/receivable in respect of unquoted shares | P73: aia | Y73: =IF(STCG.A5aia_FullConsideration<>0,1,0) -> 0
H74: b | I74: Fair market value of unquoted shares determined in the prescribed manner | P74: aib | Y74: =IF(STCG.A5aib_Fullmarketvalue<>0,1,0) -> 0
H75: c | I75: Full value of consideration in respect of unquoted shares adopted as per section 50CA for the purpose of Capital Gains (higher of a or b) | P75: aic | Q75: =MAX(STCG.A5aia_FullConsideration,STCG.A5aib_Fullmarketvalue) -> 0 | Y75: =IF(STCG.A5aic_FullConsideration50CA<>0,1,0) -> 0
G76: ii | H76: Full value of consideration in respect of securities other than unquoted shares | P76: aii | Y76: =IF(STCG.A5aii_FullConsideration<>0,1,0) -> 0
G77: iii | H77: Total (ic + ii) | P77: aiii | Q77: =SUM(STCG.A5aic_FullConsideration50CA,STCG.A5aii_FullConsideration) -> 0
F78: a | G78: Full value of consideration | P78: 6a | Y78: =IF(STCG.A5a_FullConsideration<>0,1,0) -> 0
F79: b | G79: Deductions under section 48
G80: i | H80: Cost of acquisition without indexation | P80: bi | Y80: =IF(STCG.A5bi_AquisitCost<>0,1,0) -> 0
G81: ii | H81: Cost of Improvement without indexation | P81: bii | Y81: =IF(STCG.A5bii_ImproveCost<>0,1,0) -> 0
G82: iii | H82: Expenditure wholly and exclusively in connection with transfer | P82: biii | Y82: =IF(STCG.A5biii_ExpOnTrans<>0,1,0) -> 0
G83: iv | H83: Total (bi + bii + biii) | P83: biv | Q83: =SUM(Q80:Q82) -> 0
F84: c | G84: Balance (aiii – biv) | P84: c | Q84: =(STCG.A5a_FullConsideration-STCG.A5biv_TotalDedn) -> 0
F85: d | G85: In case of asset (security/unit)loss to be disallowed u/s 94(7) or 94(8)- for example if asset bought/acquired within 3 months prior to record date and dividend/income/bonus units are received, then loss arising out of sale of such asset to be under (Enter positive value only) | P85: d | Y85: =IF(STCG.A5d_LossSec94of7Or94of8<>0,1,0) -> 0 | AC85: Section Wise
F86: e | G86: Deemed short term capital gains on depreciable assets (6 of schedule- DCG) | P86: e | Q86: =DCG.TotalDepreciation -> 0
F87: fi | G87: Deduction under section 54D (Specify details in item Dbelow) | P87: fi | Y87: =IF(STCG.A5ei_ExemptionAmount<>0,1,0) -> 0 | AB87: 54
F88: fii | G88: Deduction under section 54G (Specify details in item Dbelow) | P88: fii | Y88: =IF(STCG.A5eii_ExemptionAmount<>0,1,0) -> 0 | AB88: 54B
F89: fiii | G89: Deduction under section 54GA (Specify details in item Dbelow) | P89: fiii | Y89: =IF(STCG.A5eiii_ExemptionAmount<>0,1,0) -> 0 | AB89: 54D
F90: f | G90: Deduction under section 54D/G/GA | P90: f | Q90: =SUM(Q87:Q89) -> 0 | AB90: 54EC
F91: e | G91: STCG on assets other than at A1 or A2 or A3 or A4 above (c + d ) | R91: A5e | S91: =IF(STCG.A5c_BalanceCG+STCG.A5d_LossSec94of7Or94of8+STCG.A8_DeemedStcgOnAssets<0,STCG.A5c_BalanceCG+STCG.A5d_LossSec94of7Or94of8+STCG.A8_DeemedStcgOnAssets,MAX(0,STCG.A5c_BalanceCG+STCG.A5d_LossSec94of7Or94of8+STCG.A8_DeemedStcgOnAssets-STCG.A5e_ExemptionGrandTotal)) -> 0 | AB91: 54F
E92: 6 | F92: Amount deemed to be short-term capital gains
E93: a | F93: Whether any amount of unutilized capital gain on asset transferred during the previous years shown below was deposited in the Capital Gains Accounts Scheme within due date for that year? If yes, then provide the details below | P93: No
G94: Sl.No. | H94: Previous year in which asset transferred | I94: Section under which deduction claimed in that year | J94: New asset acquired/constructed | L94: Amount not used for new asset or remained unutilized in Capital gains account (X)
J95: Year in which asset acquired/constructed | K95: Amount utilised out of Capital Gains account
F96: i | G96: 1
E98: b | F98: Amount deemed to be short term capital gains, other than at ‘a’ | P98: A6
F99: Total amount deemed to be short term capital gains (aXi + aXii + b) | R99: A6 | S99: =SUM(STCG.A7_AmtNotUsed_1,STCG.A6_AmountDeemedOth) -> 0 | Y99: =IF(STCG.A7_AmtDeemed<>0,1,0) -> 0
F100: Deemed short term capital gains on depreciable assets (6 of schedule- DCG) | R100: A8 | S100: 0 | Y100: =IF(STCG.A7_AmtDeemed<>0,1,0) -> 0
E101: 7 | F101: Pass Through Income/ Loss in the nature of Short Term Capital Gain, (Fill up schedule PTI) (A7a+ A7b + A7c) | R101: A6 | S101: =SUM(STCG.A8_PassThroughIncome15,STCG.A8_PassThroughIncome15Oth1A,STCG.A8_PassThroughIncome30,STCG.A8_PassThroughIncome_ApplicableRate) -> 0 | Y101: =IF(STCG.A7_AmtDeemed<>0,1,0) -> 0
F102: a | G102: Pass Through Income/ Loss in the nature of Short Term Capital Gain, chargeable @ 15% | P102: 7a | Q102: 0
F103: a2 | G103: Pass Through Income/ Loss in the nature of Short Term Capital Gain, chargeable @ 15% other than Section 111A | P103: 8a2
F104: b | G104: Pass Through Income / Loss in the nature of Short Term Capital Gain, chargeable @ 30% | P104: 7b | Q104: 0
F105: c | G105: Pass Through Income / Loss in the nature of Short Term Capital Gain, chargeable at applicable rates | P105: 7c | Q105: 0
E106: 8 | F106: Amount of STCG included in A1-A7 but not chargeable to tax or chargeable at special rates in India as per DTAA
G107: Sl. No. (1) | H107: Amount of income (2) | I107: Item No. A1 to A7 above in which included (3) | J107: Country name, code (4) | K107: Article of DTAA (5) | L107: Rate as per Treaty (enter NIL, if not chargeable) (6) | M107: Whether Tax Residency Certificate obtained? (7) | N107: Section of I.T. Act (8) | O107: Rate as per I.T. Act (9) | P107: Applicable rate [lower of (6) or (9)] (10) | Z107: Section Code | AA107: Section Amount | AB107: STCG section Amt | AD107: Total Amount of each section
G108: =1 -> 1 | P108: 0 | V108: =IFERROR(VLOOKUP(I108,STCG_Dropdown_Lookup,2,0),0) -> 0 | Z108: =V108 -> 0 | AA108: =H108 -> 0 | AB108: =SUMIF(STCG_SectionCodes,Z108,STCG_SectionValues) -> 0 | AD108: A1e | AE108: =IF(MID(sheet1.ResidentialStatus1,1,3)="NRI",SUMIFS(Section_AmountStcgA8,STCG.A8_CertiStatus,"=Yes",Section_CodeStcgA8,AD108),SUMIF(Section_CodeStcgA8,AD108,Section_AmountStcgA8)) -> 0 | AF108: A2c | AG108: =IF(MID(sheet1.ResidentialStatus1,1,3)="NRI",SUMIFS(Section_AmountStcgA8,STCG.A8_CertiStatus,"=Yes",Section_CodeStcgA8,AF108),SUMIF(Section_CodeStcgA8,AF108,Section_AmountStcgA8)) -> 0 | AH108: A3ie | AI108: =IF(MID(sheet1.ResidentialStatus1,1,3)="NRI",SUMIFS(Section_AmountStcgA8,STCG.A8_CertiStatus,"=Yes",Section_CodeStcgA8,AH108),SUMIF(Section_CodeStcgA8,AH108,Section_AmountStcgA8)) -> 0 | AJ108: A3iie | AK108: =IF(MID(sheet1.ResidentialStatus1,1,3)="NRI",SUMIFS(Section_AmountStcgA8,STCG.A8_CertiStatus,"=Yes",Section_CodeStcgA8,AJ108),SUMIF(Section_CodeStcgA8,AJ108,Section_AmountStcgA8)) -> 0 | AL108: A8a | AM108: =IF(MID(sheet1.ResidentialStatus1,1,3)="NRI",SUMIFS(Section_AmountStcgA8,STCG.A8_CertiStatus,"=Yes",Section_CodeStcgA8,AL108),SUMIF(Section_CodeStcgA8,AL108,Section_AmountStcgA8)) -> 0 | AN108: A8b | AO108: =IF(MID(sheet1.ResidentialStatus1,1,3)="NRI",SUMIFS(Section_AmountStcgA8,STCG.A8_CertiStatus,"=Yes",Section_CodeStcgA8,AN108),SUMIF(Section_CodeStcgA8,AN108,Section_AmountStcgA8)) -> 0 | AP108: A8c | AQ108: =IF(MID(sheet1.ResidentialStatus1,1,3)="NRI",SUMIFS(Section_AmountStcgA8,STCG.A8_CertiStatus,"=Yes",Section_CodeStcgA8,AP108),SUMIF(Section_CodeStcgA8,AP108,Section_AmountStcgA8)) -> 0 | AS108: =SUM(STCG.A8_AmtI) -> 0
G109: =G108+1 -> 2 | P109: 0 | V109: =IFERROR(VLOOKUP(I109,STCG_Dropdown_Lookup,2,0),0) -> 0 | Z109: =V109 -> 0 | AA109: =H109 -> 0 | AB109: =SUMIF(STCG_SectionCodes,Z109,STCG_SectionValues) -> 0 | AD109: A4a | AE109: =IF(MID(sheet1.ResidentialStatus1,1,3)="NRI",SUMIFS(Section_AmountStcgA8,STCG.A8_CertiStatus,"=Yes",Section_CodeStcgA8,AD109),SUMIF(Section_CodeStcgA8,AD109,Section_AmountStcgA8)) -> 0 | AF109: A4b | AG109: =IF(MID(sheet1.ResidentialStatus1,1,3)="NRI",SUMIFS(Section_AmountStcgA8,STCG.A8_CertiStatus,"=Yes",Section_CodeStcgA8,AF109),SUMIF(Section_CodeStcgA8,AF109,Section_AmountStcgA8)) -> 0 | AH109: A4e | AI109: =IF(MID(sheet1.ResidentialStatus1,1,3)="NRI",SUMIFS(Section_AmountStcgA8,STCG.A8_CertiStatus,"=Yes",Section_CodeStcgA8,AH109),SUMIF(Section_CodeStcgA8,AH109,Section_AmountStcgA8)) -> 0 | AJ109: A5e | AK109: =IF(MID(sheet1.ResidentialStatus1,1,3)="NRI",SUMIFS(Section_AmountStcgA8,STCG.A8_CertiStatus,"=Yes",Section_CodeStcgA8,AJ109),SUMIF(Section_CodeStcgA8,AJ109,Section_AmountStcgA8)) -> 0 | AL109: A7 | AM109: =IF(MID(sheet1.ResidentialStatus1,1,3)="NRI",SUMIFS(Section_AmountStcgA8,STCG.A8_CertiStatus,"=Yes",Section_CodeStcgA8,AL109),SUMIF(Section_CodeStcgA8,AL109,Section_AmountStcgA8)) -> 0 | AN109: A6g | AO109: =IF(MID(sheet1.ResidentialStatus1,1,3)="NRI",SUMIFS(Section_AmountStcgA8,STCG.A8_CertiStatus,"=Yes",Section_CodeStcgA8,AN109),SUMIF(Section_CodeStcgA8,AN109,Section_AmountStcgA8)) -> 0
G113: a | H113: Total amount of STCG not chargeable to tax as per DTAA | R113: A8a | S113: =IF(MID(sheet1.ResidentialStatus1,1,3)="NRI",SUM(SUMIFS(STCG.A8_AmtI,STCG.A8_CertiStatus,"Yes",STCG.A8_ApplRate,{"","0"})),SUM(SUMIFS(STCG.A8_AmtI,STCG.A8_ApplRate,{"","0"}))) -> 0
G114: b | H114: Total amount of STCG chargeable to tax at special rates as per DTAA | R114: A8b | S114: =IF(MID(sheet1.ResidentialStatus1,1,3)="NRI",SUMIFS(STCG.A8_AmtI,STCG.A8_CertiStatus,"Yes",STCG.A8_ApplRate,"<>""",STCG.A8_ApplRate,"<>0"),SUM(SUMIFS(STCG.A8_AmtI,STCG.A8_ApplRate,"<>""",STCG.A8_ApplRate,"<>0"))) -> 0
E115: 8 | F115: Amount of STCG included in A1-A7 but not chargeable to tax or chargeable at special rates in India as per DTAA
G116: Sl. | H116: Country name, code | I116: Article of DTAA | J116: Whether Tax Residency Certificate obtained? | K116: Item no. A1 to A7 above in which included | L116: Amount of STCG
G117: 1 | H117: (Select) | J117: (Select)
G118: =G117+1 -> 2 | H118: (Select) | J118: (Select)
G120: III | H120: Total amount of STCG not chargeable to tax as per DTAA | R120: A8 | Y120: =IF(STCG.A8_StcgDTAA<>0,1,0) -> 0
E121: 9 | F121: Amount deemed to be short term capital gains under sections 54B/54D/54G/54GA | AB121: 54G
F122: i | G122: Amount deemed to be short term capital gains under sections 54B | P122: i | AB122: 54GA
F123: ii | G123: Amount deemed to be short term capital gains under sections 54D | P123: ii | AB123: 54GB
F124: iii | G124: Amount deemed to be short term capital gains under sections 54G | P124: iii | AB124: 115F
F125: iv | G125: Amount deemed to be short term capital gains under sections 54GA | P125: iv
F126: Total Amount deemed to be short term capital gains under sections 54B/54D/54G/54GA | R126: A7 | S126: =SUM(Q122:Q125) -> 0
E127: 9 | F127: Deemed short term capital gains on depreciable assets (6 of schedule- DCG) | R127: A9 | S127: =DCG.TotalDepreciation -> 0
E128: 9 | F128: Total short term capital gain (A1e+ A2e+ A3a+ A3b+ A4e+ A5e+A6 +A7-A8a) | R128: A9 | S128: =IF(MID(sheet1.ResidentialStatus1,1,2)="NR",STCG.A1e_CapgainonAssets+STCG.A20ic_CapgainonAssets+STCG.A2ie_CapgainonAssets+STCG.A2iie_CapgainonAssets+STCG.A5e_CapgainonAssets+STCG.A4e_CapgainonAssets+STCG.A3a_NRItaxSTTPaid+STCG.A3b_NRItaxSTTNotPaid+S99+STCG.A8_PassThroughIncome-STCG.A8_StcgDTAA,STCG.A1e_CapgainonAssets+STCG.A20ic_CapgainonAssets+STCG.A2ie_CapgainonAssets+STCG.A4e_CapgainonAssets+STCG.A3a_NRItaxSTTPaid+STCG.A3b_NRItaxSTTNotPaid+STCG.A2iie_CapgainonAssets+STCG.A5e_CapgainonAssets+S99+STCG.A8_PassThroughIncome-STCG.A8_StcgDTAA) -> 0
D129: B | E129: Long-term capital gain (LTCG) (Items 6 , 7 , 8 & 9 are not applicable for residents) | AA129: LTCG Break Up
D130: Long-term Capital Gains | E130: 1 | F130: From sale of land or building or both (fill up details separately for each property)(in case of co-ownership, enter your share of Capital Gain) | AA130: B1e | AB130: =LTCG.B1e_CapgainonAssets -> 0
F131: Date of purchase/ acquisition | W131: =VLOOKUP(MAX(2001,VALUE(IF(LTCG.B_AcqDate1="",2001,VALUE(MID(LTCG.B_AcqDate1,7,4))))),CostInflationtbl,2) -> 100
F132: Date of sale/transfer | W132: =VLOOKUP(VALUE(IF(LTCG.B_SaleTrfDate1="",2001,VALUE(MID(LTCG.B_SaleTrfDate1,7,4)))),CostInflationtbl,2) -> 100
F133: a | G133: i | H133: Full value of consideration received/receivable | P133: ai | Y133: =IF(LTCG.Bai_FullConsideration1<>0,1,0) -> 0 | AA133: B2e | AB133: =LTCG.B02e_CapgainonAssets -> 0
G134: ii | H134: Value of property as per stamp valuation authority | P134: aii | Y134: =IF(LTCG.Baii_PropertyValuation1<>0,1,0) -> 0 | AA134: B3e | AB134: =LTCG.B2e_CapgainonAssets -> 0
G135: iii | H135: Full value of consideration adopted as per section 50C for the purpose of Capital Gains [in case (aii) does not exceed 1.10 times (ai), take this figure as (ai), or else take (aii)] | P135: aiii | Q135: =IF(Q134>(1.1*Q133),Q134,Q133) -> 0 | Y135: =IF(LTCG.Baiii_FullConsiderationFiftyC1<>0,1,0) -> 0 | Z135: 0 | AA135: Bi4e | AB135: =LTCG.B3e_CapgainonAssets -> 3502400
F136: b | G136: Deductions under section 48 | AA136: B4iie | AB136: =LTCG.Bii3e_CapgainonAssets -> 0
G137: i | H137: Cost of acquisition | P137: i
G138: biia | H138: Cost of acquisition with indexation | P138: iia | Q138: =ROUND(Q137*VLOOKUP(VALUE(IF(Q132="",2001,VALUE(MID(Q132,7,4)))),CostInflationtbl,2)/VLOOKUP(MAX(2001,VALUE(IF(Q131="",2001,VALUE(MID(Q131,7,4))))),CostInflationtbl,2),0) -> 0 | Y138: =IF(LTCG.Bbi_AquisitCost1<>0,1,0) -> 0 | AA138: B5c | AB138: 0
G139: biib | H139: Total Cost of Improvement with indexation | P139: iib | Q139: =SUM(LTCG.Bbii_ImproveCost1) -> 0
G140: Sl. No. | H140: Cost of improvement | J140: Year of Improvement | L140: Cost of Improvement with indexation
G141: 1 | L141: =ROUND(IF(H141="",0,H141*VLOOKUP(VALUE(IF($Q$132="",2001,VALUE(MID($Q$132,7,4)))),CostInflationtbl,2)/VLOOKUP(MAX(2001,VALUE(IF(_xlfn.CONCAT("01/04/",MID(J141,1,4))="",2001,VALUE(MID(_xlfn.CONCAT("01/04/",MID(J141,1,4)),7,4))))),CostInflationtbl,2)),0) -> 0
G142: =G141+1 -> 2 | L142: =ROUND(IF(H142="",0,H142*VLOOKUP(VALUE(IF($Q$132="",2001,VALUE(MID($Q$132,7,4)))),CostInflationtbl,2)/VLOOKUP(MAX(2001,VALUE(IF(_xlfn.CONCAT("01/04/",MID(J142,1,4))="",2001,VALUE(MID(_xlfn.CONCAT("01/04/",MID(J142,1,4)),7,4))))),CostInflationtbl,2)),0) -> 0
G144: biii | H144: Expenditure wholly and exclusively in connection with transfer | P144: biii | Y144: =IF(LTCG.Bbiii_ExpOnTrans1<>0,1,0) -> 0 | AA144: B6ie | AB144: =LTCG.Bi5e_CapgainonAssets -> 0
G145: biv | H145: Total (biia + biib + biii) | P145: biv | Q145: =Q138+Q139+Q144 -> 0 | AA145: B6iie | AB145: =LTCG.Bii5e_CapgainonAssets -> 0
F146: c | G146: Balance (aiii – biv) | P146: 1c | Q146: =Q135-Q145 -> 0 | AA146: B6iiie | AB146: =LTCG.Biii5e_CapgainonAssets -> 0
F147: di | G147: Deduction under section 54 (Specify details in item D below) | P147: di | Y147: =IF(LTCG.Bdi_ExemptionAmount1<>0,1,0) -> 0 | AA147: B7c | AB147: =LTCG.B6c_BalonSpeciAsset -> 0
F148: dii | G148: Deduction under section 54B (Specify details in item D below) | P148: dii | Y148: =IF(LTCG.Bdii_ExemptionAmount1<>0,1,0) -> 0 | AA148: B7f | AB148: =LTCG.B6f_BalOtherthanSpecAsset -> 0
F149: diii | G149: Deduction under section 54EC (Specify details in item D below) | P149: diii | Y149: =IF(LTCG.Bdiv_ExemptionAmount1<>0,1,0) -> 0 | AA149: B9 | AB149: =LTCG.B9_AmtDeemed -> 0
F150: dv | G150: Deduction under section 54EE (Specify details in item D below) | P150: dv
F151: div | G151: Deduction under section 54F (Specify details in item D below) | P151: div | Y151: =IF(LTCG.Bdv_ExemptionAmount1<>0,1,0) -> 0
F152: dv | G152: Deduction under section 54GB (Specify details in item D below) | P152: dv | Y152: =IF(Q152<>0,1,0) -> 0
F153: d | G153: Total Deduction under section 54/54B/54D/54EC/54F/54G/54GA/54GB (Specify details in item D below) | P153: 1d | Q153: =SUM(Q147:Q152) -> 0
F154: e | G154: Long-term Capital Gains on Immovable property (1c - 1d) | R154: B1e | S154: =IF(Q146<0,Q146,IF(Q153>Q146,0,Q146-Q153)) -> 0
F155: f | G155: In case of transfer of immovable property please furnish the following details (See Note)
G156: Sl. No. | H156: Name of Buyer | J156: PAN of Buyer | L156: Aadhaar Number of Buyer(s) | M156: Percentage share | N156: Amount | O156: Address of Property | P156: State Code | Q156: Pin Code | R156: Country | S156: Zipcode (Leave Blank if No Zipcode)
G157: 1 | P157: (Select) | R157: (Select)
G158: =G157+1 -> 2 | P158: (Select) | R158: (Select)
G159: =G158+1 -> 3 | P159: (Select) | R159: (Select)
Z161: B1e | AA161: 0
F162: Note 1 : Furnishing of PAN is mandatory, if the tax is deduced under section 194-IA. Note 2 : In case of more than one buyer, please indicate the respective percentage share and amount.
E163: 2 | F163: From Slump sale
F164: ai | G164: Fair market value as per Rule 11UAE(2) | P164: 2ai
F165: aii | G165: Fair market value as per Rule 11UAE(3) | P165: 2aii
F166: aiii | G166: Full value of consideration (higher of ai or aii) | P166: 2aiii | Q166: =MAX(LTCG.B02a_FullConsiderationUAEi,LTCG.B02a_FullConsiderationUAEii) -> 0 | Y166: =IF(Q166<>0,1,0) -> 0
F167: b | G167: Net worth of the under taking or division | P167: 2b | Y167: =IF(Q167<>0,1,0) -> 0
F168: c | G168: Balance (2aiii - 2b) | P168: 2c | Q168: =(LTCG.B02a_FullConsideration-LTCG.B02b_NetWorthOfDivision) -> 0
F169: di | G169: Deduction u/s 54EC (Specify details in item D below) | P169: di | Y169: =IF(Q169<>0,1,0) -> 0
F170: dii | G170: Deduction u/s 54EE (Specify details in item D below) | P170: dii | Y170: =IF(Q170<>0,1,0) -> 0
F171: dii | G171: Deduction u/s 54F (Specify details in item D below) | P171: dii | Y171: =IF(Q171<>0,1,0) -> 0
F172: d | G172: Total Deduction u/s 54EC/54F | P172: 2d | Q172: =SUM(Q169:Q171) -> 0
F173: e | G173: Long term capital gains from slump sale (2c-2d) | R173: B2e | S173: =IF(LTCG.B02c_SlumpBalance<0,LTCG.B02c_SlumpBalance,IF(LTCG.B02d_ExemptionGrandTotal>LTCG.B02c_SlumpBalance,0,LTCG.B02c_SlumpBalance-LTCG.B02d_ExemptionGrandTotal)) -> 0
E174: 2 | F174: From sale of bonds or debenture (other than capital indexed bonds issued by Government)
F175: a | G175: Full value of consideration | P175: a | Y175: =IF(Q175<>0,1,0) -> 0
F176: b | G176: Deductions under section 48
G177: i | H177: Cost of acquisition without indexation | P177: bi | Y177: =IF(Q177<>0,1,0) -> 0
G178: ii | H178: Cost of improvement without indexation | P178: bii | Y178: =IF(Q178<>0,1,0) -> 0
G179: iii | H179: Expenditure wholly and exclusively in connection with transfer | P179: biii | Y179: =IF(Q179<>0,1,0) -> 0
G180: iv | H180: Total (bi + bii +biii) | P180: biv | Q180: =SUM(Q177:Q179) -> 0
F181: c | G181: Balance (a – biv) | P181: c | Q181: =(LTCG.B2a_FullConsideration-LTCG.B2biv_TotalDedn) -> 0 | Y181: =IF(Q181<>0,1,0) -> 0
F182: di | G182: Deduction under sections 54EC (Specify details in item D below) | P182: di | Y182: =IF(Q182<>0,1,0) -> 0
F183: di | G183: Deduction under sections 54EE (Specify details in item D below) | P183: dii | Y183: =IF(Q183<>0,1,0) -> 0
F184: d | G184: Deduction under sections 54F(Specify details in item D below) | P184: d | Y184: =IF(Q184<>0,1,0) -> 0
F185: d | G185: Total Deduction u/s 54EE/54F | P185: 3d
F186: e | G186: LTCG on bonds or debenture (c – d) | R186: B2e | S186: =IF(LTCG.B2c_BalanceCG<0,LTCG.B2c_BalanceCG,IF(LTCG.B03d_ExemptionGrandTotal>LTCG.B2c_BalanceCG,0,LTCG.B2c_BalanceCG-LTCG.B03d_ExemptionGrandTotal)) -> 0
E187: 3 | F187: From sale of, (i) listed securities (other than a unit) or zero coupon bonds where proviso under section 112(1) is applicable
F188: ia | G188: Full value of consideration | P188: ia | Q188: 3600000 | Y188: =IF(Q188<>0,1,0) -> 1
F189: ib | G189: Deductions under section 48
G190: i | H190: Cost of acquisition without indexation | P190: ibi | Q190: 17600 | Y190: =IF(Q190<>0,1,0) -> 1
G191: ii | H191: Cost of improvement without indexation | P191: ibii | Y191: =IF(Q191<>0,1,0) -> 0
G192: iii | H192: Expenditure wholly and exclusively in connection with transfer | P192: ibiii | Q192: 80000 | Y192: =IF(Q192<>0,1,0) -> 1
G193: iv | H193: Total (ibi + ibii +ibiii) | P193: ibiv | Q193: =SUM(Q190:Q192) -> 97600
F194: ic | G194: Balance (ia – ibiv) | P194: ic | Q194: =(LTCG.B3a_FullConsideration-LTCG.B3biv_TotalDedn) -> 3502400
F195: di | G195: Deduction under sections 54EC(Specify details in item D below) | P195: di | Y195: =IF(Q195<>0,1,0) -> 0
F196: idiii | G196: Deduction under sections 54EE(Specify details in item D below) | P196: idiii | Y196: =IF(Q196<>0,1,0) -> 0
F197: id | G197: Deduction under sections 54F(Specify details in item D below) | P197: id | Y197: =IF(Q197<>0,1,0) -> 0
F198: d | G198: Total Deduction u/s 54EE/54F | P198: 4d
F199: ie | G199: Long-term Capital Gains on assets at B4 above (c – d) | R199: B3ie | S199: =IF(LTCG.B3c_BalanceCG<0,LTCG.B3c_BalanceCG,IF(LTCG.B04d_ExemptionGrandTotal>LTCG.B3c_BalanceCG,0,LTCG.B3c_BalanceCG-LTCG.B04d_ExemptionGrandTotal)) -> 3502400
F200: From sale of GDR of an Indian company referred in sec. 115ACA
F201: iia | G201: Full value of consideration | P201: iia | Y201: =IF(Q201<>0,1,0) -> 0
F202: iib | G202: Deductions under section 48
G203: i | H203: Cost of acquisition without indexation | P203: iibi | Y203: =IF(Q203<>0,1,0) -> 0
G204: ii | H204: Cost of improvement without indexation | P204: iibii | Y204: =IF(Q204<>0,1,0) -> 0
G205: iii | H205: Expenditure wholly and exclusively in connection with transfer | P205: iibiii | Y205: =IF(Q205<>0,1,0) -> 0
G206: iv | H206: Total (bi + bii +biii) | P206: iibiv | Q206: =SUM(Q203:Q205) -> 0
F207: iic | G207: Balance (iia –iibiv) | P207: iic | Q207: =(LTCG.Bii3a_FullConsideration-LTCG.Bii3biv_TotalDedn) -> 0
F208: di | G208: Deduction under sections 54EC(Specify details in item D below) | P208: di | Y208: =IF(Q208<>0,1,0) -> 0
... 207 more rows

Sheet Schedule 112A
C3: Schedule 112A | E3: From sale of equity share in a company or unit of equity oriented fund or unit of a business trust on which STT is paid under section 112A
D4: Sl. No. | E4: Share/Unit acquired | F4: ISIN Code | G4: Name of the Share/Unit | H4: No. of Shares/Units | I4: Sale-price per Share/Unit | J4: Full Value of Consideration If shares/units are acquired on or before 31st January, 2018 (Total Sale Value) (4*5) or If shares/units are acquired after 31st January, 2018 - Please enter Full Value of Consideration | K4: Cost of acquisition without indexation (higher of 8 or 9 ) | L4: Cost of acquisition | M4: If the long term capital asset was acquired before 01.02.2018, Lower of 6 & 11 | N4: Fair Market Value per share/unit as on 31st January,2018 | O4: Total Fair Market Value as on 31st January, 2018 of capital asset as per section 55(2)(ac)- (4*10) | P4: Full value of Consideration - item 4 (b)(i)(B)(2) of LTCG Schedule of ITR3 | Q4: Cost of improvement without indexation - item 5 (b)(ii) of LTCG Schedule of ITR3 | R4: Expenditure wholly and exclusively in connection with transfer | S4: Total deductions (7+12) | T4: Balance 6-13 Item 5 (a) of LTCG Schedule of ITR3
D5: (Col 1) | E5: (Col 1a) | F5: (Col 2) | G5: (Col 3) | H5: (Col 4) | I5: (Col 5) | J5: (Col 6) | K5: (Col 7) | L5: (Col 8) | M5: (Col 9) | N5: (Col 10) | O5: (Col 11) | P5: (Col 12) | Q5: (Col 13) | R5: (Col 12) | S5: (Col 13) | T5: (Col 14)
D6: 1 | E6: (Select) | J6: =ROUND(MAX(0,ROUND(H6,4)*ROUND(I6,4)),0) -> 0 | K6: =ROUND(MAX(0,ROUND(L6,4),ROUND(M6,0)),0) -> 0 | M6: =ROUND(MAX(0,MIN(ROUND(O6,0),ROUND(J6,0))),0) -> 0 | O6: =ROUND(MAX(0,ROUND(H6,4)*ROUND(N6,4)),0) -> 0 | P6: 0 | S6: =ROUND(MAX(0,SUM(ROUND(K6,0),ROUND(R6,4))),0) -> 0 | T6: =ROUND(ROUND(J6,0)-ROUND(S6,0),0) -> 0 | AF6: =IF(ISERROR(IF(F6<>"",VLOOKUP(F6,ISIN112A,2,FALSE))),"",IF(F6<>"",VLOOKUP(F6,ISIN112A,2,FALSE))) -> FALSE
D7: =D6+1 -> 2 | E7: (Select) | J7: =ROUND(MAX(0,ROUND(H7,4)*ROUND(I7,4)),0) -> 0 | K7: =ROUND(MAX(0,ROUND(L7,4),ROUND(M7,0)),0) -> 0 | M7: =ROUND(MAX(0,MIN(ROUND(O7,0),ROUND(J7,0))),0) -> 0 | O7: =ROUND(MAX(0,ROUND(H7,4)*ROUND(N7,4)),0) -> 0 | P7: 0 | S7: =ROUND(MAX(0,SUM(ROUND(K7,0),ROUND(R7,4))),0) -> 0 | T7: =ROUND(ROUND(J7,0)-ROUND(S7,0),0) -> 0 | AF7: =IF(ISERROR(IF(F7<>"",VLOOKUP(F7,ISIN112A,2,FALSE))),"",IF(F7<>"",VLOOKUP(F7,ISIN112A,2,FALSE))) -> FALSE
D8: =D7+1 -> 3 | E8: (Select) | J8: =ROUND(MAX(0,ROUND(H8,4)*ROUND(I8,4)),0) -> 0 | K8: =ROUND(MAX(0,ROUND(L8,4),ROUND(M8,0)),0) -> 0 | M8: =ROUND(MAX(0,MIN(ROUND(O8,0),ROUND(J8,0))),0) -> 0 | O8: =ROUND(MAX(0,ROUND(H8,4)*ROUND(N8,4)),0) -> 0 | P8: 0 | S8: =ROUND(MAX(0,SUM(ROUND(K8,0),ROUND(R8,4))),0) -> 0 | T8: =ROUND(ROUND(J8,0)-ROUND(S8,0),0) -> 0 | AF8: =IF(ISERROR(IF(F8<>"",VLOOKUP(F8,ISIN112A,2,FALSE))),"",IF(F8<>"",VLOOKUP(F8,ISIN112A,2,FALSE))) -> FALSE
D9: =D8+1 -> 4 | E9: (Select) | J9: =ROUND(MAX(0,ROUND(H9,4)*ROUND(I9,4)),0) -> 0 | K9: =ROUND(MAX(0,ROUND(L9,4),ROUND(M9,0)),0) -> 0 | M9: =ROUND(MAX(0,MIN(ROUND(O9,0),ROUND(J9,0))),0) -> 0 | O9: =ROUND(MAX(0,ROUND(H9,4)*ROUND(N9,4)),0) -> 0 | P9: 0 | S9: =ROUND(MAX(0,SUM(ROUND(K9,0),ROUND(R9,4))),0) -> 0 | T9: =ROUND(ROUND(J9,0)-ROUND(S9,0),0) -> 0 | AF9: =IF(ISERROR(IF(F9<>"",VLOOKUP(F9,ISIN112A,2,FALSE))),"",IF(F9<>"",VLOOKUP(F9,ISIN112A,2,FALSE))) -> FALSE
J11: =SUM(TotalSaleValue_112A) -> 0 | K11: =SUM(COAwithoutIndex_112A) -> 0 | L11: =SUM(COAwithIndex_112A) -> 0 | M11: =SUM(LTCGAssetAcquired_112A) -> 0 | O11: =SUM(TotalFairMarketValue_112A) -> 0 | P11: 0 | Q11: 0 | R11: =SUM(ExpenditureWholly_112A) -> 0 | S11: =SUM(TotalDeductions_112A) -> 0 | T11: =SUM(Balance_112A) -> 0

Sheet HelpCSV (hidden)
J1: Instructions for filling Schedule 112A/115AD(1)(b)(iii)(P)
J2: Option 1 – Fill Data directly in utility
J3: 1 | K3: Enter all the required details. To add rows select "Add" and update the details. To delete rows select the row which is to be deleted and then click on "Delete".
J4: 2 | K4: Click on "Save" to go back to schedule 112A/115AD(1)(b)(iii)(P).
J5: Note: | K5: This option is useful when there are limited number of entries in this schedule .
J8: Option 2 – Upload through CSV
J9: 1 | K9: Download the template through the link.
J10: 2 | K10: Click on the template; provide a file name to save the CSV.
J11: 3 | K11: Update the data as per the headings provided in the CSV template (Refer instructions below to fill the csv file).
J12: 4 | K12: Save the date and upload the CSV file in the utility.
J13: 5 | K13: Maintaining data consistency is important to avoid errors upon upload.
J16: Instructions to fill csv file:
J17: 1 | K17: For the first column, referring to column 1a of schedule 112A in the return, ‘Share/Unit acquired’, enter the value ‘BE’ if the share/unit was acquired on or before 31st January 2018. If share/unit was acquired after 31st January 2018, enter value ‘AE’.
J18: 2 | K18: For column 2 ‘ISIN Code’, enter alphanumeric value and first two characters should start with ‘IN’. In case security/Share does not have ISIN Code, enter "INNOTAVAILAB". If in 1a, ‘AE’ is entered, enter ‘INNOTREQUIRD’.
J19: 3 | K19: For column 3 ‘Name of the Share/Unit’, input should contain only alphanumeric values without any special characters. If in 1a, ‘AE’ entered, enter ‘CONSOLIDATED’.
J20: 4 | K20: Column 4 ‘No. of Shares/Units field’ should be numeric, non- negative and decimals are allowed upto 4 digits. If in 1a, ‘AE’ is entered, leave this field as blank.
J21: 5 | K21: Column 5 ‘Sale-price per Share/Unit’ should be numeric, non- negative and decimals are allowed upto 4 digits. If in 1a, ‘AE’ is entered, leave this field as blank.
J22: 6 | K22: Column 6 ‘Full Value of Consideration (Total Sale Value)’ should be equal to the value at sl. No. 4 multiplied by sl. No. 5 (4*5) if ‘BE’ is entered in 1a. Value should be rounded off to the nearest unit. If in 1a ‘AE’ is entered, enter full value of consideration.
J23: 7 | K23: Column 7 ‘Cost of acquisition without indexation’, entered value should be higher of value mentioned in Column 8 [‘Cost of acquisition’] and Column 9 [“If the long-term capital asset was acquired before 01.02.2018, lower of 11 & 6”].
J24: 8 | K24: Column 8 ‘Cost of acquisition’ field should be numeric, non- negative and decimals are allowed upto 4 digits.
J25: 9 | K25: Column 9 ‘If the long-term capital asset was acquired before 01.02.2018, (i.e., if entry in col 1 is “BE”) lower of 11 & 6’ [field should be lower of value mentioned in column 11‘Total Fair Market Value of capital asset as per section 55(2) (ac)’ and in column 6 ‘Full Value Consideration’].
J26: 10 | K26: Column 10 ‘Fair Market Value per share/unit as on 31st January,2018’ should be numeric, non- negative and decimals are allowed upto 4 digits. If in 1a, ‘AE’ is entered, leave this field as blank.
J27: 11 | K27: Column 11 ‘Total Fair Market Value of capital asset as per section 55(2) (ac)’ field should be equal to value at column 4 ‘No. of Shares/Units’ multiply by Column 10 ‘Fair Market Value per share/unit as on 31st January,2018’. Value should be rounded off to the nearest unit.
J28: 12 | K28: Column 12 ‘Expenditure wholly and exclusively in connection with transfer’ field should be numeric, non- negative and decimals are allowed upto 4 digits.
J29: 13 | K29: Column 13 ‘Total deductions (7+12)’ field should be sum of value at column 7 ‘Cost of acquisition without indexation’ and column 12 ‘Expenditure wholly and exclusively in connection with transfer’. Value should be rounded off to the nearest unit.
J30: 14 | K30: Column 14 ‘Balance (6-13)’ field should be equal to value at column 6 ‘Full Value Consideration’ minus value at column 13 ‘Total deductions (7+12)’. Value should be rounded off to the nearest unit.

Sheet Schedule 115AD(1)(iii) proviso
C3: 115AD(1)(iii) proviso | E3: For NON-RESIDENTS - From sale of equity share in a company or unit of equity oriented fund or unit of a business trust on which STT is paid under section 112A
D4: Sl. No. | E4: Share/Unit acquired | F4: ISIN Code | G4: Name of the Share/Unit | H4: No. of Shares/Units | I4: Sale-price per Share/Unit | J4: Full Value of Consideration If shares/units are acquired on or before 31st January, 2018 (Total Sale Value) (4*5) or If shares/units are acquired after 31st January, 2018 - Please enter Full Value of Consideration | K4: Cost of acquisition without indexation (higher of 8 or 9) | L4: Cost of acquisition | M4: If the long term capital asset was acquired before 01.02.2018, Lower of 6 & 11 | N4: Fair Market Value per share/unit as on 31st January,2018 | O4: Total Fair Market Value as on 31st January, 2018 of capital asset as per section 55(2)(ac)- (4*10) | P4: Full value of Consideration - item 8 (b)(i)(B)(2) of LTCG Schedule of ITR3 | Q4: Cost of improvement without indexation - item 8 (b)(ii) of LTCG Schedule of ITR3 | R4: Expenditure wholly and exclusively in connection with transfer | S4: Total deductions (7+12) | T4: Balance (6-13) Item 7 (a) of LTCG Schedule of ITR2
D5: (Col 1) | E5: (Col 1a) | F5: (Col 2) | G5: (Col 3) | H5: (Col 4) | I5: (Col 5) | J5: (Col 6) | K5: (Col 7) | L5: (Col 8) | M5: (Col 9) | N5: (Col 10) | O5: (Col 11) | P5: (Col 12) | Q5: (Col 13) | R5: (Col 12) | S5: (Col 13) | T5: (Col 14)
D6: 1 | J6: =ROUND(MAX(0,ROUND(H6,4)*ROUND(I6,4)),0) -> 0 | K6: =ROUND(MAX(0,ROUND(L6,4),ROUND(M6,0)),0) -> 0 | M6: =ROUND(MAX(0,MIN(ROUND(O6,0),ROUND(J6,0))),0) -> 0 | O6: =ROUND(MAX(0,ROUND(H6,4)*ROUND(N6,4)),0) -> 0 | P6: 0 | S6: =ROUND(MAX(0,SUM(ROUND(K6,0),ROUND(R6,4))),0) -> 0 | T6: =ROUND(ROUND(J6,0)-ROUND(S6,0),0) -> 0 | AB6: =IF(ISERROR(IF(F6<>"",VLOOKUP(F6,ISIN112A,2,FALSE))),"",IF(F6<>"",VLOOKUP(F6,ISIN112A,2,FALSE))) -> FALSE
D7: =D6+1 -> 2 | J7: =ROUND(MAX(0,ROUND(H7,4)*ROUND(I7,4)),0) -> 0 | K7: =ROUND(MAX(0,ROUND(L7,4),ROUND(M7,0)),0) -> 0 | M7: =ROUND(MAX(0,MIN(ROUND(O7,0),ROUND(J7,0))),0) -> 0 | O7: =ROUND(MAX(0,ROUND(H7,4)*ROUND(N7,4)),0) -> 0 | P7: 0 | S7: =ROUND(MAX(0,SUM(ROUND(K7,0),ROUND(R7,4))),0) -> 0 | T7: =ROUND(ROUND(J7,0)-ROUND(S7,0),0) -> 0 | AB7: =IF(ISERROR(IF(F7<>"",VLOOKUP(F7,ISIN112A,2,FALSE))),"",IF(F7<>"",VLOOKUP(F7,ISIN112A,2,FALSE))) -> FALSE
D8: =D7+1 -> 3 | J8: =ROUND(MAX(0,ROUND(H8,4)*ROUND(I8,4)),0) -> 0 | K8: =ROUND(MAX(0,ROUND(L8,4),ROUND(M8,0)),0) -> 0 | M8: =ROUND(MAX(0,MIN(ROUND(O8,0),ROUND(J8,0))),0) -> 0 | O8: =ROUND(MAX(0,ROUND(H8,4)*ROUND(N8,4)),0) -> 0 | P8: 0 | S8: =ROUND(MAX(0,SUM(ROUND(K8,0),ROUND(R8,4))),0) -> 0 | T8: =ROUND(ROUND(J8,0)-ROUND(S8,0),0) -> 0 | AB8: =IF(ISERROR(IF(F8<>"",VLOOKUP(F8,ISIN112A,2,FALSE))),"",IF(F8<>"",VLOOKUP(F8,ISIN112A,2,FALSE))) -> FALSE
D9: =D8+1 -> 4 | J9: =ROUND(MAX(0,ROUND(H9,4)*ROUND(I9,4)),0) -> 0 | K9: =ROUND(MAX(0,ROUND(L9,4),ROUND(M9,0)),0) -> 0 | M9: =ROUND(MAX(0,MIN(ROUND(O9,0),ROUND(J9,0))),0) -> 0 | O9: =ROUND(MAX(0,ROUND(H9,4)*ROUND(N9,4)),0) -> 0 | P9: 0 | S9: =ROUND(MAX(0,SUM(ROUND(K9,0),ROUND(R9,4))),0) -> 0 | T9: =ROUND(ROUND(J9,0)-ROUND(S9,0),0) -> 0 | AB9: =IF(ISERROR(IF(F9<>"",VLOOKUP(F9,ISIN112A,2,FALSE))),"",IF(F9<>"",VLOOKUP(F9,ISIN112A,2,FALSE))) -> FALSE
J11: =SUM(TotalSaleValue_115AD) -> 0 | K11: =SUM(COAwithoutIndex_115AD) -> 0 | L11: =SUM(COAwithIndex_115AD) -> 0 | M11: =SUM(LTCGAssetAcquired_115AD) -> 0 | O11: =SUM(TotalFairMarketValue_115AD) -> 0 | P11: 0 | Q11: 0 | R11: =SUM(ExpenditureWholly_115AD) -> 0 | S11: =SUM(TotalDeductions_115AD) -> 0 | T11: =SUM(Balance_115AD) -> 0

Sheet OS
AK1: 1b | AL1: =SUMIF(OS_DTAASectionCode,"=56",os.DTAA_AmtChk) -> 0 | AM1: 1c | AN1: =SUMIF(OS_DTAASectionCode,"=562iii",os.DTAA_AmtChk) -> 0 | AR1: PTI TABLE
AK2: 1a | AL2: =SUMIF(OS_DTAASectionCode,"=56i",os.DTAA_AmtChk) -> 0 | AM2: 1d | AN2: =SUMIF(OS_DTAASectionCode,"=562x",os.DTAA_AmtChk) -> 0
C3: Sch OS | E3: Income from other Sources | AR3: PTI_5A1ai | AS3: =SUMIF(OS_PTISectionCode,AR3,OS_PTI_Amount) -> 0 | AT3: PTI_5A1aiiac | AU3: =SUMIF(OS_PTISectionCode,AT3,OS_PTI_Amount) -> 0 | AV3: PTI_5AD1i | AW3: =SUMIF(OS_PTISectionCode,AV3,OS_PTI_Amount) -> 0 | AX3: PTI_5BBDA | AY3: =SUMIF(OS_PTISectionCode,AX3,OS_PTI_Amount) -> 0 | AZ3: PTI_5BBE | BA3: =SUMIF(OS_PTISectionCode,AZ3,OS_PTI_Amount) -> 0 | BB3: Total | BC3: =SUM(AS3:AS9,AU3:AU9,AW3:AW9,AY3:AY9,BA3:BA4) -> 0
D4: 1 | E4: Gross income chargeable to tax at normal applicable rates (1a+ 1b+ 1c+ 1d + 1e) | J4: =SUM(os.DividendGross,os.InterestGross,os.RentFromMachPlantBldgs,os.Totalsec56,os.TotalAnyOtherIncome) -> 107910 | AR4: PTI_5A1aii | AS4: =SUMIF(OS_PTISectionCode,AR4,OS_PTI_Amount) -> 0 | AT4: PTI_5A1aiii | AU4: =SUMIF(OS_PTISectionCode,AT4,OS_PTI_Amount) -> 0 | AV4: PTI_5AD1iP | AW4: =SUMIF(OS_PTISectionCode,AV4,OS_PTI_Amount) -> 0 | AX4: PTI_5BBF | AY4: =SUMIF(OS_PTISectionCode,AX4,OS_PTI_Amount) -> 0 | AZ4: PTI_1 | BA4: =SUMIF(OS_PTISectionCode,AZ4,OS_PTI_Amount) -> 0
E5: a | F5: Dividends, Gross (ai +aii) | I5: 1a | J5: =os.DividendGrossai+os.DividendGrossaii -> 0 | AR5: PTI_5A1aiia | AS5: =SUMIF(OS_PTISectionCode,AR5,OS_PTI_Amount) -> 0 | AT5: PTI_5A1b | AU5: =SUMIF(OS_PTISectionCode,AT5,OS_PTI_Amount) -> 0 | AV5: PTI_5ACA1a | AW5: =SUMIF(OS_PTISectionCode,AV5,OS_PTI_Amount) -> 0 | AX5: PTI_5BBG | AY5: =SUMIF(OS_PTISectionCode,AX5,OS_PTI_Amount) -> 0
E6: ai | F6: Dividend income [other than (ii)] | I6: 1ai | J6: =BBDA.Upto15Of6+BBDA.Upto15Of9+BBDA.Up16Of9To15Of12+BBDA.Up16Of12To15Of3+BBDA.Up16Of3To31Of3+DivDTAA+IF(os.amountinterestexpenditure="",os.expenditureClaimed1,os.amountinterestexpenditure1) -> 0 | AT6: PTI_5A1aiiaci | AU6: =SUMIF(OS_PTISectionCode,AT6,OS_PTI_Amount) -> 0 | AV6: PTI_5AD1iDiv | AW6: =SUMIF(OS_PTISectionCode,AV6,OS_PTI_Amount) -> 0 | AX6: PTI_5AC1b | AY6: =SUMIF(OS_PTISectionCode,AX6,OS_PTI_Amount) -> 0
E7: aii | F7: Dividend income u/s 2(22)(e) | I7: 1aii | AR7: PTI_5A1aiiaaP | AS7: =SUMIF(OS_PTISectionCode,AR7,OS_PTI_Amount) -> 0
E8: b | F8: Interest Gross (bi + bii + biii + biv + bv+bvi+bvii+bviii+bix) | I8: 1b | J8: =SUM(os.SavingBank,os.TermDeposit,os.IncomeTaxRefund,os.PassThroughIncome,os.Others,IntrstSec10XIFP,IntrstSec10XISP,IntrstSec10XIIFP,IntrstSec10XIISP) -> 107910 | AR8: PTI_5A1aiiaa | AS8: =SUMIF(OS_PTISectionCode,AR8,OS_PTI_Amount) -> 0 | AT8: PTI_5A1bB | AU8: =SUMIF(OS_PTISectionCode,AT8,OS_PTI_Amount) -> 0 | AV8: PTI_5BBA | AW8: =SUMIF(OS_PTISectionCode,AV8,OS_PTI_Amount) -> 0 | AX8: PTI_5Ea | AY8: =SUMIF(OS_PTISectionCode,AX8,OS_PTI_Amount) -> 0
F9: i | G9: From Savings Bank | I9: 1bi | J9: 37910 | AR9: PTI_5A1aiiab | AS9: =SUMIF(OS_PTISectionCode,AR9,OS_PTI_Amount) -> 0 | AT9: PTI_5AC1a | AU9: =SUMIF(OS_PTISectionCode,AT9,OS_PTI_Amount) -> 0 | AV9: PTI_5BBC | AW9: =SUMIF(OS_PTISectionCode,AV9,OS_PTI_Amount) -> 0 | AX9: PTI_5BB | AY9: =SUMIF(OS_PTISectionCode,AX9,OS_PTI_Amount) -> 0
F10: ii | G10: From Deposit (Bank/ Post Office/ Co-operative Society) | I10: 1bii
F11: iii | G11: From Income Tax refund | I11: 1biii | AR11: PTI_5A1aiiaaP | AS11: =IF(MID(sheet1.ResidentialStatus1,1,3)="NRI",SUMIFS(os.DTAA_AmtChk,os.TRC,"=Yes",OS_DTAASectionCode,AR11),SUMIF(OS_DTAASectionCode,AR11,os.DTAA_AmtChk)) -> 0 | AT11: PTI_5A1aiiaci | AU11: =IF(MID(sheet1.ResidentialStatus1,1,3)="NRI",SUMIFS(os.DTAA_AmtChk,os.TRC,"=Yes",OS_DTAASectionCode,AT11),SUMIF(OS_DTAASectionCode,AT11,os.DTAA_AmtChk)) -> 0 | AV11: PTI_5AD1iDiv | AW11: =IF(MID(sheet1.ResidentialStatus1,1,3)="NRI",SUMIFS(os.DTAA_AmtChk,os.TRC,"=Yes",OS_DTAASectionCode,AV11),SUMIF(OS_DTAASectionCode,AV11,os.DTAA_AmtChk)) -> 0 | AX11: PTI_5AC1b | AY11: 0
F12: iv | G12: In the nature of Pass through income\loss | I12: 1biv | AR12: PTI_5A1ai | AS12: 0 | AT12: PTI_5A1aiiac | AU12: 0 | AV12: PTI_5AD1i | AW12: 0 | AX12: PTI_5BBDA | AY12: =IF(MID(sheet1.ResidentialStatus1,1,3)="NRI",SUMIFS(os.DTAA_AmtChk,os.TRC,"=Yes",OS_DTAASectionCode,AX12),SUMIF(OS_DTAASectionCode,AX12,os.DTAA_AmtChk)) -> 0 | AZ12: PTI_5BBE | BA12: =IF(MID(sheet1.ResidentialStatus1,1,3)="NRI",SUMIFS(os.DTAA_AmtChk,os.TRC,"=Yes",OS_DTAASectionCode,AZ12),SUMIF(OS_DTAASectionCode,AZ12,os.DTAA_AmtChk)) -> 0 | BB12: Total | BC12: =SUM(AS12:AS20,AU12:AU20,AW12:AW20,AY12:AY20,BA12:BA17) -> 0
F13: v | G13: Interest accrued on contributions to provident fund to the extent taxable as per first proviso to section 10(11) | I13: 1bv
F14: vi | G14: Interest accrued on contributions to provident fund to the extent taxable as per Second proviso to section 10(11) | I14: 1bvi
F15: vii | G15: Interest accrued on contributions to provident fund to the extent taxable as per first proviso to section 10(12) | I15: 1bvii
F16: viii | G16: Interest accrued on contributions to provident fund to the extent taxable as per second proviso to section 10(12) | I16: 1bviii
C17: OTHER SOURCES | F17: ix | G17: others | I17: 1bix | J17: 70000 | AR17: PTI_5A1aii | AS17: 0 | AT17: PTI_5A1aiii | AU17: 0 | AV17: PTI_5AD1iP | AW17: 0 | AX17: PTI_5BBF | AY17: =IF(MID(sheet1.ResidentialStatus1,1,3)="NRI",SUMIFS(os.DTAA_AmtChk,os.TRC,"=Yes",OS_DTAASectionCode,AX17),SUMIF(OS_DTAASectionCode,AX17,os.DTAA_AmtChk)) -> 0 | AZ17: PTI_1 | BA17: =IF(MID(sheet1.ResidentialStatus1,1,3)="NRI",SUMIFS(os.DTAA_AmtChk,os.TRC,"=Yes",OS_DTAASectionCode,AZ17),SUMIF(OS_DTAASectionCode,AZ17,os.DTAA_AmtChk)) -> 0
E18: c | F18: Rental income from machinery, plants, buildings, etc., Gross | I18: 1c | AH18: Dtaa(1a) | AI18: =IF(MID(sheet1.ResidentialStatus1,1,3)="NRI",SUMIFS(os.DTAA_AmtChk,os.TRC,"=Yes",OS_DTAASectionCode,"=56i"),SUMIF(OS_DTAASectionCode,"=56i",os.DTAA_AmtChk)) -> 0 | AR18: PTI_5A1aiia | AS18: 0 | AT18: PTI_5A1b | AU18: 0 | AV18: PTI_5ACA1a | AW18: 0 | AX18: PTI_5BBG | AY18: =IF(MID(sheet1.ResidentialStatus1,1,3)="NRI",SUMIFS(os.DTAA_AmtChk,os.TRC,"=Yes",OS_DTAASectionCode,AX18),SUMIF(OS_DTAASectionCode,AX18,os.DTAA_AmtChk)) -> 0
E19: d | F19: Income of the nature referred to in section 56(2)(x) which is chargeable to tax (di + dii + diii + div + dv) | I19: 1d | J19: =MAX(0,(J20+J21+J22+J23+J24)) -> 0 | AH19: Dtaa(1b) | AI19: =IF(MID(sheet1.ResidentialStatus1,1,3)="NRI",SUMIFS(os.DTAA_AmtChk,os.TRC,"=Yes",OS_DTAASectionCode,"=56"),SUMIF(OS_DTAASectionCode,"=56",os.DTAA_AmtChk)) -> 0 | AR19: PTI_5A1aiiaa | AS19: 0 | AT19: PTI_5A1bB | AU19: 0 | AV19: PTI_5BBA | AW19: 0 | AX19: PTI_5Ea | AY19: =IF(MID(sheet1.ResidentialStatus1,1,3)="NRI",SUMIFS(os.DTAA_AmtChk,os.TRC,"=Yes",OS_DTAASectionCode,AX19),SUMIF(OS_DTAASectionCode,AX19,os.DTAA_AmtChk)) -> 0
F20: i | G20: Aggregate value of sum of money received without consideration | I20: 1di | AH20: Dtaa(115BB) | AI20: =IF(MID(sheet1.ResidentialStatus1,1,3)="NRI",SUMIFS(os.DTAA_AmtChk,os.TRC,"=Yes",OS_DTAASectionCode,"=5BB"),SUMIF(OS_DTAASectionCode,"=5BB",os.DTAA_AmtChk)) -> 0 | AR20: PTI_5A1aiiab | AS20: 0 | AT20: PTI_5AC1a | AU20: 0 | AV20: PTI_5BBC | AW20: 0 | AX20: PTI_5BB | AY20: =IF(MID(sheet1.ResidentialStatus1,1,3)="NRI",SUMIFS(os.DTAA_AmtChk,os.TRC,"=Yes",OS_DTAASectionCode,AX20),SUMIF(OS_DTAASectionCode,AX20,os.DTAA_AmtChk)) -> 0
F21: ii | G21: In case immovable property is received without consideration, stamp duty value of property | I21: 1dii
F22: iii | G22: In case immovable property is received for inadequate consideration, stamp duty value of property in excess of such consideration | I22: 1diii
F23: iv | G23: In case any other property is received without consideration, fair market value of property | I23: 1div
F24: v | G24: In case any other property is received for inadequate consideration, fair market value of property in excess of such consideration | I24: 1dv
E25: e | F25: Any other income (please specify nature) | J25: =SUM(os.OtherSections)+os_FamilyPension+OSIncomeNotified89A+OSIncomeNotifiedOther89A -> 0
F26: Sl. No | G26: Nature | J26: Amount
F27: 1 | G27: Family Pension
F28: 2 | G28: Income from retirement benefit account maintained in a notified country u/s 89A | J28: =OSIncomeNotified89A_AmountUS+OSIncomeNotified89A_AmountUK+OSIncomeNotified89A_AmountCan -> 0
F29: 2a | G29: United States of America
F30: 2b | G30: United Kingdom of Great Britain and Northern Ireland
F31: 2c | G31: Canada
F32: 3 | G32: Income from retirement benefit account maintained in a country other than notified country u/s 89A
F33: =F32+1 -> 4
F34: =F33+1 -> 5
D36: 2 | E36: Income chargeable at special rates (2a+ 2b+ 2c+ 2d + 2e+2f related to Sl.No. 1) | I36: 2 | J36: =SUM(os.WinLottRacePuzz,os.Total115BE,os.IncomeBenefitTotal,os.TotalChargeableSpecialRate,os.TotalPassThroughIncome,DTAA_1a_OS,DTAA_1b_OS,DTAA_1c_OS,DTAA_1d_OS) -> 0 | AB36: OS_Section Breakup
E37: a | F37: Winnings from lotteries, crossword puzzles etc. chargeable u/s 115BB | I37: 2a | AB37: 1a | AC37: =os.DividendGross -> 0
E38: b | F38: Income chargeable u/s 115BBE (bi + bii + biii + biv+ bv + bvi) | I38: 2b | J38: =MAX(0,(J39+J40+J41+J42+J43+J44)) -> 0
F39: i | G39: Cash credits u/s 68 | I39: 2bi
F40: ii | G40: Unexplained investments u/s 69 | I40: 2bii
F41: iii | G41: Unexplained money etc. u/s 69A | I41: 2biii
F42: iv | G42: Undisclosed investments etc. u/s 69B | I42: 2biv
F43: v | G43: Unexplained expenditure etc. u/s 69C | I43: 2bv
F44: vi | G44: Amount borrowed or repaid on hundi u/s 69D | I44: 2bvi
E45: c | F45: Accumulated balance of recognised provident fund taxable u/s 111 | I45: c | J45: =SUM(os.IncomeBenefit) -> 0
F46: Sl. No | G46: Assessment Year | H46: Income Benefit | J46: Tax Benefit
F47: 1 | G47: (Select) | AI47: 5A1aiia | AJ47: =SUMIF(os.check,"=5A1aiia",SRCamt) -> 0 | AK47: 5A1bA | AL47: =SUMIF(os.check,"=5A1bA",SRCamt) -> 0 | AM47: 5BBA | AN47: =SUMIF(os.check,"=5BBA",SRCamt) -> 0
F48: =F47+1 -> 2 | G48: (Select) | AI48: 5A1aii | AJ48: =SUMIF(os.check,"=5A1aii",SRCamt) -> 0 | AK48: 5A1aiii | AL48: =SUMIF(os.check,"=5A1aiii",SRCamt) -> 0 | AM48: 5AD1ip | AN48: =SUMIF(os.check,"=5AD1ip",SRCamt) -> 0
F49: =F48+1 -> 3 | G49: (Select) | AI49: 5A1aii | AJ49: =SUMIF(os.check,"=5A1aii",SRCamt) -> 0 | AK49: 5A1aiii | AL49: =SUMIF(os.check,"=5A1aiii",SRCamt) -> 0 | AM49: 5AD1ip | AN49: =SUMIF(os.check,"=5AD1ip",SRCamt) -> 0
AI50: 5A1ai | AJ50: =SUMIF(os.check,"=5A1ai",SRCamt) -> 0 | AK50: 5A1aiiac | AL50: =SUMIF(os.check,"=5A1aiiac",SRCamt) -> 0 | AM50: 5AD1i | AN50: =SUMIF(os.check,"=5AD1i",SRCamt) -> 0
F51: Total | J51: =SUM(os.TaxBenefit) -> 0 | AI51: 111 | AJ51: =SUM(os.IncomeBenefitTotal) -> 0 | AK51: 5ACA(1)(a) | AL51: =SUMIF(os.check,"=5ACA1a",SRCamt) -> 0 | AM51: 5BBC | AN51: =SUMIF(os.check,"=5BBC",SRCamt) -> 0
E52: d | F52: Any other income chargeable at special rate (total of di to dxx) | I52: d | J52: =SUM(os.SourceAmount) -> 0 | X52: OS Section | Y52: OS Value | AB52: 1b | AC52: =os.InterestGross -> 107910 | AI52: 5BBF | AJ52: =SUMIF(os.check,"=5BBF",SRCamt) -> 0 | AK52: 5BBG | AL52: =SUMIF(os.check,"=5BBG",SRCamt) -> 0 | AM52: 5BBDA | AN52: =SUMIF(os.check,"=5BBDA",SRCamt) -> 0
F53: Sl. No | G53: Nature | H53: Amount | AI53: 5A1aiiaci | AJ53: =SUMIF(os.check,"=5A1aiiaci",SRCamt) -> 0 | AK53: 5A1aiiaaP | AL53: =SUMIF(os.check,"=5A1aiiaaP",SRCamt) -> 0 | AM53: 5AD1iDiv | AN53: =SUMIF(os.check,"=5AD1iDiv",SRCamt) -> 0
F54: =1 -> 1 | X54: =IF(G54="(Select)",0,IF(G54="",0,1)) -> 0 | Y54: =IF(H54="",0,IF(H54="0",0,1)) -> 0 | AB54: =TRIM(MID(G54,1,SEARCH("-",G54)-1)) ->  | AC54: =H54 -> 0 | AM54: 5AC1b | AN54: =SUMIF(os.check,"=5AC1b",SRCamt) -> 0
F55: =F54+1 -> 2 | X55: =IF(G55="(Select)",0,IF(G55="",0,1)) -> 0 | Y55: =IF(H55="",0,IF(H55="0",0,1)) -> 0 | AB55: =TRIM(MID(G55,1,SEARCH("-",G55)-1)) ->  | AC55: =H55 -> 0 | AI55: 1b | AJ55: =SUMIF(os.check,"=56",SRCamt) -> 0 | AK55: 5A1aiiab | AL55: =SUMIF(os.check,"=5A1aiiab",SRCamt) -> 0 | AM55: 5AC1a | AN55: =SUMIF(os.check,"=5AC1a",SRCamt) -> 0 | AO55: Total
F56: =F55+1 -> 3 | X56: =IF(G56="(Select)",0,IF(G56="",0,1)) -> 0 | Y56: =IF(H56="",0,IF(H56="0",0,1)) -> 0 | AB56: =TRIM(MID(G56,1,SEARCH("-",G56)-1)) ->  | AC56: =H56 -> 0 | AI56: 1a | AJ56: =SUMIF(os.check,"=56i",SRCamt) -> 0 | AK56: 5A1aiiaa | AL56: =SUMIF(os.check,"=5A1aiiaa",SRCamt) -> 0 | AM56: 5A1bB | AN56: =SUMIF(os.check,"=5A1bB",SRCamt) -> 0 | AO56: 5Ea | AP56: =SUMIF(os.check,"=5Ea",SRCamt) -> 0
F57: =F56+1 -> 4 | X57: =IF(G57="(Select)",0,IF(G57="",0,1)) -> 0 | Y57: =IF(H57="",0,IF(H57="0",0,1)) -> 0 | AB57: =TRIM(MID(G57,1,SEARCH("-",G57)-1)) ->  | AC57: =H57 -> 0
F58: =F57+1 -> 5 | X58: =IF(G58="(Select)",0,IF(G58="",0,1)) -> 0 | Y58: =IF(H58="",0,IF(H58="0",0,1)) -> 0 | AB58: =TRIM(MID(G58,1,SEARCH("-",G58)-1)) ->  | AC58: =H58 -> 0
E61: e | F61: Pass through income/Loss in the nature of income from other sources chargeable at special rates | J61: =SUM(os.PTIAmount) -> 0
F62: Sl. No | G62: Nature | H62: Amount
F63: =1 -> 1 | AB63: =TRIM(MID(G63,1,SEARCH("-",G63)-1)) ->  | AC63: =H63 -> 0 | AD63: =IF(ISERROR(VLOOKUP(G63,OS_PTI_LookUp1,2,FALSE)),"",VLOOKUP(G63,OS_PTI_LookUp1,2,FALSE)) -> 
F64: =F63+1 -> 2 | AB64: =TRIM(MID(G64,1,SEARCH("-",G64)-1)) ->  | AC64: =H64 -> 0 | AD64: =IF(ISERROR(VLOOKUP(G64,OS_PTI_LookUp1,2,FALSE)),"",VLOOKUP(G64,OS_PTI_LookUp1,2,FALSE)) -> 
F65: =F64+1 -> 3 | AB65: =TRIM(MID(G65,1,SEARCH("-",G65)-1)) ->  | AC65: =H65 -> 0 | AD65: =IF(ISERROR(VLOOKUP(G65,OS_PTI_LookUp1,2,FALSE)),"",VLOOKUP(G65,OS_PTI_LookUp1,2,FALSE)) -> 
F66: =F65+1 -> 4 | AB66: =TRIM(MID(G66,1,SEARCH("-",G66)-1)) ->  | AC66: =H66 -> 0 | AD66: =IF(ISERROR(VLOOKUP(G66,OS_PTI_LookUp1,2,FALSE)),"",VLOOKUP(G66,OS_PTI_LookUp1,2,FALSE)) -> 
E68: f | F68: Amount included in 1 and 2 above, which is chargeable at special rates in India as per DTAA (total of column (2) of table below) | N68: =IF(Residentialstatuscheck="NRI",SUMIF(os.TRC,"Yes",os.Amount_income),SUM(os.Amount_income)) -> 0 | AC68: OS_DTAA BREAKUP
F69: Sl. No | G69: Amount of income | H69: Item No.1ai,1b to 2 in which included | I69: Country name, code | J69: Article of DTAA | K69: Rate as per Treaty (enter NIL, if not chargeable) | L69: Whether TRC obtained (Y/N) | M69: Section of I.T. Act | N69: Rate as per I.T. Act | O69: Applicable rate [lower of (6) or (9)] | AA69: Section Code | AB69: Src Amt | AC69: Section amt | AD69: Appropriate Section | AE69: Section Value Check | AF69: Is empty | AK69: Residentialstatuscheck | AM69: =IF(MID(sheet1.ResidentialStatus1,1,3)="RES","RES","NRI") -> RES | AN69: 5A1aiia | AO69: =IF(MID(sheet1.ResidentialStatus1,1,3)="NRI",SUMIFS(os.DTAA_AmtChk,os.TRC,"=Yes",OS_DTAASectionCode,"=5A1aiia"),SUMIF(OS_DTAASectionCode,"=5A1aiia",os.DTAA_AmtChk)) -> 0 | AR69: 5A1bA | AS69: =IF(MID(sheet1.ResidentialStatus1,1,3)="NRI",SUMIFS(os.DTAA_AmtChk,os.TRC,"=Yes",OS_DTAASectionCode,"=5A1b"),SUMIF(OS_DTAASectionCode,"=5A1b",os.DTAA_AmtChk)) -> 0 | AT69: 5BBA | AU69: =IF(MID(sheet1.ResidentialStatus1,1,3)="NRI",SUMIFS(os.DTAA_AmtChk,os.TRC,"=Yes",OS_DTAASectionCode,"=5BBA"),SUMIF(OS_DTAASectionCode,"=5BBA",os.DTAA_AmtChk)) -> 0
F70: 1 | O70: 0 | Z70: =IF(ISERROR(VLOOKUP(M70,OS_DTAA_lookup,2,FALSE)),"",VLOOKUP(M70,OS_DTAA_lookup,2,FALSE)) ->  | AA70: =IF(ISERROR(IF(TRIM(MID(M70,1,SEARCH("-",M70)-1))="56(2)(i)","56i",IF(TRIM(MID(M70,1,SEARCH("-",M70)-1))="56(2)","56",TRIM(MID(M70,1,SEARCH("-",M70)-1))))),0,IF(TRIM(MID(M70,1,SEARCH("-",M70)-1))="56(2)(i)","56i",IF(TRIM(MID(M70,1,SEARCH("-",M70)-1))="56(2)","56",TRIM(MID(M70,1,SEARCH("-",M70)-1))))) -> 0 | AB70: =G70 -> 0 | AC70: =IF(AA70="56i",Os.1a,IF(AA70="56",Os.1b,SUMIF(os.check,AA70,SRCamt))) -> 0 | AD70: =IF(AA70="56i",IF(Os.1a>=0,1,0),IF(AA70="56",IF(Os.1b>=0,1,0), COUNTIF(os.check,AA70))) -> 0 | AE70: =IF(AC70<AB70,0,1) -> 1 | AF70: =IF(OR(NOT(isdropdownblank(I70)),J70<>"",K70<>"",L70<>"",NOT(isdropdownblank(M70)),G70<>""),1,0) -> 0 | AK70: 111 | AL70: =SUMIF(OS_DTAASectionCode,"=5BB",os.Amount_income) -> 0 | AN70: 5A1aii | AO70: =IF(MID(sheet1.ResidentialStatus1,1,3)="NRI",SUMIFS(os.DTAA_AmtChk,os.TRC,"=Yes",OS_DTAASectionCode,"=5A1aii"),SUMIF(OS_DTAASectionCode,"=5A1aii",os.DTAA_AmtChk)) -> 0 | AP70: 1b | AQ70: =IF(MID(sheet1.ResidentialStatus1,1,3)="NRI",SUMIFS(os.DTAA_AmtChk,os.TRC,"=Yes",OS_DTAASectionCode,"=56"),SUMIF(OS_DTAASectionCode,"=56",os.DTAA_AmtChk)) -> 0 | AR70: 5A1aiii | AS70: =IF(MID(sheet1.ResidentialStatus1,1,3)="NRI",SUMIFS(os.DTAA_AmtChk,os.TRC,"=Yes",OS_DTAASectionCode,"=5A1aiii"),SUMIF(OS_DTAASectionCode,"=5A1aiii",os.DTAA_AmtChk)) -> 0 | AT70: 5AD1ip | AU70: =IF(MID(sheet1.ResidentialStatus1,1,3)="NRI",SUMIFS(os.DTAA_AmtChk,os.TRC,"=Yes",OS_DTAASectionCode,"=5AD1ip"),SUMIF(OS_DTAASectionCode,"=5AD1ip",os.DTAA_AmtChk)) -> 0
F71: =F70+1 -> 2 | O71: 0 | Z71: =IF(ISERROR(VLOOKUP(M71,OS_DTAA_lookup,2,FALSE)),"",VLOOKUP(M71,OS_DTAA_lookup,2,FALSE)) ->  | AA71: =IF(ISERROR(IF(TRIM(MID(M71,1,SEARCH("-",M71)-1))="56(2)(i)","56i",IF(TRIM(MID(M71,1,SEARCH("-",M71)-1))="56(2)","56",TRIM(MID(M71,1,SEARCH("-",M71)-1))))),0,IF(TRIM(MID(M71,1,SEARCH("-",M71)-1))="56(2)(i)","56i",IF(TRIM(MID(M71,1,SEARCH("-",M71)-1))="56(2)","56",TRIM(MID(M71,1,SEARCH("-",M71)-1))))) -> 0 | AB71: =G71 -> 0 | AC71: =IF(AA71="56i",Os.1a,IF(AA71="56",Os.1b,SUMIF(os.check,AA71,SRCamt))) -> 0 | AD71: =IF(AA71="56i",IF(Os.1a>=0,1,0),IF(AA71="56",IF(Os.1b>=0,1,0), COUNTIF(os.check,AA71))) -> 0 | AE71: =IF(AC71<AB71,0,1) -> 1 | AF71: =IF(OR(NOT(isdropdownblank(I71)),J71<>"",K71<>"",L71<>"",NOT(isdropdownblank(M71)),G71<>""),1,0) -> 0 | AK71: 115BBDA | AL71: =SUMIF(OS_DTAASectionCode,"=5BBDA",os.Amount_income) -> 0 | AN71: 5A1ai | AO71: =IF(MID(sheet1.ResidentialStatus1,1,3)="NRI",SUMIFS(os.DTAA_AmtChk,os.TRC,"=Yes",OS_DTAASectionCode,"=5A1ai"),SUMIF(OS_DTAASectionCode,"=5A1ai",os.DTAA_AmtChk)) -> 0 | AP71: 1a | AQ71: =IF(MID(sheet1.ResidentialStatus1,1,3)="NRI",SUMIFS(os.DTAA_AmtChk,os.TRC,"=Yes",OS_DTAASectionCode,"=56i"),SUMIF(OS_DTAASectionCode,"=56i",os.DTAA_AmtChk)) -> 0 | AR71: 5A1aiiac | AS71: =IF(MID(sheet1.ResidentialStatus1,1,3)="NRI",SUMIFS(os.DTAA_AmtChk,os.TRC,"=Yes",OS_DTAASectionCode,"=5A1aiiac"),SUMIF(OS_DTAASectionCode,"=5A1aiiac",os.DTAA_AmtChk)) -> 0 | AT71: 5AD1i | AU71: =IF(MID(sheet1.ResidentialStatus1,1,3)="NRI",SUMIFS(os.DTAA_AmtChk,os.TRC,"=Yes",OS_DTAASectionCode,"=5AD1i"),SUMIF(OS_DTAASectionCode,"=5AD1i",os.DTAA_AmtChk)) -> 0
F72: =F71+1 -> 3 | O72: 0 | X72: os.BalanceNoRaceHorse | Z72: =IF(ISERROR(VLOOKUP(M72,OS_DTAA_lookup,2,FALSE)),"",VLOOKUP(M72,OS_DTAA_lookup,2,FALSE)) ->  | AA72: =IF(ISERROR(IF(TRIM(MID(M72,1,SEARCH("-",M72)-1))="56(2)(i)","56i",IF(TRIM(MID(M72,1,SEARCH("-",M72)-1))="56(2)","56",TRIM(MID(M72,1,SEARCH("-",M72)-1))))),0,IF(TRIM(MID(M72,1,SEARCH("-",M72)-1))="56(2)(i)","56i",IF(TRIM(MID(M72,1,SEARCH("-",M72)-1))="56(2)","56",TRIM(MID(M72,1,SEARCH("-",M72)-1))))) -> 0 | AB72: =G72 -> 0 | AC72: =IF(AA72="56i",Os.1a,IF(AA72="56",Os.1b,SUMIF(os.check,AA72,SRCamt))) -> 0 | AD72: =IF(AA72="56i",IF(Os.1a>=0,1,0),IF(AA72="56",IF(Os.1b>=0,1,0), COUNTIF(os.check,AA72))) -> 0 | AE72: =IF(AC72<AB72,0,1) -> 1 | AF72: =IF(OR(NOT(isdropdownblank(I72)),J72<>"",K72<>"",L72<>"",NOT(isdropdownblank(M72)),G72<>""),1,0) -> 0 | AK72: 115BBE | AL72: =SUMIF(OS_DTAASectionCode,"=5BBE",os.Amount_income) -> 0 | AN72: 111 | AO72: =IF(MID(sheet1.ResidentialStatus1,1,3)="NRI",SUMIFS(os.DTAA_AmtChk,os.TRC,"=Yes",OS_DTAASectionCode,"=1"),SUMIF(OS_DTAASectionCode,"=1",os.DTAA_AmtChk)) -> 0 | AR72: 5ACA(1)(a) | AS72: =IF(MID(sheet1.ResidentialStatus1,1,3)="NRI",SUMIFS(os.DTAA_AmtChk,os.TRC,"=Yes",OS_DTAASectionCode,"=5ACA1a"),SUMIF(OS_DTAASectionCode,"=5ACA1a",os.DTAA_AmtChk)) -> 0 | AT72: 5BBC | AU72: =IF(MID(sheet1.ResidentialStatus1,1,3)="NRI",SUMIFS(os.DTAA_AmtChk,os.TRC,"=Yes",OS_DTAASectionCode,"=5BBC"),SUMIF(OS_DTAASectionCode,"=5BBC",os.DTAA_AmtChk)) -> 0 | AV72: 5A1aiiab | AW72: =IF(MID(sheet1.ResidentialStatus1,1,3)="NRI",SUMIFS(os.DTAA_AmtChk,os.TRC,"=Yes",OS_DTAASectionCode,"=5A1aiiab"),SUMIF(OS_DTAASectionCode,"=5A1aiiab",os.DTAA_AmtChk)) -> 0 | AX72: 5AC1a | AY72: =IF(MID(sheet1.ResidentialStatus1,1,3)="NRI",SUMIFS(os.DTAA_AmtChk,os.TRC,"=Yes",OS_DTAASectionCode,"=5AC1a"),SUMIF(OS_DTAASectionCode,"=5AC1a",os.DTAA_AmtChk)) -> 0 | AZ72: Total | BA72: =SUM(AO69:AO73,AS69:AS73,AU69:AU73,DTAA_5Ea_OS) -> 0
F73: =F72+1 -> 4 | O73: 0 | Z73: =IF(ISERROR(VLOOKUP(M73,OS_DTAA_lookup,2,FALSE)),"",VLOOKUP(M73,OS_DTAA_lookup,2,FALSE)) ->  | AA73: =IF(ISERROR(IF(TRIM(MID(M73,1,SEARCH("-",M73)-1))="56(2)(i)","56i",IF(TRIM(MID(M73,1,SEARCH("-",M73)-1))="56(2)","56",TRIM(MID(M73,1,SEARCH("-",M73)-1))))),0,IF(TRIM(MID(M73,1,SEARCH("-",M73)-1))="56(2)(i)","56i",IF(TRIM(MID(M73,1,SEARCH("-",M73)-1))="56(2)","56",TRIM(MID(M73,1,SEARCH("-",M73)-1))))) -> 0 | AB73: =G73 -> 0 | AC73: =IF(AA73="56i",Os.1a,IF(AA73="56",Os.1b,SUMIF(os.check,AA73,SRCamt))) -> 0 | AD73: =IF(AA73="56i",IF(Os.1a>=0,1,0),IF(AA73="56",IF(Os.1b>=0,1,0), COUNTIF(os.check,AA73))) -> 0 | AE73: =IF(AC73<AB73,0,1) -> 1 | AF73: =IF(OR(NOT(isdropdownblank(I73)),J73<>"",K73<>"",L73<>"",NOT(isdropdownblank(M73)),G73<>""),1,0) -> 0 | AK73: 115BBF | AL73: =SUMIF(OS_DTAASectionCode,"=5BBF",os.Amount_income) -> 0 | AN73: 5BBF | AO73: =IF(MID(sheet1.ResidentialStatus1,1,3)="NRI",SUMIFS(os.DTAA_AmtChk,os.TRC,"=Yes",OS_DTAASectionCode,"=5BBF"),SUMIF(OS_DTAASectionCode,"=5BBF",os.DTAA_AmtChk)) -> 0 | AR73: 5BBG | AS73: =IF(MID(sheet1.ResidentialStatus1,1,3)="NRI",SUMIFS(os.DTAA_AmtChk,os.TRC,"=Yes",OS_DTAASectionCode,"=5BBG"),SUMIF(OS_DTAASectionCode,"=5BBG",os.DTAA_AmtChk)) -> 0 | AT73: 5BBDA | AU73: =IF(MID(sheet1.ResidentialStatus1,1,3)="NRI",SUMIFS(os.DTAA_AmtChk,os.TRC,"=Yes",OS_DTAASectionCode,"=5BBDA"),SUMIF(OS_DTAASectionCode,"=5BBDA",os.DTAA_AmtChk)) -> 0 | AV73: 5A1aiiaa | AW73: =IF(MID(sheet1.ResidentialStatus1,1,3)="NRI",SUMIFS(os.DTAA_AmtChk,os.TRC,"=Yes",OS_DTAASectionCode,"=5A1aiiaa"),SUMIF(OS_DTAASectionCode,"=5A1aiiaa",os.DTAA_AmtChk)) -> 0 | AX73: 5A1bB | AY73: =IF(MID(sheet1.ResidentialStatus1,1,3)="NRI",SUMIFS(os.DTAA_AmtChk,os.TRC,"=Yes",OS_DTAASectionCode,"=5A1bB"),SUMIF(OS_DTAASectionCode,"=5A1bB",os.DTAA_AmtChk)) -> 0 | AZ73: 5Ea | BA73: =IF(MID(sheet1.ResidentialStatus1,1,3)="NRI",SUMIFS(os.DTAA_AmtChk,os.TRC,"=Yes",OS_DTAASectionCode,"=5Ea"),SUMIF(OS_DTAASectionCode,"=5Ea",os.DTAA_AmtChk)) -> 0
F74: =F73+1 -> 5 | O74: 0 | Z74: =IF(ISERROR(VLOOKUP(M74,OS_DTAA_lookup,2,FALSE)),"",VLOOKUP(M74,OS_DTAA_lookup,2,FALSE)) ->  | AA74: =IF(ISERROR(IF(TRIM(MID(M74,1,SEARCH("-",M74)-1))="56(2)(i)","56i",IF(TRIM(MID(M74,1,SEARCH("-",M74)-1))="56(2)","56",TRIM(MID(M74,1,SEARCH("-",M74)-1))))),0,IF(TRIM(MID(M74,1,SEARCH("-",M74)-1))="56(2)(i)","56i",IF(TRIM(MID(M74,1,SEARCH("-",M74)-1))="56(2)","56",TRIM(MID(M74,1,SEARCH("-",M74)-1))))) -> 0 | AB74: =G74 -> 0 | AC74: =IF(AA74="56i",Os.1a,IF(AA74="56",Os.1b,SUMIF(os.check,AA74,SRCamt))) -> 0 | AD74: =IF(AA74="56i",IF(Os.1a>=0,1,0),IF(AA74="56",IF(Os.1b>=0,1,0), COUNTIF(os.check,AA74))) -> 0 | AE74: =IF(AC74<AB74,0,1) -> 1 | AF74: =IF(OR(NOT(isdropdownblank(I74)),J74<>"",K74<>"",L74<>"",NOT(isdropdownblank(M74)),G74<>""),1,0) -> 0 | AL74: =SUMIF(OS_DTAASectionCode,"=5BBF",os.Amount_income) -> 0 | AO74: =IF(MID(sheet1.ResidentialStatus1,1,3)="NRI",SUMIFS(os.DTAA_AmtChk,os.TRC,"=Yes",OS_DTAASectionCode,"=5BBF"),SUMIF(OS_DTAASectionCode,"=5BBF",os.DTAA_AmtChk)) -> 0 | AS74: =IF(MID(sheet1.ResidentialStatus1,1,3)="NRI",SUMIFS(os.DTAA_AmtChk,os.TRC,"=Yes",OS_DTAASectionCode,"=5BBG"),SUMIF(OS_DTAASectionCode,"=5BBG",os.DTAA_AmtChk)) -> 0 | AU74: =IF(MID(sheet1.ResidentialStatus1,1,3)="NRI",SUMIFS(os.DTAA_AmtChk,os.TRC,"=Yes",OS_DTAASectionCode,"=5BBDA"),SUMIF(OS_DTAASectionCode,"=5BBDA",os.DTAA_AmtChk)) -> 0 | AW74: =IF(MID(sheet1.ResidentialStatus1,1,3)="NRI",SUMIFS(os.DTAA_AmtChk,os.TRC,"=Yes",OS_DTAASectionCode,"=5A1aiiaa"),SUMIF(OS_DTAASectionCode,"=5A1aiiaa",os.DTAA_AmtChk)) -> 0 | AY74: =IF(MID(sheet1.ResidentialStatus1,1,3)="NRI",SUMIFS(os.DTAA_AmtChk,os.TRC,"=Yes",OS_DTAASectionCode,"=5A1bB"),SUMIF(OS_DTAASectionCode,"=5A1bB",os.DTAA_AmtChk)) -> 0 | BA74: =IF(MID(sheet1.ResidentialStatus1,1,3)="NRI",SUMIFS(os.DTAA_AmtChk,os.TRC,"=Yes",OS_DTAASectionCode,"=5Ea"),SUMIF(OS_DTAASectionCode,"=5Ea",os.DTAA_AmtChk)) -> 0
AK75: 115BBG | AL75: =SUMIF(OS_DTAASectionCode,"=5BBG",os.Amount_income) -> 0 | AN75: 5BB | AO75: =IF(MID(sheet1.ResidentialStatus1,1,3)="NRI",SUMIFS(os.DTAA_AmtChk,os.TRC,"=Yes",OS_DTAASectionCode,"=5BB"),SUMIF(OS_DTAASectionCode,"=5BB",os.DTAA_AmtChk)) -> 0 | AT75: 5AC1b | AU75: =IF(MID(sheet1.ResidentialStatus1,1,3)="NRI",SUMIFS(os.DTAA_AmtChk,os.TRC,"=Yes",OS_DTAASectionCode,"=5AC1b"),SUMIF(OS_DTAASectionCode,"=5AC1b",os.DTAA_AmtChk)) -> 0
D76: 3 | E76: Deductions under section 57 (other than those relating to income chargeable at special rates under 2a, 2b & 2d) | AN76: 56(2)(i) | AO76: =IF(MID(sheet1.ResidentialStatus1,1,3)="NRI",SUMIFS(os.DTAA_AmtChk,os.TRC,"=Yes",OS_DTAASectionCode,"=56i"),SUMIF(OS_DTAASectionCode,"=56i",os.DTAA_AmtChk)) -> 0 | AP76: 56(2)(iii) | AQ76: =IF(MID(sheet1.ResidentialStatus1,1,3)="NRI",SUMIFS(os.DTAA_AmtChk,os.TRC,"=Yes",OS_DTAASectionCode,"=56iii"),SUMIF(OS_DTAASectionCode,"=56iii",os.DTAA_AmtChk)) -> 0
E77: a(i) | F77: Expenses / deductions other than “aii” (in case of other than family pension) | I77: 3ai | AN77: 56(2)-Interest | AO77: =IF(MID(sheet1.ResidentialStatus1,1,3)="NRI",SUMIFS(os.DTAA_AmtChk,os.TRC,"=Yes",OS_DTAASectionCode,"=56"),SUMIF(OS_DTAASectionCode,"=56",os.DTAA_AmtChk)) -> 0 | AP77: 56(2)(x) | AQ77: =IF(MID(sheet1.ResidentialStatus1,1,3)="NRI",SUMIFS(os.DTAA_AmtChk,os.TRC,"=Yes",OS_DTAASectionCode,"=562x"),SUMIF(OS_DTAASectionCode,"=562x",os.DTAA_AmtChk)) -> 0
E78: a(ii) | F78: Deduction u/s 57(iia) (in case of family pension only) | I78: 3aii
E79: b | F79: Depreciation (available only if income offered in 1.C of "schedule OS") | I79: 3b
E80: c | F80: Interest expenditure on dividend u/s 57(1 ) (available only if income offered in 1a)
F81: Interest expenditure claimed | J81: 0
E82: i | F82: Eligible amount of interest expenditure u/s 57(i) - Computed Amount | I82: 3c | J82: 0
E83: d | F83: Total | I83: 3d | J83: =os.Expenses+os_Deduction57iia+os.Depreciation+os.amountinterestexpenditure -> 0
D84: 4 | E84: Amounts not deductible u/s 58 | I84: 4 | T84: 0 | U84: =(os.InterestGross+os.RentFromMachPlantBldgs+os.Totalsec56+V84) -> 107910 | V84: =SUM(os.OtherSections) -> 0
D85: 5 | E85: Profits chargeable to tax u/s 59 | I85: 5 | T85: =os.expenditureClaimed-MIN(os.expenditureClaimed,os.DividendGrossaii) -> 0 | U85: =IF(os.amountinterestexpenditure="",0,os.amountinterestexpenditure-MIN(os.amountinterestexpenditure,os.DividendGrossaii)) -> 0
D86: 5a | E86: Income claimed for relief from taxation u/s 89A | I86: 5a
D87: 6 | E87: Net Income from other sources chargeable at normal applicable rates 1(after reducing income related to DTAA portion)-3+4+5 -5a (If negative take the figure to 4i of schedule CYLA) | K87: 6 | L87: =(os.GrossIncomeChargeableToTax-os.TotDeductions+os.AmountnotDed58+os.Profit59-DTAA_1a_OS-DTAA_1b_OS-DTAA_1c_OS-DTAA_1d_OS-OSIncreliefus89A) -> 107910 | T87: 4
D88: 7 | E88: Income from other sources (other than from owning race horses)(2+6) (enter 6 as nil, if negative) | K88: 7 | L88: =IF(L87<0,(J36),(J36+L87)) -> 107910 | T88: 2115000
D89: 8 | E89: Income from the activity of owning and maintaining race horses | T89: 107910
E90: a | F90: Receipts | I90: 8a | T90: =IF(os.PassThroughIncome<0,0,SUMIF(os.NatureOfIncome,"1b",os.Amount_income)) -> 0
E91: b | F91: Deductions under section 57 in relation to receipts at 8a only | I91: 8b | T91: =SUMIF(os.NatureOfIncome,"1c",os.Amount_income) -> 0 | U91: =IF(MID(sheet1.ResidentialStatus1,1,3)="NRI",SUMIFS(os.Amount_income,os.TRC,"=Yes",os.SectionAct,"5AC1a - 115AC(1)(a) - Income by way of interest on bonds purchased in foreign currency"),SUMIF(os.SectionAct,"5AC1a - 115AC(1)(a) - Income by way of interest on bonds purchased in foreign currency",os.Amount_income)) -> 0 | V91: =IF(MID(sheet1.ResidentialStatus1,1,3)="NRI",SUMIFS(os.Amount_income,os.TRC,"=Yes",os.SectionAct,"PTI_115AC(1)(a)-Income by way of interest on bonds purchased in foreign currency - non-resident"),SUMIF(os.SectionAct,"PTI_115AC(1)(a)-Income by way of interest on bonds purchased in foreign currency - non-resident",os.Amount_income)) -> 0 | W91: =IF(MID(sheet1.ResidentialStatus1,1,3)="NRI",SUMIFS(os.Amount_income,os.TRC,"=Yes",os.SectionAct,"5AC1b - 115AC1b - Income by way of Dividend on GDRs purchased in foreign currency - non-resident"),SUMIF(os.SectionAct,"5AC1b - 115AC1b - Income by way of Dividend on GDRs purchased in foreign currency - non-resident",os.Amount_income)) -> 0 | X91: =IF(MID(sheet1.ResidentialStatus1,1,3)="NRI",SUMIFS(os.Amount_income,os.TRC,"=Yes",os.SectionAct,"PTI_5AC1b-PTI -Income by way of Dividend on GDRs purchased in foreign currency - non-resident"),SUMIF(os.SectionAct,"PTI_5AC1b-PTI -Income by way of Dividend on GDRs purchased in foreign currency - non-resident",os.Amount_income)) -> 0 | Y91: =DTAA_5AC1a+DTAA_5AC1aPTI+DTAA_5AC1b+DTAA_5AC1bPTI -> 0
E92: c | F92: Amounts not deductible u/s 58 | I92: 8c | T92: =SUMIF(os.NatureOfIncome,"1d",os.Amount_income) -> 0 | U92: =IF(MID(sheet1.ResidentialStatus1,1,3)="NRI",SUMIFS(os.Amount_income,os.TRC,"=Yes",os.SectionAct,"5A1ai - 115A(1)(a)(i) - Dividends in the case of non-residents"),SUMIF(os.SectionAct,"5A1ai - 115A(1)(a)(i) - Dividends in the case of non-residents",os.Amount_income)) -> 0 | V92: =IF(MID(sheet1.ResidentialStatus1,1,3)="NRI",SUMIFS(os.Amount_income,os.TRC,"=Yes",os.SectionAct,"PTI_115A(1)(a)(i)-Dividends interest and income from units purchase in foreign currency"),SUMIF(os.SectionAct,"PTI_115A(1)(a)(i)-Dividends interest and income from units purchase in foreign currency",os.Amount_income)) -> 0 | W92: =DTAA_5A1ai+DTAA_5A1aiPTI -> 0
E93: d | F93: Profits chargeable to tax u/s 59 | I93: 8d | T93: =SUM(H106:L106) -> 0 | U93: =IF(MID(sheet1.ResidentialStatus1,1,3)="NRI",SUMIFS(os.Amount_income,os.TRC,"=Yes",os.SectionAct,"5AD1iDiv-Income (being dividend) received by an FII in respect of securities (other than units referred to in section 115AB) - chargeable u/s 115AD(1)(i)"),SUMIF(os.SectionAct,"5AD1iDiv-Income (being dividend) received by an FII in respect of securities (other than units referred to in section 115AB) - chargeable u/s 115AD(1)(i)",os.Amount_income)) -> 0 | V93: =IF(MID(sheet1.ResidentialStatus1,1,3)="NRI",SUMIFS(os.Amount_income,os.TRC,"=Yes",os.SectionAct,"PTI_5AD1iDiv-PTI-Income (being dividend) received by an FII in respect of securities (other than units referred to in section 115AB) - chargeable u/s 115AD(1)(i)"),SUMIF(os.SectionAct,"PTI_5AD1iDiv-PTI-Income (being dividend) received by an FII in respect of securities (other than units referred to in section 115AB) - chargeable u/s 115AD(1)(i)",os.Amount_income)) -> 0 | W93: =DTAA_5AD1i+DTAA_5AD1iPTI -> 0
E94: e | F94: Balance (8a - 8b + 8c + 8d) (if negative take the figure to 10xii of Schedule CFL) | K94: 8e | L94: =os.Receipts-os.DeductSec57+os.notDeductSec58+os.ProfitSec59 -> 0 | T94: =IF(MID(sheet1.ResidentialStatus1,1,3)="NRI",SUMIFS(os.Amount_income,os.TRC,"=Yes",os.NatureOfIncome,"1ai"),SUMIF(os.NatureOfIncome,"1ai",os.Amount_income)) -> 0 | U94: =IF(MID(sheet1.ResidentialStatus1,1,3)="NRI",SUMIFS(os.Amount_income,os.TRC,"=Yes",os.SectionAct,"5ACA1a - 115ACA(1)(a) - Income from GDR purchased in foreign currency - resident"),SUMIF(os.SectionAct,"5ACA1a - 115ACA(1)(a) - Income from GDR purchased in foreign currency - resident",os.Amount_income)) -> 0 | V94: =IF(MID(sheet1.ResidentialStatus1,1,3)="NRI",SUMIFS(os.Amount_income,os.TRC,"=Yes",os.SectionAct,"PTI_115ACA(1)(a)-Income from GDR purchased in foreign currency -resident"),SUMIF(os.SectionAct,"PTI_115ACA(1)(a)-Income from GDR purchased in foreign currency -resident",os.Amount_income)) -> 0 | W94: =DTAA_5ACA1a+DTAA_5ACA1aPTI -> 0
D95: 9 | E95: Income under the head “Income from other sources” (7 + 8e) (take 8e as nil if negative) | K95: 9 | L95: =SUM(os.TotOthSrcNoRaceHorse,MAX(0,os.BalanceOwnRaceHorse)) -> 107910 | T95: =SUMIF(os.NatureOfIncome,"2e",os.Amount_income) -> 0
D96: 10 | E96: Information about accrual/receipt of income from Other Sources | T96: =SUMIF(os.NatureOfIncome,"2d",os.Amount_income) -> 0
E97: Sl. No. | F97: Other Source Income | H97: Upto 15/6 (i) | I97: From 16/6 to 15/9 (ii) | J97: From 16/9 to 15/12 (iii) | K97: From 16/12 to 15/3 (iv) | L97: From 16/3 to 31/3 (v) | T97: =IF(MID(sheet1.ResidentialStatus1,1,3)="NRI",SUMIFS(os.Amount_income,os.TRC,"=Yes",os.NatureOfIncome,"2a"),SUMIF(os.NatureOfIncome,"2a",os.Amount_income)) -> 0
E98: 1 | F98: Income by way of winnings from lotteries, crossword puzzles, races, games, gambling, betting etc. referred to in section 2(24)(ix) | H98: 0 | I98: 0 | J98: 0 | K98: 0 | L98: 0 | T98: =SUM(H98:L98) -> 0
E99: 2 | F99: Dividend Income referred in Sl. No. 1a(i) | H99: 0 | I99: 0 | J99: 0 | K99: 0 | L99: 0 | T99: =SUM(H99:L99) -> 0
E100: 3 | F100: Dividend Income u/s 115A(1)(a)(i) @ 20% ( Including PTI Income) | H100: 0 | I100: 0 | J100: 0 | K100: 0 | L100: 0 | T100: =SUM(H100:L100) -> 0
E101: 4 | F101: Dividend Income u/s 115AC @ 10% (Including PTI Income) | H101: 0 | I101: 0 | J101: 0 | K101: 0 | L101: 0 | T101: 0
E102: 5 | F102: Dividend Income u/s 115ACA (1)(a) @ 10% (Including PTI Income) | H102: 0 | I102: 0 | J102: 0 | K102: 0 | L102: 0 | T102: 0
E103: 6 | F103: Dividend Income u/s 115A(1)(a)(iiac) @ 10% (Including PTI Income) | T103: 0
E104: 6 | F104: Dividend Income (other than units referred to in section 115AB) u/s 115AD(1)(i) @ 20% (Including PTI Income) | H104: 0 | I104: 0 | J104: 0 | K104: 0 | L104: 0 | T104: 0
E105: 7 | F105: Income from retirement benefit account maintained in a notified country u/s 89A (Taxable portion after reducing relief u/s 89A) | H105: 0 | I105: 0 | J105: 0 | K105: 0 | L105: 0 | T105: 0
E106: 8 | F106: Dividend income taxable at DTAA rates | H106: 0 | I106: 0 | J106: 0 | K106: 0 | L106: 0 | T106: 0
C107: NOTE | D107: Please include the income of the specified persons (spouse, minor child, etc.) referred to in Schedule SPI while computing the income under this head

Sheet CYLA - BFLA
C3: Schedule CYLA | F3: Details of Income after set-off of current years losses
C4: CURRENT YEAR LOSS ADJUSTMENT | D4: Sl.No | E4: Head/ Source of Income | F4: Income of current year (Fill this column only if income is zero or positive) | G4: House property loss of the current year set off | H4: Business Loss (other than speculation loss or specified business loss) of the current year set off | I4: Net loss from Other sources chargeable at normal applicable rates (other than loss from race horses) of the current year set off. | J4: Current year’s Income remaining after set off | Q4: tothpincome
D5: i | E5: Loss to be setoff -> | G5: Total loss (4 of Schedule – HP) | H5: Total loss (2v of item E of Schedule BP) | I5: Total loss (6 of Schedule-OS) | O5: HP | P5: BP | Q5: OS | S5: Remaining Set offHP Loss | T5: Remaining Set off BP | U5: Remaining Setoff OS
G6: =ABS(MIN(HP.TotalIncomeChargeableUnHP,0)) -> 0 | H6: 0 | I6: =ABS(MIN(os.BalanceNoRaceHorse+MAX(0,0),0)) -> 0 | O6: =ABS(MIN(HP.REStwolakh,0)) -> 0 | S6: =ABS(MIN(HP.TotalIncomeChargeableUnHP,0)) -> 0 | T6: =ABS(MIN(sheet12.NetPLBusOthThanSpec7A7B7C +MAX(sheet12.AdjustedPLFrmSpecuBus,0)++MAX(sheet12.AdjustedPLFrmSpecifiedBus,0),0)) -> 0 | U6: =ABS(MIN(os.BalanceNoRaceHorse+MAX(0,0),0)) -> 0
F7: 1 | G7: 2 | H7: 3 | I7: 3 | J7: 4=1-2-3
D8: ii | E8: Salaries | F8: =(SAL.IncomeFromSalary1) -> 1827000 | G8: 0 | I8: 0 | J8: =ROUND((salary.IncOfCurYrUnderThatHead1-salary.HPlossCurYrSetoff1-salary.OthSrcLossNoRaceHorseSetoff1),0) -> 1827000 | O8: =IF(S6<(salary.IncOfCurYrUnderThatHead1-salary.OthSrcLossNoRaceHorseSetoff1),S6,(salary.IncOfCurYrUnderThatHead1-salary.OthSrcLossNoRaceHorseSetoff1)) -> 0 | Q8: =IF(U21<salary.IncOfCurYrUnderThatHead1,U21,salary.IncOfCurYrUnderThatHead1) -> 0 | R8: i | S8: =cyla.TotHPlossCurYr-salary.HPlossCurYrSetoff1 -> 0 | U8: =(U21-salary.OthSrcLossNoRaceHorseSetoff1) -> 0
D9: iii | E9: House property | F9: =MAX(0,HP.TotalIncomeChargeableUnHP) -> 432000 | H9: 0 | I9: 0 | J9: =ROUND((hp.IncOfCurYrUnderThatHead2-hp.BusLossSetoff2-hp.OthSrcLossNoRaceHorseSetoff2),0) -> 432000 | P9: =IF(T6<(hp.IncOfCurYrUnderThatHead2-hp.OthSrcLossNoRaceHorseSetoff2),T6,(hp.IncOfCurYrUnderThatHead2-hp.OthSrcLossNoRaceHorseSetoff2)) -> 0 | Q9: =IF(U8<hp.IncOfCurYrUnderThatHead2,U8,hp.IncOfCurYrUnderThatHead2) -> 0 | R9: ii | T9: =T6-hp.BusLossSetoff2 -> 0 | U9: =(U8-hp.OthSrcLossNoRaceHorseSetoff2) -> 0
D10: iv | E10: Business Income (excluding speculation profit and income from specified business) | F10: 0 | G10: 0 | I10: 0 | J10: 0 | O10: =IF(S8<(busprof.IncOfCurYrUnderThatHead-busprof.OthSrcLossNoRaceHorseSetoff),S8,(busprof.IncOfCurYrUnderThatHead-busprof.OthSrcLossNoRaceHorseSetoff)) -> 0 | Q10: =IF(U9<busprof.IncOfCurYrUnderThatHead,U9,busprof.IncOfCurYrUnderThatHead) -> 0 | R10: iii | S10: =S8-busprof.HPlossCurYrSetoff -> 0 | U10: =U9-busprof.OthSrcLossNoRaceHorseSetoff -> 0
D11: v | E11: Speculative Income | F11: 0 | G11: 0 | I11: 0 | J11: 0 | O11: =IF(S10<(busprofspec.IncOfCurYrUnderThatHead0a-busprofspec.OthSrcLossNoRaceHorseSetoff0a),S10,(busprofspec.IncOfCurYrUnderThatHead0a-busprofspec.OthSrcLossNoRaceHorseSetoff0a)) -> 0 | Q11: =IF(U10<busprofspec.IncOfCurYrUnderThatHead0a,U10,busprofspec.IncOfCurYrUnderThatHead0a) -> 0 | R11: iv | S11: =S10-busprofspec.HPlossCurYrSetoff0a -> 0 | U11: =(U10-busprofspec.OthSrcLossNoRaceHorseSetoff0a) -> 0
D12: vi | E12: Specified Business Income | F12: 0 | G12: 0 | I12: 0 | J12: 0 | O12: =IF(S11<(busprofspecified.IncOfCurYrUnderThatHead0b-busprofspecified.OthSrcLossNoRaceHorseSetoff0b),S11,(busprofspecified.IncOfCurYrUnderThatHead0b-busprofspecified.OthSrcLossNoRaceHorseSetoff0b)) -> 0 | Q12: =IF(U11<busprofspecified.IncOfCurYrUnderThatHead0b,U11,busprofspecified.IncOfCurYrUnderThatHead0b) -> 0 | R12: v | S12: =(S11-busprof0b.HPlossCurYrSetoff0b) -> 0 | U12: =U11-busprofspecified.OthSrcLossNoRaceHorseSetoff0b -> 0
D13: iv | E13: Short-term capital gain taxable @ 15% | F13: =MAX(0,IHLA.Eii7_CurrYrCapGain) -> 0 | G13: 0 | H13: 0 | I13: 0 | J13: =ROUND((F13-G13-H13-I13),0) -> 0 | O13: =IF(S18<(stcg.IncOfCurYrUnderThatHead1-stcg.OthSrcLossNoRaceHorseSetoff1),S18,(stcg.IncOfCurYrUnderThatHead1-stcg.OthSrcLossNoRaceHorseSetoff1)) -> 0 | P13: =IF(T18<(stcg.IncOfCurYrUnderThatHead1-stcg.OthSrcLossNoRaceHorseSetoff1-stcg.HPlossCurYrSetoff1),T18,(stcg.IncOfCurYrUnderThatHead1-stcg.OthSrcLossNoRaceHorseSetoff1-stcg.HPlossCurYrSetoff1)) -> 0 | Q13: =IF(U18<stcg.IncOfCurYrUnderThatHead1,U18,stcg.IncOfCurYrUnderThatHead1) -> 0 | R13: vi | S13: =S18-stcg.HPlossCurYrSetoff1 -> 0 | T13: =T18-stcg.BusLossSetoff1 -> 0 | U13: =U18-stcg.OthSrcLossNoRaceHorseSetoff1 -> 0
D14: v | E14: Short-term capital gain taxable @ 30% | F14: =MAX(0,IHLA.Eiii7_CurrYrCapGain) -> 0 | G14: 0 | H14: 0 | I14: 0 | J14: 0 | O14: =IF(S21<(stcg.IncOfCurYrUnderThatHead1a-stcg.OthSrcLossNoRaceHorseSetoff1a),S21,(stcg.IncOfCurYrUnderThatHead1a-stcg.OthSrcLossNoRaceHorseSetoff1a)) -> 0 | P14: =IF(T21<(stcg.IncOfCurYrUnderThatHead1a-stcg.OthSrcLossNoRaceHorseSetoff1a-stcg.HPlossCurYrSetoff1a),T21,(stcg.IncOfCurYrUnderThatHead1a-stcg.OthSrcLossNoRaceHorseSetoff1a-stcg.HPlossCurYrSetoff1a)) -> 0 | Q14: =IF(U12<stcg.IncOfCurYrUnderThatHead1a,U12,stcg.IncOfCurYrUnderThatHead1a) -> 0 | R14: vii | S14: =S21-stcg.HPlossCurYrSetoff1a -> 0 | T14: =T21-stcg.BusLossSetoff1a -> 0 | U14: =U12-stcg.OthSrcLossNoRaceHorseSetoff1a -> 0
D15: vi | E15: Short-term capital gain taxable @ applicable rates | F15: =MAX(0,IHLA.Eiv7_CurrYrCapGain) -> 0 | G15: 0 | H15: 0 | I15: 0 | J15: 0 | O15: =IF(S14<(stcg.IncOfCurYrUnderThatHead1b-stcg.OthSrcLossNoRaceHorseSetoff1b),S14,(stcg.IncOfCurYrUnderThatHead1b-stcg.OthSrcLossNoRaceHorseSetoff1b)) -> 0 | P15: =IF(T14<(stcg.IncOfCurYrUnderThatHead1b-stcg.OthSrcLossNoRaceHorseSetoff1b-stcg.HPlossCurYrSetoff1b),T14,(stcg.IncOfCurYrUnderThatHead1b-stcg.OthSrcLossNoRaceHorseSetoff1b-stcg.HPlossCurYrSetoff1b)) -> 0 | Q15: =IF(U14<stcg.IncOfCurYrUnderThatHead1b,U14,stcg.IncOfCurYrUnderThatHead1b) -> 0 | R15: viii | S15: =S14-stcg.HPlossCurYrSetoff1b -> 0 | T15: =T14-stcg.BusLossSetoff1b -> 0 | U15: =U14-stcg.OthSrcLossNoRaceHorseSetoff1b -> 0
D16: vii | E16: Short-term capital gain taxable at DTAA rates | F16: =MAX(0,IHLA.Ev7_DTAArates) -> 0 | G16: 0 | H16: 0 | I16: 0 | J16: 0
D17: viii | E17: Long term capital gain taxable @ 10% | F17: =MAX(0,IHLA.Ev7_CurrYrCapGain) -> 3502400 | G17: 0 | H17: 0 | I17: 0 | J17: 3502400 | O17: =IF(S13<(ltcg.IncOfCurYrUnderThatHead2-ltcg.OthSrcLossNoRaceHorseSetoff2),S13,(ltcg.IncOfCurYrUnderThatHead2-ltcg.OthSrcLossNoRaceHorseSetoff2)) -> 0 | P17: =IF(T13<(ltcg.IncOfCurYrUnderThatHead2-ltcg.OthSrcLossNoRaceHorseSetoff2-ltcg.HPlossCurYrSetoff2),T13,(ltcg.IncOfCurYrUnderThatHead2-ltcg.OthSrcLossNoRaceHorseSetoff2-ltcg.HPlossCurYrSetoff2)) -> 0 | Q17: =IF(U13<ltcg.IncOfCurYrUnderThatHead2,U13,ltcg.IncOfCurYrUnderThatHead2) -> 0 | R17: ix | S17: =S13-ltcg.HPlossCurYrSetoff2 -> 0 | T17: =T13-ltcg.BusLossSetoff2 -> 0 | U17: =U13-ltcg.OthSrcLossNoRaceHorseSetoff2 -> 0
D18: ix | E18: Long term capital gain taxable @ 20% | F18: =MAX(0,IHLA.Evi7_CurrYrCapGain) -> 0 | G18: 0 | H18: 0 | I18: 0 | J18: 0 | O18: =IF(S15<(ltcg.IncOfCurYrUnderThatHead2a-ltcg.OthSrcLossNoRaceHorseSetoff2a),S15,(ltcg.IncOfCurYrUnderThatHead2a-ltcg.OthSrcLossNoRaceHorseSetoff2a)) -> 0 | P18: =IF(T15<(ltcg.IncOfCurYrUnderThatHead2a-ltcg.OthSrcLossNoRaceHorseSetoff2a-ltcg.HPlossCurYrSetoff2a),T15,(ltcg.IncOfCurYrUnderThatHead2a-ltcg.OthSrcLossNoRaceHorseSetoff2a-ltcg.HPlossCurYrSetoff2a)) -> 0 | Q18: =IF(U15<ltcg.IncOfCurYrUnderThatHead2a,U15,ltcg.IncOfCurYrUnderThatHead2a) -> 0 | R18: x | S18: =S15-ltcg.HPlossCurYrSetoff2a -> 0 | T18: =(T15-ltcg.BusLossSetoff2a) -> 0 | U18: =U15-ltcg.OthSrcLossNoRaceHorseSetoff2a -> 0
D19: x | E19: Long term capital gains taxable @ DTAA rates | F19: =MAX(0,IHLA.E_LTCGv7_DTAArates) -> 0 | G19: 0 | H19: 0 | I19: 0 | J19: 0
D20: xi | E20: Net Income From Other sources chargeable at Normal Applicable rates | F20: =MAX(0,os.BalanceNoRaceHorse) -> 107910 | G20: 0 | H20: 0 | J20: 107910 | O20: =IF(S12<othSecinclnlhrs.IncOfCurYrUnderThatHead3,S12,othSecinclnlhrs.IncOfCurYrUnderThatHead3) -> 0 | P20: =IF(T9<(othSecinclnlhrs.IncOfCurYrUnderThatHead3-othSecinclnlhrs.HPlossCurYrSetoff3),T9,(othSecinclnlhrs.IncOfCurYrUnderThatHead3-othSecinclnlhrs.HPlossCurYrSetoff3)) -> 0 | R20: xi | S20: =S12-O20 -> 0 | T20: =T9-othSecinclnlhrs.BusLossSetoff3 -> 0
D21: xii | E21: Profit from activity of owning and maintaining race horse | F21: =MAX(0,os.BalanceOwnRaceHorse) -> 0 | G21: 0 | H21: 0 | I21: 0 | J21: 0 | O21: =IF(S20<(rh.IncOfCurYrUnderThatHead4-rh.OthSrcLossNoRaceHorseSetoff4),S20,(rh.IncOfCurYrUnderThatHead4-rh.OthSrcLossNoRaceHorseSetoff4)) -> 0 | P21: =IF(T20<(rh.IncOfCurYrUnderThatHead4-rh.OthSrcLossNoRaceHorseSetoff4-rh.HPlossCurYrSetoff4),T20,(rh.IncOfCurYrUnderThatHead4-rh.OthSrcLossNoRaceHorseSetoff4-rh.HPlossCurYrSetoff4)) -> 0 | Q21: =IF(U6<rh.IncOfCurYrUnderThatHead4,U6,rh.IncOfCurYrUnderThatHead4) -> 0 | R21: xii | S21: =S20-rh.HPlossCurYrSetoff4 -> 0 | T21: =(T20-rh.BusLossSetoff4) -> 0 | U21: =U6-rh.OthSrcLossNoRaceHorseSetoff4 -> 0
D22: xiii | E22: Income from Other sources taxable at special rates in India as per DTAA rates | F22: 0 | G22: 0 | H22: 0 | I22: 0 | J22: 0
D23: xiv | E23: Total loss set-off | G23: =SUM(G8,G10:G22) -> 0 | H23: =SUM(H9,H13:H22) -> 0 | I23: =SUM(I8:I19,I21:I22) -> 0
D24: xiii | E24: Loss remaining after set-off (i - xii) | G24: =IF(bacValue=1,0,IF(sheet16.TotHPlossCurYrSetoff<200000,MAX(0,((cyla.TotHPlossCurYr1-G23)+(HP.REMloss))),HP.REMloss)) -> 0 | H24: 0 | I24: =MAX(0,(cyla.TotOthSrcLossNoRaceHorse-I23)) -> 0
C26: Schedule BFLA | F26: Details of Income after Set off of Brought Forward Losses of earlier years
C27: BROUGHT FORWARD LOSS ADJUSTMENT | D27: Sl. No. | E27: Head/ Source of Income | F27: Income after set off, if any, of current year’s losses as per 5 of Schedule CYLA) | G27: Brought forward loss set off | H27: Brought forward depreciation set off | I27: Current year’s income remaining after set off | S27: From CFL | W27: Remaining Set off | AC27: Depriciation | AI27: Tot CY LTCG Income | AK27: Tot Pys LTCG Loss
AH28: 0.2 | AI28: =ltcg.IncOfCurYrUndHeadFromCYLA4a -> 0 | AK28: =totofbfloss.LTCGLossCF8 -> 0
F29: 1 | G29: 2 | H29: 3 | I29: 3 | AB29: From UD | AC29: =UD.TotSetoff -> 0 | AH29: 0.1 | AI29: =ltcg.IncOfCurYrUndHeadFromCYLA4 -> 3502400
D30: i | E30: Salaries | F30: =(J8) -> 1827000 | I30: =(F30) -> 1827000 | V30: i | AC30: Remaining
D31: ii | E31: House property | F31: 432000 | G31: 0 | H31: 0 | I31: =MAX(0,(F31-G31-H31-0)) -> 432000 | M31: 0 | O31: =IF(S31<hp.IncOfCurYrUndHeadFromCYLA1,S31,hp.IncOfCurYrUndHeadFromCYLA1) -> 0 | P31: =IF(AC34<(hp.IncOfCurYrUndHeadFromCYLA1-hp.BFlossPrevYrUndSameHeadSetoff1),AC34,(hp.IncOfCurYrUndHeadFromCYLA1-hp.BFlossPrevYrUndSameHeadSetoff1)) -> 0 | R31: HP | S31: =totofbfloss.HPLossCF8 -> 0 | V31: ii | W31: =S31-hp.BFlossPrevYrUndSameHeadSetoff1 -> 0 | AC31: =AC34-hp.BFUnabsorbedDeprSetoff1 -> 0
D32: iii | E32: Business Income (excluding speculation profit and income from specified business) | F32: 0 | G32: 0 | H32: 0 | I32: 0 | M32: 0 | O32: =IF(S32<busipofincl.IncOfCurYrUndHeadFromCYLA2,S32,busipofincl.IncOfCurYrUndHeadFromCYLA2) -> 0 | P32: =IF(AC29<(busipofincl.IncOfCurYrUndHeadFromCYLA2-busipofincl.BFlossPrevYrUndSameHeadSetoff2),AC29,(busipofincl.IncOfCurYrUndHeadFromCYLA2-busipofincl.BFlossPrevYrUndSameHeadSetoff2)) -> 0 | R32: BP | S32: =totofbfloss.BusLossOthThanSpecLossCF8 -> 0 | V32: iii | W32: =S32-busipofincl.BFlossPrevYrUndSameHeadSetoff2 -> 0 | AC32: =(AC29-busipofincl.BFUnabsorbedDeprSetoff2) -> 0 | AJ32: Remaining LTCG set off Remaining
D33: iv | E33: Speculative Income | F33: 0 | G33: 0 | H33: 0 | I33: 0 | M33: 0 | O33: =IF(S33<busipofinclspec.IncOfCurYrUndHeadFromCYLA2a,IF((S33+W32)<=busipofinclspec.IncOfCurYrUndHeadFromCYLA2a,(S33+W32),busipofinclspec.IncOfCurYrUndHeadFromCYLA2a),busipofinclspec.IncOfCurYrUndHeadFromCYLA2a) -> 0 | P33: =IF(AC32<(busipofinclspec.IncOfCurYrUndHeadFromCYLA2a-busipofinclspec.BFlossPrevYrUndSameHeadSetoff2a),AC32,(busipofinclspec.IncOfCurYrUndHeadFromCYLA2a-busipofinclspec.BFlossPrevYrUndSameHeadSetoff2a)) -> 0 | R33: Spec BP | S33: =totofbfloss.LossFrmSpecBusCF8 -> 0 | V33: iv | W33: =(W32+S33-busipofinclspec.BFlossPrevYrUndSameHeadSetoff2a) -> 0 | AC33: =(AC32-P33) -> 0 | AJ33: =MAX(0,(AI28+AI29)-AK28) -> 3502400
D34: v | E34: Specified Business Income | F34: 0 | G34: 0 | H34: 0 | I34: 0 | M34: 0 | O34: =IF(S32=0,IF(S34=0,0,IF(S34<busipofinclspecified.IncOfCurYrUndHeadFromCYLA2b,IF((W33+S34)<=busipofinclspecified.IncOfCurYrUndHeadFromCYLA2b,(W33+S34),busipofinclspecified.IncOfCurYrUndHeadFromCYLA2b),busipofinclspecified.IncOfCurYrUndHeadFromCYLA2b)),IF(S34=0,IF(W33>0,IF(W32<busipofinclspecified.IncOfCurYrUndHeadFromCYLA2b,W32,busipofinclspecified.IncOfCurYrUndHeadFromCYLA2b),IF(S34=0,0,IF(S34<busipofinclspecified.IncOfCurYrUndHeadFromCYLA2b,IF((W33+S34)<=busipofinclspecified.IncOfCurYrUndHeadFromCYLA2b,(W33+S34),busipofinclspecified.IncOfCurYrUndHeadFromCYLA2b),busipofinclspecified.IncOfCurYrUndHeadFromCYLA2b))),IF(S34<busipofinclspecified.IncOfCurYrUndHeadFromCYLA2b,S34,busipofinclspecified.IncOfCurYrUndHeadFromCYLA2b))) -> 0 | P34: =IF(AC33<(busipofinclspecified.IncOfCurYrUndHeadFromCYLA2b-busipofinclspecified.BFlossPrevYrUndSameHeadSetoff2b),AC33,(busipofinclspecified.IncOfCurYrUndHeadFromCYLA2b-busipofinclspecified.BFlossPrevYrUndSameHeadSetoff2b)) -> 0 | R34: Spcif BP | S34: =totofbfloss.LossFrmSpecifiedBusCF8 -> 0 | V34: v | W34: =(W33+S34-busipofinclspecified.BFlossPrevYrUndSameHeadSetoff2b) -> 0 | AC34: =(AC33-busipofinclspecified.BFUnabsorbedDeprSetoff2b) -> 0 | AQ34: When only LTCG set off Exists
D35: iii | E35: Short-term capital gain taxable @ 15% | F35: 0 | G35: 0 | H35: 0 | I35: 0 | M35: 0 | O35: =IF(S36>0,IF(X40<stcg.IncOfCurYrUndHeadFromCYLA3,X40,stcg.IncOfCurYrUndHeadFromCYLA3),0) -> 0 | V35: vi | W35: =X40-stcg.BFlossPrevYrUndSameHeadSetoff3 -> 0 | X35: =X40-stcg.BFlossPrevYrUndSameHeadSetoff3 -> 0 | AJ35: After LTCG setoff at | AK35: Remaining Amt to set off | AO35: Set off | AP35: 0.2 | AQ35: =IF(S36>0,IF(S39>0,IF(S39<ltcg.IncOfCurYrUndHeadFromCYLA4a,S39,ltcg.IncOfCurYrUndHeadFromCYLA4a),IF(W37<ltcg.IncOfCurYrUndHeadFromCYLA4a,W37,ltcg.IncOfCurYrUndHeadFromCYLA4a)),IF(S39>0,IF(S39<ltcg.IncOfCurYrUndHeadFromCYLA4a,S39,ltcg.IncOfCurYrUndHeadFromCYLA4a),0)) -> 0
D36: iv | E36: Short-term capital gain taxable @ 30% | F36: 0 | G36: 0 | H36: 0 | I36: 0 | M36: 0 | O36: =IF(S36<stcg.IncOfCurYrUndHeadFromCYLA3a,S36,stcg.IncOfCurYrUndHeadFromCYLA3a) -> 0 | R36: sTCG | S36: =totofbfloss.STCGLossCF8 -> 0 | V36: vii | W36: =(S36-stcg.BFlossPrevYrUndSameHeadSetoff3a) -> 0 | AI36: 0.2 | AJ36: =IF(S36>0,IF(S39>0,IF(S39<ltcg.IncOfCurYrUndHeadFromCYLA4a,S39,ltcg.IncOfCurYrUndHeadFromCYLA4a),IF(W37<ltcg.IncOfCurYrUndHeadFromCYLA4a,W37,ltcg.IncOfCurYrUndHeadFromCYLA4a)),IF(S39<ltcg.IncOfCurYrUndHeadFromCYLA4a,S39,ltcg.IncOfCurYrUndHeadFromCYLA4a)) -> 0 | AK36: =ltcg.IncOfCurYrUndHeadFromCYLA4a-AJ36 -> 0 | AP36: 0.1 | AQ36: =IF(S36>0,IF(S39>0,IF(W40<ltcg.IncOfCurYrUndHeadFromCYLA4,W40,ltcg.IncOfCurYrUndHeadFromCYLA4),IF(X35<ltcg.IncOfCurYrUndHeadFromCYLA4,X35,ltcg.IncOfCurYrUndHeadFromCYLA4)),IF(S39>0,IF(W40<ltcg.IncOfCurYrUndHeadFromCYLA4,W40,ltcg.IncOfCurYrUndHeadFromCYLA4),0)) -> 0
D37: v | E37: Short-term capital gain taxable @ applicable rates | F37: 0 | G37: 0 | H37: 0 | I37: 0 | M37: 0 | O37: =IF(W36<stcg.IncOfCurYrUndHeadFromCYLA3b,W36,stcg.IncOfCurYrUndHeadFromCYLA3b) -> 0 | V37: viii | W37: =W36-stcg.BFlossPrevYrUndSameHeadSetoff3b -> 0 | AI37: 0.1 | AJ37: =IF(S36>0,IF(S39>0,IF(W40<ltcg.IncOfCurYrUndHeadFromCYLA4,W40,ltcg.IncOfCurYrUndHeadFromCYLA4),IF(W35<ltcg.IncOfCurYrUndHeadFromCYLA4,W35,ltcg.IncOfCurYrUndHeadFromCYLA4)),IF(S39>0,IF(W40<ltcg.IncOfCurYrUndHeadFromCYLA4,W40,ltcg.IncOfCurYrUndHeadFromCYLA4),0)) -> 0 | AK37: =ltcg.IncOfCurYrUndHeadFromCYLA4-AJ37 -> 3502400
D38: vi | E38: Short-term capital gain taxable at DTAA rates | F38: =(J16) -> 0 | G38: 0 | H38: 0 | I38: 0 | M38: 0
D39: vii | E39: Long term capital gain taxable @ 10% | F39: 3502400 | G39: 0 | H39: 0 | I39: 3502400 | M39: 0 | O39: =IF(AK37>0,IF(X35>0,IF(X35>AK37,IF(S36>0,IF(S39>0,IF(W40<ltcg.IncOfCurYrUndHeadFromCYLA4,W40,ltcg.IncOfCurYrUndHeadFromCYLA4),IF(X35<ltcg.IncOfCurYrUndHeadFromCYLA4,X35,ltcg.IncOfCurYrUndHeadFromCYLA4)),IF(S39>0,IF(W40<ltcg.IncOfCurYrUndHeadFromCYLA4,W40,ltcg.IncOfCurYrUndHeadFromCYLA4),0))+AK37,(IF(S36>0,IF(S39>0,IF(W40<ltcg.IncOfCurYrUndHeadFromCYLA4,W40,ltcg.IncOfCurYrUndHeadFromCYLA4),IF(X35<ltcg.IncOfCurYrUndHeadFromCYLA4,X35,ltcg.IncOfCurYrUndHeadFromCYLA4)),IF(S39>0,IF(W40<ltcg.IncOfCurYrUndHeadFromCYLA4,W40,ltcg.IncOfCurYrUndHeadFromCYLA4),0))+X35)),0),IF(S36>0,IF(S39>0,IF(W40<ltcg.IncOfCurYrUndHeadFromCYLA4,W40,ltcg.IncOfCurYrUndHeadFromCYLA4),IF(X35<ltcg.IncOfCurYrUndHeadFromCYLA4,X35,ltcg.IncOfCurYrUndHeadFromCYLA4)),IF(S39>0,IF(W40<ltcg.IncOfCurYrUndHeadFromCYLA4,W40,ltcg.IncOfCurYrUndHeadFromCYLA4),0))) -> 0 | R39: LTCG | S39: =totofbfloss.LTCGLossCF8 -> 0 | V39: ix | W39: =IF(S39>0,W40-IF(S36>0,IF(S39>0,IF(W40<ltcg.IncOfCurYrUndHeadFromCYLA4,W40,ltcg.IncOfCurYrUndHeadFromCYLA4),IF(X35<ltcg.IncOfCurYrUndHeadFromCYLA4,X35,ltcg.IncOfCurYrUndHeadFromCYLA4)),IF(S39>0,IF(W40<ltcg.IncOfCurYrUndHeadFromCYLA4,W40,ltcg.IncOfCurYrUndHeadFromCYLA4),0)),X35-IF(S36>0,IF(S39>0,IF(W40<ltcg.IncOfCurYrUndHeadFromCYLA4,W40,ltcg.IncOfCurYrUndHeadFromCYLA4),IF(X35<ltcg.IncOfCurYrUndHeadFromCYLA4,X35,ltcg.IncOfCurYrUndHeadFromCYLA4)),IF(S39>0,IF(W40<ltcg.IncOfCurYrUndHeadFromCYLA4,W40,ltcg.IncOfCurYrUndHeadFromCYLA4),0))) -> 0
D40: viii | E40: Long term capital gain taxable @ 20% | F40: 0 | G40: 0 | H40: 0 | I40: 0 | M40: 0 | O40: =IF(AK36>0,IF(W37>0,IF(W37>AK36,IF(S36>0,IF(S39>0,IF(S39<ltcg.IncOfCurYrUndHeadFromCYLA4a,S39,ltcg.IncOfCurYrUndHeadFromCYLA4a),IF(W37<ltcg.IncOfCurYrUndHeadFromCYLA4a,W37,ltcg.IncOfCurYrUndHeadFromCYLA4a)),IF(S39>0,IF(S39<ltcg.IncOfCurYrUndHeadFromCYLA4a,S39,ltcg.IncOfCurYrUndHeadFromCYLA4a),0))+AK36),IF(S36>0,IF(S39>0,IF(S39<ltcg.IncOfCurYrUndHeadFromCYLA4a,S39,ltcg.IncOfCurYrUndHeadFromCYLA4a),IF(W37<ltcg.IncOfCurYrUndHeadFromCYLA4a,W37,ltcg.IncOfCurYrUndHeadFromCYLA4a)),IF(S39>0,IF(S39<ltcg.IncOfCurYrUndHeadFromCYLA4a,S39,ltcg.IncOfCurYrUndHeadFromCYLA4a),0))+W37),IF(S36>0,IF(S39>0,IF(S39<ltcg.IncOfCurYrUndHeadFromCYLA4a,S39,ltcg.IncOfCurYrUndHeadFromCYLA4a),IF(W37<ltcg.IncOfCurYrUndHeadFromCYLA4a,W37,ltcg.IncOfCurYrUndHeadFromCYLA4a)),IF(S39<ltcg.IncOfCurYrUndHeadFromCYLA4a,S39,ltcg.IncOfCurYrUndHeadFromCYLA4a))) -> 0 | V40: x | W40: =IF(S39>0,S39-(IF(S36>0,IF(S39>0,IF(S39<ltcg.IncOfCurYrUndHeadFromCYLA4a,S39,ltcg.IncOfCurYrUndHeadFromCYLA4a),IF(W37<ltcg.IncOfCurYrUndHeadFromCYLA4a,W37,ltcg.IncOfCurYrUndHeadFromCYLA4a)),IF(S39<ltcg.IncOfCurYrUndHeadFromCYLA4a,S39,ltcg.IncOfCurYrUndHeadFromCYLA4a))),W37-(IF(S36>0,IF(S39>0,IF(S39<ltcg.IncOfCurYrUndHeadFromCYLA4a,S39,ltcg.IncOfCurYrUndHeadFromCYLA4a),IF(W37<ltcg.IncOfCurYrUndHeadFromCYLA4a,W37,ltcg.IncOfCurYrUndHeadFromCYLA4a)),IF(S39<ltcg.IncOfCurYrUndHeadFromCYLA4a,S39,ltcg.IncOfCurYrUndHeadFromCYLA4a)))) -> 0 | X40: =MAX(0,W37-AK36) -> 0 | AI40: Amt to be set off at 20% LTCG | AK40: Amt to be Set off at 10% wen STCG has income
D41: ix | E41: Long term capital gains taxable @ DTAA rates | F41: =(J19) -> 0 | G41: 0 | H41: 0 | I41: 0 | M41: 0
D42: x | E42: Net Income from Other sources income chargeable at Normal Applicable Rates | F42: 107910 | H42: 0 | I42: 107910 | M42: 0 | P42: =IF(AC31<othsrcincl.IncOfCurYrUndHeadFromCYLA5,AC31,othsrcincl.IncOfCurYrUndHeadFromCYLA5) -> 0 | V42: xi | W42: LTCG | X42: STCG | AC42: =(AC31-othsrcincl.BFUnabsorbedDeprSetoff5) -> 0 | AI42: =IF(AK36>0,IF(W37>0,IF(W37>AK36,IF(S36>0,IF(S39>0,IF(S39<ltcg.IncOfCurYrUndHeadFromCYLA4a,S39,ltcg.IncOfCurYrUndHeadFromCYLA4a),IF(W37<ltcg.IncOfCurYrUndHeadFromCYLA4a,W37,ltcg.IncOfCurYrUndHeadFromCYLA4a)),IF(S39>0,IF(S39<ltcg.IncOfCurYrUndHeadFromCYLA4a,S39,ltcg.IncOfCurYrUndHeadFromCYLA4a),0))+AK36),IF(S36>0,IF(S39>0,IF(S39<ltcg.IncOfCurYrUndHeadFromCYLA4a,S39,ltcg.IncOfCurYrUndHeadFromCYLA4a),IF(W37<ltcg.IncOfCurYrUndHeadFromCYLA4a,W37,ltcg.IncOfCurYrUndHeadFromCYLA4a)),IF(S39>0,IF(S39<ltcg.IncOfCurYrUndHeadFromCYLA4a,S39,ltcg.IncOfCurYrUndHeadFromCYLA4a),0))+W37),IF(S36>0,IF(S39>0,IF(S39<ltcg.IncOfCurYrUndHeadFromCYLA4a,S39,ltcg.IncOfCurYrUndHeadFromCYLA4a),IF(W37<ltcg.IncOfCurYrUndHeadFromCYLA4a,W37,ltcg.IncOfCurYrUndHeadFromCYLA4a)),IF(S39<ltcg.IncOfCurYrUndHeadFromCYLA4a,S39,ltcg.IncOfCurYrUndHeadFromCYLA4a))) -> 0 | AK42: =IF(AK37>0,IF(X35>0,IF(X35>AK37,IF(S36>0,IF(S39>0,IF(W40<ltcg.IncOfCurYrUndHeadFromCYLA4,W40,ltcg.IncOfCurYrUndHeadFromCYLA4),IF(X35<ltcg.IncOfCurYrUndHeadFromCYLA4,X35,ltcg.IncOfCurYrUndHeadFromCYLA4)),IF(S39>0,IF(W40<ltcg.IncOfCurYrUndHeadFromCYLA4,W40,ltcg.IncOfCurYrUndHeadFromCYLA4),0))+AK37,(IF(S36>0,IF(S39>0,IF(W40<ltcg.IncOfCurYrUndHeadFromCYLA4,W40,ltcg.IncOfCurYrUndHeadFromCYLA4),IF(X35<ltcg.IncOfCurYrUndHeadFromCYLA4,X35,ltcg.IncOfCurYrUndHeadFromCYLA4)),IF(S39>0,IF(W40<ltcg.IncOfCurYrUndHeadFromCYLA4,W40,ltcg.IncOfCurYrUndHeadFromCYLA4),0))+X35)),0),IF(S36>0,IF(S39>0,IF(W40<ltcg.IncOfCurYrUndHeadFromCYLA4,W40,ltcg.IncOfCurYrUndHeadFromCYLA4),IF(X35<ltcg.IncOfCurYrUndHeadFromCYLA4,X35,ltcg.IncOfCurYrUndHeadFromCYLA4)),IF(S39>0,IF(W40<ltcg.IncOfCurYrUndHeadFromCYLA4,W40,ltcg.IncOfCurYrUndHeadFromCYLA4),0))) -> 0
D43: xi | E43: Profit from owning and maintaining race horses | F43: 0 | G43: 0 | H43: 0 | I43: 0 | M43: 0 | O43: =IF(S43<rh.IncOfCurYrUndHeadFromCYLA6,S43,rh.IncOfCurYrUndHeadFromCYLA6) -> 0 | R43: Maintain Horse | S43: =totofbfloss.OthSrcLossRaceHorseCF8 -> 0 | V43: xii
D44: xii | E44: Income from other sources income taxable at special rates in India as per DTAA | F44: 0 | H44: 0 | I44: =MAX(0,(F44-H44-0)) -> 0 | M44: 0
D45: xii | E45: Total of brought forward loss set off (2ii + 2iii + 2iv + 2v + 2vi + 2vii + 2viii + 2ix + 2x + 2xi ) | G45: =SUM(G31:G44) -> 0 | H45: =SUM(H31:H44) -> 0 | M45: =SUM(M31:M44) -> 0
D46: xiii | E46: Current year’s income remaining after set off Total of (3i + 3ii + 3iii + 3iv + 3v+ 3vi + 3vii + 3viii) | I46: =SUM(I30:I44) -> 5869310

Sheet CFL
C3: Schedule CFL | F3: Details of Losses to be carried forward to future Years
C4: CARRY FORWARD OF LOSS | D4: Sl. No. (1) | E4: Assessment Year (2) | F4: Date of Filing (DD/MM/ YYYY) (3) | G4: House property loss (4) | J4: Loss from business other than loss from speculative business and specified business | M4: Loss from speculative business (6) | N4: Loss from Specified business (7) | O4: Short-term capital loss (8) | R4: Long-term Capital loss (9) | U4: Loss from owning and maintaining race horses (10)
J5: Brought forward Business Loss (5a) | K5: Amount as adjusted on account of opting for taxation u/s 115BAC (5b) | L5: Brought forward Business Loss available for set off during the year (5c=5a-5b)
D6: i | E6: 2010-11 | AD6: date for Validation
D7: ii | E7: 2011-12 | AD7: 2006-04-01
D8: iii | E8: 2012-13 | AD8: 2007-04-01
D9: iv | E9: 2013-14 | H9: 0 | I9: =G9+H9 -> 0 | Q9: =O9+P9 -> 0 | T9: =R9+S9 -> 0 | AD9: 2008-04-01
D10: v | E10: 2014-15 | H10: 0 | I10: =G10+H10 -> 0 | L10: =MAX(0,yr2003.BusLossOthThanSpecLossCF4a-yr2003.BusLossOthThanSpecLossCF4b) -> 0 | Q10: 0 | T10: 0 | AD10: 2009-04-01
D11: vi | E11: 2015-16 | H11: 0 | I11: 0 | L11: =MAX(0,yr2004.BusLossOthThanSpecLossCF5a-yr2004.BusLossOthThanSpecLossCF5b) -> 0 | Q11: 0 | T11: 0 | AD11: 2010-04-01
D12: vii | E12: 2016-17 | H12: 0 | I12: 0 | L12: =MAX(0,yr2005.BusLossOthThanSpecLossCF6a-yr2005.BusLossOthThanSpecLossCF6b) -> 0 | Q12: 0 | T12: 0 | AD12: 2011-04-01
D13: viii | E13: 2017-18 | H13: 0 | I13: 0 | L13: =MAX(0,yr2006.BusLossOthThanSpecLossCF7a-yr2006.BusLossOthThanSpecLossCF7b) -> 0 | Q13: 0 | T13: 0 | AD13: 2012-04-01
D14: ix | E14: 2018-19 | H14: 0 | I14: 0 | L14: =MAX(0,yr2006.BusLossOthThanSpecLossCF9a-yr2006.BusLossOthThanSpecLossCF9b) -> 0 | Q14: 0 | T14: 0
D15: x | E15: 2019-20 | H15: 0 | I15: 0 | L15: =MAX(0,yr2007.BusLossOthThanSpecLossCF9a-yr2007.BusLossOthThanSpecLossCF9b) -> 0 | Q15: 0 | T15: 0
D16: xi | E16: 2020-21 | I16: 0 | L16: =MAX(0,yr2020.BusLossOthThanSpecLossCF10a-yr2020.BusLossOthThanSpecLossCF10b) -> 0 | Q16: 0 | T16: 0
D17: xii | E17: 2021-22 | I17: 0 | L17: =MAX(0,yr2021.BusLossOthThanSpecLossCF11a-yr2021.BusLossOthThanSpecLossCF11b) -> 0 | Q17: 0 | T17: 0
D18: xiii | E18: Total of earlier year losses b/f | G18: =SUM(G6:G17) -> 0 | I18: =SUM(I6:I16) -> 0 | L18: =SUM(L6:L17) -> 0 | M18: =SUM(M11:M17) -> 0 | N18: =SUM(CFL.specifiedLoss,yr1999.BusLossSpecBus,yr2020.LossFrmSpecifiedBusCF10,yr2021.LossFrmSpecifiedBusCF11) -> 0 | O18: =SUM(O6:O17) -> 0 | Q18: =SUM(Q6:Q16) -> 0 | R18: =SUM(R6:R17) -> 0 | T18: =SUM(T6:T16) -> 0 | U18: =SUM(U11:U17) -> 0 | AD18: 2013-04-01
D19: xiv | E19: Adjustment of above losses in Schedule BFLA | G19: 0 | I19: 0 | L19: 0 | M19: 0 | N19: 0 | O19: 0 | Q19: 0 | R19: 0 | T19: 0 | U19: 0
D20: xv | E20: 2022-23 (Current year losses to be carried forward) | G20: =sheet16.BalHPlossCurYrAftSetoff -> 0 | I20: 0 | L20: =sheet16.BalBusLossAftSetoff -> 0 | M20: =ABS(MIN(sheet12.AdjustedPLFrmSpecuBus,0)) -> 0 | N20: =ABS(MIN(sheet12.AdjustedPLFrmSpecifiedBus,0)) -> 0 | O20: =IHLA.Eviii2_StclSetoff15Per+IHLA.Eviii3_StclSetoff30Per+IHLA.Eviii4_StclSetoffAppRate+IHLA.Eviii5_StclSetoffDTAARate -> 0 | Q20: 0 | R20: =IHLA.Eviii5_LtclSetOff10Per+IHLA.Eviii6_LtclSetOff20Per+IHLA.Eviii8_LtclSetOffDTAARate -> 0 | T20: 0 | U20: =ABS(MIN(0,os.BalanceOwnRaceHorse)) -> 0 | X20: =sheet16.BalHPlossCurYrAftSetoff -> 0 | Y20: =sheet16.BalBusLossAftSetoff -> 0 | Z20: =ABS(MIN(0,sheet12.AdjustedPLFrmSpecuBus)) -> 0
D21: xvi | E21: Total loss Carried Forward to future years | G21: =IF(CFL_HP_Normal_2014>adjtotloss.HPLossCF9,MAX(0,totofbfloss.HPLossCF8-CFL_HP_Normal_2014+yr2007.HPLossCF10),MAX(0,totofbfloss.HPLossCF8-adjtotloss.HPLossCF9+yr2007.HPLossCF10)) -> 0 | I21: 0 | L21: =IF(yr2003.BusLossOthThanSpecLossCF4>adjtotloss.BusLossOthThanSpecLossCF9,MAX(0,totofbfloss.BusLossOthThanSpecLossCF8-yr2003.BusLossOthThanSpecLossCF4+yr2007.BusLossOthThanSpecLossCF10),MAX(0,totofbfloss.BusLossOthThanSpecLossCF8-adjtotloss.BusLossOthThanSpecLossCF9+yr2007.BusLossOthThanSpecLossCF10)) -> 0 | M21: =IF(yr2006.LossFrmSpecBusCF9>adjtotloss.LossFrmSpecBusCF9,MAX(0,totofbfloss.LossFrmSpecBusCF8-yr2006.LossFrmSpecBusCF9+yr2007.LossFrmSpecBusCF10),MAX(totofbfloss.LossFrmSpecBusCF8-adjtotloss.LossFrmSpecBusCF9+yr2007.LossFrmSpecBusCF10)) -> 0 | N21: =MAX(0,totofbfloss.LossFrmSpecifiedBusCF8-adjtotloss.LossFrmSpecifiedBusCF9+yr2007.LossFrmSpecifiedBusCF10) -> 0 | O21: =IF(CFL_STCG_Normal_2014>adjtotloss.STCGLossCF9,MAX(0,totofbfloss.STCGLossCF8-CFL_STCG_Normal_2014+yr2007.STCGLossCF10),MAX(0,totofbfloss.STCGLossCF8-adjtotloss.STCGLossCF9+yr2007.STCGLossCF10)) -> 0 | Q21: 0 | R21: =IF(CFL_LTCG_Normal_2014>adjtotloss.LTCGLossCF9,MAX(0,totofbfloss.LTCGLossCF8-CFL_LTCG_Normal_2014+yr2007.LTCGLossCF10),MAX(0,totofbfloss.LTCGLossCF8-adjtotloss.LTCGLossCF9+yr2007.LTCGLossCF10)) -> 0 | T21: 0 | U21: =IF(yr2006.OthSrcLossRaceHorseCF9>adjtotloss.OthSrcLossRaceHorseCF9,MAX(0,totofbfloss.OthSrcLossRaceHorseCF8-yr2006.OthSrcLossRaceHorseCF9+yr2007.OthSrcLossRaceHorseCF10),MAX(0,totofbfloss.OthSrcLossRaceHorseCF8-adjtotloss.OthSrcLossRaceHorseCF9+yr2007.OthSrcLossRaceHorseCF10)) -> 0

Sheet Unabsorbed Depreciation (hidden)
C3: Schedule UD | G3: Unabsorbed depreciation and allowance under section 35(4)
E5: Depreciation | I5: Allowance under section 35(4)
C6: Sl. No. (1) | D6: Assessment Year (2) | E6: Amount of brought forward unabsorbed depreciation (3) | F6: Amount as adjusted on account of opting for taxation u/s 115BAC (3a) | G6: Amount of depreciation set-off against the current year income (4) | H6: Balance Carried forward to the next year (5) | I6: Amount of brought forward unabsorbed allowance (6) | J6: Amount of allowance set-off against the current year income (7) | K6: Balance Carried forward to the next year (8)
C7: 1 | D7: 2022-23
C8: =C7+1 -> 2 | H8: =MAX((E8-F8-G8),0) -> 0 | K8: =MAX((I8-J8),0) -> 0
C9: 3 | H9: =MAX((E9-F9-G9),0) -> 0 | K9: 0
C10: 4 | H10: 0 | K10: 0
C11: 5 | H11: 0 | K11: 0
C12: 6 | H12: 0 | K12: 0
C13: 7 | H13: 0 | K13: 0
C14: 8 | H14: 0 | K14: 0
C15: 9 | H15: 0 | K15: 0
C16: 10 | H16: 0 | K16: =MAX((I16-J16),0) -> 0
D17: Total | E17: =SUM(UD.BF) -> 0 | F17: =SUM(UD.115BAC) -> 0 | G17: =SUM(UD.Setoff) -> 0 | H17: =SUM(UD.Balance,UDCY.Balance) -> 0 | I17: =SUM(UD2.BF) -> 0 | J17: =SUM(UD2.Setoff) -> 0 | K17: =SUM(UD2.Balance,UDCY2.Balance) -> 0
C20: * Note: Assessment Year in Col (2) is mandatory

Sheet ICDS (hidden)
C3: Schedule ICDS | E3: Effect of Income Computation Disclosure Standards on profit
C4: Sl. No. | D4: ICDS | F4: Amount (+) or (-) | J4: =IF(OR(ICDS.AccPolicies<>"",ICDS.ValuationInv<>"",ICDS.ConsContracts<>"",ICDS.RevenueRecog<>"",ICDS.TangibleFixAssests<>"",ICDS.ChngRates<>"",ICDS.Govgrants<>"",ICDS.Securities<>"",ICDS.BorrowingCosts<>"",ICDS.ProvLiability<>""),TRUE,FALSE) -> FALSE
C5: (i) | D5: (ii) | F5: (iii)
C6: I | D6: Accounting Policies
C7: II | D7: Valuation of Inventories (other than the effect of change in method of valuation u/s 145A, if the same is separately reported at col. 4d or 4e of Part A-OI)
C8: III | D8: Construction Contracts
C9: IV | D9: Revenue Recognition
C10: V | D10: Tangible Fixed Assets
C11: VI | D11: Changes in Foreign Exchange Rates
C12: VII | D12: Government Grants
C13: VIII | D13: Securities(other than the effect of change in method of valuation u/s 145A, if the same is separately reported at col. 4d or 4e of Part A-OI)
C14: IX | D14: Borrowing Costs
C15: X | D15: Provisions, Contingent Liabilities and Contingent Assets
C16: Xi(a) | D16: Total effect of ICDS adjustments on profit (I+II+III+IV+V+VI+VII+VIII+IX+X) (if positive) | F16: =MAX(0,SUM(F6:F15)) -> 0
C17: Xi(b) | D17: Total effect of ICDS adjustments on profit (I+II+III+IV+V+VI+VII+VIII+IX+X) (if negative) | F17: =(MIN(0,SUM(F6:F15))*-1) -> 0

Sheet 10AA (hidden)
C1: Schedule 10A | F1: Deduction under section 10A
D2: 1 | E2: Deductions in respect of units located in Special Economic Zone
H3: Assessment Year Assessment year in which unit begins to manufacture/produce | I3: Amount of deduction
E4: 1 | F4: =CONCATENATE("Undertaking No.",E4) -> Undertaking No.1 | H4: (Select)
F5: Total Deductions under Section 10A | I5: =SUM(SEZA10.DedFromUndertaking) -> 0
C8: Schedule 10AA | F8: Deduction under section 10AA
C9: DEDUCTION U/S 10AA | D9: 1 | E9: Deductions in respect of units located in Special Economic Zone
H10: Assessment year in which unit begins to manufacture/produce / provide services | I10: Amount of deduction
E11: 1 | F11: =CONCATENATE("Undertaking No.",E11) -> Undertaking No.1 | H11: (Select)
E12: =E11+1 -> 2 | F12: =CONCATENATE("Undertaking No.",E12) -> Undertaking No.2 | H12: (Select)
E13: =E12+1 -> 3 | F13: =CONCATENATE("Undertaking No.",E13) -> Undertaking No.3 | H13: (Select)
F14: Total deduction under section 10AA (a + b) | I14: =SUM(AA10.DedFromUndertaking) -> 0
C18: Note: As per sec.10AA(1), the deduction will be available up to assessment year 2022-23.

Sheet 80G
C3: Schedule 80G | D3: Details of donations entitled for deduction under section 80G (Please read NOTE below)
C4: A | D4: Donations entitled for 100% deduction without qualifying limit | S4: =SUM(PerYES10080G.EligibleAmt) -> 0 | T4: =SUM(Per5080G.EligibleAmt) -> 0 | U4: =ROUND(0.1*MAX(0,(TotalPendingIncome-(SUM('VI-A'!K6:K22)+SUM('VI-A'!K25)+SUM('VI-A'!K26)+MIN(60000,scvia.Section80GG)+SUM('VI-A'!K29:K38)+SUM('VI-A'!K40:K42)))),0) -> 211500 | V4: =QualifyingAmount80G -> 211500 | W4: =MAX(0,ROUND((CD_EligibleAmount-C_Eligible)/2,0)) -> 105750
D5: SL.NO. | E5: Name of donee | F5: Address | G5: City or Town or District | H5: State Code | I5: PinCode | J5: PAN of Donee | K5: Amount of donation | N5: Eligible Amount of Donation | R5: =salary.IncOfCurYrAfterSetOffBFLosses+hp.IncOfCurYrAfterSetOffBFLosses1+busipofincl.IncOfCurYrAfterSetOffBFLosses2+busipofinclspec.IncOfCurYrAfterSetOffBFLosses2a+busipofinclspecified.IncOfCurYrAfterSetOffBFLosses2b+stcg.IncOfCurYrAfterSetOffBFLosses3b+othsrcincl.IncOfCurYrAfterSetOffBFLosses5+rh.IncOfCurYrAfterSetOffBFLosses6+SI_111+SI_115BBC+SI_115Ea -> 2366910
K6: Donation in Cash | L6: Donation in Other mode | M6: Total Donation
D7: 1 | H7: (SELECT) | M7: =SUM(K7,L7) -> 0 | N7: =MIN(VALUE(SUM(IF(K7>2000,0,K7),L7)),TotalPendingIncome) -> 0
D8: =D7+1 -> 2 | H8: (SELECT) | M8: =SUM(K8,L8) -> 0 | N8: =MIN(VALUE(SUM(IF(K8>2000,0,K8),L8)),TotalPendingIncome) -> 0
D9: =D8+1 -> 3 | H9: (SELECT) | M9: =SUM(K9,L9) -> 0 | N9: =MIN(VALUE(SUM(IF(K9>2000,0,K9),L9)),TotalPendingIncome) -> 0
D10: =D9+1 -> 4 | H10: (SELECT) | M10: =SUM(K10,L10) -> 0 | N10: =MIN(VALUE(SUM(IF(K10>2000,0,K10),L10)),TotalPendingIncome) -> 0
D11: =D10+1 -> 5 | H11: (SELECT) | M11: =SUM(K11,L11) -> 0 | N11: =MIN(VALUE(SUM(IF(K11>2000,0,K11),L11)),TotalPendingIncome) -> 0
D13: TOTAL A | K13: =SUM(Per10080G.DonationInCash) -> 0 | L13: =SUM(Per10080G.DonationAmt) -> 0 | M13: =SUM(Per10080G.TotalDonationAmt) -> 0 | N13: =ROUND(MIN(SUM(Per10080G.EligibleAmt),TotalPendingIncome),0) -> 0
C17: B | D17: Donations entitled for 50% deduction without qualifying limit
D18: SL.NO. | E18: Name of donee | F18: Address | G18: City or Town or District | H18: State Code | I18: PinCode | J18: PAN of Donee | K18: Amount of donation | N18: Eligible Amount of Donation
K19: Donation in Cash | L19: Donation in Other mode | M19: Total Donation
D20: 1 | H20: (SELECT) | M20: =SUM(K20,L20) -> 0 | N20: =ROUND(MIN(VALUE(SUM(IF(K20>2000,0,K20),L20))/2,TotalPendingIncome),0) -> 0
D21: =D20+1 -> 2 | H21: (SELECT) | M21: =SUM(K21,L21) -> 0 | N21: =ROUND(MIN(VALUE(SUM(IF(K21>2000,0,K21),L21))/2,TotalPendingIncome),0) -> 0 | T21: DeductionSystemTotal | U21: =MIN(IF(AND(MID(sheet1.PAN,4,1)="P",MID(sheet1.Status,1,1)="I"),(VIASumWithout80G80GG+ scvia.Section80GG),( VIASumWithout80G80GG)),Sheet8b.GrossTotalIncome) -> 289820
D22: =D21+1 -> 3 | H22: (SELECT) | M22: =SUM(K22,L22) -> 0 | N22: =ROUND(MIN(VALUE(SUM(IF(K22>2000,0,K22),L22))/2,TotalPendingIncome),0) -> 0 | T22: adjustGTI | U22: =MAX(0,IF(Sheet8b.GrossTotalIncome=Sheet8b.IncChargeableTaxSplRates,0,Sheet8b.GrossTotalIncome-deductionsSysTotal-Sheet8b.IncChargeableTaxSplRates+SI_111+SI_115Ea+SI_115BBC+SI_PTI_115EA+SI_PTI_115BBC)) -> 2077090
D23: =D22+1 -> 4 | H23: (SELECT) | M23: =SUM(K23,L23) -> 0 | N23: =ROUND(MIN(VALUE(SUM(IF(K23>2000,0,K23),L23))/2,TotalPendingIncome),0) -> 0 | T23: qualifyingLimit | U23: =ROUND(MAX(adjstGTI*0.1),0) -> 207709
D24: =D23+1 -> 5 | H24: (SELECT) | M24: =SUM(K24,L24) -> 0 | N24: =ROUND(MIN(VALUE(SUM(IF(K24>2000,0,K24),L24))/2,TotalPendingIncome),0) -> 0 | U24: =ROUND(MAX(adjstGTI*0.1),0) -> 207709
S25: residue | T25: =IF(TRUNC(qualifyingLimit)>PerYES10080G.TotElig100Percent,qualifyingLimit-PerYES10080G.TotElig100Percent,0) -> 207709
D26: TOTAL B : | K26: =SUM(PerNO5080G.DonationInCash) -> 0 | L26: =SUM(PerNO5080G.DonationAmt) -> 0 | M26: =SUM(PerNO5080G.TotalDonationAmt) -> 0 | N26: =ROUND(MIN(SUM(PerNO5080G.EligibleAmt),TotalPendingIncome),0) -> 0 | T26: residue50perc
S29: ChapVIASumWithout80G80GG | T29: =SUM('VI-A'!K6:K20,'VI-A'!K26,'VI-A'!K29:K38,'VI-A'!K40:K43) -> 289820
C31: C | D31: Donations entitled for 100% deduction subject to qualifying limit
D32: SL.NO. | E32: Name of donee | F32: Address | G32: City Or Town Or District | H32: State Code | I32: PinCode | J32: PAN of Donee | K32: Amount of donation | N32: Eligible Amount of Donation
K33: Donation in Cash | L33: Donation in Other mode | M33: Total Donation
D34: 1 | H34: (SELECT) | M34: =SUM(K34,L34) -> 0 | N34: =ROUND(MIN(MIN(VALUE(SUM(IF(K34>2000,0,K34),L34)),TotalPendingIncome),QualifyingAmount80G),0) -> 0
D35: =D34+1 -> 2 | H35: (SELECT) | M35: =SUM(K35,L35) -> 0 | N35: =ROUND(MIN(MIN(VALUE(SUM(IF(K35>2000,0,K35),L35)),TotalPendingIncome),QualifyingAmount80G),0) -> 0
D36: =D35+1 -> 3 | H36: (SELECT) | M36: =SUM(K36,L36) -> 0 | N36: =ROUND(MIN(MIN(VALUE(SUM(IF(K36>2000,0,K36),L36)),TotalPendingIncome),QualifyingAmount80G),0) -> 0
D37: =D36+1 -> 4 | H37: (SELECT) | M37: =SUM(K37,L37) -> 0 | N37: =ROUND(MIN(MIN(VALUE(SUM(IF(K37>2000,0,K37),L37)),TotalPendingIncome),QualifyingAmount80G),0) -> 0
D38: =D37+1 -> 5 | H38: (SELECT) | M38: =SUM(K38,L38) -> 0 | N38: =ROUND(MIN(MIN(VALUE(SUM(IF(K38>2000,0,K38),L38)),TotalPendingIncome),QualifyingAmount80G),0) -> 0
D40: TOTAL C : | K40: =SUM(PerYES10080G.DonationInCash) -> 0 | L40: =SUM(PerYES10080G.DonationAmt) -> 0 | M40: =SUM(PerYES10080G.TotalDonationAmt) -> 0 | N40: =ROUND(MIN(C_Eligible,CD_EligibleAmount),0) -> 0
C44: D | D44: Donations entitled for 50% deduction subject to qualifying limit
D45: SL.NO. | E45: Name of donee | F45: Address | G45: City Or Town Or District | H45: State Code | I45: PinCode | J45: PAN of Donee | K45: Amount of donation | N45: Eligible Amount of Donation
K46: Donation in Cash | L46: Donation in Other mode | M46: Total Donation
D47: 1 | H47: (SELECT) | M47: =SUM(K47,L47) -> 0 | N47: =ROUND(MIN(TotalPendingIncome,MIN(CDE_EligibleAmount,VALUE(SUM(IF(K47>2000,0,K47),L47)/2))),0) -> 0 | R47: =IF(K47>2000,0,K47) -> 0
D48: =D47+1 -> 2 | H48: (SELECT) | M48: =SUM(K48,L48) -> 0 | N48: =ROUND(MIN(TotalPendingIncome,MIN(CDE_EligibleAmount,VALUE(SUM(IF(K48>2000,0,K48),L48)/2))),0) -> 0 | R48: =IF(K48>2000,0,K48) -> 0
D49: =D48+1 -> 3 | H49: (SELECT) | M49: =SUM(K49,L49) -> 0 | N49: =ROUND(MIN(TotalPendingIncome,MIN(CDE_EligibleAmount,VALUE(SUM(IF(K49>2000,0,K49),L49)/2))),0) -> 0 | R49: =IF(K49>2000,0,K49) -> 0
D50: =D49+1 -> 4 | H50: (SELECT) | M50: =SUM(K50,L50) -> 0 | N50: =ROUND(MIN(TotalPendingIncome,MIN(CDE_EligibleAmount,VALUE(SUM(IF(K50>2000,0,K50),L50)/2))),0) -> 0 | R50: =IF(K50>2000,0,K50) -> 0
D51: =D50+1 -> 5 | H51: (SELECT) | M51: =SUM(K51,L51) -> 0 | N51: =ROUND(MIN(TotalPendingIncome,MIN(CDE_EligibleAmount,VALUE(SUM(IF(K51>2000,0,K51),L51)/2))),0) -> 0 | R51: =IF(K51>2000,0,K51) -> 0
D53: TOTAL D | K53: =SUM(Per5080G.DonationInCash) -> 0 | L53: =SUM(Per5080G.DonationAmt) -> 0 | M53: =SUM(Per5080G.TotalDonationAmt) -> 0 | N53: =ROUND(MIN(TotalPendingIncome,MIN(CDE_EligibleAmount,VALUE((SUM(Per5080G.DonationInCash1)+L53)/2))),0) -> 0 | T53: =ROUND(MIN(TotalPendingIncome,MIN(CDE_EligibleAmount,VALUE(L53/2))),0) -> 0
C58: E | D58: TOTAL ELIGIBLE AMOUNT OF DONATIONS (AIII + BIII + CIII + DIII) | K58: =SUM(Per10080G.TotDon100Percent_InCash,PerNO5080G.TotDon100Percent_InCash,PerYES10080G.TotDon100Percent_InCash,Per5080G.TotDon100Percent_InCash) -> 0 | L58: =SUM(Per5080G.TotDon100Percent,PerYES10080G.TotDon100Percent,PerNO5080G.TotDon100Percent,Per10080G.TotDon100Percent) -> 0 | M58: =SUM(Per5080G.TotDon100Percent_Total,PerYES10080G.TotDon100Percent_Total,PerNO5080G.TotDon100Percent_Total,Per10080G.TotDon100Percent_Total) -> 0 | N58: =IF(bacValue=1,0,ROUND(SUM(Per5080G.TotElig100Percent,PerYES10080G.TotElig100Percent,PerNO5080G.TotElig100Percent,Per10080G.TotElig100Percent),0)) -> 0
C59: Note : In case of Donee is Government and PAN is not available then use "GGGGG0000G" as PAN.

Sheet 80D
C3: 80D
C4: 1 | D4: Whether you or any of your family member (excluding parents) is a senior citizen? | L4: Yes
C5: a | D5: Self & Family
C6: (i) | D6: Health Insurance
C7: (ii) | D7: Preventive Health Checkup
C8: b | D8: Self & Family Including Senior Citizen | L8: =MIN(50000,SUM(Health_InsuranceSC_80D,Preventive_Health_SC_80D,Medical_Expenditure_SC_80D)) -> 34000
C9: (i) | D9: Health Insurance | L9: 29000
C10: (ii) | D10: Preventive Health Checkup | L10: 5000
C11: (iii) | D11: Medical Expenditure (This deduction can be claimed on which health insurance is not claimed at (i) above)
C12: 2 | D12: Whether any one of your parents is a senior citizen | L12: Not claiming for Parents
C13: a | D13: Parents
C14: (i) | D14: Health Insurance
C15: (ii) | D15: Preventive Health Checkup
C16: b | D16: Parents Including Senior Citizen
C17: (i) | D17: Health Insurance
C18: (ii) | D18: Preventive Health Checkup
C19: (iii) | D19: Medical Expenditure (This deduction can be claimed on which health insurance is not claimed at (i) above)
C20: 3 | D20: Eligible Amount of Deduction | L20: =IF(bacValue=1,0,MIN(GTI_LIMIT,MIN(100000,SUM(Self_And_Family_80D,Senior_Citizen_80D,Parents_80D,Parents_SC_80D)))) -> 34000

Sheet RA (hidden)
C3: Schedule RA | E3: Details of donations to research associations etc. [deduction under sections 35(1)(ii) or 35(1)(iia) or 35(1)(iii) or 35(2AA)]
D5: Sl.No | E5: Name of Donee | F5: Address | G5: City or Town or District | H5: State Code | I5: Pincode | J5: PAN of donee | K5: Amount of donation
K6: Donation in cash | L6: Donation in other mode | M6: Total Donation | N6: Eligible Amount of Donation
D7: 1 | H7: (Select) | M7: =MAX(SUM(K7,L7),0) -> 0
D8: =D7+1 -> 2 | H8: (Select) | M8: =MAX(SUM(K8,L8),0) -> 0
D9: =D8+1 -> 3 | H9: (Select) | M9: =MAX(SUM(K9,L9),0) -> 0
D10: =D9+1 -> 4 | H10: (Select) | M10: =MAX(SUM(K10,L10),0) -> 0
D12: Total Donation | K12: =SUM(Donation_cash_80GGA) -> 0 | L12: =SUM(Donation_other_80GGA) -> 0 | M12: =SUM(Donation_total_80GGA) -> 0 | N12: =SUM(Donation_Eligible_80GGA) -> 0

Sheet 80GGA
T1: =sheet10.ProfBfrTaxPL+sheet11.DebPLUs35ExcessAmt -> 0
C3: Schedule 80GGA | F3: Details of donations for scientific research or rural development
D5: Sl.No | E5: Relevant Clause under which deduction is claimed | F5: Name of Donee | G5: Address | H5: City or Town or District | I5: State Code | J5: Pincode | K5: PAN of donee | L5: Amount of donation
L6: Donation in cash | M6: Donation in other mode | N6: Total Donation | O6: Eligible Amount of Donation
D7: 1 | I7: (Select) | N7: =MAX(SUM(L7,M7),0) -> 0 | O7: =MIN(SUM(IF(L7>S7,0,L7),M7),Sheet8b.GrossTotalIncome) -> 0 | S7: =IF(L7=0,0,2000) -> 0
D8: =D7+1 -> 2 | I8: (Select) | N8: =MAX(SUM(L8,M8),0) -> 0 | O8: =MIN(SUM(IF(L8>S8,0,L8),M8),Sheet8b.GrossTotalIncome) -> 0 | S8: =IF(L8=0,0,2000) -> 0
D9: =D8+1 -> 3 | I9: (Select) | N9: =MAX(SUM(L9,M9),0) -> 0 | O9: =MIN(SUM(IF(L9>S9,0,L9),M9),Sheet8b.GrossTotalIncome) -> 0 | S9: 0
D10: =D9+1 -> 4 | I10: (Select) | N10: =MAX(SUM(L10,M10),0) -> 0 | O10: =MIN(SUM(IF(L10>S10,0,L10),M10),Sheet8b.GrossTotalIncome) -> 0 | S10: 0
D12: Total Donation | L12: =SUM(Donation_cash_80GGANew) -> 0 | M12: =SUM(Donation_other_80GGANew) -> 0 | N12: =IF(bacValue=1,0,SUM(Donation_total_80GGANew)) -> 0 | O12: =IF(MID(sheet1.ReturnFileSec,1,2)="12",0,IF(OR(bacValue=1,NOBCODE00001=0,BP_80GGA>0),0,IF(Sheet8b.TotProfBusGain>0,0,MIN(SUM(Donation_Eligible_80GGANew),TotalPendingIncome)))) -> 0
S13: =NOBCODE00001 -> 1

Sheet 80 (hidden)
C3: (Note: If no entry is made in first row then other rows will not be considered)
C4: Schedule 80-IA | F4: Deductions under section 80-IA
D6: a | E6: Deduction in respect of profits of an undertaking referred to in section 80-IA(4)(ii) [Telecommunication services]
E7: =1 -> 1 | F7: =CONCATENATE("Undertaking ",E7) -> Undertaking 1
E8: =1+E7 -> 2 | F8: =CONCATENATE("Undertaking ",E8) -> Undertaking 2
E9: =1+E8 -> 3 | F9: =CONCATENATE("Undertaking ",E9) -> Undertaking 3
D11: b | E11: Deduction in respect of profits of an undertaking referred to in section 80-IA(4)(iii) [Industrial park and SEZs]
E12: 1 | F12: =CONCATENATE("Undertaking ",E12) -> Undertaking 1
E13: =E12+1 -> 2 | F13: =CONCATENATE("Undertaking ",E13) -> Undertaking 2
D15: a | E15: Deduction in respect of profits of an undertaking referred to in section 80-IA(4)(iv) [Power]
E16: 1 | F16: =CONCATENATE("Undertaking ",E16) -> Undertaking 1
E17: =E16+1 -> 2 | F17: =CONCATENATE("Undertaking ",E17) -> Undertaking 2
D19: d | E19: Deduction in respect of profits of an undertaking referred to in section 80-IA(4)(v) [Revival of power generating plant] and deduction in respect of profits of an undertaking referred to in section 80-IA(4)(vi) [Cross-country natural gas distribution network]
E20: 1 | F20: =CONCATENATE("Undertaking ",E20) -> Undertaking 1
E21: =E20+1 -> 2 | F21: =CONCATENATE("Undertaking ",E21) -> Undertaking 2
C23: b | D23: Total deductions under section 80-IA (a1 + a2 ) | H23: =IF(bacValue=1,0,SUM(IA80.DeductProfUs80_IA_4_i,IA80.DeductProfUs80_IA_4_ii,IA80.DeductProfUs80_IA_4_iii,IA80.DeductProfUs80_IA_4_iv)) -> 0
C25: Schedule 80-IB | F25: Deductions under section 80-IB
D27: A | E27: Deduction in respect of industrial undertaking located in Jammu & Kashmir or Ladakh [Section 80-IB(4)]
E28: 1 | F28: =CONCATENATE("Undertaking ",E28) -> Undertaking 1
E29: =E28+1 -> 2 | F29: =CONCATENATE("Undertaking ",E29) -> Undertaking 2
D31: b | E31: Deduction in respect of industrial undertaking located in industrially backward states specified in Eighth Schedule [Section 80-IB(4)]
E32: 1 | F32: =CONCATENATE("Undertaking ",E32) -> Undertaking 1
E33: =E32+1 -> 2 | F33: =CONCATENATE("Undertaking ",E33) -> Undertaking 2
D35: c | E35: Deduction in respect of industrial undertaking located in industrially backward districts [Section 80-IB(5)]
E36: 1 | F36: =CONCATENATE("Undertaking ",E36) -> Undertaking 1
E37: =E36+1 -> 2 | F37: =CONCATENATE("Undertaking ",E37) -> Undertaking 2
D39: b | E39: Deduction in the case of multiplex theatre [Section 80-IB(7A)]
E40: 1 | F40: =CONCATENATE("Undertaking ",E40) -> Undertaking 1
E41: =E40+1 -> 2 | F41: =CONCATENATE("Undertaking ",E41) -> Undertaking 2
D43: c | E43: Deduction in the case of convention centre [Section 80-IB(7B)]
E44: 1 | F44: =CONCATENATE("Undertaking ",E44) -> Undertaking 1
E45: =E44+1 -> 2 | F45: =CONCATENATE("Undertaking ",E45) -> Undertaking 2
D47: B | E47: Deduction in the case of undertaking which begins commercial production or refining of mineral oil [Section 80-IB(9)]
E48: 1 | F48: =CONCATENATE("Undertaking ",E48) -> Undertaking 1
E49: =E48+1 -> 2 | F49: =CONCATENATE("Undertaking ",E49) -> Undertaking 2
D51: C | E51: Deduction in the case of an undertaking developing and building housing projects [Section 80-IB(10)]
E52: 1 | F52: =CONCATENATE("Undertaking ",E52) -> Undertaking 1
E53: =E52+1 -> 2 | F53: =CONCATENATE("Undertaking ",E53) -> Undertaking 2
D55: h | E55: Deduction in the case of an undertaking operating a cold chain facility [Section 80-IB(11)]
E56: 1 | F56: =CONCATENATE("Undertaking ",E56) -> Undertaking 1
E57: =E56+1 -> 2 | F57: =CONCATENATE("Undertaking ",E57) -> Undertaking 2
D59: D | E59: Deduction in the case of an undertaking engaged in processing, preservation and packaging of fruits and vegetables , meat, meat products, poultry, marine or dairy products [Section 80-IB(11A)]
E60: 1 | F60: =CONCATENATE("Undertaking ",E60) -> Undertaking 1
E61: =E60+1 -> 2 | F61: =CONCATENATE("Undertaking ",E61) -> Undertaking 2
D63: E | E63: Deduction in the case of an undertaking engaged in integrated business of handling, storage and transportation of food grains [Section 80-IB(11A)]
E64: 1 | F64: =CONCATENATE("Undertaking ",E64) -> Undertaking 1
E65: =E64+1 -> 2 | F65: =CONCATENATE("Undertaking ",E65) -> Undertaking 2
D67: h | E67: Deduction in the case of an undertaking engaged in operating and maintaining a rural hospital [Section 80-IB(11B)]
E68: 1 | F68: =CONCATENATE("Undertaking ",E68) -> Undertaking 1
E69: =E68+1 -> 2 | F69: =CONCATENATE("Undertaking ",E69) -> Undertaking 2
D71: i | E71: Deduction in the case of an undertaking engaged in operating and maintaining a hospital in any area, other than excluded area [Section 80-IB(11C)
E72: 1 | F72: =CONCATENATE("Undertaking ",E72) -> Undertaking 1
E73: =E72+1 -> 2 | F73: =CONCATENATE("Undertaking ",E73) -> Undertaking 2
C75: F | D75: Total deduction under section 80-IB (Total of A1 to E2) | H75: =IF(bacValue=1,0,SUM(IB80.DeductJKLocUs80_IB_4,IB80.DeductBackStatesUs80_IB_4,IB80.DeductBackDisttUs80_IB_5,IB80.DeductMultiplexUs80_IB_7A,IB80.DeductConvCentUs80_IB_7B,IB80.DeductMinOilUs80_IB_9,IB80.DeductHousUs80_IB_10,IB80.DeductColdChainUs80_IB_11,IB80.DeductFruitVegUs80_IB_11A,IB80.DeductFoodGrainUs80_IB_11A,IB80.DeductRurHospUs80_IB_11B,IB80.DeductHospAnyAreaUs80IB_11C)) -> 0
C77: Schedule 80-IC or 80-IE | F77: Deductions under section 80-IC or 80-IE
D79: a | E79: Deduction in respect of industrial undertaking located in Sikkim
E80: 1 | F80: =CONCATENATE("Undertaking ",E80) -> Undertaking 1
E81: =E80+1 -> 2 | F81: =CONCATENATE("Undertaking ",E81) -> Undertaking 2
D83: b | E83: Deduction in respect of industrial undertaking located in Himachal Pradesh
E84: 1 | F84: =CONCATENATE("Undertaking ",E84) -> Undertaking 1
E85: =E84+1 -> 2 | F85: =CONCATENATE("Undertaking ",E85) -> Undertaking 2
D87: c | E87: Deduction in respect of industrial undertaking located in Uttaranchal
E88: 1 | F88: =CONCATENATE("Undertaking ",E88) -> Undertaking 1
E89: =E88+1 -> 2 | F89: =CONCATENATE("Undertaking ",E89) -> Undertaking 2
D91: d | E91: Deduction in respect of industrial undertaking located in North-East
E92: da | F92: Assam
F93: 1 | G93: =CONCATENATE("Undertaking ",F93) -> Undertaking 1
F94: =F93+1 -> 2 | G94: =CONCATENATE("Undertaking ",F94) -> Undertaking 2
E96: db | F96: Arunachal Pradesh
F97: 1 | G97: =CONCATENATE("Undertaking ",F97) -> Undertaking 1
F98: =F97+1 -> 2 | G98: =CONCATENATE("Undertaking ",F98) -> Undertaking 2
E100: dc | F100: Manipur
F101: 1 | G101: =CONCATENATE("Undertaking ",F101) -> Undertaking 1
F102: =F101+1 -> 2 | G102: =CONCATENATE("Undertaking ",F102) -> Undertaking 2
E104: dd | F104: Mizoram
F105: 1 | G105: =CONCATENATE("Undertaking ",F105) -> Undertaking 1
F106: =F105+1 -> 2 | G106: =CONCATENATE("Undertaking ",F106) -> Undertaking 2
E108: de | F108: Meghalaya
F109: 1 | G109: =CONCATENATE("Undertaking ",F109) -> Undertaking 1
F110: =F109+1 -> 2 | G110: =CONCATENATE("Undertaking ",F110) -> Undertaking 2
E112: df | F112: Nagaland
F113: 1 | G113: =CONCATENATE("Undertaking ",F113) -> Undertaking 1
F114: =F113+1 -> 2 | G114: =CONCATENATE("Undertaking ",F114) -> Undertaking 2
E116: dg | F116: Tripura
F117: 1 | G117: =CONCATENATE("Undertaking ",F117) -> Undertaking 1
F118: =F117+1 -> 2 | G118: =CONCATENATE("Undertaking ",F118) -> Undertaking 2
E120: dh | F120: Total of deduction for undertakings located in North-east (Total of da 1 to dg 2 ) | H120: =IF(bacValue=1,0,SUM(IC80.Assam,IC80.ArunachalPradesh,IC80.Manipur,IC80.Mizoram,IC80.Meghalaya,IC80.Nagaland,IC80.Tripura)) -> 0
D122: e | E122: Total deduction under section 80-IC or 80-IE (a+b+c+dh) | H122: =IF(bacValue=1,0,SUM(IC80.DeductInSikkim,IC80.DeductInHimachalP,IC80.DeductInUttaranchal,IC80.TotDeductInNorthEast)) -> 0

Sheet VI-A
Q2: SAL.TotalGrossSalary | AF2: Central Govt | AG2: 0
C3: Schedule VI-A | E3: Deductions under Chapter VI-A | V3: GTI_Limit | W3: =MAX(0,ROUND((Sheet8b.GrossTotalIncome-Sheet8b.IncChargeableTaxSplRates),0)) -> 2366910 | Y3: =MAX(0,MIN(GTI_LIMIT)) -> 2366910 | AF3: State Govt | AG3: 0
AF4: Public SU | AG4: 0
C5: TOTAL DEDUCTIONS | D5: 1. Part B- Deduction in respect of certain payments | K5: System Calculated | V5: Max_Amount | W5: =IF(GTI_LIMIT>150000,150000,GTI_LIMIT) -> 150000 | AF5: Pensioner | AG5: 1
D6: a | E6: 80C - Life insurance premia, deferred annuity, contributions to provident fund, subscription to certain equity shares or debentures, etc. | H6: a | I6: 120000 | K6: =MIN(MIN(VALUE(scvia.Section80C),150000),GTI_LIMIT) -> 120000 | AF6: OTHER | AG6: 0 | BC6: =IF(AND(MID(sheet1.Status,1,1)="I",BC7=1),1,0) -> 0
D7: b | E7: 80CCC - Payment in respect Pension Fund | H7: b | I7: 0 | K7: =IF(MID(sheet1.Status,1,1)="H",0,MIN(MIN(VALUE(scvia.Section80CCC), 150000,150000 - scvia.Section80C_Calc),GTI_LIMIT)) -> 0 | AF7: Select or null | AG7: 1 | AH7: =IF(SalarySectionCount=Temp_Null,Temp_Null,0) -> 0 | BC7: =IF(AND(age>59,MID(sheet1.ResidentialStatus1, 1, 2) = "NR"),1,0) -> 0
D8: c | E8: 80CCD(1) - Contribution to pension scheme of Central Government | H8: c | I8: 10000 | K8: =IF(MID(sheet1.Status,1,1)="H",0,IF(SAL.TotalGrossSalary=0,MIN(VALUE(scvia.Section80CCD_SE),MIN(150000,IF(OR(Temp_Pensioner>0,Temp_Null_1>0),ROUND(Sheet8b.GrossTotalIncome*0.2,0),ROUND(Temp_DA_BS*0.1,0))),Max_Amount-scvia.Section80C_Calc-scvia.Section80CCC_Calc),MIN(VALUE(scvia.Section80CCD_SE),Max_Amount-scvia.Section80C_Calc-scvia.Section80CCC_Calc,MIN(150000,MAX(0,,IF(OR(Temp_Pensioner>0,Temp_Null_1>0),ROUND(Sheet8b.GrossTotalIncome*0.2,0),ROUND(Temp_DA_BS*0.1,0))))))) -> 10000 | O8: 1877000 | Q8: Salaryded | R8: 0 | AD8: =IF(AND(MID(sheet1.Status,1,1)="I",AD9=1),1,0) -> 0 | AF8: DA or Basic salary | AG8: 0 | BC8: =IF(OR(age<= 59,MID(sheet1.ResidentialStatus1, 1, 2) = "NR"),1,0) -> 0
D9: d | E9: 80CCD(1B) - Contribution to pension scheme of Central Government | H9: d | I9: 50000 | K9: =IF(MID(sheet1.Status,1,1)="I",MIN(VALUE(scvia.Section80CCD1B_SE),50000,GTI_LIMIT),0) -> 50000 | AD9: =IF(AND(age>59,MID(sheet1.ResidentialStatus1, 1, 2) = "NR"),1,0) -> 0 | AG9: =IF(MID(sheet1.Status,1,1)="H",0,IF(SAL.TotalGrossSalary=0,MIN(VALUE(scvia.Section80CCD_SE),MIN(150000,ROUND(Sheet8b.GrossTotalIncome*0.2,0)),Max_Amount-scvia.Section80C_Calc-scvia.Section80CCC_Calc),MIN(VALUE(scvia.Section80CCD_SE),Max_Amount-scvia.Section80C_Calc-scvia.Section80CCC_Calc,MIN(150000,MAX(0,ROUND(Sheet11.Salaries80CCD2*0.1,0)))))) -> 0 | BC9: =IF(AND(MID(sheet1.Status,1,1)="I",BC8=1),1,0) -> 0
D10: e | E10: 80CCD(2) - Contribution to pension scheme of Central Government by the Employer | H10: e | I10: 0 | K10: =ROUND(IF(MID(sheet1.Status,1,1)="H",0,MIN(MIN(VALUE(scvia.Section80CCD), MAX(0,IF(OR(Temp_CG>0,Temp_SG>0),0.14*(Temp_DA_BS),IF(OR(Temp_SG>0,Temp_PSU>0,Temp_OTH>0),0.1*(Temp_DA_BS),0)))),GTI_LIMIT)),0) -> 0 | W10: Tot Income | AC10: 0 | AD10: =IF(OR(age<=59,MID(sheet1.ResidentialStatus1, 1, 2) = "NR"),1,0) -> 0 | AF10: HRA | AG10: 0 | BC10: =IF(OR(MID(SELECT80D,1,1) ="(", MID(SELECT80D,1,1)=""),0,MID(SELECT80D,1,1)) -> 0
D11: f | E11: 80CCG - Investment made under an equity savings scheme | H11: f | K11: =IF(MID(sheet1.Status,1,1)="H",0,MIN(IF(MID(sheet1.ResidentialStatus1,1,3)="NRI",0,IF((GTI_LIMIT +Sheet8b.IncChargeableTaxSplRates)> 1200000,0,MIN(VALUE(scvia.Section80CCG),25000))),GTI_LIMIT)) -> 0 | Q11: =IF(AND(BC10="1",P16=1),1,IF(AND(BC10="3",P16=2),2,IF(AND(BC10="5",P16=3),3,IF(AND(BC10="6",OR(P16=1,P16=2,P16=3)),4,0)))) -> 0 | R11: =IF(Q11=1,MIN(25000,(IncD.Section80DC_Calc+BC14)),IF(Q11=2,MIN(25000,(IncD.Section80DC_Calc+BC14)),IF(Q11=3,MIN(50000,(IncD.Section80DC_Calc+BC14)),IF(Q11=4,MIN(75000,(IncD.Section80DC_Calc+BC14)),(IncD.Section80DC_Calc+BC14))))) -> 0 | W11: =ROUND(Sheet8b.TotalIncome,0) -> 5617400 | AD11: =IF(AND(MID(sheet1.Status,1,1)="I",AD10=1),1,0) -> 0 | AF11: HRA | AH11: GTI_LIMIT | AI11: =MAX(0,VALUE(Sheet2.GrossTotalIncome)-VALUE(Sheet2.IncChargeableTaxSplRates)) ->  | BC11: =IF(OR(BC10="1",BC10="3"),25000,IF(OR(BC10="2",BC10="4"),IF(AND(BC10="2",BC6=1),25000,50000),IF(BC10="5",50000,IF(BC10="6",75000,IF(BC10="7",IF(BC9=1,75000,100000),0))))) -> 0
D12: f | E12: 80CCF | H12: f | K12: IF(GTI_LIMIT > 1200000,0,MIN(VALUE(scvia.Section80CCG),25000))),GTI_LIMIT)) | AF12: HRA Sec 13A | AG12: 0
D13: f | E13: 80D-Deduction in respect of Health Insurance premia | H13: f | I13: =Eligible_Amount_80D -> 34000 | K13: =scvia.Section80DValue -> 34000 | R13: =IF(ISERROR(R11),0,R11) -> 0 | AC13: =IF( OR(MID(SELECT80D,1,1) ="(", MID(SELECT80D,1,1)=""),0,MID(SELECT80D,1,1)) -> 0 | AD13: =IF(OR(AC13="1",AC13="3"),25000,IF(OR(AC13="2",AC13="4"),IF(AND(AC13="2",AD8=1),25000,50000),IF(AC13="5",50000,IF(AC13="6",75000,IF(AC13="7",IF(AD11=1,75000,100000),0))))) -> 0 | AE13: =MIN(VALUE(scvia.Section80D),MIN(GTI_LIMIT,AD13)) -> 0 | AF13: HRA Sec 13A | AG13: 0 | AH13: Max Amount | AI13: =IF(GTI_LIMIT>150000,150000,GTI_LIMIT) -> 150000
E14: (A) Health Insurance Premium | AC14: =IF( OR(MID(SELECT80DB,1,1) ="(", MID(SELECT80DB,1,1)=""),0,MID(SELECT80DB,1,1)) -> 0 | AD14: =IF(AC14="1",50000,IF(AC14="2",50000,IF(AC14="3",100000,0))) -> 0 | AE14: =IF(MID(sheet1.Status,1,1)<>"I",MIN(VALUE(scvia.Section80DB),MIN(GTI_LIMIT,50000)),IF(AND(MID(sheet1.ResidentialStatus1,1,3)<>"NRI",age>=80),MIN(VALUE(scvia.Section80DB),MIN(GTI_LIMIT,AD14)),MIN(VALUE(scvia.Section80DB),MIN(GTI_LIMIT,AD14)))) ->  | AF14: HRA Sec 13A | BC14: =IF(MID(sheet1.Status,1,1)<>"I",MIN(VALUE(scvia.Section80D),MIN(GTI_LIMIT,50000)),IF(AND(MID(sheet1.ResidentialStatus1,1,3)<>"NRI",age>59),MIN(VALUE(scvia.Section80D),MIN(GTI_LIMIT,BC11)),MIN(VALUE(scvia.Section80D),MIN(GTI_LIMIT,BC11)))) -> 0
E15: (B) Medical expenditure | K15: =T15 -> 0 | O15: 80DB | P15: =IF( OR(MID(SELECT80DB,1,1) ="(", MID(SELECT80DB,1,1)=""),0,MID(SELECT80DB,1,1)) -> 0 | Q15: =IF(P15="1",50000,IF(P15="2",50000,IF(P15="3",100000,0))) -> 0 | R15: =IF(AND(INT(MID(sheet1.DOB,4,2))=4,INT(MID(sheet1.DOB,1,2))=1),IF(MID(sheet1.ResidentialStatus1,1,2)="NR",Q15,Q15),Q15) -> 0 | S15: =IF(MID(sheet1.Status,1,1)="H",MIN(50000,MIN(VALUE(IncD.Section80DB),GTI_LIMIT)),MIN(MIN(IF(INT(MID(sheet1.DOB,7,4))<1939,IF(MID(sheet1.ResidentialStatus1,1,2)="NR",Q15,Q15),IF(INT(MID(sheet1.DOB,7,4))=1939, IF(INT(MID(sheet1.DOB,4,2))<4,IF(MID(sheet1.ResidentialStatus1,1,2)="NR",Q15,Q15),R15),Q15)),VALUE(IncD.Section80DB)),GTI_LIMIT)) -> 0 | T15: =IF(MID(sheet1.Status,1,1)="H",MIN(50000,SUM(R13,IF(ISERROR(IncD.Section80DB_Calc),0,IncD.Section80DB_Calc))),MIN(100000,SUM(R13,IF(ISERROR(IncD.Section80DB_Calc),0,IncD.Section80DB_Calc)))) -> 0 | AC15: =IF( OR(MID(SELECT80DC,1,1) ="(", MID(SELECT80DC,1,1)=""),0,MID(SELECT80DC,1,1)) -> 0 | AD15: =MIN(MIN(IF(AC15="1",5000,IF(AC15="2",5000,IF(AC15="3",5000,0))),GTI_LIMIT),IF(scvia.Section80DC="",0,scvia.Section80DC)) ->  | AE15: =AD15 ->  | AF15: HRA Sec 13A
E16: (C) Preventive health check-up | O16: 80DC | P16: =IF(MID(SELECT80DC,1,1)="1",1,IF(MID(SELECT80DC,1,1)="2",2,IF(MID(SELECT80DC,1,1)="3",3,0))) -> 0 | Q16: =IF(P16=1,5000,IF(P16=2,5000,IF(P16=3,5000,0))) -> 0 | R16: =MIN(Q16,VALUE(IF(IncD.Section80DC="",0,IncD.Section80DC)),GTI_LIMIT) -> 0 | AC16: =IF( OR(MID(SELECT80DD,1,1) ="(", MID(SELECT80DD,1,1)=""),0,MID(SELECT80DD,1,1)) -> 0 | AD16: =IF(AC16="1",75000,IF(AC16="2",125000,0)) -> 0 | AF16: HRA Sec 13A
D17: g | E17: 80 DD - Maintenance including medical treatment of a dependant who is a person with disability | F17: (Select) | H17: g | K17: =MIN(IF(MID(sheet1.ResidentialStatus1,1,3)<>"NRI",Sec80DDref,0),GTI_LIMIT) -> 0 | W17: OneFrthofTI | AC17: =IF( OR(MID(SELECT80DDB,1,1) ="(", MID(SELECT80DDB,1,1)=""),0,MID(SELECT80DDB,1,1)) -> 0 | AD17: =IF(AC17="1",40000,IF(AC17="2",100000,0)) -> 0 | AF17: Total 17(1) | AG17: 0 | AW17: 80DD | AX17: =IF(MID(SELECT80DD,1,1)="1",1,IF(MID(SELECT80DD,1,1)="2",2,0)) -> 0 | AY17: =IF(VALUE(scvia.Section80DD)>0,IF(AX17=1,75000,IF(AX17=2,125000,0)),0) -> 0
D18: h | E18: 80 DDB - Medical treatment of specified disease | F18: (Select) | H18: h | K18: =MIN(IF(MID(sheet1.ResidentialStatus1,1,3)<>"NRI",MIN(Sec80DDBref,VALUE(scvia.Section80DDB)),0),GTI_LIMIT) -> 0 | W18: =ROUND(0.25*totInc_temp,0) ->  | AF18: Inc 89A | AG18: 0 | AW18: 80DDB | AX18: =IF(MID(SELECT80DDB,1,1)="1",1,IF(MID(SELECT80DDB,1,1)="2",2,IF(MID(SELECT80DDB,1,1)="3",3,0))) -> 0 | AY18: =IF(AX18=1,40000,IF(AX18=2,100000,0)) -> 0
D19: i | E19: 80 E - Interest on loan taken for higher education | H19: i | K19: =IF(MID(sheet1.Status,1,1)="H",0,MIN(VALUE(scvia.Section80E),GTI_LIMIT)) -> 0 | Q19: GG | AF19: Inc 89AOther | AG19: 0
D20: j | E20: 80EE - Interest on loan taken for residential house property | H20: j | K20: =MIN(IF(MID(sheet1.Status,1,1)="H",0,MIN(VALUE(scvia.Section80EE),GTI_LIMIT)),50000) -> 0 | Q20: =SUM(K6:K23)+SUM(K26:K26)+SUM(K29:K38)+SUM(K40:K42) -> 251910
D21: k | E21: 80EEA-Deduction in respect of interest on loan taken for certain house property | H21: k | I21: 0 | K21: =MAX(0,IF(MID(sheet1.Status,1,1)="H",0,MIN(MIN(VALUE(scvia.Section80EEA),GTI_LIMIT),150000))) -> 0
D22: l | E22: 80EEB-Deduction in respect of purchase of electric vehicle | H22: l | I22: 0 | K22: =MAX(0,IF(MID(sheet1.Status,1,1)="H",0,MIN(MIN(VALUE(scvia.Section80EEB),GTI_LIMIT),150000))) -> 0
D23: m | E23: 80 G - Donations to certain funds, charitable institutions, etc (Please fill 80G Schedule. This field is auto-populated from schedule.) | H23: m | I23: =Per5080G.TotalEligibleDonationsUs80G -> 0 | K23: =Per5080G.TotalEligibleDonationsUs80G -> 0
D24: n | E24: 80 GG - Rent paid | H24: n | I24: 0 | K24: =MIN(MIN(ROUND(IF(MID(sheet1.Status,1,1)="H",0,MIN(60000, 0.25*(MAX(0,GTI_LIMIT-Q20)))),0),VALUE(scvia.Section80GG)),GTI_LIMIT) -> 0 | Z24: =ROUND(Sheet8b.GrossTotalIncome*0.2,0) -> 1173862
D25: o | E25: 80GGA - Certain donations for scientific research or rural development (Please fill 80GGA Schedule. This field is auto-populated from schedule.) | H25: o | I25: =Total_Donation_Total_80GGANew -> 0 | K25: =IF(bacValue=1,0,IF(Sheet8b.TotProfBusGain>0,0,Total_Donation_Eligible_80GGANew)) -> 0 | Z25: =Max_Amount-scvia.Section80C_Calc-scvia.Section80CCC_Calc -> 30000
D26: p | E26: 80 GGC - Donation to Political party | H26: p | I26: 0 | K26: =ROUND(MIN(IF(MID(sheet1.PAN,4,1)="J",0,IF(MID(sheet1.PAN,4,1)="L",0,VALUE(scvia.Section80GGC))),GTI_LIMIT),0) -> 0 | U26: 10-11-13A-13B
D27: Total Deduction under Part B (total of a to o(i)) | I27: =SUM(I6:I26) -> 214000 | K27: =MIN(SUM(K6:K26),Sheet8b.GrossTotalIncome-Sheet8b.IncChargeableTaxSplRates) -> 214000 | U27: =(Sheet8b.GrossTotalIncome-Sheet8b.IncChargeableTaxSplRates-Sheet8b.PartCchapterVIA) -> 2366910
D28: 2. Part C,CA and D- Deduction in respect of certain incomes/other deduction
D29: p | E29: 80IA (b of Schedule 80-IA) - Profits and gains from industrial undertakings or enterprises engaged in infrastructure development, etc. | H29: p | I29: =IA80.TotSchedule80_IA -> 0 | K29: =scvia.Section80IA -> 0
D30: q | E30: 80IAB - Profits and gains by an undertaking or enterprise engaged in development of Special Economic Zone | H30: q | I30: 0 | K30: =scvia.Section80IAB -> 0 | W30: Tot Deductions Without 80GG | AA30: SUM of Individual Deductions
D31: r | E31: 80IB (F of Schedule 80-IB) - Profits and gains from certain industrial undertakings other than infrastructure development undertakings | H31: r | I31: =IB80.TotSchedule80_IB -> 0 | K31: =scvia.Section80IB -> 0 | W31: =SUM('VI-A'!K6:K23,'VI-A'!K26,'VI-A'!K29:K38,'VI-A'!K40:K43) -> 289820 | AA31: dedPartB | AB31: =MIN(GTI_LIMIT,SUM(K6:K23,scvia.Section80GGC_Calc)) -> 214000
D32: s | E32: 80-IBA - Profits and gains from housing projects | H32: s | I32: 0 | K32: =scvia.Section80IBA -> 0
D33: t | E33: 80IC / 80IE (e of Schedule 80-IC/ 80-IE) - Special provisions in respect of certain undertakings or enterprises in certain special category States/Special provisions in respect of certain undertakings in North-Eastern States Note: values in the latest statutory forms avaliable at the time of processing the return to be adopted | H33: t | I33: =IC80.TotSchedule80_IC -> 0 | K33: =scvia.Section80IC -> 0 | AA33: dedPartCA | AB33: =MIN(GTI_LIMIT,SUM(K40:K42)) -> 37910
D34: t | E34: 80ID | H34: t | K34: =MIN(VALUE(scvia.Section80ID),GTI_LIMIT_PartC)*1 -> 0 | AA34: dedPartC | AB34: =MIN(GTI_LIMIT_PartC,SUM(K29:K38)) -> 0
D35: u | E35: 80JJA - Profits and gains from business of collecting and processing of bio-degradable waste. | H35: u | I35: 0 | K35: =scvia.Section80JJA -> 0 | P35: =MIN(MIN(scvia.Section80GG,0),MIN(24000,0.25*MAX(0,(Sheet8b.GrossTotalIncome-SUM(K6:K23,K26,K29:K38,K40:K42))))) -> 0
D36: v | E36: 80JJAA - Employment of new employees | H36: v | I36: 0 | K36: =scvia.Section80JJAA -> 0
D37: q | E37: 80QQB - Royalty income of authors of certain books. Note: This deduction shall be allowed only if Form 10CCD and return is filed by the assessee within due date | H37: q | I37: 0 | K37: =MIN(IF(MID(sheet1.ResidentialStatus1,1,3)="NRI",0,IF(MID(sheet1.Status,1,1)<>"I",0,MIN(MIN(VALUE(scvia.Section80QQB),300000),MAX(0,MIN(GTI_LIMIT,MAX(0,os.TotalAnyOtherIncome+PL_TotalOfCreditsToProfit))))))) -> 0
D38: r | E38: 80RRB - Royalty on patents Note: This deduction shall be allowed only if the assessee has filed Form 10CCE and return within due date | H38: r | I38: 0 | K38: =MIN(IF(MID(sheet1.ResidentialStatus1,1,3)="NRI",0,IF(MID(sheet1.Status,1,1)<>"I",0,MIN(MIN(VALUE(scvia.Section80RRB),300000),MAX(0,MIN(GTI_LIMIT,MAX(0,os.TotalAnyOtherIncome+PL_TotalOfCreditsToProfit))))))) -> 0 | AA38: DedViA
D39: Total Deduction under Part C (total of p to x) | H39: 2 | I39: =SUM(I29:I33,I35:I38) -> 0 | K39: =MAX(0,MIN(SUM(scvia.Section80IA_Calc,scvia.Section80IAB_Calc,scvia.Section80IB_Calc,scvia.Section80IC_Calc,scvia.Section80JJA_Calc,scvia.Section80QQB_Calc,scvia.Section80RRB_Calc,scvia.Section80JJAA_Calc,scvia.Section80IBA_Calc),(busipofincl.IncOfCurYrAfterSetOffBFLosses2-sheet11.Section44AD-sheet11.Section44ADA-sheet11.Section44AE),Sheet8b.GrossTotalIncome-Sheet8b.IncChargeableTaxSplRates)) -> 0 | AA39: =IF(Sheet8b.GrossTotalIncome>0,IF(Tot_Inc_Without_80GG>GTI_LIMIT,GTI_LIMIT,Tot_Inc_Without_80GG),Tot_Inc_Without_80GG) -> 289820
D40: s | E40: 80TTA - Interest on saving bank Accounts incase of other than Resident senior citizens | H40: s | K40: =MIN(othsrcincl.IncOfCurYrAfterSetOffBFLosses5,MIN(MIN(VALUE(scvia.Section80TTA),10000),MAX(0,MIN(GTI_LIMIT,MAX(0,os.SavingBank))))) -> 0 | AA40: totInc
D41: t | E41: 80TTB - Interest on deposits in case of Resident senior citizens | H41: t | I41: 37910 | K41: =MIN(othsrcincl.IncOfCurYrAfterSetOffBFLosses5,MIN(MIN(VALUE(scvia.Section80TTB),50000),MAX(0,MIN(GTI_LIMIT,MAX(0,os.SavingBank+os.TermDeposit))))) -> 37910
D42: u | E42: 80 U - In case of a person with disability. | F42: (Select) | H42: u | K42: =MIN(IF(MID(sheet1.ResidentialStatus1,1,3)="NRI",0,IF(MID(sheet1.Status,1,1)<>"I",0,IF(VALUE(scvia.Section80U)>0,Sec80Uref,0))),GTI_LIMIT) -> 0 | AA42: totInc | AW42: 80U | AX42: =IF(MID(SELECT80U,1,1)="1",1,IF(MID(SELECT80U,1,1)="2",2,0)) -> 0 | AY42: =IF(AX42=1,75000,IF(AX42=2,125000,0)) -> 0
D43: Total Deduction under Part CA and D (total of I,ii and iii) | H43: 3 | I43: =SUM(scvia.Section80TTA,scvia.Section80TTB,scvia.Section80U) -> 37910 | K43: =MAX(0,MIN(SUM(K40:K42),Sheet8b.GrossTotalIncome-Sheet8b.IncChargeableTaxSplRates)) -> 37910
D44: v | E44: Total deductions under Chapter VI-A (Total of a to u) | H44: v | I44: =(scvia.TotPartBchapterVIA+scvia.TotPartCchapterVIA+scvia.TotPartCAandDchapterVIA) -> 251910 | K44: =ROUND(MAX(0,MIN((scvia.TotPartBchapterVIA_Calc+scvia.TotPartCchapterVIA_Calc+scvia.TotPartCAandDchapterVIA_Calc),Sheet8b.GrossTotalIncome-Sheet8b.IncChargeableTaxSplRates)),0) -> 251910

Sheet SPI - SI
C3: Schedule SPI | E3: Income of specified persons (spouse, minor child etc.) includable in income of the assessee as per section 64
D5: Sl. No. | E5: Name of person | F5: PAN of person (optional) | G5: Aadhaar Number of the person | H5: Relationship | I5: Amount (Rs) | J5: Head of Income in which included
D6: 1 | J6: (Select)
D7: =D6+1 -> 2 | J7: (Select)
D8: =D7+1 -> 3 | J8: (Select)
D9: =D8+1 -> 4 | J9: (Select)
D10: =D9+1 -> 5 | J10: (Select)
D11: =D10+1 -> 6 | J11: (Select)
I12: =SUM(SPI.AmtIncluded) -> 0
O14: 0 | P14: 0 | Q14: 0
C15: Please click on Recalculate initially, and also subsequently if Gender, Date of Birth , Residential Status or Assessee Status (Indl / HUF etc) is changed (Note "Recalculate button is provided in Sheet PART B - TI - TTI)
C16: Schedule SI | E16: Income chargeable to tax at special rates (please see instructions No. 7 for rate of tax)
C17: SPECIAL RATE | D17: Sl. No. | E17: Section | F17: Special rate (%) | G17: Income (i) | H17: Taxable Income after adjusting for Min Chargeable to Tax (ii) | I17: Tax thereon (iii) | AB17: SI Table to XML
D18: 1 | E18: 111 - Tax on accumulated balance of recognised PF | F18: 1 | G18: =R18 -> 0 | H18: =SI_111 -> 0 | I18: =os.TaxBenefitTotal -> 0 | O18: 1 | Q18: 1 | R18: =MAX(0,MAX(0,os.IncomeBenefitTotal)-MAX(0,IF(MID(sheet1.ResidentialStatus1,1,3)="NRI",SUMIFS(os.DTAA_AmtChk,os.TRC,"=Yes",OS_DTAASectionCode,Q18),SUMIF(OS_DTAASectionCode,Q18,os.DTAA_AmtChk)))) -> 0 | U18: ExemptionUnderSI | AB18: 1 | AC18: =F18 -> 1 | AD18: =SI_111 -> 0 | AE18: =SI_111_taxableInc -> 0 | AF18: =I18 -> 0
D19: =D18+1 -> 2 | E19: Other source income chargeable under DTAA rates | F19: 1 | G19: =rh.IncOfCurYrAfterSetOffBFLosses_DTAARates -> 0 | H19: =DTAA_Inc_OS -> 0 | I19: 0 | O19: DTAAOS | Q19: DTAA | R19: =MAX(0,MAX(0,SUMIF(os.check,Q19,os.SourceAmount))-MAX(0,IF(MID(sheet1.ResidentialStatus1,1,3)="NRI",SUMIFS(os.DTAA_AmtChk,os.TRC,"=Yes",OS_DTAASectionCode,Q19),SUMIF(OS_DTAASectionCode,Q19,os.DTAA_AmtChk)))) -> 0 | T19: ExemptionAmt | U19: =IF(MID(sheet1.ResidentialStatus1,1,3)="NRI",0,IF(bacValue=1,250000,IF(AND(MID(sheet1.Status,1,1)="I",age>59,age<80,OR(MID(sheet1.ResidentialStatus1,1,3)="RES",MID(sheet1.ResidentialStatus1,1,3)="NOR")),300000,IF(AND(MID(sheet1.Status,1,1)="I",age>=80,OR(MID(sheet1.ResidentialStatus1,1,3)="RES",MID(sheet1.ResidentialStatus1,1,3)="NOR")),500000,IF(AND(OR(MID(sheet1.Status,1,1)="I",MID(sheet1.Status,1,1)="H"),OR(MID(sheet1.ResidentialStatus1,1,3)="RES",MID(sheet1.ResidentialStatus1,1,3)="NOR")),250000,0))))) -> 300000 | AB19: 1A | AC19: =F20 -> 15 | AD19: =splRateInc1A -> 0 | AE19: =taxableInc1A -> 0 | AF19: =I20 -> 0
D20: =D19+1 -> 3 | E20: 111A (STCG on shares where STT paid) | F20: 15 | G20: =BFLAtemp15Sec111a -> 0 | H20: =temp111A_exmp -> 0 | I20: =ROUND(H20*F20/100,0) -> 0 | O20: 1A | Q20: 1A | R20: 0 | AB20: 21 | AC20: =F21 -> 20 | AD20: =splRateInc21 -> 0 | AE20: =taxableInc21 -> 0 | AF20: =I21 -> 0
D21: 4 | E21: 112 (LTCG on others) | F21: 20 | G21: =BFLAtemp20Sec112 -> 0 | H21: =temp112_exmp -> 0 | I21: 0 | O21: 21 | Q21: 21 | R21: 0 | T21: partbSetoffInc | U21: =Sheet8b.TotalIncome-Sheet8b.IncChargeableTaxSplRates -> 2115000 | AB21: 22 | AC21: =F22 -> 10 | AD21: =splRateInc22 -> 3502400 | AE21: =taxableInc22 -> 3502400 | AF21: =I22 -> 350240
D22: 5 | E22: 112 proviso (LTCG on listed securities/ units without indexation) | F22: 10 | G22: =BFLAtemp10SecPro -> 3502400 | H22: =temp112pro_exmp -> 3502400 | I22: 350240 | O22: 22 | Q22: 22 | R22: 0 | AB22: 21ciii | AC22: =F24 -> 10 | AD22: =G24 -> 0 | AE22: =H24 -> 0 | AF22: =I24 -> 0
D23: 6 | E23: 112A (LTCG on sale of shares or units on which STT is paid) | F23: 10 | G23: =BFLAtemp10Sec112A -> 0 | H23: =temp112A_exmp -> 0 | I23: =ROUND(MAX(0,H23-100000)*F23/100,0) -> 0 | O23: 2A | Q23: 2A | R23: 0 | AB23: 2A | AC23: =F23 -> 10 | AD23: =G23 -> 0 | AE23: =H23 -> 0 | AF23: =I23 -> 0
D24: 7 | E24: 112(1)(c)(iii)(LTCG on unlisted securities in case of non-residents) | F24: 10 | G24: =BFLAtemp10Sec1121c2 -> 0 | H24: =G24 -> 0 | I24: 0 | O24: 21ciii | Q24: 21ciii | R24: 0 | AB24: 5BB | AC24: =F25 -> 30 | AD24: =splRateInc115BB -> 0 | AE24: =taxableInc115BB -> 0 | AF24: =I25 -> 0
D25: 8 | E25: 115BB (Winnings from lotteries, puzzles, races, games etc.) | F25: 30 | G25: =R25 -> 0 | H25: 0 | I25: =ROUND(H25*F25/100,0) -> 0 | O25: 5BB | Q25: 5BB | R25: =MAX(0,MAX(0,os.WinLottRacePuzz)-MAX(0,IF(MID(sheet1.ResidentialStatus1,1,3)="NRI",SUMIFS(os.DTAA_AmtChk,os.TRC,"=Yes",OS_DTAASectionCode,Q25),SUMIF(OS_DTAASectionCode,Q25,os.DTAA_AmtChk)))) -> 0 | AB25: 5ADii | AC25: =F26 -> 30 | AD25: =G26 -> 0 | AE25: =H26 -> 0 | AF25: =I26 -> 0
D26: 9 | E26: 115AD(1)(ii) -STCG (other than on equity share or equity oriented mutual fund referred to in section 111A) by an FII | F26: 30 | G26: =BFLAtemp115AD30 -> 0 | H26: 0 | I26: =ROUND(H26*F26/100,0) -> 0 | O26: 5ADii | Q26: 5ADii | R26: =MAX(0,MAX(0,SUMIF(os.check,Q26,os.SourceAmount))-MAX(0,IF(MID(sheet1.ResidentialStatus1,1,3)="NRI",SUMIFS(os.DTAA_AmtChk,os.TRC,"=Yes",OS_DTAASectionCode,Q26),SUMIF(OS_DTAASectionCode,Q26,os.DTAA_AmtChk)))) -> 0 | AB26: 5ADiiiP | AC26: =F46 -> 10 | AD26: =G46 -> 0 | AE26: =H46 -> 0 | AF26: =I46 -> 0
D27: 10 | E27: 115BBF-Tax on income from patent (a) Income under head business or profession | F27: 10 | G27: =sheet10.Inc115BBF -> 0 | H27: 0 | I27: =ROUND(H27*F27/100,0) -> 0 | O27: 5BBF_BP | Q27: 5Ea | R27: =MAX(0,MAX(0,SUMIF(os.check,Q27,os.SourceAmount))-MAX(0,IF(MID(sheet1.ResidentialStatus1,1,3)="NRI",SUMIFS(os.DTAA_AmtChk,os.TRC,"=Yes",OS_DTAASectionCode,Q27),SUMIF(OS_DTAASectionCode,Q27,os.DTAA_AmtChk)))) -> 0 | AB27: 5BBF_BP | AC27: =F27 -> 10 | AD27: 0 | AE27: 0 | AF27: 0
D28: 11 | E28: 115BBG-Tax on Transfer of carbon credits (a) Income under head business or profession | F28: 10 | G28: =sheet10.Inc115BBG -> 0 | H28: 0 | I28: =ROUND(H28*F28/100,0) -> 0 | O28: 5BBG_BP | AB28: 5BBG_BP | AC28: 10 | AD28: 0 | AE28: 0 | AF28: 0
D29: =D26+1 -> 10 | E29: 115AD(1)(b)(ii)- Short term capital gains referred to in section 111A | F29: 15 | G29: =BFLAtemp15Sec115ad1bii -> 0 | H29: 0 | I29: =ROUND(H29*F29/100,0) -> 0 | O29: 5AD1biip | Q29: 5AD1biip | R29: =MAX(0,MAX(0,SUMIF(os.check,Q29,os.SourceAmount))-MAX(0,IF(MID(sheet1.ResidentialStatus1,1,3)="NRI",SUMIFS(os.DTAA_AmtChk,os.TRC,"=Yes",OS_DTAASectionCode,Q29),SUMIF(OS_DTAASectionCode,Q29,os.DTAA_AmtChk)))) -> 0 | AB29: DTAASTCG | AC29: =F58 -> 1 | AD29: 0 | AE29: 0 | AF29: 0
D30: 11 | E30: 115A(1)(a)(i)- Dividends interest and income from units purchase in foreign currency | F30: 20 | G30: =R30 -> 0 | H30: 0 | I30: 0 | O30: 5A1ai | Q30: 5A1ai | R30: 0 | T30: Final Exemption Allowed | U30: =IF(AND(U21>0,U21>=U19),0,U19-U21) -> 0 | AB30: DTAALTCG | AC30: 1 | AD30: 0 | AE30: 0 | AF30: 0
D31: 12 | E31: 115A(1)(a)(ii)- Interest received from govt/Indian Concerns received in Foreign Currency | F31: 20 | G31: =R31 -> 0 | H31: =G31 -> 0 | I31: 0 | O31: 5A1aii | Q31: 5A1aii | R31: 0 | W31: Exemption Remaining after Set off | AB31: DTAAOS | AC31: =F19 -> 1 | AD31: =DTAA_Inc_OS -> 0 | AE31: =DTAA_INCOME_OS -> 0 | AF31: =DTAA_TAX_OS -> 0
D32: 13 | E32: 115A(1) (a)(iia) -Interest from Infrastructure Debt Fund | F32: 5 | G32: 0 | H32: 0 | I32: 0 | O32: 5A1aiia | Q32: 5A1aiia | R32: 0 | S32: For 112 | U32: =IF(U30<G21,MAX(0,(G21-U30)),0) -> 0 | W32: =IF(U30<G21,0,(U30-G21)) -> 0 | AB32: 5BBA | AC32: =F47 -> 20 | AD32: =G47 -> 0 | AE32: =H47 -> 0 | AF32: =I47 -> 0
D33: 14 | E33: 115A(1) (a)(iiaa) -Interest as per Sec. 194LC | F33: 5 | G33: 0 | H33: 0 | I33: 0 | O33: 5A1aiiaa | Q33: 5A1aiiaa | R33: 0 | S33: FOR 111A | U33: =IF(W32<G20,MAX(0,G20-W32),0) -> 0 | W33: =IF(W32<G20,0,(W32-G20)) -> 0 | AB33: 5AD1iP | AC33: =F44 -> 5 | AD33: =G44 -> 0 | AE33: =H44 -> 0 | AF33: =I44 -> 0
D34: 15 | E34: 115A(1) (a)(iiab) -Interest as per Sec. 194LD | F34: 5 | G34: 0 | H34: 0 | I34: 0 | O34: 5A1aiiab | Q34: 5A1aiiab | R34: 0 | S34: For 112(proviso) | U34: =IF(W38<G22,MAX(G22-W38),0) -> 3502400 | W34: =IF(W38<G22,0,(W38-G22)) -> 0 | AB34: 5BBF | AC34: =F52 -> 10 | AD34: =G52 -> 0 | AE34: =H52 -> 0 | AF34: =I52 -> 0
D35: 16 | E35: 115A(1) (a)(iiac) -Interest as per Sec. 194LBA | F35: 5 | G35: 0 | H35: =G35 -> 0 | I35: =ROUND(H35*F35/100,0) -> 0 | O35: 5A1aiiac | Q35: 5A1aiiac | R35: 0 | S35: For 112A | U35: =IF(W34<G23,MAX(0,(G23-W34)),0) -> 0 | W35: =IF(W34<G23,0,(W34-G23)) -> 0 | AB35: 5BBG | AC35: =F54 -> 10 | AD35: =G54 -> 0 | AE35: =H54 -> 0 | AF35: =I54 -> 0
D36: =D34+1 -> 16 | E36: 115A(1) (a)(iii) - Income received in respect of units of UTI purchased in Foreign Currency | F36: 20 | G36: 0 | H36: 0 | I36: 0 | O36: 5A1aiii | Q36: 5A1aiii | R36: 0 | S36: PTI 112A | U36: =IF(W35<G62,MAX(0,(G62-W35)),0) -> 0 | W36: =IF(W35<G62,0,(W35-G62)) -> 0 | AB36: 5A1ai | AC36: =F30 -> 20 | AD36: =G30 -> 0 | AE36: =H30 -> 0 | AF36: =I30 -> 0
E37: Para E II of Part I of Ist Sch of FA - Income from royalty or technical services - Non-domestic company | F37: 50 | G37: =R37 -> 0 | H37: 0 | I37: 0 | O37: FA | Q37: FA | R37: =MAX(0,MAX(0,SUMIF(os.check,Q37,os.SourceAmount))-MAX(0,SUMIF(OS_DTAASectionCode,Q37,os.DTAA_AmtChk))) -> 0 | AB37: 5A1aii | AC37: 20 | AD37: 0 | AE37: 0 | AF37: 0
D38: =D36+1 -> 17 | E38: 115A(1)(b)- Income from royalty or fees for technical services received from Government or Indian concern - chargeable u/s 115A(1)(b) | F38: 10 | G38: 0 | H38: 0 | I38: 0 | O38: 5A1bA | Q38: 5A1b | R38: =MAX(0,MAX(0,SUMIF(os.check,O38,os.SourceAmount))-MAX(0,IF(MID(sheet1.ResidentialStatus1,1,3)="NRI",SUMIFS(os.DTAA_AmtChk,os.TRC,"=Yes",OS_DTAASectionCode,Q38),SUMIF(OS_DTAASectionCode,Q38,os.DTAA_AmtChk)))) -> 0 | S38: PTI15 | U38: =IF(W33<G60,MAX(G60-W33),0) -> 0 | W38: =IF(W33<G60,0,(W33-G60)) -> 0 | AB38: 5A1aiia | AC38: 5 | AD38: 0 | AE38: 0 | AF38: 0
D39: =D38+1 -> 18 | E39: 115AC(1)(a) - Income by way of interest on bonds purchased in foreign currency | F39: 10 | G39: =R39 -> 0 | H39: 0 | I39: 0 | O39: 5AC1a | Q39: 5AC1a | R39: =MAX(0,MAX(0,SUMIF(os.check,Q39,os.SourceAmount))-MAX(0,IF(MID(sheet1.ResidentialStatus1,1,3)="NRI",SUMIFS(os.DTAA_AmtChk,os.TRC,"=Yes",OS_DTAASectionCode,Q39),SUMIF(OS_DTAASectionCode,Q39,os.DTAA_AmtChk)))) -> 0 | AB39: 5A1aiiaa | AC39: 5 | AD39: 0 | AE39: 0 | AF39: 0
D40: 19 | E40: 115AC(1)(c) -LTCG arising from the transfer of bonds or GDR purchased in foreign currency - non-resident | F40: 10 | G40: =BFLAtemp10Sec115AC1 -> 0 | H40: 0 | I40: 0 | O40: 5AC1c | Q40: 5AC1c | R40: 0 | AB40: 5A1aiiab | AC40: 5 | AD40: 0 | AE40: 0 | AF40: 0
D41: 20 | E41: 115ACA(1)(a) - Income from GDR purchased in foreign currency -resident | F41: 10 | G41: =R41 -> 0 | H41: 0 | I41: 0 | O41: 5ACA1a | Q41: 5ACA1a | R41: 0 | AB41: 5A1aiiac | AC41: 5 | AD41: 0 | AE41: 0 | AF41: 0
D42: 21 | E42: 115ACA(1)(b) - LTCG arising from the transfer of GDR purchased in foreign currency -resident | F42: 10 | G42: =BFLAtemp10Sec115ACA1 -> 0 | H42: =G42 -> 0 | I42: 0 | O42: 5ACA1b | Q42: 5ACA1b | R42: 0 | AB42: 5A1aiii | AC42: =F36 -> 20 | AD42: 0 | AE42: 0 | AF42: 0
D43: 22 | E43: 115AD(1)(i) -Income (other than dividend) received by an FII in respect of securities (other than units as per Sec 115AB) | F43: 20 | G43: =R43 -> 0 | H43: 0 | I43: 0 | O43: 5AD1i | Q43: 5AD1i | R43: 0 | AB43: FA | AC43: 50 | AD43: 0 | AE43: 0 | AF43: 0
D44: 23 | E44: 115AD(1)(i) -Income received by an FII in respect of bonds or government securities as per Sec 194LD | F44: 5 | G44: =R44 -> 0 | H44: 0 | I44: 0 | O44: 5AD1iP | Q44: 5AD1iP | R44: 0 | AB44: 5A1bA | AC44: 10 | AD44: 0 | AE44: 0 | AF44: 0
D45: 24 | E45: 115AD(1)(iii)-Long term capital gains by an FII | F45: 10 | G45: =BFLAtemp10Sec115AD3 -> 0 | H45: 0 | I45: 0 | O45: 5ADiii | Q45: 5ADiii | R45: 0 | AB45: 5AC1a | AC45: =F39 -> 10 | AD45: 0 | AE45: 0 | AF45: 0
D46: 25 | E46: 115AD(1)(iii)Proviso-Securities referred in section 112A read with section 115AD | F46: 10 | G46: =BFLAtemp10Sec115AD3_Proviso -> 0 | H46: =G46 -> 0 | I46: =ROUND(MAX(0,H46-100000)*F46/100,0) -> 0 | O46: 5ADiiiP | AB46: 5AC1c | AC46: 10 | AD46: 0 | AE46: 0 | AF46: 0
D47: 26 | E47: 115BBA - Income received by non-residents sportsmen or sports associations | F47: 20 | G47: =R47 -> 0 | H47: 0 | I47: 0 | O47: 5BBA | Q47: 5BBA | R47: =MAX(0,MAX(0,SUMIF(os.check,Q47,os.SourceAmount))-MAX(0,IF(MID(sheet1.ResidentialStatus1,1,3)="NRI",SUMIFS(os.DTAA_AmtChk,os.TRC,"=Yes",OS_DTAASectionCode,Q47),SUMIF(OS_DTAASectionCode,Q47,os.DTAA_AmtChk)))) -> 0 | AB47: 5ACA1a | AC47: 10 | AD47: 0 | AE47: 0 | AF47: 0
D48: 27 | E48: 115BBC - Anonymous donations | F48: 30 | G48: =R48 -> 0 | H48: 0 | I48: 0 | O48: 5BBC | Q48: 5BBC | R48: 0 | AB48: 5ACA1b | AC48: 10 | AD48: 0 | AE48: 0 | AF48: 0
D49: 28 | E49: 115BBDA (Dividend income from domestic company exceeding Rs.10lakh) | F49: 0 | G49: 0 | H49: 0 | I49: 0 | O49: 5BBDA | Q49: 5BBDA | R49: 0 | AB49: 5AD1i | AC49: 20 | AD49: 0 | AE49: 0 | AF49: 0
D50: =D47+1 -> 27 | E50: 115BBE - Income referred to in sections 68 or 69 or 69A or 69B or 69C or 69D | F50: 60 | G50: =os.Total115BE -> 0 | H50: 0 | I50: 0 | O50: 5BBE | Q50: 5BBE | R50: 0 | AB50: 5ADiii | AC50: =F45 -> 10 | AD50: =G45 -> 0 | AE50: =H45 -> 0 | AF50: =I45 -> 0
D51: 28 | E51: 115BBF-Income from patent | O51: 5BBF_XXXX | Q51: 5BBF | R51: =MAX(0,MAX(0,SUMIF(os.check,Q51,os.SourceAmount))-MAX(0,IF(MID(sheet1.ResidentialStatus1,1,3)="NRI",SUMIFS(os.DTAA_AmtChk,os.TRC,"=Yes",os.DTAAcheck,Q51),SUMIF(os.DTAAcheck,Q51,os.DTAA_AmtChk)))) -> 0 | AB51: 5BBC | AC51: =F48 -> 30 | AD51: =G48 -> 0 | AE51: =H48 -> 0 | AF51: =I48 -> 0
D52: =D50+1 -> 28 | E52: 115BBF-Tax on Income from Patent | F52: 10 | G52: =R51 -> 0 | H52: =G52 -> 0 | I52: =ROUND(H52*F52/100,0) -> 0 | O52: 5BBF | Q52: 5Eacg | R52: 0 | AB52: 5BBE | AC52: =F50 -> 60 | AD52: =G50 -> 0 | AE52: =H50 -> 0 | AF52: =I50 -> 0
D53: 29 | E53: 115BBG-Transfer of carbon credits | O53: 5BBG_XXXX | AB53: 5BBDA | AC53: =F49 -> 0 | AD53: =G49 -> 0 | AE53: =H49 -> 0 | AF53: =I49 -> 0
D54: =D52+1 -> 29 | E54: 115BBG-Tax on Income from transfer of carbon credits | F54: 10 | G54: =R55 -> 0 | H54: =G54 -> 0 | I54: =ROUND(H54*F54/100,0) -> 0 | O54: 5BBG | Q54: 5Eb | R54: =MAX(0,MAX(0,SUMIF(os.check,Q54,os.SourceAmount))-MAX(0,IF(MID(sheet1.ResidentialStatus1,1,3)="NRI",SUMIFS(os.DTAA_AmtChk,os.TRC,"=Yes",OS_DTAASectionCode,Q54),SUMIF(OS_DTAASectionCode,Q54,os.DTAA_AmtChk)))) -> 0 | AB54: 5Ea | AC54: =F55 -> 20 | AD54: =G55 -> 0 | AE54: =H55 -> 0 | AF54: =I55 -> 0
D55: 30 | E55: 115E(a) - Investment income | F55: 20 | G55: =R27 -> 0 | H55: 0 | I55: 0 | O55: 5Ea | Q55: 5BBG | R55: =MAX(0,MAX(0,SUMIF(os.check,Q55,os.SourceAmount))-MAX(0,IF(MID(sheet1.ResidentialStatus1,1,3)="NRI",SUMIFS(os.DTAA_AmtChk,os.TRC,"=Yes",os.DTAAcheck,Q55),SUMIF(os.DTAAcheck,Q55,os.DTAA_AmtChk)))) -> 0 | AB55: 5BBF_XXXX | AC55: =F52 -> 10 | AD55: =G51 -> 0 | AE55: =H51 -> 0 | AF55: =I51 -> 0
D56: 31 | E56: 115E(a)-LTCG on any asset other than a specified asset-non resident Indian | F56: 20 | G56: =BFLAtemp20Sec11EA -> 0 | H56: 0 | I56: 0 | O56: 5Eacg | AB56: 5BBG_XXXX | AC56: =F54 -> 10 | AD56: =G53 -> 0 | AE56: =H53 -> 0 | AF56: =I53 -> 0
D57: 32 | E57: 115E(b) - Income by way of long term capital gains | F57: 10 | G57: =BFLAtemp10Sec115Eb -> 0 | H57: =G57 -> 0 | I57: =ROUND(H57*F57/100,0) -> 0 | O57: 5Eb | AB57: 5Eacg | AC57: =F56 -> 20 | AD57: 0 | AE57: 0 | AF57: 0
D58: 33 | E58: STCG Chargeable under DTAA rates | F58: 1 | G58: =stcg.IncOfCurYrAfterSetOffBFLosses3b_DTAARates -> 0 | H58: 0 | I58: 0 | O58: STCGDTAA | AB58: 5Eb | AC58: 10 | AD58: 0 | AE58: 0 | AF58: 0
D59: 34 | E59: LTCG Chargeable under DTAA rates | F59: 1 | G59: =ltcg.IncOfCurYrAfterSetOffBFLosses_DTAARates -> 0 | H59: 0 | I59: 0 | O59: LTCGDTAA | AB59: 5AD1biip | AC59: =F29 -> 15 | AD59: =G29 -> 0 | AE59: =H29 -> 0 | AF59: =I29 -> 0
D60: 35 | E60: Pass Through Income in the nature of Short Term Capital Gain chargeable @ 15% | F60: 15 | G60: =BFLAtempPTI15 -> 0 | H60: =tempPTI15_exmp -> 0 | I60: =ROUND(H60*F60/100,0) -> 0 | O60: PTI_STCG15P | AB60: PTI_STCG15P | AC60: =F60 -> 15 | AD60: =G60 -> 0 | AE60: =H60 -> 0 | AF60: =I60 -> 0
D61: =D60+1 -> 36 | E61: Pass Through Income in the nature of Short Term Capital Gain chargeable @ 30% | F61: 30 | G61: =BFLAtempPTI30 -> 0 | H61: 0 | I61: =ROUND(H61*F61/100,0) -> 0 | O61: PTI_STCG30P | AB61: PTI_STCG30P | AC61: 30 | AD61: 0 | AE61: 0 | AF61: 0
D62: =D61+1 -> 37 | E62: Pass Through Income in the nature of Long Term Capital Gain chargeable @ 10% under section 112A | F62: 10 | G62: =BFLAtempPTI10_112 -> 0 | H62: =tempPTI112A_exmp -> 0 | I62: =ROUND(MAX(0,H62-P96)*F62/100,0) -> 0 | O62: PTI_LTCG10P112A | AB62: PTI_LTCG10P112A | AC62: =F62 -> 10 | AD62: =G62 -> 0 | AE62: =H62 -> 0 | AF62: =I62 -> 0
D63: =D62+1 -> 38 | E63: Pass Through Income in the nature of Long Term Capital Gain chargeable @ 10% other than section 112A | F63: 10 | G63: =BFLAtempPTI10 -> 0 | H63: 0 | I63: =ROUND(H63*F63/100,0) -> 0 | O63: PTI_LTCG10P | AB63: PTI_LTCG10P | AC63: 10 | AD63: 0 | AE63: 0 | AF63: 0
D64: 39 | E64: Pass Through Income in the nature of Long Term Capital Gain chargeable @ 20% | F64: 20 | G64: =BFLAtempPTI20 -> 0 | H64: =G64 -> 0 | I64: =ROUND(H64*F64/100,0) -> 0 | O64: PTI_LTCG20P | AB64: PTI_LTCG20P | AC64: 20 | AD64: 0 | AE64: 0 | AF64: 0
D65: 40 | E65: PTI_115A(1)(a)(i)- Dividends in the case of non-residents | F65: 20 | G65: =MAX((Os_PTI_5A1ai-Os_PTI_5A1ai_DTAA),0) -> 0 | H65: =G65 -> 0 | I65: =ROUND(H65*F65/100,0) -> 0 | O65: PTI_5A1ai | AB65: PTI_5A1ai | AC65: 20 | AD65: 0 | AE65: 0 | AF65: 0
D66: 41 | E66: PTI_115A(1)(a)(ii)- Interest received in the case of non-residents | F66: 20 | G66: =MAX((Os_PTI_5A1aii-Os_PTI_5A1aii_DTAA),0) -> 0 | H66: 0 | I66: 0 | O66: PTI_5A1aii | AB66: PTI_5A1aii | AC66: 20 | AD66: 0 | AE66: 0 | AF66: 0
D67: 42 | E67: PTI_115A(1)(a)(iia)- Interest received by non-resident from infrastructure debt fund | F67: 5 | G67: =MAX((Os_PTI_5A1aiia-Os_PTI_5A1aiia_DTAA),0) -> 0 | H67: 0 | I67: 0 | O67: PTI_5A1aiia | AB67: PTI_5A1aiia | AC67: 5 | AD67: 0 | AE67: 0 | AF67: 0
D68: 43 | E68: PTI_115A(1)(a)(iiaa)- Income received by non-resident as referred in section 194LC | F68: 5 | G68: =MAX((Os_PTI_5A1aiiaa-Os_PTI_5A1aiiaa_DTAA),0) -> 0 | H68: 0 | I68: 0 | O68: PTI_5A1aiiaa | AB68: PTI_5A1aiiaa | AC68: 5 | AD68: 0 | AE68: 0 | AF68: 0
D69: 44 | E69: PTI_115A(1)(a)(iiab)- Income received by non-resident as referred in section 194LD | F69: 5 | G69: =MAX((Os_PTI_5A1aiiab-Os_PTI_5A1aiiab_DTAA),0) -> 0 | H69: 0 | I69: 0 | O69: PTI_5A1aiiab | AB69: PTI_5A1aiiab | AC69: 5 | AD69: 0 | AE69: 0 | AF69: 0
D70: 45 | E70: PTI_115A(1)(a)(iiac)- Income received by non-resident as referred in section 194LBA | F70: 5 | G70: =MAX((Os_PTI_5A1aiiac-Os_PTI_5A1aiiac_DTAA),0) -> 0 | H70: 0 | I70: 0 | O70: PTI_5A1aiiac | AB70: PTI_5A1aiiac | AC70: 5 | AD70: 0 | AE70: 0 | AF70: 0
D71: =D69+1 -> 45 | E71: PTI_115A(1)(a)(iii)- Income from units purchased in foreign currency in the case of non-residents | F71: 20 | G71: =MAX((Os_PTI_5A1aiii-Os_PTI_5A1aiii_DTAA),0) -> 0 | H71: 0 | I71: 0 | O71: PTI_5A1aiii | AB71: PTI_5A1aiii | AC71: 20 | AD71: 0 | AE71: 0 | AF71: 0
D72: 46 | E72: PTI_115A(1)(b)-Income from royalty or fees for technical services received from Government or Indian concern - chargeable u/s 115A(1)(b) | F72: 10 | G72: =MAX((Os_PTI_5A1bA-Os_PTI_5A1aibA_DTAA),0) -> 0 | H72: 0 | I72: 0 | O72: PTI_5A1bA | AB72: PTI_5A1bA | AC72: 10 | AD72: 0 | AE72: 0 | AF72: 0
D73: =D72+1 -> 47 | E73: PTI_115AC(1)(a)-Income by way of interest on bonds purchased in foreign currency - non-resident | F73: 10 | G73: =MAX((OS_PTI_5AC1ab-Os_PTI_5AC1ab_DTAA),0) -> 0 | H73: 0 | I73: 0 | O73: PTI_5AC1a | AB73: PTI_5AC1a | AC73: =F73 -> 10 | AD73: =G73 -> 0 | AE73: =H73 -> 0 | AF73: =I73 -> 0
D74: 48 | E74: PTI_115ACA(1)(a )- Income from GDR purchased in foreign currency or long term capital gains arising from their transfer in case of a resident employee of an Indian company, engaged in knowledge based industry or service | F74: 10 | G74: =MAX((OS_PTI_5ACA1a-Os_PTI_5ACA1a_DTAA),0) -> 0 | H74: 0 | I74: 0 | O74: PTI_5ACA1a | AB74: PTI_5ACA1a | AC74: 10 | AD74: 0 | AE74: 0 | AF74: 0
D75: =D74+1 -> 49 | E75: PTI_115AD(1)(i)- Income (other than dividend) received by an FII in respect of securities (other than units referred to in section115AB) | F75: 20 | G75: =MAX((OS_PTI_5AD1i-Os_PTI_5AD1i_DTAA),0) -> 0 | H75: 0 | I75: 0 | O75: PTI_5AD1i | AB75: PTI_5AD1i | AC75: 20 | AD75: 0 | AE75: 0 | AF75: 0
D76: 50 | E76: PTI - Income received by an FII in respect of bonds or government securities referred to in section 194LD | F76: 5 | G76: =MAX((OS_PTI_5AD1iP-Os_PTI_5AD1iP_DTAA),0) -> 0 | H76: 0 | I76: 0 | O76: PTI_5AD1iP | AB76: PTI_5AD1iP | AC76: 5 | AD76: 0 | AE76: 0 | AF76: 0
D77: 58 | E77: PTI_115BB- Winnings from lotteries, crosswords puzzles, races including horse races, card games and other games of any sort or gambling or betting of any form or nature whatsoever | F77: 30 | G77: 0 | H77: 0 | I77: 0 | O77: PTI_5BB | AB77: PTI_5BB | AC77: 30 | AD77: 0 | AE77: 0 | AF77: 0
D78: 59 | E78: PTI_115BBA- Income received by non-resident sportsmen or sports associations or entertainer | F78: 20 | G78: =MAX((OS_PTI_5BBA-Os_PTI_5BBA_DTAA),0) -> 0 | H78: 0 | I78: 0 | O78: PTI_5BBA | AB78: PTI_5BBA | AC78: 20 | AD78: 0 | AE78: 0 | AF78: 0
D79: 60 | E79: PTI_115BBC- Anonymous donations | F79: 30 | G79: =MAX((OS_PTI_5BBC-Os_PTI_5BBC_DTAA),0) -> 0 | H79: 0 | I79: 0 | O79: PTI_5BBC | AB79: PTI_5BBC | AC79: 30 | AD79: 0 | AE79: 0 | AF79: 0
D80: =D79+1 -> 61 | E80: PTI_115BBDA- (Dividend income from domestic company exceeding Rs.10lakh | F80: 0 | G80: 0 | H80: 0 | I80: 0 | O80: PTI_5BBDA | AB80: PTI_5BBDA | AC80: 0 | AD80: 0 | AE80: 0 | AF80: 0
D81: =D78+1 -> 60 | E81: PTI_115BBE- Income under section 68, 69, 69A, 69B, 69C or 69D | F81: 60 | G81: 0 | H81: 0 | I81: 0 | O81: PTI_5BBE | AB81: PTI_5BBE | AC81: 60 | AD81: 0 | AE81: 0 | AF81: 0
D82: =D79+1 -> 61 | E82: PTI_115BBF- Income from patent | F82: 10 | G82: =MAX((OS_PTI_5BBF-Os_PTI_5BBF_DTAA),0) -> 0 | H82: 0 | I82: 0 | O82: PTI_5BBF | AB82: PTI_5BBF | AC82: 10 | AD82: 0 | AE82: 0 | AF82: 0
D83: =D80+1 -> 62 | E83: PTI_115BBG- Income from transfer of carbon credits. | F83: 10 | G83: =MAX((OS_PTI_5BBG-Os_PTI_5BBG_DTAA),0) -> 0 | H83: 0 | I83: 0 | O83: PTI_5BBG | AB83: PTI_5BBG | AC83: 10 | AD83: 0 | AE83: 0 | AF83: =I83 -> 0
D84: =D83+1 -> 63 | E84: 115A(1)(a)(iiaa)- Income received by non-resident as referred in proviso to section 194LC(1) | F84: 4 | G84: =R84 -> 0 | H84: 0 | I84: 0 | O84: 5A1aiiaaP | Q84: 5A1aiiaaP | R84: =MAX(0,MAX(0,SUMIF(os.check,Q84,os.SourceAmount))-MAX(0,IF(MID(sheet1.ResidentialStatus1,1,3)="NRI",SUMIFS(os.DTAA_AmtChk,os.TRC,"=Yes",OS_DTAASectionCode,Q84),SUMIF(OS_DTAASectionCode,Q84,os.DTAA_AmtChk)))) -> 0 | AB84: 5A1aiiaaP | AC84: 4 | AD84: =G84 -> 0 | AE84: =H84 -> 0 | AF84: 0
D85: 64 | E85: 115A(1)(a)(iiac)- Distributed income being Dividend referred to in section 194LBA | F85: 10 | G85: =R85 -> 0 | H85: 0 | I85: 0 | O85: 5A1aiiaci | Q85: 5A1aiiaci | R85: 0 | AB85: 5A1aiiaci | AC85: 10 | AD85: 0 | AE85: =H85 -> 0 | AF85: 0
D86: =D84+1 -> 64 | E86: PTI_115A(1)(a)(iiaa)- PTI - Income received by non-resident as referred in proviso to section 194LC(1) | F86: 4 | G86: =MAX((Os_PTI_5A1aiiaaP-Os_PTI_5A1aiiaaP_DTAA),0) -> 0 | H86: 0 | I86: 0 | O86: PTI_5A1aiiaaP | AB86: PTI_5A1aiiaaP | AC86: 4 | AD86: 0 | AE86: 0 | AF86: 0
D87: 65 | E87: PTI_115A(1)(a)(iiac)- PTI - Distributed income being Dividend referred to in section 194LBA | F87: 10 | G87: =MAX((Os_PTI_5A1aiiaci-Os_PTI_5A1aiiaci_DTAA),0) -> 0 | H87: 0 | I87: 0 | O87: PTI_5A1aiiaci | AB87: PTI_5A1aiiaci | AC87: 10 | AD87: 0 | AE87: 0 | AF87: 0
D88: =D86+1 -> 65 | E88: 115AD(1)(i)- Income (being dividend) received by an FII in respect of securities (other than units referred to in section 115AB) - chargeable u/s 115AD(1)(i) | F88: 20 | G88: =R88 -> 0 | H88: 0 | I88: 0 | O88: 5AD1iDiv | Q88: 5AD1iDiv | R88: =MAX(0,MAX(0,SUMIF(os.check,Q88,os.SourceAmount))-MAX(0,IF(MID(sheet1.ResidentialStatus1,1,3)="NRI",SUMIFS(os.DTAA_AmtChk,os.TRC,"=Yes",OS_DTAASectionCode,Q88),SUMIF(OS_DTAASectionCode,Q88,os.DTAA_AmtChk)))) -> 0 | AB88: 5AD1iDiv | AC88: 20 | AD88: 0 | AE88: 0 | AF88: 0
D89: 66 | E89: PTI-115AD(1)(i)- PTI-Income (being dividend) received by an FII in respect of securities (other than units referred to in section 115AB) - chargeable u/s 115AD(1)(i) | F89: 20 | G89: =MAX((OS_PTI_5AD1iDiv-Os_PTI_5AD1iDiv_DTAA),0) -> 0 | H89: 0 | I89: 0 | O89: PTI_5AD1iDiv | AB89: PTI_5AD1iDiv | AC89: 20 | AD89: 0 | AE89: 0 | AF89: 0
D90: 67 | E90: 115AC1b -Income by way of dividend on GDR purchased in foreign currency | F90: 10 | G90: =R90 -> 0 | H90: 0 | I90: 0 | O90: 5AC1b | Q90: 5AC1b | R90: 0 | AB90: 5AC1abD | AC90: 10 | AD90: =G90 -> 0 | AE90: =H90 -> 0 | AF90: =I90 -> 0
D91: 68 | E91: PTI_5AC1b-PTI -Income by way of Dividend on GDRs purchased in foreign currency - non-resident | F91: 10 | G91: =MAX((OS_PTI_5AC1b-Os_PTI_5AC1b_DTAA),0) -> 0 | H91: 0 | I91: 0 | O91: PTI_5AC1b | AB91: PTI_5AC1abD | AC91: 10 | AD91: 0 | AE91: 0 | AF91: 0
D92: 69 | E92: PTI_115E(a)- Investment income of a non-resident Indian | F92: 20 | G92: =MAX((OS_PTI_5Ea-Os_PTI_5Ea_DTAA),0) -> 0 | H92: 0 | I92: 0 | O92: PTI_5Ea | AB92: PTI_5Ea | AC92: 20 | AD92: 0 | AE92: 0 | AF92: 0
F95: Tax at Spl Rate | G95: =SUM(SI.SplRateInc) -> 3502400 | H95: =SUM(SI.SplRateIncCalc) -> 3502400 | I95: =SUM(SI.SplRateIncTax) -> 350240
O96: Balance_exemption | P96: =MAX(0,100000-H23) -> 100000
C97: Schedule IF | E97: Information regarding partnership firms in which you are partner anytime during the previous year
C98: FIRMS IN WHICH PARTNER | D98: Number of firms in which you are partner
E99: Sl.No. | F99: Name of the Firm | G99: PAN of the firm | H99: Whether the firm is Liable for Audit? (Y/ N) | I99: Whether section 92E is applicable to firm? (Y/ N) | J99: Percentage Share in the profit of the firm | K99: Amount of share in profit | L99: Capital balance as on 31st March in the firm
K100: 1 | L100: ii
E101: 1 | H101: (Select) | I101: (Select) | U101: =IF(H101="Y",1,0) -> 0 | V101: 0 | W101: =IF(COUNTIF(isLiableForAudit,1)=0,"N","Y") -> N | X101: =IF(COUNTIF(LiableFor92E,1)=0,"N","Y") -> N
E102: =E101+1 -> 2 | H102: (Select) | I102: (Select) | U102: 0 | V102: 0
E103: =E102+1 -> 3 | H103: (Select) | I103: (Select) | U103: 0 | V103: 0
E104: =E103+1 -> 4 | H104: (Select) | I104: (Select) | U104: 0 | V104: 0
E105: =E104+1 -> 5 | H105: (Select) | I105: (Select) | U105: 0 | V105: 0
E106: =E105+1 -> 6 | H106: (Select) | I106: (Select) | U106: 0 | V106: 0
K107: =SUM(IF.ProfitShareAmt) -> 0 | L107: =SUM(IF.FirmCapBalOn31Mar) -> 0
J127: 5A1ai
J128: 5A1aii
J129: 5A1aiia
J130: 5A1aiiaa
J131: 5A1aiiab
J132: 5A1aiiac
J133: 5A1aiii
J134: FA
J135: 5A1bA
J136: 5A1bB
J137: 5AC1a
J138: 5ACA1a
J139: 5AD1i
J140: 5AD1iP
J141: 5BBA
J142: 5BBC
J143: 5BBE
J144: 5Ea
J145: 1
J146: 5BB

Sheet AMT
C3: Schedule AMT | F3: Computation of Alternate Minimum Tax payable under section 115JC | M3: =IF(AND(Condn_1=1,Condn_2=1,Condn_3=1,Condn_4=1,Condn_5=1,Condn_6=1),1,0) -> 0 | N3: Condn 1 | O3: =IF(Sheet8b.TotalIncome=0,1,0) -> 0 | P3: Condn 2 | Q3: =IF(IF(sheet10.NetPLFromSpecifiedBus="",0,sheet10.NetPLFromSpecifiedBus)=sheet10.ProfBfrTaxPL,1,0) -> 1 | R3: Condn 3 | S3: =IF(sheet12.AdjustedPLFrmSpecifiedBus<0,1,0) -> 0 | T3: Condn 4 | U3: =IF(IF(sheet12.DeductUs35AD="",0,sheet12.DeductUs35AD)>0,1,0) -> 0 | V3: Condn 5 | W3: =IF(Sheet8b.TotalTI=0,1,0) -> 0 | X3: Condn 6 | Y3: =IF(AND(Sheet8b.CurrentYearLoss =0,Sheet8b.BroughtFwdLossesSetoff =0),1,0) -> 1
C4: ALTERNATE MINIMUM TAX | D4: 1 | E4: Total Income as per item 12 of PART-B-TI | J4: =IF(Amt_Condn=1,sheet12.ProfLossFromSpecifiedBus,Sheet8b.TotalIncome) -> 5617400
D5: 2 | E5: Adjustment as per section 115JC(2)
E6: a | F6: Deduction claimed under any section included in Chapter VI-A under the heading “C.—Deductions in respect of certain incomes” | G6: 2a | H6: =MIN(SUM(scvia.Section80QQB_Calc,scvia.Section80RRB_Calc),Sheet8b.GrossTotalIncome-scvia.TotalChapVIADeductions+scvia.Section80QQB_Calc+scvia.Section80RRB_Calc) -> 0
E7: b | F7: Deduction claimed u/s 10AA | G7: 2b | H7: 0 | N7: =AMT.AdjustedUnderSec115JC3a -> 5617400 | O7: =MAX(0,5000000-AMT.AdjustedUnderSec115JC3a2_50L) -> 0 | P7: =IF(bacValue=1,0,IF(AMT.Total <=0,0,IF(AMT.AdjustedUnderSec115JC <=2000000,0,MAX(0,IF(sheet1.Foreign_Exchange="Yes",ROUND(AMT.AdjustedUnderSec115JC3a2New_50L+AMT.AdjustedUnderSec115JC3b2New_50L,0),ROUND(AMT.AdjustedUnderSec115JC3a2New_50L+AMT.AdjustedUnderSec115JC3b2New_50L,0)))))) -> 0
E8: c | F8: Deduction claimed u/s 35AD as reduced by the amount of depreciation on assets on which such deduction is claimed | G8: 2c | H8: 0 | N8: =0.185*(IF(AMT.AdjustedUnderSec115JC3a2_5cr<0,0,IF(AMT.AdjustedUnderSec115JC3b2_5cr<0,AMT.AdjustedUnderSec115JC3a2_5cr+AMT.AdjustedUnderSec115JC3b2_5cr,AMT.AdjustedUnderSec115JC3a2_5cr))) -> 1039219 | O8: =0.185*(IF(AMT.AdjustedUnderSec115JC3b2_50L<0,0,IF(AMT.AdjustedUnderSec115JC3a2_50L<0,AMT.AdjustedUnderSec115JC3a2_50L+AMT.AdjustedUnderSec115JC3b2_50L,AMT.AdjustedUnderSec115JC3b2_50L))) -> 0
E9: d | F9: Total Adjustment (2a+ 2b+2c) | G9: 2d | H9: =AMT.DeductClaimSec6A+AMT.DeductClaimSec10AA+AMT.DeductClaimSec35AD -> 0 | M9: =0.09*(IF(AMT.AdjustedUnderSec115JC3a<0,0,IF(AMT.AdjustedUnderSec115JC3b<0,AMT.AdjustedUnderSec115JC3a+AMT.AdjustedUnderSec115JC3b,AMT.AdjustedUnderSec115JC3a))) -> 505566 | N9: =AMT.AdjustedUnderSec115JC3a -> 5617400 | O9: =MAX(0,50000000-AMT.AdjustedUnderSec115JC3a2_5cr) -> 44382600 | P9: =IF(bacValue=1,0,IF(AMT.Total <=0,0,IF(AMT.AdjustedUnderSec115JC <=2000000,0,MAX(0,IF(sheet1.Foreign_Exchange="Yes",ROUND(AMT.AdjustedUnderSec115JC3a2New_5cr+AMT.AdjustedUnderSec115JC3b2New_5cr,0),ROUND(AMT.AdjustedUnderSec115JC3a2New_5cr+AMT.AdjustedUnderSec115JC3b2New_5cr,0)))))) -> 0
D10: 3 | E10: Adjusted Total Income under section 115JC(1) (1+2a) | I10: 3 | J10: =IF(bacValue=1,0,MAX(0,(AMT.TotalIncItem11+AMT.Total))) -> 5617400 | M10: =0.185*(IF(AMT.AdjustedUnderSec115JC3b<0,0,IF(AMT.AdjustedUnderSec115JC3a<0,AMT.AdjustedUnderSec115JC3a+AMT.AdjustedUnderSec115JC3b,AMT.AdjustedUnderSec115JC3b))) -> 0 | N10: =0.185*(IF(AMT.AdjustedUnderSec115JC3a2_5cr<0,0,IF(AMT.AdjustedUnderSec115JC3b2_5cr<0,AMT.AdjustedUnderSec115JC3a2_5cr+AMT.AdjustedUnderSec115JC3b2_5cr,AMT.AdjustedUnderSec115JC3a2_5cr))) -> 1039219 | O10: =0.185*(IF(AMT.AdjustedUnderSec115JC3b2_5cr<0,0,IF(AMT.AdjustedUnderSec115JC3a2_5cr<0,AMT.AdjustedUnderSec115JC3a2_5cr+AMT.AdjustedUnderSec115JC3b2_5cr,AMT.AdjustedUnderSec115JC3b2_5cr))) -> 8210781
D11: 3a | E11: Adjusted Total Income u/s 115JC from units located in IFSC, if any | I11: 3a | J11: =IF(bacValue=1,0,MAX(0,(AMT.TotalIncItem11+AMT.Total))) -> 5617400 | N11: =AMT.AdjustedUnderSec115JC3a -> 5617400 | O11: =MAX(0,20000000-AMT.AdjustedUnderSec115JC3a2_2cr) -> 14382600 | P11: =IF(bacValue=1,0,IF(AMT.Total <=0,0,IF(AMT.AdjustedUnderSec115JC <=2000000,0,MAX(0,IF(sheet1.Foreign_Exchange="Yes",ROUND(AMT.AdjustedUnderSec115JC3a2New_2cr+AMT.AdjustedUnderSec115JC3b2New_2cr,0),ROUND(AMT.AdjustedUnderSec115JC3a2New_2cr+AMT.AdjustedUnderSec115JC3b2New_2cr,0)))))) -> 0
D12: 3b | E12: Adjusted Total Income u/s 115JC from other Units (3-3a) | I12: 3b | J12: 0 | N12: =0.185*(IF(AMT.AdjustedUnderSec115JC3a2_2cr<0,0,IF(AMT.AdjustedUnderSec115JC3b2_2cr<0,AMT.AdjustedUnderSec115JC3a2_2cr+AMT.AdjustedUnderSec115JC3b2_2cr,AMT.AdjustedUnderSec115JC3a2_2cr))) -> 1039219 | O12: =0.185*(IF(AMT.AdjustedUnderSec115JC3b2_2cr<0,0,IF(AMT.AdjustedUnderSec115JC3a2_2cr<0,AMT.AdjustedUnderSec115JC3a2_2cr+AMT.AdjustedUnderSec115JC3b2_2cr,AMT.AdjustedUnderSec115JC3b2_2cr))) -> 2660781
D13: 4 | E13: Tax payable under section 115JC [18.5% of (3),](if 3 is greater than Rs. 20 lakhs) | I13: 4 | J13: =IF(bacValue=1,0,IF(AMT.AdjustedUnderSec115JC <=2000000,0,MAX(0,IF(sheet1.Foreign_Exchange="Yes",ROUND(AMT.AdjustedUnderSec115JC3aNew+AMT.AdjustedUnderSec115JC3bNew,0),ROUND(AMT.AdjustedUnderSec115JC3aNew+AMT.AdjustedUnderSec115JC3bNew,0))))) -> 505566 | M13: =IF(bacValue=1,0,IF(AMT.Total <=0,0,IF(AMT.AdjustedUnderSec115JC <=2000000,0,MAX(0,IF(sheet1.Foreign_Exchange="Yes",ROUND(0.09*AMT.AdjustedUnderSec115JC,0),ROUND(0.185*AMT.AdjustedUnderSec115JC,0)))))) -> 0 | N13: =AMT.AdjustedUnderSec115JC3a -> 5617400 | O13: =MAX(0,10000000-AMT.AdjustedUnderSec115JC3a2_1cr) -> 4382600 | P13: =IF(bacValue=1,0,IF(AMT.Total <=0,0,IF(AMT.AdjustedUnderSec115JC <=2000000,0,MAX(0,IF(sheet1.Foreign_Exchange="Yes",ROUND(AMT.AdjustedUnderSec115JC3a2New_1cr+AMT.AdjustedUnderSec115JC3b2New_1cr,0),ROUND(AMT.AdjustedUnderSec115JC3a2New_1cr+AMT.AdjustedUnderSec115JC3b2New_1cr,0)))))) -> 0
N14: =0.185*(IF(AMT.AdjustedUnderSec115JC3a2_1cr<0,0,IF(AMT.AdjustedUnderSec115JC3b2_1cr<0,AMT.AdjustedUnderSec115JC3a2_1cr+AMT.AdjustedUnderSec115JC3b2_1cr,AMT.AdjustedUnderSec115JC3a2_1cr))) -> 1039219 | O14: =0.185*(IF(AMT.AdjustedUnderSec115JC3b2_1cr<0,0,IF(AMT.AdjustedUnderSec115JC3a2_1cr<0,AMT.AdjustedUnderSec115JC3a2_1cr+AMT.AdjustedUnderSec115JC3b2_1cr,AMT.AdjustedUnderSec115JC3b2_1cr))) -> 810781

Sheet AMTC
C3: Schedule AMTC | F3: Computation of tax credit under section 115JD
C4: AMT CREDIT | D4: 1 | E4: Tax under section 115JC in assessment year 2022-23 (1d of Part-B-TTI) | K4: 1 | L4: =sheet9.TotalTax_DI -> 578368
D5: 2 | E5: Tax under other provisions of the Act in assessment year 2022-23 (7 of Part-B-TTI) | K5: 2 | L5: =Sheet9.GrossTaxLiability -> 909183
D6: 3 | E6: Amount of tax against which credit is available [enter (2 – 1) if 2 is greater than 1, otherwise enter 0] | K6: 3 | L6: =MAX(0,AMTC.TaxOthProvisions-AMTC.TaxSection115JC) -> 330815
